{"text_format":"1","workbook":"xlsx","n_sheets":5,"sheets":["Metodologija","Grafički prikaz","Iznosi taksi i naknada u OP","Pojedinačni podaci po LS","Sheet1"],"not_rendered":{"charts":4,"images":3,"macros":0,"external_links":0,"defined_names":2,"comments":1,"pivot_tables":1},"unopened":[],"bounds":{"document_bytes":16777216,"sheet_cells":100000,"rows_first":2000,"rows_last":500,"rows_between":2000,"halvings":0,"cell_chars":16384,"cell_head_chars":4096},"cells_cut":0,"cells_raw":0,"read":"whole","date_system":"1900"}

{"sheet":"Metodologija","index":0,"n_rows":8,"n_cols":5,"rows_kept":8,"cut":false,"hidden":false,"merged":[[7,4,32,20]]}
[]
[]
[]
[]
[]
[]
[]
[null,null,null,null,"\nPodaci o visinama taksi i naknada koje nadležni organi naplaćuju u objedinjenoj proceduri prikupljani su putem ankete nadležnih organa u okviru projekta koji je podržao USAID Projekat za bolje uslove poslovanja u Srbiji.\n \nUpitnik je sadržao sve podatke potrebne podnosiocu zahteva za popunjavanje uplatnica i uplatu potrebnih taksi/naknada za dva tipa objekata:\n  \nTip objekta 1: Poslovni objekat u najatraktivnijoj zoni lokalne samouprave, površine 1000m2, prizemlje i  tri sprata. Parcela gde će se graditi ima prisupni put i svu potrebnu infrastrukturu, upisana je u katastar nepokretnosti i na njoj nije bilo prethodnih građevinskih radova.\n\nTip objekta 2: Skladište, objekat pomoćne namene, u trećoj najatraktivnijoj zoni lokalne samouprave, površine 1000m2, dva sprata iznad zemlje. Skladište neće skladištiti robu koja zahteva posebne uslove skladištenja poput hrane, lekova itd. Parcela gde će se graditi skladište ima prisupni put i svu potrebnu infrastrukturu, upisana je u katastar nepokretnosti i na njoj nije bilo prethodnih građevinskih radova.\n\nIznosi taksi i naknada navedeni su u dinarima.\n\nIznosi taksi i naknada odnose se na pravna lica.\n\nTabele NE SADRŽE visinu takse za centralnu evidenciju objedinjene procedure/CEOP, s obzirom na to da je visina ove takse javno dostupna na sajtu Agencije za privredne registre. \n\nTabele NE SADRŽE visinu taksi i naknada koje naplaćuju imaoci javnih oblašćenja za izdavanje uslova u objedinjenoj proceduri.\n\nZa LS koje nisu dostavile popunjene upitnike, podaci su preuzeti sa objava na centralnom informacionom sistemu. Ove LS u svom nazivu imaju znak \"!\".\n\n\nZa više informacija možete se obratiti na mejl info@gradjevinskedozvole.rs \n"]

{"sheet":"Grafički prikaz","index":1,"n_rows":2,"n_cols":4,"rows_kept":2,"cut":false,"hidden":false,"merged":[[1,3,2,21]]}
[]
[null,null,null,"Na grafikonima su prikazani ukupni iznosi taksi i naknada koje nadležni organi naplaćuju u objedinjenoj proceduri za određene tipove zahteva.\n\nPodaci o lokalnim samoupravama koje pored svog naziva imaju znak uzvika (!) prikupljeni su sa objava iz centralnog informacionog sistema te nisu uporedivi sa ostalim podacima.\n                                                                                                                                    \nNapominjemo da su navedeni podaci informativnog karaktera i da je neophodno obratiti se nadležnom organu za traženje tačnih informacija za konkretan zahtev."]

{"sheet":"Iznosi taksi i naknada u OP","index":2,"n_rows":187,"n_cols":11,"rows_kept":187,"cut":false,"hidden":false,"merged":[[1,3,3,13]]}
[]
[null,null,null,"U tabeli su prikazani podaci o visinama taksi i naknada koje nadležne lokalne samouprave naplaćuju u objedinjenoj proceduri u zavisnosti od vrste podnetog zahteva. Iznos taksi i naknada odnosi se na dva tipa objekta od po 1000 kvadrata. Detaljniji opis tipova objekata možete naći u delu \"Metodologija\".                                                                                                                                   \nNadležne organe, tj. lokalne samouprave, možete filtrirati koristeći slajder sa leve strane tabele. \n\nPodaci o lokalnim samoupravama koje pored svog naziva imaju znak uzvika (!) prikupljeni su sa objava iz centralnog informacionog sistema te nisu uporedivi sa ostalim podacima.\n\nNapominjemo da su navedeni podaci informativnog karaktera i da je neophodno obratiti se nadležnom organu za traženje tačnih informacija za konkretan zahtev."]
[]
[]
[]
[]
[null,null,null,null,null,null,null,"Lokalna samouprava","Iznos takse/naknade                     Tip objekta 1","Iznos takse/naknade                     Tip objekta 2","Broj taksi/naknada u procentualnom iznosu"]
[null,null,null,null,null,null,null,"Grad Beograd",36908,36908,1]
[null,null,null,null,null,null,null,"Grad Čačak",4600,4600,1]
[null,null,null,null,null,null,null,"Grad Ćuprija !",4210]
[null,null,null,null,null,null,null,"Grad Jagodina",37270,30670,1]
[null,null,null,null,null,null,null,"Grad Kikinda",57510,102510,1]
[null,null,null,null,null,null,null,"Grad Kragujevac",71490,49430,1]
[null,null,null,null,null,null,null,"Dostavljanje tehničke dokumentacije",310,310]
[null,null,null,null,null,null,null,"Republička administrativna taksa",310,310]
[null,null,null,null,null,null,null,"Građevinska dozvola",1110,1110]
[null,null,null,null,null,null,null,"Republička administrativna taksa",1110,1110]
[null,null,null,null,null,null,null,"Lokacijski uslovi",66520,44460]
[null,null,null,null,null,null,null,"Lokalna administrativna taksa",66210,44150]
[null,null,null,null,null,null,null,"Republička administrativna taksa",310,310]
[null,null,null,null,null,null,null,"Prijava radova",310,310]
[null,null,null,null,null,null,null,"Republička administrativna taksa",310,310]
[null,null,null,null,null,null,null,"Prijava završetka izrade temelja i završetka objekta u konstruktivnom smislu",1910,1910]
[null,null,null,null,null,null,null,"Republička administrativna taksa",1910,1910]
[null,null,null,null,null,null,null,"Priključenje objekta na infrastrukturu",310,310]
[null,null,null,null,null,null,null,"Republička administrativna taksa",310,310]
[null,null,null,null,null,null,null,"Rešenje o odobrenju izvođenja radova po članu 145 Zakona",710,710]
[null,null,null,null,null,null,null,"Republička administrativna taksa",710,710]
[null,null,null,null,null,null,null,"Upotrebna dozvola",310,310,1]
[null,null,null,null,null,null,null,"Republička administrativna taksa",310,310,1]
[null,null,null,null,null,null,null,"Grad Kraljevo !",1070]
[null,null,null,null,null,null,null,"Grad Kruševac",10720,10720,1]
[null,null,null,null,null,null,null,"Grad Leskovac",117680,85680,1]
[null,null,null,null,null,null,null,"Grad Loznica",24200,24200]
[null,null,null,null,null,null,null,"Grad Negotin !",1070]
[null,null,null,null,null,null,null,"Grad Niš",35610,28610,1]
[null,null,null,null,null,null,null,"Grad Novi Pazar",24980,24980,1]
[null,null,null,null,null,null,null,"Grad Novi Sad",14750,8700,4]
[null,null,null,null,null,null,null,"Grad Pančevo",19077,19077,1]
[null,null,null,null,null,null,null,"Grad Pirot",92930,92160,1]
[null,null,null,null,null,null,null,"Grad Požarevac",40600,40600]
[null,null,null,null,null,null,null,"Grad Šabac",22420,22420,1]
[null,null,null,null,null,null,null,"Grad Smederevo",13980,13980,1]
[null,null,null,null,null,null,null,"Grad Sombor",5710,5710,1]
[null,null,null,null,null,null,null,"Grad Sremska Mitrovica",57610,57610,1]
[null,null,null,null,null,null,null,"Grad Subotica",6633,6633,1]
[null,null,null,null,null,null,null,"Grad Užice",11800,11800,1]
[null,null,null,null,null,null,null,"Grad Valjevo",6067,6067]
[null,null,null,null,null,null,null,"Grad Vranje !",2445]
[null,null,null,null,null,null,null,"Grad Vršac",37880,37880,1]
[null,null,null,null,null,null,null,"Grad Zaječar",26455,26455]
[null,null,null,null,null,null,null,"Grad Zrenjanin",46910,46910,1]
[null,null,null,null,null,null,null,"Gradska opština Barajevo",20486,20486,1]
[null,null,null,null,null,null,null,"Gradska opština Čukarica",5800,5800,1]
[null,null,null,null,null,null,null,"Gradska opština Grocka !",1110]
[null,null,null,null,null,null,null,"Gradska opština Lazarevac",20246,20246,1]
[null,null,null,null,null,null,null,"Gradska opština Mladenovac !",1410]
[null,null,null,null,null,null,null,"Gradska opština Novi Beograd",6800,6800,1]
[null,null,null,null,null,null,null,"Gradska opština Obrenovac",19686,19686,2]
[null,null,null,null,null,null,null,"Gradska opština Palilula",3180,2780,1]
[null,null,null,null,null,null,null,"Gradska opština Rakovica ! ",1370]
[null,null,null,null,null,null,null,"Gradska opština Savski Venac",3460,2660,1]
[null,null,null,null,null,null,null,"Gradska opština Sopot",17906,17906,1]
[null,null,null,null,null,null,null,"Gradska opština Stari Grad !",1110]
[null,null,null,null,null,null,null,"Gradska opština Surčin !",2261]
[null,null,null,null,null,null,null,"Gradska opština Voždovac !",800]
[null,null,null,null,null,null,null,"Gradska opština Vračar",3300,3300,1]
[null,null,null,null,null,null,null,"Gradska opština Zemun",5590,5590,1]
[null,null,null,null,null,null,null,"Gradska opština Zvezdara",5590,5590,1]
[null,null,null,null,null,null,null,"Opština Ada !",1110]
[null,null,null,null,null,null,null,"Opština Aleksandrovac",17880,19880,1]
[null,null,null,null,null,null,null,"Opština Aleksinac !",770]
[null,null,null,null,null,null,null,"Opština Alibunar",9370,8310,1]
[null,null,null,null,null,null,null,"Opština Apatin !",1110]
[null,null,null,null,null,null,null,"Opština Aranđelovac",19381.5,17995,1]
[null,null,null,null,null,null,null,"Opština Arilje",10140,10140,1]
[null,null,null,null,null,null,null,"Opština Babušnica",9810,9810,1]
[null,null,null,null,null,null,null,"Opština Bač !",1080]
[null,null,null,null,null,null,null,"Opština Bačka Palanka",12670,12670,1]
[null,null,null,null,null,null,null,"Opština Bačka Topola",3800,4490]
[null,null,null,null,null,null,null,"Opština Bački Petrovac !",1110]
[null,null,null,null,null,null,null,"Opština Bajina Bašta !",350]
[null,null,null,null,null,null,null,"Opština Batočina",43280,43280,1]
[null,null,null,null,null,null,null,"Opština Bečej",18180,18180,3]
[null,null,null,null,null,null,null,"Opština Bela Crkva !",1080]
[null,null,null,null,null,null,null,"Opština Bela Palanka",68640,68640,1]
[null,null,null,null,null,null,null,"Opština Beočin",3420,3420,1]
[null,null,null,null,null,null,null,"Opština Blace",120660,119480,1]
[null,null,null,null,null,null,null,"Opština Bogatić",23020,23020,1]
[null,null,null,null,null,null,null,"Opština Bojnik !",300]
[null,null,null,null,null,null,null,"Opština Boljevac",17230,11230]
[null,null,null,null,null,null,null,"Opština Bor !",1070]
[null,null,null,null,null,null,null,"Opština Bosilegrad",17330,17330,1]
[null,null,null,null,null,null,null,"Opština Brus",24930,24930]
[null,null,null,null,null,null,null,"Opština Bujanovac",122380,89680,1]
[null,null,null,null,null,null,null,"Opština Čajetina",149620,149620,1]
[null,null,null,null,null,null,null,"Opština Ćićevac",21930,21930,1]
[null,null,null,null,null,null,null,"Opština Čoka",2400,2400,3]
[null,null,null,null,null,null,null,"Opština Crna Trava",33770,33770,1]
[null,null,null,null,null,null,null,"Opština Despotovac",17820,17820]
[null,null,null,null,null,null,null,"Opština Dimitrovgrad",7680,7680,1]
[null,null,null,null,null,null,null,"Opština Doljevac",4600,4600]
[null,null,null,null,null,null,null,"Opština Gadžin Han",16540,16540]
[null,null,null,null,null,null,null,"Opština Golubac",27220,37220,1]
[null,null,null,null,null,null,null,"Opština Gornji Milanovac",139650,95650,1]
[null,null,null,null,null,null,null,"Opština Inđija !",10230]
[null,null,null,null,null,null,null,"Opština Irig",10410,10410]
[null,null,null,null,null,null,null,"Opština Ivanjica",42240,42240,1]
[null,null,null,null,null,null,null,"Opština Kanjiža !",1100]
[null,null,null,null,null,null,null,"Opština Kladovo !",1420]
[null,null,null,null,null,null,null,"Opština Knić",7310,7310,1]
[null,null,null,null,null,null,null,"Opština Knjaževac",15841,15841,2]
[null,null,null,null,null,null,null,"Opština Koceljeva",18260,12590,1]
[null,null,null,null,null,null,null,"Opština Kosjerić",89580,53580]
[null,null,null,null,null,null,null,"Opština Kovačica",27080,20880,1]
[null,null,null,null,null,null,null,"Opština Kovin",40858,40858]
[null,null,null,null,null,null,null,"Opština Krupanj",21400,21400,1]
[null,null,null,null,null,null,null,"Opština Kučevo",34120,15920]
[null,null,null,null,null,null,null,"Opština Kula",9130,7630]
[null,null,null,null,null,null,null,"Opština Kuršumlija",68380,38380,1]
[null,null,null,null,null,null,null,"Opština Lajkovac",32813,32687,1]
[null,null,null,null,null,null,null,"Opština Lapovo !",19070]
[null,null,null,null,null,null,null,"Opština Lebane ",22090,22090,1]
[null,null,null,null,null,null,null,"Opština Ljig",51640,31640,1]
[null,null,null,null,null,null,null,"Opština Ljubovija !",1070]
[null,null,null,null,null,null,null,"Opština Lučani",17540,14540,1]
[null,null,null,null,null,null,null,"Opština Majdanpek !",385]
[null,null,null,null,null,null,null,"Opština Mali Iđoš !",830]
[null,null,null,null,null,null,null,"Opština Mali Zvornik !",1100]
[null,null,null,null,null,null,null,"Opština Malo Crniće",25470,25470]
[null,null,null,null,null,null,null,"Opština Medveđa",15500,15500,1]
[null,null,null,null,null,null,null,"Opština Merošina",11670,7910,2]
[null,null,null,null,null,null,null,"Opština Mionica",23460,16100,1]
[null,null,null,null,null,null,null,"Opština Nova Crnja",4080,4080,1]
[null,null,null,null,null,null,null,"Opština Nova Varoš",18990,13690]
[null,null,null,null,null,null,null,"Opština Novi Bečej",52190,18590,1]
[null,null,null,null,null,null,null,"Opština Novi Kneževac",13740,8740]
[null,null,null,null,null,null,null,"Opština Odžaci",16310,16310,2]
[null,null,null,null,null,null,null,"Opština Opovo",12770,12770,2]
[null,null,null,null,null,null,null,"Opština Osečina !",770]
[null,null,null,null,null,null,null,"Opština Paraćin !",1110]
[null,null,null,null,null,null,null,"Opština Pećinci",36256,36256,1]
[null,null,null,null,null,null,null,"Opština Petrovac na Mlavi",15050,15050,1]
[null,null,null,null,null,null,null,"Opština Plandište",7810,5810,1]
[null,null,null,null,null,null,null,"Opština Požega",46080,46080,1]
[null,null,null,null,null,null,null,"Opština Preševo ",63360,63360,1]
[null,null,null,null,null,null,null,"Opština Priboj",23680,23680,1]
[null,null,null,null,null,null,null,"Opština Prijepolje",2480,2480]
[null,null,null,null,null,null,null,"Opština Prokuplje !",5710]
[null,null,null,null,null,null,null,"Opština Rača",47252.700000000004,47252.700000000004,1]
[null,null,null,null,null,null,null,"Opština Raška !",800]
[null,null,null,null,null,null,null,"Opština Ražanj",20240,34240,1]
[null,null,null,null,null,null,null,"Opština Rekovac",21580,21580]
[null,null,null,null,null,null,null,"Opština Ruma !",1110]
[null,null,null,null,null,null,null,"Opština Sečanj",8640,8640,1]
[null,null,null,null,null,null,null,"Opština Senta",121301,83801,3]
[null,null,null,null,null,null,null,"Opština Šid",47240,47240,1]
[null,null,null,null,null,null,null,"Opština Sjenica",28760,24760,1]
[null,null,null,null,null,null,null,"Opština Smederevska Palanka !",1070]
[null,null,null,null,null,null,null,"Opština Sokobanja",15208,15208,1]
[null,null,null,null,null,null,null,"Opština Srbobran",14881,19956,1]
[null,null,null,null,null,null,null,"Opština Sremski Karlovci",21680,21680,1]
[null,null,null,null,null,null,null,"Opština Stara Pazova",14300,15300,2]
[null,null,null,null,null,null,null,"Opština Surdulica ",33360,33360,1]
[null,null,null,null,null,null,null,"Opština Svilajnac !",1110]
[null,null,null,null,null,null,null,"Opština Svrljig ",6600,6600,3]
[null,null,null,null,null,null,null,"Opština Temerin",66750,66750,1]
[null,null,null,null,null,null,null,"Opština Titel",31220,16220,1]
[null,null,null,null,null,null,null,"Opština Topola !",1110]
[null,null,null,null,null,null,null,"Opština Trgovište !",770]
[null,null,null,null,null,null,null,"Opština Trstenik",20480,20480,1]
[null,null,null,null,null,null,null,"Opština Tutin !",1110]
[null,null,null,null,null,null,null,"Opština Ub !",1110]
[null,null,null,null,null,null,null,"Opština Varvarin !",300]
[null,null,null,null,null,null,null,"Opština Velika Plana",5060,5060,1]
[null,null,null,null,null,null,null,"Opština Veliko Gradište !",1070]
[null,null,null,null,null,null,null,"Opština Vladičin Han",12380,12380,1]
[null,null,null,null,null,null,null,"Opština Vladimirci !",19564]
[null,null,null,null,null,null,null,"Opština Vlasotince !",4710]
[null,null,null,null,null,null,null,"Opština Vrbas",33460,33460,1]
[null,null,null,null,null,null,null,"Opština Vrnjačka Banja !",1581]
[null,null,null,null,null,null,null,"Opština Žabalj",17390,17390,1]
[null,null,null,null,null,null,null,"Opština Žabari",19130,15050,2]
[null,null,null,null,null,null,null,"Opština Žagubica",9400,9400,1]
[null,null,null,null,null,null,null,"Opština Žitište !",20800]
[null,null,null,null,null,null,null,"Opština Žitorađa",14520,14520,1]
[null,null,null,null,null,null,null,"Ukupno",3551452.1999999993,3105068.6999999993,116]

{"sheet":"Pojedinačni podaci po LS","index":3,"n_rows":1859,"n_cols":14,"rows_kept":1859,"cut":false,"hidden":false,"merged":[[1,2,3,11]]}
[]
[null,null,"U datoj tabeli prikazani su pojedinačni podaci o taksama i naknadama koje nadležne lokalne samouprave naplaćuju u objedinjenoj proceduri u zavisnosti od tipa zahteva. Iznos taksi i naknada odnosi se na dva tipa objekta od po 1000 kvadrata. Detaljniji opis tipova objekata možete naći u delu \"Metodologija\". Pored iznosa taksi navedeni su i svi podaci potrebni podnosiocu zahteva za uplatu navedene takse.\n\nPodaci o lokalnim samoupravama koje pored svog naziva imaju znak uzvika (!) prikupljeni su sa objava iz centralnog informacionog sistema te nisu uporedivi sa ostalim podacima.\n\nNapominjemo da su navedeni podaci informativnog karaktera i da je neophodno obratiti se nadležnom organu za traženje tačnih informacija za konkretan zahtev."]
[]
[]
[]
[null,"Lokalna samouprava","Tip zahteva","Vrsta takse","Tip takse","Da li LS naplaćuje taksu u % iznosu","Iznos takse Tip objekta 1","Iznos takse Tip objekta 2","Broj tekućeg računa","Primalac","Model","Poziv na broj","Pravni osnov","Komentar"]
[null,"Grad Beograd","Lokacijski uslovi","Podnošenje zahteva","Lokalna administrativna taksa",null,300,300,"840-742241843-03","Gradska uprava Beograd",97,3650105,"Odluka o izmeni Odluke o lokalnim administrativnim taksama(“Sl.list grada Beograda” br.96/2016)"]
[null,"Grad Beograd","Lokacijski uslovi","Donošenje rešenja","Lokalna administrativna taksa",null,31308,31308,"840-742241843-03","Gradska uprava Beograd",97,3650105,"Odluka o izmeni Odluke o lokalnim administrativnim taksama(“Sl.list grada Beograda” br.96/2016)"]
[null,"Grad Beograd","Građevinska dozvola","Podnošenje zahteva","Lokalna administrativna taksa",null,300,300,"840-742241843-03","Gradska uprava Beograd",97,3650105,"Odluka o izmeni Odluke o lokalnim administrativnim taksama(“Sl.list grada Beograda” br.96/2016)"]
[null,"Grad Beograd","Građevinska dozvola","Donošenje rešenja","Republička administrativna taksa",null,800,800,"840-742221843-57","Budžet Republike Srbije",97,"44-018","Zakon o RAT - tarifni broj 165"]
[null,"Grad Beograd","Rešenje o odobrenju izvođenja radova po članu 145 Zakona","Podnošenje zahteva","Lokalna administrativna taksa",null,300,300,"840-742241843-03","Gradska uprava Beograd",97,3650105,"Odluka o izmeni Odluke o lokalnim administrativnim taksama(“Sl.list grada Beograda” br.96/2016)"]
[null,"Grad Beograd","Rešenje o odobrenju izvođenja radova po članu 145 Zakona","Donošenje rešenja","Republička administrativna taksa",null,800,800,"840-742221843-57","Budžet Republike Srbije",97,"44-018","Zakon o RAT - tarifni broj 165"]
[null,"Grad Beograd","Prijava radova","Podnošenje zahteva","Lokalna administrativna taksa",null,300,300,"840-742241843-03","Gradska uprava Beograd",97,3650105,"Odluka o izmeni Odluke o lokalnim administrativnim taksama(“Sl.list grada Beograda” br.96/2016)"]
[null,"Grad Beograd","Prijava završetka izrade temelja i završetka objekta u konstruktivnom smislu","Podnošenje zahteva","Republička administrativna taksa",null,1600,1600,"840-742221843-57","Budžet Republike Srbije",97,"44-018","Zakon o RAT - tarifni broj 164"]
[null,"Grad Beograd","Prijava završetka izrade temelja i završetka objekta u konstruktivnom smislu","Podnošenje zahteva","Lokalna administrativna taksa",null,300,300,"840-742241843-03","Gradska uprava Beograd",97,3650105,"Odluka o izmeni Odluke o lokalnim administrativnim taksama(“Sl.list grada Beograda” br.96/2016)"]
[null,"Grad Beograd","Dostavljanje tehničke dokumentacije","Podnošenje zahteva","Lokalna administrativna taksa",null,300,300,"840-742241843-03","Gradska uprava Beograd",97,3650105,"Odluka o izmeni Odluke o lokalnim administrativnim taksama(“Sl.list grada Beograda” br.96/2016)"]
[null,"Grad Beograd","Upotrebna dozvola","Podnošenje zahteva","Lokalna administrativna taksa",null,300,300,"840-742241843-03","Gradska uprava Beograd",97,3650105,"Odluka o izmeni Odluke o lokalnim administrativnim taksama(“Sl.list grada Beograda” br.96/2016)"]
[null,"Grad Beograd","Upotrebna dozvola","Donošenje rešenja","Republička administrativna taksa","DA","0.2% predračunske vrednosti objekta","0.2% predračunske vrednosti objekta","840-742221843-57","Budžet Republike Srbije",97,"44-018","Zakon o RAT - tarifni broj 170"]
[null,"Grad Beograd","Priključenje objekta na infrastrukturu","Podnošenje zahteva","Lokalna administrativna taksa",null,300,300,"840-742241843-03","Gradska uprava Beograd",97,3650105,"Odluka o izmeni Odluke o lokalnim administrativnim taksama(“Sl.list grada Beograda” br.96/2016)"]
[null,"Grad Čačak","Lokacijski uslovi","Podnošenje zahteva","Republička administrativna taksa",null,830,830,"840-742221843-57","Budžet Republike Srbije",97,"93-034","Zakon o RAT - tarifni broj 1 i tarifni broj 9"]
[null,"Grad Čačak","Građevinska dozvola","Podnošenje zahteva","Republička administrativna taksa",null,310,310,"840-742221843-57","Budžet Republike Srbije",97,"93-034","Zakon o RAT - tarifni broj 1"]
[null,"Grad Čačak","Građevinska dozvola","Donošenje rešenja","Republička administrativna taksa",null,270,270,"840-742221843-57","Budžet Republike Srbije",97,"93-034","Zakon o RAT - tarifni broj 165"]
[null,"Grad Čačak","Rešenje o odobrenju izvođenja radova po članu 145 Zakona","Podnošenje zahteva","Republička administrativna taksa",null,310,310,"840-742221843-57","Budžet Republike Srbije",97,"93-034","Zakon o RAT - tarifni broj 1"]
[null,"Grad Čačak","Rešenje o odobrenju izvođenja radova po članu 145 Zakona","Donošenje rešenja","Republička administrativna taksa",null,400,400,"840-742221843-57","Budžet Republike Srbije",97,"93-034","Zakon o RAT - tarifni broj 165"]
[null,"Grad Čačak","Prijava radova","Podnošenje zahteva","Republička administrativna taksa",null,620,620,"840-742221843-57","Budžet Republike Srbije",97,"93-034","Zakon o RAT - tarifni broj 1 i tarifni broj 11"]
[null,"Grad Čačak","Prijava završetka izrade temelja i završetka objekta u konstruktivnom smislu","Podnošenje zahteva","Republička administrativna taksa",null,930,930,"840-742221843-57","Budžet Republike Srbije",97,"93-034","Zakon o RAT - tarifni broj 1 (x2) i tarifni broj 11"]
[null,"Grad Čačak","Dostavljanje tehničke dokumentacije","Podnošenje zahteva","Republička administrativna taksa",null,310,310,"840-742221843-57","Budžet Republike Srbije",97,"93-034","Zakon o RAT - tarifni broj 1"]
[null,"Grad Čačak","Upotrebna dozvola","Podnošenje zahteva","Republička administrativna taksa",null,310,310,"840-742221843-57","Budžet Republike Srbije",97,"93-034","Zakon o RAT - tarifni broj 1"]
[null,"Grad Čačak","Upotrebna dozvola","Podnošenje zahteva","Republička administrativna taksa","DA","0.2% predračunske vrednosti objekta","0.2% predračunske vrednosti objekta","840-742221843-57","Budžet Republike Srbije",97,"93-034","Zakon o RAT - tarifni broj 170"]
[null,"Grad Čačak","Priključenje objekta na infrastrukturu","Podnošenje zahteva","Republička administrativna taksa",null,310,310,"840-742221843-57","Budžet Republike Srbije",97,"93-034","Zakon o RAT - tarifni broj 1"]
[null,"Grad Jagodina","Lokacijski uslovi","Podnošenje zahteva","Republička administrativna taksa",null,310,310,"840-742221843-57","Budžet Republike Srbije",97,"04-096 ","Zakon o RAT - tarifni broj 1"]
[null,"Grad Jagodina","Lokacijski uslovi","Donošenje rešenja","Lokalna naknada",null,33000,26400,"840-742241843-03","Gradska uprava Jagodina",97,"04-096 ","Odluka o cenovniku stvarnih troškova izvoda iz urbanističkih planova, akata o urbanističkim uslovima i ostalih urbanističkih akata\n(\"Opštinski službeni glasnik opštine Jagodina broj 25/2004\")\n"]
[null,"Grad Jagodina","Građevinska dozvola","Podnošenje zahteva","Republička administrativna taksa",null,1030,1030,"840-742221843-57","Budžet Republike Srbije",97,"04-096 ","Zakon o RAT "]
[null,"Grad Jagodina","Rešenje o odobrenju izvođenja radova po članu 145 Zakona","Podnošenje zahteva","Republička administrativna taksa",null,660,660,"840-742221843-57","Budžet Republike Srbije",97,"04-096 ","Zakon o RAT "]
[null,"Grad Jagodina","Prijava radova","Podnošenje zahteva","Republička administrativna taksa",null,310,310,"840-742221843-57","Budžet Republike Srbije",97,"04-096 ","Zakon o RAT - tarifni broj 1"]
[null,"Grad Jagodina","Prijava završetka izrade temelja i završetka objekta u konstruktivnom smislu","Podnošenje zahteva","Republička administrativna taksa",null,310,310,"840-742221843-57","Budžet Republike Srbije",97,"04-096 ","Zakon o RAT - tarifni broj 1"]
[null,"Grad Jagodina","Dostavljanje tehničke dokumentacije","Podnošenje zahteva","Republička administrativna taksa",null,310,310,"840-742221843-57","Budžet Republike Srbije",97,"04-096 ","Zakon o RAT - tarifni broj 1"]
[null,"Grad Jagodina","Upotrebna dozvola","Podnošenje zahteva","Republička administrativna taksa",null,1030,1030,"840-742221843-57","Budžet Republike Srbije",97,"04-096 ","Zakon o RAT "]
[null,"Grad Jagodina","Upotrebna dozvola","Donošenje rešenja","Republička administrativna taksa","DA","0.2% predračunske vrednosti objekta","0.2% predračunske vrednosti objekta","840-742221843-57","Budžet Republike Srbije",97,"04-096 ","Zakon o RAT - tarifni broj 170"]
[null,"Grad Jagodina","Priključenje objekta na infrastrukturu","Podnošenje zahteva","Republička administrativna taksa",null,310,310,"840-742221843-57","Budžet Republike Srbije",97,"04-096 ","Zakon o RAT - tarifni broj 1"]
[null,"Grad Kikinda","Lokacijski uslovi","Podnošenje zahteva","Republička administrativna taksa",null,830,830,"840-742221843-57 ","Budžet Republike Srbije",97,"35-215","Zakon o RAT - tarifni broj 1 i 9"]
[null,"Grad Kikinda","Lokacijski uslovi","Donošenje rešenja","Lokalna naknada",null,51000,96000,"840-745141843-30","Gradska uprava Kikinda",97,"35-215","Odluka o administrativnim taksama"]
[null,"Grad Kikinda","Građevinska dozvola","Podnošenje zahteva","Republička administrativna taksa",null,310,310,"840-742221843-57","Budžet Republike Srbije",97,"35-215","Zakon o RAT - tarifni broj 1"]
[null,"Grad Kikinda","Građevinska dozvola","Donošenje rešenja","Republička administrativna taksa",null,800,800,"840-742221843-57","Budžet Republike Srbije",97,"35-215","Zakon o RAT - tarifni broj 165"]
[null,"Grad Kikinda","Rešenje o odobrenju izvođenja radova po članu 145 Zakona","Podnošenje zahteva","Republička administrativna taksa",null,310,310,"840-742221843-57","Budžet Republike Srbije",97,"35-215","Zakon o RAT - tarifni broj 1"]
[null,"Grad Kikinda","Rešenje o odobrenju izvođenja radova po članu 145 Zakona","Donošenje rešenja","Republička administrativna taksa",null,800,800,"840-742221843-57","Budžet Republike Srbije",97,"35-215","Zakon o RAT - tarifni broj 165"]
[null,"Grad Kikinda","Prijava radova","Podnošenje zahteva","Republička administrativna taksa",null,310,310,"840-742221843-57","Budžet Republike Srbije",97,"35-215","Zakon o RAT - tarifni broj 1"]
[null,"Grad Kikinda","Prijava radova","Podnošenje zahteva","Republička administrativna taksa",null,310,310,"840-742221843-57","Budžet Republike Srbije",97,"35-215","Zakon o RAT - tarifni broj 11"]
[null,"Grad Kikinda","Prijava završetka izrade temelja i završetka objekta u konstruktivnom smislu","Podnošenje zahteva","Republička administrativna taksa",null,{"$f":"1600+310","v":1910},{"$f":"1600+310","v":1910},"840-742221843-57","Budžet Republike Srbije",97,"35-215","Zakon o RAT - tarifni broj 1 i 164"]
[null,"Grad Kikinda","Dostavljanje tehničke dokumentacije","Podnošenje zahteva","Republička administrativna taksa",null,310,310,"840-742221843-57","Budžet Republike Srbije",97,"35-215","Zakon o RAT - tarifni broj 1"]
[null,"Grad Kikinda","Upotrebna dozvola","Podnošenje zahteva","Republička administrativna taksa",null,310,310,"840-742221843-57","Budžet Republike Srbije",97,"35-215","Zakon o RAT - tarifni broj 1"]
[null,"Grad Kikinda","Upotrebna dozvola","Donošenje rešenja","Republička administrativna taksa","DA","0.2% predračunske vrednosti objekta","0.2% predračunske vrednosti objekta","840-742221843-57","Budžet Republike Srbije",97,"35-215","Zakon o RAT - tarifni broj 170"]
[null,"Grad Kikinda","Priključenje objekta na infrastrukturu","Podnošenje zahteva","Republička administrativna taksa",null,310,310,"840-742221843-57","Budžet Republike Srbije",97,"35-215","Zakon o RAT - tarifni broj 1"]
[null,"Grad Kragujevac","Lokacijski uslovi","Podnošenje zahteva","Republička administrativna taksa",null,310,310,"840-742221843-57","Budžet Republike Srbije",97,"48-049","Zakon o RAT - tarifni broj 1"]
[null,"Grad Kragujevac","Lokacijski uslovi","Podnošenje zahteva","Lokalna administrativna taksa",null,66210,44150,"840-742341843-24","Gradska uprava Kragujevca",97,"24-531-94663","Odluka o troškovima i naknadama za rad organa Grada, stručni službi i posebnih službi organa Grada (\"sl.list Grada Kragujevca\", br.26/11)"]
[null,"Grad Kragujevac","Građevinska dozvola","Podnošenje zahteva","Republička administrativna taksa",null,310,310,"840-742221843-57","Budžet Republike Srbije",97,"48-049","Zakon o RAT - tarifni broj 1"]
[null,"Grad Kragujevac","Građevinska dozvola","Donošenje rešenja","Republička administrativna taksa",null,800,800,"840-742221843-57","Budžet Republike Srbije",97,"48-049","Zakon o RAT - tarifni broj 165"]
[null,"Grad Kragujevac","Rešenje o odobrenju izvođenja radova po članu 145 Zakona","Podnošenje zahteva","Republička administrativna taksa",null,310,310,"840-742221843-57","Budžet Republike Srbije",97,"48-049","Zakon o RAT - tarifni broj 1"]
[null,"Grad Kragujevac","Rešenje o odobrenju izvođenja radova po članu 145 Zakona","Donošenje rešenja","Republička administrativna taksa",null,400,400,"840-742221843-57","Budžet Republike Srbije",97,"48-049","Zakon o RAT - tarifni broj 165"]
[null,"Grad Kragujevac","Prijava radova","Podnošenje zahteva","Republička administrativna taksa",null,310,310,"840-742221843-57","Budžet Republike Srbije",97,"48-049","Zakon o RAT - tarifni broj 1"]
[null,"Grad Kragujevac","Prijava završetka izrade temelja i završetka objekta u konstruktivnom smislu","Podnošenje zahteva","Republička administrativna taksa",null,{"$f":"310+1600","v":1910},{"$f":"1600+310","v":1910},"840-742221843-57","Budžet Republike Srbije",97,"48-049","Zakon o RAT - tarifni broj 1 I 164"]
[null,"Grad Kragujevac","Dostavljanje tehničke dokumentacije","Podnošenje zahteva","Republička administrativna taksa",null,310,310,"840-742221843-57","Budžet Republike Srbije",97,"48-049","Zakon o RAT - tarifni broj 1"]
[null,"Grad Kragujevac","Upotrebna dozvola","Podnošenje zahteva","Republička administrativna taksa",null,310,310,"840-742221843-57","Budžet Republike Srbije",97,"48-049","Zakon o RAT - tarifni broj 1"]
[null,"Grad Kragujevac","Upotrebna dozvola","Donošenje rešenja","Republička administrativna taksa","DA","0.2% predračunske vrednosti objekta","0.2% predračunske vrednosti objekta","840-742221843-57","Budžet Republike Srbije",97,"48-049","Zakon o RAT - tarifni broj 170"]
[null,"Grad Kragujevac","Priključenje objekta na infrastrukturu","Podnošenje zahteva","Republička administrativna taksa",null,310,310,"840-742221843-57","Budžet Republike Srbije",97,"48-049","Zakon o RAT - tarifni broj 1"]
[null,"Grad Kruševac","Lokacijski uslovi","Podnošenje zahteva","Republička administrativna taksa",null,310,310,"840-742221843-57","Budžet Republike Srbije",97,"39-052","Zakon o RAT - tarifni broj 1"]
[null,"Grad Kruševac","Lokacijski uslovi","Podnošenje zahteva","Lokalna administrativna taksa",null,250,250,"840-742241-84303","Gradska uprava Kruševac",97,"39-052","Odluka o lokalnim komunalnim taksama (Sl.list grada Kruševca, br. 12/2009)"]
[null,"Grad Kruševac","Lokacijski uslovi","Donošenje rešenja","Republička administrativna taksa",null,520,520,"840-742221843-57","Budžet Republike Srbije",97,"39-052","Zakon o RAT - tarifni broj 9"]
[null,"Grad Kruševac","Lokacijski uslovi","Donošenje rešenja","Lokalna administrativna taksa",null,50,50,"840-742241-84303","Gradska uprava Kruševac",97,"39-052","Odluka o lokalnim komunalnim taksama (Sl.list grada Kruševca, br. 12/2009)"]
[null,"Grad Kruševac","Građevinska dozvola","Podnošenje zahteva","Republička administrativna taksa",null,310,310,"840-742221843-57","Budžet Republike Srbije",97,"39-052","Zakon o RAT - tarifni broj 1"]
[null,"Grad Kruševac","Građevinska dozvola","Podnošenje zahteva","Lokalna administrativna taksa",null,250,250,"840-742241-84303","Gradska uprava Kruševac",97,"39-052","Odluka o lokalnim komunalnim taksama (Sl.list grada Kruševca, br. 12/2009)"]
[null,"Grad Kruševac","Građevinska dozvola","Donošenje rešenja","Republička administrativna taksa",null,800,800,"840-742221843-57","Budžet Republike Srbije",97,"39-052","Zakon o RAT - tarifni broj 165"]
[null,"Grad Kruševac","Građevinska dozvola","Donošenje rešenja","Lokalna administrativna taksa",null,50,50,"840-742241-84303","Gradska uprava Kruševac",97,"39-052","Odluka o lokalnim komunalnim taksama (Sl.list grada Kruševca, br. 12/2009)"]
[null,"Grad Kruševac","Rešenje o odobrenju izvođenja radova po članu 145 Zakona","Podnošenje zahteva","Republička administrativna taksa",null,310,310,"840-742221843-57","Budžet Republike Srbije",97,"39-052","Zakon o RAT - tarifni broj 165"]
[null,"Grad Kruševac","Rešenje o odobrenju izvođenja radova po članu 145 Zakona","Podnošenje zahteva","Lokalna administrativna taksa",null,200,200,"840-742241-84303","Gradska uprava Kruševac",97,"39-052","Odluka o lokalnim komunalnim taksama (Sl.list grada Kruševca, br. 12/2009)"]
[null,"Grad Kruševac","Rešenje o odobrenju izvođenja radova po članu 145 Zakona","Donošenje rešenja","Republička administrativna taksa",null,520,520,"840-742221843-57","Budžet Republike Srbije",97,"39-052","Zakon o RAT - tarifni broj 165"]
[null,"Grad Kruševac","Rešenje o odobrenju izvođenja radova po članu 145 Zakona","Donošenje rešenja","Lokalna administrativna taksa",null,50,50,"840-742241-84303","Gradska uprava Kruševac",97,"39-052","Odluka o lokalnim komunalnim taksama (Sl.list grada Kruševca, br. 12/2009)"]
[null,"Grad Kruševac","Prijava radova","Podnošenje zahteva","Republička administrativna taksa",null,310,310,"840-742221843-57","Budžet Republike Srbije",97,"39-052","Zakon o RAT - tarifni broj 1"]
[null,"Grad Kruševac","Prijava radova","Podnošenje zahteva","Lokalna administrativna taksa",null,50,50,"840-742241-84303","Gradska uprava Kruševac",97,"39-052","Odluka o lokalnim komunalnim taksama (Sl.list grada Kruševca, br. 12/2009)"]
[null,"Grad Kruševac","Prijava radova","Donošenje rešenja","Republička administrativna taksa",null,520,520,"840-742221843-57","Budžet Republike Srbije",97,"39-052","Zakon o RAT - tarifni broj 9"]
[null,"Grad Kruševac","Prijava radova","Donošenje rešenja","Lokalna administrativna taksa",null,50,50,"840-742241-84303","Gradska uprava Kruševac",97,"39-052","Odluka o lokalnim komunalnim taksama (Sl.list grada Kruševca, br. 12/2009)"]
[null,"Grad Kruševac","Prijava završetka izrade temelja i završetka objekta u konstruktivnom smislu","Podnošenje zahteva","Republička administrativna taksa",null,620,620,"840-742221843-57","Budžet Republike Srbije",97,"39-052","Zakon o RAT - tarifni broj 1 (x2)"]
[null,"Grad Kruševac","Prijava završetka izrade temelja i završetka objekta u konstruktivnom smislu","Podnošenje zahteva","Lokalna administrativna taksa",null,570,570,"840-742241-84303","Gradska uprava Kruševac",97,"39-052","Odluka o lokalnim komunalnim taksama (Sl.list grada Kruševca, br. 12/2009)"]
[null,"Grad Kruševac","Prijava završetka izrade temelja i završetka objekta u konstruktivnom smislu","Donošenje rešenja","Republička administrativna taksa",null,{"$f":"1600+520","v":2120},{"$f":"1600+520","v":2120},"840-742221843-57","Budžet Republike Srbije",97,"39-052","Zakon o RAT - tarifni broj 164 i tarifni broj 9"]
[null,"Grad Kruševac","Prijava završetka izrade temelja i završetka objekta u konstruktivnom smislu","Donošenje rešenja","Lokalna administrativna taksa",null,50,50,"840-742241-84303","Gradska uprava Kruševac",97,"39-052","Odluka o lokalnim komunalnim taksama (Sl.list grada Kruševca, br. 12/2009)"]
[null,"Grad Kruševac","Dostavljanje tehničke dokumentacije","Podnošenje zahteva","Republička administrativna taksa",null,310,310,"840-742221843-57","Budžet Republike Srbije",97,"39-052","Zakon o RAT - tarifni broj 1"]
[null,"Grad Kruševac","Dostavljanje tehničke dokumentacije","Podnošenje zahteva","Lokalna administrativna taksa",null,50,50,"840-742241-84303","Gradska uprava Kruševac",97,"39-052","Odluka o lokalnim komunalnim taksama (Sl.list grada Kruševca, br. 12/2009)"]
[null,"Grad Kruševac","Upotrebna dozvola","Podnošenje zahteva","Republička administrativna taksa",null,310,310,"840-742221843-57","Budžet Republike Srbije",97,"39-052","Zakon o RAT - tarifni broj 1"]
[null,"Grad Kruševac","Upotrebna dozvola","Podnošenje zahteva","Lokalna administrativna taksa",null,1210,1210,"840-742241-84303","Gradska uprava Kruševac",97,"39-052","Odluka o lokalnim komunalnim taksama (Sl.list grada Kruševca, br. 12/2009)"]
[null,"Grad Kruševac","Upotrebna dozvola","Donošenje rešenja","Republička administrativna taksa",null,520,520,"840-742221843-57","Budžet Republike Srbije",97,"39-052","Zakon o RAT - tarifni broj 9"]
[null,"Grad Kruševac","Upotrebna dozvola","Donošenje rešenja","Republička administrativna taksa","DA","0.2% predračunske vrednosti objekta","0.2% predračunske vrednosti objekta","840-742221843-57","Budžet Republike Srbije",97,"39-052","Zakon o RAT - tarifni broj 170"]
[null,"Grad Kruševac","Upotrebna dozvola","Donošenje rešenja","Lokalna administrativna taksa",null,50,50,"840-742241-84303","Gradska uprava Kruševac",97,"39-052","Odluka o lokalnim komunalnim taksama (Sl.list grada Kruševca, br. 12/2009)"]
[null,"Grad Kruševac","Priključenje objekta na infrastrukturu","Podnošenje zahteva","Republička administrativna taksa",null,310,310,"840-742221843-57","Budžet Republike Srbije",97,"39-052","Zakon o RAT - tarifni broj 1"]
[null,"Grad Kruševac","Priključenje objekta na infrastrukturu","Podnošenje zahteva","Lokalna administrativna taksa",null,50,50,"840-742241-84303","Gradska uprava Kruševac",97,"39-052","Odluka o lokalnim komunalnim taksama (Sl.list grada Kruševca, br. 12/2009)"]
[null,"Grad Leskovac","Lokacijski uslovi","Podnošenje zahteva","Republička administrativna taksa",null,310,310,"840-742221843-57","Budžet Republike Srbije",97,"21-058","Zakon o RAT - tarifni broj 1"]
[null,"Grad Leskovac","Lokacijski uslovi","Donošenje rešenja","Lokalna administrativna taksa",null,101600,69600,"840-742241843-03","Gradska uprava Leskovac",97,"21-058","Odluka o gradskim administrativnim taksama (\"Sl. glasnik grada Leskovca\", br. 2/2010, 10/2010, 13/2010, 3/2012, 23/2014, 5/2015 i 51/2016)"]
[null,"Grad Leskovac","Građevinska dozvola","Podnošenje zahteva","Republička administrativna taksa",null,310,310,"840-742221843-57","Budžet Republike Srbije",97,"21-058","Zakon o RAT - tarifni broj 1"]
[null,"Grad Leskovac","Građevinska dozvola","Donošenje rešenja","Republička administrativna taksa",null,800,800,"840-742221843-57","Budžet Republike Srbije",97,"21-058","Zakon o RAT - tarifni broj 165"]
[null,"Grad Leskovac","Rešenje o odobrenju izvođenja radova po članu 145 Zakona","Podnošenje zahteva","Republička administrativna taksa",null,310,310,"840-742221843-57","Budžet Republike Srbije",97,"21-058","Zakon o RAT - tarifni broj 1","Proveri da li Niš naplaćuje RAT za LU"]
[null,"Grad Leskovac","Rešenje o odobrenju izvođenja radova po članu 145 Zakona","Donošenje rešenja","Republička administrativna taksa",null,800,800,"840-742221843-57","Budžet Republike Srbije",97,"21-058","Zakon o RAT - tarifni broj 165"]
[null,"Grad Leskovac","Rešenje o odobrenju izvođenja radova po članu 145 Zakona","Donošenje rešenja","Lokalna administrativna taksa",null,1500,1500,"840-742241843-03","Gradska uprava Leskovac",97,"21-058","Odluka o gradskim administrativnim taksama (\"Sl. glasnik grada Leskovca\", br. 2/2010, 10/2010, 13/2010, 3/2012, 23/2014, 5/2015 i 51/2016)"]
[null,"Grad Leskovac","Prijava radova","Podnošenje zahteva","Republička administrativna taksa",null,310,310,"840-742221843-57","Budžet Republike Srbije",97,"21-058","Zakon o RAT - tarifni broj 165"]
[null,"Grad Leskovac","Prijava radova","Donošenje rešenja","Lokalna administrativna taksa",null,1000,1000,"840-742241843-03","Budžet Republike Srbije",97,"21-058","Zakon o RAT - tarifni broj 7"]
[null,"Grad Leskovac","Prijava završetka izrade temelja i završetka objekta u konstruktivnom smislu","Podnošenje zahteva","Republička administrativna taksa",null,310,310,"840-742221843-57","Budžet Republike Srbije",97,"21-058","Zakon o RAT - tarifni broj 165"]
[null,"Grad Leskovac","Prijava završetka izrade temelja i završetka objekta u konstruktivnom smislu","Donošenje rešenja","Lokalna administrativna taksa",null,1000,1000,"840-742241843-03","Budžet Republike Srbije",97,"21-058","Zakon o RAT - tarifni broj 7"]
[null,"Grad Leskovac","Dostavljanje tehničke dokumentacije","Podnošenje zahteva","Republička administrativna taksa",null,310,310,"840-742221843-57","Budžet Republike Srbije",97,"21-058","Zakon o RAT - tarifni broj 1"]
[null,"Grad Leskovac","Upotrebna dozvola","Podnošenje zahteva","Republička administrativna taksa",null,310,310,"840-742221843-57","Budžet Republike Srbije",97,"21-058","Zakon o RAT - tarifni broj 1"]
[null,"Grad Leskovac","Upotrebna dozvola","Donošenje rešenja","Republička administrativna taksa","da","0.2% predračunske vrednosti objekta","0.2% predračunske vrednosti objekta","840-742221843-57","Budžet Republike Srbije",97,"21-058","Zakon o RAT - tarifni broj 170"]
[null,"Grad Leskovac","Upotrebna dozvola","Donošenje rešenja","Lokalna administrativna taksa",null,{"$f":"7*1000","v":7000},{"$f":"7*1000","v":7000},"840-742241843-03","Gradska uprava Leskovac",97,"21-058","Odluka o gradskim administrativnim taksama (\"Sl. glasnik grada Leskovca\", br. 2/2010, 10/2010, 13/2010, 3/2012, 23/2014, 5/2015 i 51/2016)"]
[null,"Grad Leskovac","Priključenje objekta na infrastrukturu","Podnošenje zahteva","Republička administrativna taksa",null,310,310,"840-742221843-57","Budžet Republike Srbije",97,"21-058","Zakon o RAT - tarifni broj 1"]
[null,"Grad Leskovac","Priključenje objekta na infrastrukturu","Donošenje rešenja","Lokalna administrativna taksa",null,1500,1500,"840-742241843-03","Gradska uprava Leskovac",97,"21-058","Odluka o gradskim administrativnim taksama (\"Sl. glasnik grada Leskovca\", br. 2/2010, 10/2010, 13/2010, 3/2012, 23/2014, 5/2015 i 51/2016)"]
[null,"Grad Loznica","Lokacijski uslovi","Podnošenje zahteva","Republička administrativna taksa",null,310,310,"840-742221843-57","Budžet Republike Srbije",97,"18-059","Zakon o RAT - tarifni broj 1"]
[null,"Grad Loznica","Lokacijski uslovi","Podnošenje zahteva","Lokalna administrativna taksa",null,10000,10000,"840-742341843-24","Gradska uprava Loznica",97,"18-059","Odluka o lok.\nadm . taksama\n(Sl.list grada\nLoznice“br.11/13,\n6/14 i 7/15) TB\n6.6"]
[null,"Grad Loznica","Građevinska dozvola","Podnošenje zahteva","Republička administrativna taksa",null,310,310,"840-742221843-57","Budžet Republike Srbije",97,"18-059","Zakon o RAT - tarifni broj 1"]
[null,"Grad Loznica","Građevinska dozvola","Donošenje rešenja","Republička administrativna taksa",null,800,800,"840-742221843-57","Budžet Republike Srbije",97,"18-059","Zakon o RAT - tarifni broj 165"]
[null,"Grad Loznica","Građevinska dozvola","Donošenje rešenja","Lokalna administrativna taksa",null,{"$f":"5*1000","v":5000},{"$f":"5*1000","v":5000},"840-742241843-03","Gradska uprava Loznica",97,"18-059","Zakon o RAT - tarifni broj 165"]
[null,"Grad Loznica","Rešenje o odobrenju izvođenja radova po članu 145 Zakona","Podnošenje zahteva","Republička administrativna taksa",null,310,310,"840-742221843-57","Budžet Republike Srbije",97,"18-059","Zakon o RAT - tarifni broj 1"]
[null,"Grad Loznica","Rešenje o odobrenju izvođenja radova po članu 145 Zakona","Donošenje rešenja","Republička administrativna taksa",null,400,400,"840-742221843-57","Budžet Republike Srbije",97,"18-059","Zakon o RAT - tarifni broj 165"]
[null,"Grad Loznica","Prijava radova","Podnošenje zahteva","Republička administrativna taksa",null,310,310,"840-742221843-57","Budžet Republike Srbije",97,"18-059","Zakon o RAT - tarifni broj 1"]
[null,"Grad Loznica","Prijava završetka izrade temelja i završetka objekta u konstruktivnom smislu","Podnošenje zahteva","Republička administrativna taksa",null,310,310,"840-742221843-57","Budžet Republike Srbije",97,"18-059","Zakon o RAT - tarifni broj 1"]
[null,"Grad Loznica","Dostavljanje tehničke dokumentacije","Podnošenje zahteva","Republička administrativna taksa",null,310,310,"840-742221843-57","Budžet Republike Srbije",97,"18-059","Zakon o RAT - tarifni broj 1"]
[null,"Grad Loznica","Upotrebna dozvola","Podnošenje zahteva","Republička administrativna taksa",null,310,310,"840-742221843-57","Budžet Republike Srbije",97,"18-059","Zakon o RAT - tarifni broj 1"]
[null,"Grad Loznica","Upotrebna dozvola","Donošenje rešenja","Republička administrativna taksa",null,520,520,"840-742221843-57","Budžet Republike Srbije",97,"18-059","Zakon o RAT - tarifni broj 9"]
[null,"Grad Loznica","Upotrebna dozvola","Donošenje rešenja","Republička administrativna taksa",null,{"$f":"5*1000","v":5000},{"$f":"5*1000","v":5000},"840-742241843-03","Gradska uprava Loznica",97,"18-059","Odluka o lok.\nadm . taksama\n(Sl.list grada\nLoznice“br.11/13,\n6/14 i 7/15) TB\n6.4"]
[null,"Grad Loznica","Priključenje objekta na infrastrukturu","Podnošenje zahteva","Republička administrativna taksa",null,310,310,"840-742221843-57","Budžet Republike Srbije",97,"18-059","Zakon o RAT - tarifni broj 1"]
[null,"Grad Niš","Lokacijski uslovi","Podnošenje zahteva","Lokalna administrativna taksa",null,25200,18200,"840-742341843-24","Gradska uprava Niš",97,"87-521","Odluka o lokalnim administrativnim taksama („Sl. list Grada Niša“ br. 90/2015 i 98/2015)"]
[null,"Grad Niš","Građevinska dozvola","Podnošenje zahteva","Republička administrativna taksa",null,1100,1100,"840-742221843-57","Budžet Republike Srbije",97,"GO Niška Banja 23-122, GO Pantelej 14-125, GO Crveni Krst 11-126, GO Palilula 08-127, GO Medijana 05-128 ","Zakon o RAT"]
[null,"Grad Niš","Rešenje o odobrenju izvođenja radova po članu 145 Zakona","Podnošenje zahteva","Lokalna administrativna taksa",null,5200,5200,"840-742341843-24","Gradska uprava Niš",97,"87-521","Odluka o lokalnim administrativnim taksama („Sl. list Grada Niša“ br. 90/2015 i 98/2015) "]
[null,"Grad Niš","Prijava radova","Podnošenje zahteva","Lokalna administrativna taksa",null,1200,1200,"840-742341843-24","Gradska uprava Niš",97,"87-521","Odluka o lokalnim administrativnim taksama („Sl. list Grada Niša“ br. 90/2015 i 98/2015) "]
[null,"Grad Niš","Prijava završetka izrade temelja i završetka objekta u konstruktivnom smislu","Podnošenje zahteva","Lokalna administrativna taksa",null,1200,1200,"840-742341843-24","Gradska uprava Niš",97,"87-521","Odluka o lokalnim administrativnim taksama („Sl. list Grada Niša“ br. 90/2015 i 98/2015) "]
[null,"Grad Niš","Dostavljanje tehničke dokumentacije","Podnošenje zahteva","Lokalna administrativna taksa",null,700,700,"840-742341843-24","Gradska uprava Niš",97,"87-521","Odluka o lokalnim administrativnim taksama („Sl. list Grada Niša“ br. 90/2015 i 98/2015) "]
[null,"Grad Niš","Upotrebna dozvola","Podnošenje zahteva","Republička administrativna taksa",null,310,310,"840-742221843-57","Budžet Republike Srbije",97,"GO Niška Banja 23-122, GO Pantelej 14-125, GO Crveni Krst 11-126, GO Palilula 08-127, GO Medijana 05-128 ","Zakon o RAT - tarifni broj 1"]
[null,"Grad Niš","Upotrebna dozvola","Podnošenje zahteva","Republička administrativna taksa","DA","0.2% predračunske vrednosti objekta","0.2% predračunske vrednosti objekta","840-742221843-57","Budžet Republike Srbije",97,"GO Niška Banja 23-122, GO Pantelej 14-125, GO Crveni Krst 11-126, GO Palilula 08-127, GO Medijana 05-128 ","Zakon o RAT - tarifni broj 170"]
[null,"Grad Niš","Priključenje objekta na infrastrukturu","Podnošenje zahteva","Lokalna administrativna taksa",null,700,700,"840-742341843-24","Gradska uprava Niš",97,"87-521","Odluka o lokalnim administrativnim taksama („Sl. list Grada Niša“ br. 90/2015 i 98/2015) "]
[null,"Grad Novi Pazar","Lokacijski uslovi","Podnošenje zahteva","Republička administrativna taksa",null,310,310,"840-742221843-54","Budžet Republike Srbije",97,"67 075","Zakon o RAT - tarifni broj 1"]
[null,"Grad Novi Pazar","Lokacijski uslovi","Podnošenje zahteva","Lokalna administrativna taksa",null,2500,2500,"840-742241843-03","Gradska uprava Novi Pazar",97,"67 075","Odluka o optinskim administrativnim taksama-„Sl.list grada Novog Pazara“ br.11/2015"]
[null,"Grad Novi Pazar","Lokacijski uslovi","Donošenje rešenja","Lokalna administrativna taksa",null,350,350,"840-742241843-03","Gradska uprava Novi Pazar",97,"67 075","Odluka o optinskim administrativnim taksama-„Sl.list grada Novog Pazara“ br.11/2015"]
[null,"Grad Novi Pazar","Građevinska dozvola","Podnošenje zahteva","Republička administrativna taksa",null,310,310,"840-742221843-54","Budžet Republike Srbije",97,"67 075","Zakon o RAT - tarifni broj 1"]
[null,"Grad Novi Pazar","Građevinska dozvola","Podnošenje zahteva","Lokalna administrativna taksa",null,2500,2500,"840-742241843-03","Gradska uprava Novi Pazar",97,"67 075","Odluka o optinskim administrativnim taksama-„Sl.list grada Novog Pazara“ br.11/2015"]
[null,"Grad Novi Pazar","Građevinska dozvola","Donošenje rešenja","Lokalna administrativna taksa",null,350,350,"840-742241843-03","Gradska uprava Novi Pazar",97,"67 075","Odluka o optinskim administrativnim taksama-„Sl.list grada Novog Pazara“ br.11/2015"]
[null,"Grad Novi Pazar","Građevinska dozvola","Donošenje rešenja","Republička administrativna taksa",null,800,800,"840-742221843-57","Budžet Republike Srbije",97,"67 075","Zakon o RAT - tarifni broj 165"]
[null,"Grad Novi Pazar","Rešenje o odobrenju izvođenja radova po članu 145 Zakona","Podnošenje zahteva","Republička administrativna taksa",null,310,310,"840-742221843-57","Budžet Republike Srbije",97,"67 075","Zakon o RAT - tarifni broj 1"]
[null,"Grad Novi Pazar","Rešenje o odobrenju izvođenja radova po članu 145 Zakona","Podnošenje zahteva","Lokalna administrativna taksa",null,2500,2500,"840-742221843-57","Gradska uprava Novi Pazar",97,"67 075","Odluka o optinskim administrativnim taksama-„Sl.list grada Novog Pazara“ br.11/2015"]
[null,"Grad Novi Pazar","Rešenje o odobrenju izvođenja radova po članu 145 Zakona","Donošenje rešenja","Lokalna administrativna taksa",null,350,350,"840-742241843-03","Gradska uprava Novi Pazar",97,"67 075","Odluka o optinskim administrativnim taksama-„Sl.list grada Novog Pazara“ br.11/2015"]
[null,"Grad Novi Pazar","Rešenje o odobrenju izvođenja radova po članu 145 Zakona","Donošenje rešenja","Republička administrativna taksa",null,800,800,"840-742221843-57","Budžet Republike Srbije",97,"67 075","Zakon o RAT - tarifni broj 165"]
[null,"Grad Novi Pazar","Prijava radova","Podnošenje zahteva","Republička administrativna taksa",null,310,310,"840-742221843-57","Budžet Republike Srbije",97,"67 075","Zakon o RAT - tarifni broj 1"]
[null,"Grad Novi Pazar","Prijava radova","Podnošenje zahteva","Lokalna administrativna taksa",null,1500,1500,"840-742241843-03","Gradska uprava Novi Pazar",97,"67 075","Odluka o optinskim administrativnim taksama-„Sl.list grada Novog Pazara“ br.11/2015"]
[null,"Grad Novi Pazar","Prijava radova","Donošenje rešenja","Lokalna administrativna taksa",null,350,350,"840-742241843-03","Gradska uprava Novi Pazar",97,"67 075","Odluka o optinskim administrativnim taksama-„Sl.list grada Novog Pazara“ br.11/2015"]
[null,"Grad Novi Pazar","Prijava završetka izrade temelja i završetka objekta u konstruktivnom smislu","Podnošenje zahteva","Republička administrativna taksa",null,{"$f":"310+1600","v":1910},{"$f":"310+1600","v":1910},"840-742221843-57","Budžet Republike Srbije",97,"67 075","Zakon o RAT - tarifni broj 1 i tarifni broj 164"]
[null,"Grad Novi Pazar","Prijava završetka izrade temelja i završetka objekta u konstruktivnom smislu","Podnošenje zahteva","Lokalna administrativna taksa",null,1000,1000,"840-742241843-03","Gradska uprava Novi Pazar",97,"67 075","Odluka o optinskim administrativnim taksama-„Sl.list grada Novog Pazara“ br.11/2015"]
[null,"Grad Novi Pazar","Prijava završetka izrade temelja i završetka objekta u konstruktivnom smislu","Donošenje rešenja","Lokalna administrativna taksa",null,350,350,"840-742241843-03","Gradska uprava Novi Pazar",97,"67 075","Odluka o optinskim administrativnim taksama-„Sl.list grada Novog Pazara“ br.11/2015"]
[null,"Grad Novi Pazar","Dostavljanje tehničke dokumentacije","Podnošenje zahteva","Republička administrativna taksa",null,310,310,"840-742221843-57","Budžet Republike Srbije",97,"67 075","Zakon o RAT - tarifni broj 1"]
[null,"Grad Novi Pazar","Dostavljanje tehničke dokumentacije","Podnošenje zahteva","Lokalna administrativna taksa",null,3000,3000,"840-742241843-03","Gradska uprava Novi Pazar",97,"67 075","Odluka o optinskim administrativnim taksama-„Sl.list grada Novog Pazara“ br.11/2015"]
[null,"Grad Novi Pazar","Dostavljanje tehničke dokumentacije","Donošenje rešenja","Lokalna administrativna taksa",null,350,350,"840-742241843-03","Gradska uprava Novi Pazar",97,"67 075","Odluka o optinskim administrativnim taksama-„Sl.list grada Novog Pazara“ br.11/2015"]
[null,"Grad Novi Pazar","Upotrebna dozvola","Podnošenje zahteva","Republička administrativna taksa",null,310,310,"840-742221843-57","Budžet Republike Srbije",97,"67 075","Zakon o RAT - tarifni broj 1"]
[null,"Grad Novi Pazar","Upotrebna dozvola","Podnošenje zahteva","Republička administrativna taksa","DA","0.2% predračunske vrednosti objekta","0.2% predračunske vrednosti objekta","840-742221843-57","Budžet Republike Srbije",97,"67 075","Zakon o RAT - tarifni broj 170"]
[null,"Grad Novi Pazar","Upotrebna dozvola","Podnošenje zahteva","Lokalna administrativna taksa",null,1500,1500,"840-742241843-03","Gradska uprava Novi Pazar",97,"67 075","Odluka o optinskim administrativnim taksama-„Sl.list grada Novog Pazara“ br.11/2015"]
[null,"Grad Novi Pazar","Upotrebna dozvola","Donošenje rešenja","Lokalna administrativna taksa",null,350,350,"840-742241843-03","Gradska uprava Novi Pazar",97,"67 075","Odluka o optinskim administrativnim taksama-„Sl.list grada Novog Pazara“ br.11/2015"]
[null,"Grad Novi Pazar","Priključenje objekta na infrastrukturu","Podnošenje zahteva","Republička administrativna taksa",null,310,310,"840-742221843-57","Budžet Republike Srbije",97,"67 075","Zakon o RAT - tarifni broj 1"]
[null,"Grad Novi Pazar","Priključenje objekta na infrastrukturu","Podnošenje zahteva","Lokalna administrativna taksa",null,2000,2000,"840-742241843-03","Gradska uprava Novi Pazar",97,"67 075","Odluka o optinskim administrativnim taksama-„Sl.list grada Novog Pazara“ br.11/2015"]
[null,"Grad Novi Pazar","Priključenje objekta na infrastrukturu","Donošenje rešenja","Lokalna administrativna taksa",null,350,350,"840-742241843-03","Gradska uprava Novi Pazar",97,"67 075","Odluka o optinskim administrativnim taksama-„Sl.list grada Novog Pazara“ br.11/2015"]
[null,"Grad Novi Sad","Lokacijski uslovi","Podnošenje zahteva","Republička administrativna taksa",null,310,310,"840-742221843-57","Budžet Republike Srbije",97,"11-223","Zakon o RAT - tarifni borj 1"]
[null,"Grad Novi Sad","Lokacijski uslovi","Podnošenje zahteva","Lokalna administrativna taksa",null,770,770,"840-742241843-03","Gradska uprava Novi Sad",97,"20-511 ","Odluka o gradskim administrativnim taksama – tarifni broj 1"]
[null,"Grad Novi Sad","Lokacijski uslovi","Donošenje rešenja","Lokalna administrativna taksa",null,3480,3480,"840-742241843-03","Gradska uprava Novi Sad",97,"20-511 ","Odluka o gradskim administrativnim taksama – tarifni broj 25"]
[null,"Grad Novi Sad","Građevinska dozvola","Podnošenje zahteva","Republička administrativna taksa",null,310,310,"840-742221843-57","Budžet Republike Srbije",97,"11-223","Zakon o RAT - tarifni borj 1"]
[null,"Grad Novi Sad","Građevinska dozvola","Podnošenje zahteva","Lokalna administrativna taksa",null,290,290,"840-742241843-03","Gradska uprava Novi Sad",97,"20-511 ","Odluka o gradskim administrativnim taksama – tarifni broj 1"]
[null,"Grad Novi Sad","Građevinska dozvola","Donošenje rešenja","Lokalna administrativna taksa","DA","0.2% predračunske vrednosti objekta","0.2% predračunske vrednosti objekta","840-742241843-03","Gradska uprava Novi Sad",97,"20-511 ","Odluka o gradskim administrativnim taksama – tarifni broj 1"]
[null,"Grad Novi Sad","Građevinska dozvola","Donošenje rešenja","Republička administrativna taksa",null,800,800,"840-742221843-57","Budžet Republike Srbije",97,"11-223","Zakon o RAT - tarifni broj 165"]
[null,"Grad Novi Sad","Građevinska dozvola","Donošenje rešenja","Lokalna administrativna taksa",null,770,770,"840-742241843-03","Gradska uprava Novi Sad",97,"20-511 ","Odluka o gradskim administrativnim taksama – tarifni broj 25"]
[null,"Grad Novi Sad","Rešenje o odobrenju izvođenja radova po članu 145 Zakona","Podnošenje zahteva","Republička administrativna taksa",null,310,310,"840-742221843-57","Budžet Republike Srbije",97,"11-223","Zakon o RAT - tarifni borj 1"]
[null,"Grad Novi Sad","Rešenje o odobrenju izvođenja radova po članu 145 Zakona","Podnošenje zahteva","Lokalna administrativna taksa",null,290,290,"840-742241843-03","Gradska uprava Novi Sad",97,"20-511 ","Odluka o gradskim administrativnim taksama – tarifni broj 1"]
[null,"Grad Novi Sad","Rešenje o odobrenju izvođenja radova po članu 145 Zakona","Donošenje rešenja","Lokalna administrativna taksa","DA","0.1% predračunske vrednosti objekta","0.1% predračunske vrednosti objekta","840-742241843-03","Gradska uprava Novi Sad",97,"20-511 ","Odluka o gradskim administrativnim taksama – tarifni broj 1"]
[null,"Grad Novi Sad","Rešenje o odobrenju izvođenja radova po članu 145 Zakona","Donošenje rešenja","Republička administrativna taksa",null,800,"0.1% predračunske vrednosti objekta","840-742221843-57","Budžet Republike Srbije",97,"11-223","Zakon o RAT - tarifni broj 165"]
[null,"Grad Novi Sad","Rešenje o odobrenju izvođenja radova po članu 145 Zakona","Donošenje rešenja","Lokalna administrativna taksa",null,770,"0.1% predračunske vrednosti objekta","840-742241843-03","Gradska uprava Novi Sad",97,"20-511 ","Odluka o gradskim administrativnim taksama – tarifni broj 25"]
[null,"Grad Novi Sad","Prijava radova","Podnošenje zahteva","Republička administrativna taksa",null,310,"0.1% predračunske vrednosti objekta","840-742221843-57","Budžet Republike Srbije",97,"11-223","Zakon o RAT - tarifni broj 1"]
[null,"Grad Novi Sad","Prijava završetka izrade temelja i završetka objekta u konstruktivnom smislu","Podnošenje zahteva","Republička administrativna taksa",null,{"$f":"310+1600","v":1910},"0.1% predračunske vrednosti objekta","840-742221843-57","Budžet Republike Srbije",97,"11-223","Zakon o RAT - tarifni broj 1 i 164"]
[null,"Grad Novi Sad","Prijava završetka izrade temelja i završetka objekta u konstruktivnom smislu","Podnošenje zahteva","Lokalna administrativna taksa",null,290,"0.1% predračunske vrednosti objekta","840-742241843-03","Gradska uprava Novi Sad",97,"20-511 ","Odluka o gradskim administrativnim taksama – tarifni broj 1"]
[null,"Grad Novi Sad","Prijava završetka izrade temelja i završetka objekta u konstruktivnom smislu","Donošenje rešenja","Lokalna administrativna taksa",null,770,"0.1% predračunske vrednosti objekta","840-742241843-03","Gradska uprava Novi Sad",97,"20-511 ","Odluka o gradskim administrativnim taksama – tarifni broj 25"]
[null,"Grad Novi Sad","Dostavljanje tehničke dokumentacije","Podnošenje zahteva","Republička administrativna taksa",null,310,"0.1% predračunske vrednosti objekta","840-742221843-57","Budžet Republike Srbije",97,"11-223","Zakon o RAT - tarifni broj 1"]
[null,"Grad Novi Sad","Dostavljanje tehničke dokumentacije","Podnošenje zahteva","Lokalna administrativna taksa",null,290,"0.1% predračunske vrednosti objekta","840-742241843-03","Gradska uprava Novi Sad",97,"20-511 ","Odluka o gradskim administrativnim taksama – tarifni broj 1"]
[null,"Grad Novi Sad","Upotrebna dozvola","Podnošenje zahteva","Republička administrativna taksa",null,310,"0.1% predračunske vrednosti objekta","840-742221843-57","Budžet Republike Srbije",97,"11-223","Zakon o RAT - tarifni broj 1"]
[null,"Grad Novi Sad","Upotrebna dozvola","Podnošenje zahteva","Lokalna administrativna taksa",null,290,"0.1% predračunske vrednosti objekta","840-742241843-03","Gradska uprava Novi Sad",97,"20-511 ","Odluka o gradskim administrativnim taksama – tarifni broj 1"]
[null,"Grad Novi Sad","Upotrebna dozvola","Donošenje rešenja","Lokalna administrativna taksa",null,770,770,"840-742241843-03","Gradska uprava Novi Sad",97,"20-511 ","Odluka o gradskim administrativnim taksama – tarifni broj 25"]
[null,"Grad Novi Sad","Upotrebna dozvola","Donošenje rešenja","Republička administrativna taksa","DA","0.2% predračunske vrednosti objekta","0.2% predračunske vrednosti objekta","840-742221843-57","Budžet Republike Srbije",97,"11-223","Zakon o RAT - tarifni broj 170"]
[null,"Grad Novi Sad","Upotrebna dozvola","Donošenje rešenja","Lokalna administrativna taksa","DA","0.1% predračunske vrednosti objekta","0.1% predračunske vrednosti objekta","840-742241843-03","Gradska uprava Novi Sad",97,"20-511 ","Odluka o gradskim administrativnim taksama – tarifni broj 25"]
[null,"Grad Novi Sad","Priključenje objekta na infrastrukturu","Podnošenje zahteva","Republička administrativna taksa",null,310,310,"840-742221843-57","Budžet Republike Srbije",97,"11-223","Zakon o RAT - tarifni broj 1"]
[null,"Grad Novi Sad","Priključenje objekta na infrastrukturu","Podnošenje zahteva","Lokalna administrativna taksa",null,290,290,"840-742241843-03","Gradska uprava Novi Sad",97,"20-511 ","Odluka o gradskim administrativnim taksama – tarifni broj 1"]
[null,"Grad Pančevo","Lokacijski uslovi","Podnošenje zahteva","Lokalna administrativna taksa",null,1087,1087,"840-742241843-03","Gradska uprava Pančevo",97,"02-226 ","Obuka o gradskim taksama (\"Sl.list grada Pančeva\" br. 16/08)"]
[null,"Grad Pančevo","Lokacijski uslovi","Podnošenje zahteva","Lokalna naknada",null,6310,6310,"840-742341843-24","Gradska uprava Pančevo",97,"76-226-74234102 ","Obuka o gradskim taksama (\"Sl.list grada Pančeva\" br. 16/08)"]
[null,"Grad Pančevo","Građevinska dozvola","Podnošenje zahteva","Republička administrativna taksa",null,310,310,"840-74222843-57 ","Budžet Republike Srbije",97,"02-226 ","Zakon o RAT - tarifni broj 1"]
[null,"Grad Pančevo","Građevinska dozvola","Podnošenje zahteva","Lokalna naknada",null,1500,1500,"840-742341843-24","Gradska uprava Pančevo",97,"76-226-74234102 ","Obuka o gradskim taksama (\"Sl.list grada Pančeva\" br. 16/08)"]
[null,"Grad Pančevo","Građevinska dozvola","Donošenje rešenja","Republička administrativna taksa",null,800,800,"840-74222843-57 ","Budžet Republike Srbije",97,"02-226 ","Zakon o RAT - tarifni broj 165"]
[null,"Grad Pančevo","Rešenje o odobrenju izvođenja radova po članu 145 Zakona","Podnošenje zahteva","Republička administrativna taksa",null,310,310,"840-74222843-57 ","Budžet Republike Srbije",97,"02-226 ","Zakon o RAT - tarifni broj 1"]
[null,"Grad Pančevo","Rešenje o odobrenju izvođenja radova po članu 145 Zakona","Podnošenje zahteva","Lokalna naknada",null,1500,1500,"840-742341843-24","Gradska uprava Pančevo",97,"76-226-74234102 ","Obuka o gradskim taksama (\"Sl.list grada Pančeva\" br. 16/08)"]
[null,"Grad Pančevo","Rešenje o odobrenju izvođenja radova po članu 145 Zakona","Donošenje rešenja","Republička administrativna taksa",null,800,800,"840-74222843-57 ","Budžet Republike Srbije",97,"02-226 ","Zakon o RAT - tarifni broj 165"]
[null,"Grad Pančevo","Prijava radova","Podnošenje zahteva","Republička administrativna taksa",null,310,310,"840-74222843-57 ","Budžet Republike Srbije",97,"02-226 ","Zakon o RAT - tarifni broj 1"]
[null,"Grad Pančevo","Prijava radova","Podnošenje zahteva","Lokalna naknada",null,1500,1500,"840-742341843-24","Gradska uprava Pančevo",97,"76-226-74234102 ","Obuka o gradskim taksama (\"Sl.list grada Pančeva\" br. 16/08)"]
[null,"Grad Pančevo","Prijava završetka izrade temelja i završetka objekta u konstruktivnom smislu","Podnošenje zahteva","Republička administrativna taksa",null,{"$f":"310+310","v":620},{"$f":"310+310","v":620},"840-74222843-57 ","Budžet Republike Srbije",97,"02-226 ","Zakon o RAT - tarifni broj 1 x 2"]
[null,"Grad Pančevo","Prijava završetka izrade temelja i završetka objekta u konstruktivnom smislu","Donošenje rešenja","Republička administrativna taksa",null,1600,1600,"840-74222843-57 ","Budžet Republike Srbije",97,"02-226 ","Zakon o RAT - tarifni broj 164"]
[null,"Grad Pančevo","Dostavljanje tehničke dokumentacije","Podnošenje zahteva","Republička administrativna taksa",null,310,310,"840-74222843-57 ","Budžet Republike Srbije",97,"02-226 ","Zakon o RAT - tarifni broj 1"]
[null,"Grad Pančevo","Upotrebna dozvola","Podnošenje zahteva","Republička administrativna taksa",null,310,310,"840-74222843-57 ","Budžet Republike Srbije",97,"02-226 ","Zakon o RAT - tarifni broj 1"]
[null,"Grad Pančevo","Upotrebna dozvola","Podnošenje zahteva","Lokalna naknada",null,1500,1500,"840-742341843-24","Gradska uprava Pančevo",97,"76-226-74234102 ","Obuka o gradskim taksama (\"Sl.list grada Pančeva\" br. 16/08)"]
[null,"Grad Pančevo","Upotrebna dozvola","Donošenje rešenja","Republička administrativna taksa","DA","0.2% predračunske vrednosti objekta","0.2% predračunske vrednosti objekta","840-74222843-57 ","Budžet Republike Srbije",97,"02-226 ","Zakon o RAT - tarifni broj 170"]
[null,"Grad Pančevo","Priključenje objekta na infrastrukturu","Podnošenje zahteva","Republička administrativna taksa",null,310,310,"840-74222843-57 ","Budžet Republike Srbije",97,"02-226 ","Zakon o RAT - tarifni broj 1"]
[null,"Grad Pirot","Lokacijski uslovi","Podnošenje zahteva","Republička administrativna taksa",null,310,310,"840-742221843-57","Budžet Republike Srbije",97,"55-079","Zakon o RAT - tarifni broj 1"]
[null,"Grad Pirot","Lokacijski uslovi","Podnošenje zahteva","Lokalna administrativna taksa",null,{"$f":"81*1000","v":81000},{"$f":"81*1000","v":81000},"840-742241843-03","Gradska uprava Pirot",97,"55-079","Odluka o izmenama I dopunama odluke o visini naknada za usluge koje pruža GU Grada Pirot"]
[null,"Grad Pirot","Građevinska dozvola","Podnošenje zahteva","Republička administrativna taksa",null,770,385,"840-742221843-57","Budžet Republike Srbije",97,"55-079","Zakon o RAT "]
[null,"Grad Pirot","Građevinska dozvola","Podnošenje zahteva","Lokalna administrativna taksa",null,2500,2500,"840-742241843-03","Gradska uprava Pirot",97,"55-079","Odluka o izmenama I dopunama odluke o visini naknada za usluge koje pruža GU Grada Pirot"]
[null,"Grad Pirot","Rešenje o odobrenju izvođenja radova po članu 145 Zakona","Podnošenje zahteva","Republička administrativna taksa",null,770,385,"840-742221843-57","Budžet Republike Srbije",97,"55-079","Zakon o RAT "]
[null,"Grad Pirot","Rešenje o odobrenju izvođenja radova po članu 145 Zakona","Podnošenje zahteva","Lokalna administrativna taksa",null,2500,2500,"840-742241843-03","Gradska uprava Pirot",97,"55-079","Odluka o izmenama I dopunama odluke o visini naknada za usluge koje pruža GU Grada Pirot"]
[null,"Grad Pirot","Prijava radova","Podnošenje zahteva","Republička administrativna taksa",null,300,300,"840-742221843-57","Budžet Republike Srbije",97,"55-079","Zakon o RAT "]
[null,"Grad Pirot","Prijava radova","Podnošenje zahteva","Lokalna administrativna taksa",null,150,150,"840-742241843-03","Gradska uprava Pirot",97,"55-079","Odluka o izmenama I dopunama odluke o visini naknada za usluge koje pruža GU Grada Pirot"]
[null,"Grad Pirot","Prijava završetka izrade temelja i završetka objekta u konstruktivnom smislu","Podnošenje zahteva","Republička administrativna taksa",null,1530,1530,"840-742221843-57","Budžet Republike Srbije",97,"55-079","Zakon o RAT "]
[null,"Grad Pirot","Prijava završetka izrade temelja i završetka objekta u konstruktivnom smislu","Podnošenje zahteva","Lokalna administrativna taksa",null,600,600,"840-742241843-03","Gradska uprava Pirot",97,"55-079","Odluka o izmenama I dopunama odluke o visini naknada za usluge koje pruža GU Grada Pirot"]
[null,"Grad Pirot","Upotrebna dozvola","Podnošenje zahteva","Republička administrativna taksa","DA","0.2% predračunske vrednosti objekta","0.2% predračunske vrednosti objekta","840-742221843-57","Budžet Republike Srbije",97,"55-079","Zakon o RAT - tarifni broj 170"]
[null,"Grad Pirot","Upotrebna dozvola","Podnošenje zahteva","Lokalna administrativna taksa",null,2500,2500,"840-742241843-03","Gradska uprava Pirot",97,"55-079","Odluka o izmenama I dopunama odluke o visini naknada za usluge koje pruža GU Grada Pirot"]
[null,"Grad Požarevac","Lokacijski uslovi","Podnošenje zahteva","Republička administrativna taksa",null,800,800,"840-742221843-57","Budžet Republike Srbije",97,"52-080","Zakon o RAT - tarifni broj 165"]
[null,"Grad Požarevac","Lokacijski uslovi","Donošenje rešenja","Lokalna administrativna taksa",null,5000,5000,"840-742241843-03","Gradska uprava Požarevca ",97,"52-080","Odluka o lokalnim administrativnim taksama (Sl.Glasnik Grada Požarevca 13/12)"]
[null,"Grad Požarevac","Građevinska dozvola","Podnošenje zahteva","Republička administrativna taksa",null,800,800,"840-742221843-57","Budžet Republike Srbije",97,"52-080","Zakon o RAT - tarifni broj 165"]
[null,"Grad Požarevac","Građevinska dozvola","Donošenje rešenja","Lokalna administrativna taksa",null,5000,5000,"840-742241843-03","Gradska uprava Požarevca ",97,"52-080","Odluka o lokalnim administrativnim taksama (Sl.Glasnik Grada Požarevca 13/12)"]
[null,"Grad Požarevac","Rešenje o odobrenju izvođenja radova po članu 145 Zakona","Podnošenje zahteva","Republička administrativna taksa",null,800,800,"840-742221843-57","Budžet Republike Srbije",97,"52-080","Zakon o RAT - tarifni broj 165"]
[null,"Grad Požarevac","Rešenje o odobrenju izvođenja radova po članu 145 Zakona","Donošenje rešenja","Lokalna administrativna taksa",null,5000,5000,"840-742241843-03","Gradska uprava Požarevca ",97,"52-080","Odluka o lokalnim administrativnim taksama (Sl.Glasnik Grada Požarevca 13/12)"]
[null,"Grad Požarevac","Prijava radova","Podnošenje zahteva","Republička administrativna taksa",null,800,800,"840-742221843-57","Budžet Republike Srbije",97,"52-080","Zakon o RAT - tarifni broj 165"]
[null,"Grad Požarevac","Prijava radova","Donošenje rešenja","Lokalna administrativna taksa",null,5000,5000,"840-742241843-03","Gradska uprava Požarevca ",97,"52-080","Odluka o lokalnim administrativnim taksama (Sl.Glasnik Grada Požarevca 13/12)"]
[null,"Grad Požarevac","Prijava završetka izrade temelja i završetka objekta u konstruktivnom smislu","Podnošenje zahteva","Republička administrativna taksa",null,800,800,"840-742221843-57","Budžet Republike Srbije",97,"52-080","Zakon o RAT - tarifni broj 165"]
[null,"Grad Požarevac","Prijava završetka izrade temelja i završetka objekta u konstruktivnom smislu","Donošenje rešenja","Lokalna administrativna taksa",null,5000,5000,"840-742241843-03","Gradska uprava Požarevca ",97,"52-080","Odluka o lokalnim administrativnim taksama (Sl.Glasnik Grada Požarevca 13/12)"]
[null,"Grad Požarevac","Upotrebna dozvola","Podnošenje zahteva","Republička administrativna taksa",null,800,800,"840-742221843-57","Budžet Republike Srbije",97,"52-080","Zakon o RAT - tarifni broj 165"]
[null,"Grad Požarevac","Upotrebna dozvola","Donošenje rešenja","Lokalna administrativna taksa",null,5000,5000,"840-742241843-03","Gradska uprava Požarevca ",97,"52-080","Odluka o lokalnim administrativnim taksama (Sl.Glasnik Grada Požarevca 13/12)"]
[null,"Grad Požarevac","Priključenje objekta na infrastrukturu","Podnošenje zahteva","Republička administrativna taksa",null,800,800,"840-742221843-57","Budžet Republike Srbije",97,"52-080","Zakon o RAT - tarifni broj 165"]
[null,"Grad Požarevac","Priključenje objekta na infrastrukturu","Donošenje rešenja","Lokalna administrativna taksa",null,5000,5000,"840-742241843-03","Gradska uprava Požarevca ",97,"52-080","Odluka o lokalnim administrativnim taksama (Sl.Glasnik Grada Požarevca 13/12)"]
[null,"Grad Šabac","Lokacijski uslovi","Podnošenje zahteva","Republička administrativna taksa",null,310,310,"840-74222843-57 ","Budžet Republike Srbije",97,"92-099","Zakon o RAT - tarifni broj 1"]
[null,"Grad Šabac","Lokacijski uslovi","Podnošenje zahteva","Lokalna naknada",null,9000,9000,"840-742241843-03","Gradska uprava Šabac",97,"92-099","Odluka o lokalnim administrativnim taksama (\"Sl. list opština Bogatić, Vladimirci, Koceljeva i Šabac\", br. 16/2007 i \"Sl. list grada\nŠapca i opština: Bogatić, Vladimirci i Koceljeva\" 24/2016)"]
[null,"Grad Šabac","Građevinska dozvola","Podnošenje zahteva","Republička administrativna taksa",null,310,310,"840-74222843-57 ","Budžet Republike Srbije",97,"92-099","Zakon o RAT - tarifni broj 1"]
[null,"Grad Šabac","Građevinska dozvola","Podnošenje zahteva","Lokalna naknada",null,5950,5950,"840-742241843-03","Gradska uprava Šabac",97,"92-099","Odluka o lokalnim administrativnim taksama (\"Sl. list opština Bogatić, Vladimirci, Koceljeva i Šabac\", br. 16/2007 i \"Sl. list grada\nŠapca i opština: Bogatić, Vladimirci i Koceljeva\" 24/2016)"]
[null,"Grad Šabac","Građevinska dozvola","Donošenje rešenja","Republička administrativna taksa",null,800,800,"840-74222843-57 ","Budžet Republike Srbije",97,"92-099","Zakon o RAT - tarifni broj 165"]
[null,"Grad Šabac","Rešenje o odobrenju izvođenja radova po članu 145 Zakona","Podnošenje zahteva","Republička administrativna taksa",null,310,310,"840-74222843-57 ","Budžet Republike Srbije",97,"92-099","Zakon o RAT - tarifni broj 1"]
[null,"Grad Šabac","Rešenje o odobrenju izvođenja radova po članu 145 Zakona","Podnošenje zahteva","Lokalna naknada",null,1650,1650,"840-742241843-03","Gradska uprava Šabac",97,"92-099","Odluka o lokalnim administrativnim taksama (\"Sl. list opština Bogatić, Vladimirci, Koceljeva i Šabac\", br. 16/2007 i \"Sl. list grada\nŠapca i opština: Bogatić, Vladimirci i Koceljeva\" 24/2016)"]
[null,"Grad Šabac","Rešenje o odobrenju izvođenja radova po članu 145 Zakona","Donošenje rešenja","Republička administrativna taksa",null,520,520,"840-74222843-57 ","Budžet Republike Srbije",97,"92-099","Zakon o RAT - tarifni broj 9"]
[null,"Grad Šabac","Prijava radova","Podnošenje zahteva","Republička administrativna taksa",null,310,310,"840-74222843-57 ","Budžet Republike Srbije",97,"92-099","Zakon o RAT - tarifni broj 1"]
[null,"Grad Šabac","Prijava radova","Podnošenje zahteva","Lokalna naknada",null,250,250,"840-742241843-03","Gradska uprava Šabac",97,"92-099","Odluka o lokalnim administrativnim taksama (\"Sl. list opština Bogatić, Vladimirci, Koceljeva i Šabac\", br. 16/2007 i \"Sl. list grada\nŠapca i opština: Bogatić, Vladimirci i Koceljeva\" 24/2016)"]
[null,"Grad Šabac","Prijava završetka izrade temelja i završetka objekta u konstruktivnom smislu","Podnošenje zahteva","Republička administrativna taksa",null,310,310,"840-74222843-57 ","Budžet Republike Srbije",97,"92-099","Zakon o RAT - tarifni broj 1"]
[null,"Grad Šabac","Prijava završetka izrade temelja i završetka objekta u konstruktivnom smislu","Donošenje rešenja","Republička administrativna taksa",null,520,520,"840-74222843-57 ","Budžet Republike Srbije",97,"92-099","Zakon o RAT - tarifni broj 9"]
[null,"Grad Šabac","Dostavljanje tehničke dokumentacije","Podnošenje zahteva","Republička administrativna taksa",null,310,310,"840-74222843-57 ","Budžet Republike Srbije",97,"92-099","Zakon o RAT - tarifni broj 1"]
[null,"Grad Šabac","Dostavljanje tehničke dokumentacije","Podnošenje zahteva","Lokalna naknada",null,250,250,"840-742241843-03","Gradska uprava Šabac",97,"92-099","Odluka o lokalnim administrativnim taksama (\"Sl. list opština Bogatić, Vladimirci, Koceljeva i Šabac\", br. 16/2007 i \"Sl. list grada\nŠapca i opština: Bogatić, Vladimirci i Koceljeva\" 24/2016)"]
[null,"Grad Šabac","Upotrebna dozvola","Podnošenje zahteva","Republička administrativna taksa",null,310,310,"840-74222843-57 ","Budžet Republike Srbije",97,"92-099","Zakon o RAT - tarifni broj 1"]
[null,"Grad Šabac","Upotrebna dozvola","Podnošenje zahteva","Lokalna naknada",null,1000,1000,"840-742241843-03","Gradska uprava Šabac",97,"92-099","Odluka o lokalnim administrativnim taksama (\"Sl. list opština Bogatić, Vladimirci, Koceljeva i Šabac\", br. 16/2007 i \"Sl. list grada\nŠapca i opština: Bogatić, Vladimirci i Koceljeva\" 24/2016)"]
[null,"Grad Šabac","Upotrebna dozvola","Donošenje rešenja","Republička administrativna taksa","DA","0.2% predračunske vrednosti objekta","0.2% predračunske vrednosti objekta","840-74222843-57 ","Budžet Republike Srbije",97,"92-099","Zakon o RAT - tarifni broj 170"]
[null,"Grad Šabac","Priključenje objekta na infrastrukturu","Podnošenje zahteva","Republička administrativna taksa",null,310,310,"840-74222843-57 ","Budžet Republike Srbije",97,"92-099","Zakon o RAT - tarifni broj 1"]
[null,"Grad Smederevo","Lokacijski uslovi","Podnošenje zahteva","Republička administrativna taksa",null,310,310,"840-74222843-57 ","Budžet Republike Srbije",97,"16-092","Zakon o RAT - tarifni broj 1"]
[null,"Grad Smederevo","Lokacijski uslovi","Donošenje rešenja","Lokalna administrativna taksa",null,5000,5000,"840-742241843-03","Gradska uprava Smederevo",97,"16-092","Odluka o gradskim administrativnim taksama (\"Službeni list grada Smedereva\", broj 6/2015 - prečišćen tekst i 6/2017)"]
[null,"Grad Smederevo","Građevinska dozvola","Podnošenje zahteva","Republička administrativna taksa",null,310,310,"840-74222843-57 ","Budžet Republike Srbije",97,"16-092","Zakon o RAT - tarifni broj 1"]
[null,"Grad Smederevo","Građevinska dozvola","Donošenje rešenja","Republička administrativna taksa",null,800,800,"840-74222843-57 ","Budžet Republike Srbije",97,"16-092","Zakon o RAT - tarifni broj 165"]
[null,"Grad Smederevo","Građevinska dozvola","Donošenje rešenja","Lokalna administrativna taksa",null,1200,1200,"840-742241843-03","Gradska uprava Smederevo",97,"16-092","Odluka o gradskim administrativnim taksama (\"Službeni list grada Smedereva\", broj 6/2015 - prečišćen tekst i 6/2017)"]
[null,"Grad Smederevo","Rešenje o odobrenju izvođenja radova po članu 145 Zakona","Podnošenje zahteva","Republička administrativna taksa",null,310,310,"840-74222843-57 ","Budžet Republike Srbije",97,"16-092","Zakon o RAT - tarifni broj 1"]
[null,"Grad Smederevo","Rešenje o odobrenju izvođenja radova po članu 145 Zakona","Donošenje rešenja","Republička administrativna taksa",null,800,800,"840-74222843-57 ","Budžet Republike Srbije",97,"16-092","Zakon o RAT - tarifni broj 165"]
[null,"Grad Smederevo","Prijava radova","Podnošenje zahteva","Republička administrativna taksa",null,310,310,"840-74222843-57 ","Budžet Republike Srbije",97,"16-092","Zakon o RAT - tarifni broj 1"]
[null,"Grad Smederevo","Prijava radova","Donošenje rešenja","Lokalna administrativna taksa",null,500,500,"840-742241843-03","Gradska uprava Smederevo",97,"16-092","Odluka o gradskim administrativnim taksama (\"Službeni list grada Smedereva\", broj 6/2015 - prečišćen tekst i 6/2017)"]
[null,"Grad Smederevo","Prijava završetka izrade temelja i završetka objekta u konstruktivnom smislu","Podnošenje zahteva","Republička administrativna taksa",null,310,310,"840-74222843-57 ","Budžet Republike Srbije",97,"16-092","Zakon o RAT - tarifni broj 1"]
[null,"Grad Smederevo","Dostavljanje tehničke dokumentacije","Podnošenje zahteva","Republička administrativna taksa",null,310,310,"840-74222843-57 ","Budžet Republike Srbije",97,"16-092","Zakon o RAT - tarifni broj 1"]
[null,"Grad Smederevo","Dostavljanje tehničke dokumentacije","Donošenje rešenja","Lokalna administrativna taksa",null,1000,1000,"840-742241843-03","Gradska uprava Smederevo",97,"16-092","Odluka o gradskim administrativnim taksama (\"Službeni list grada Smedereva\", broj 6/2015 - prečišćen tekst i 6/2017)"]
[null,"Grad Smederevo","Upotrebna dozvola","Podnošenje zahteva","Republička administrativna taksa",null,310,310,"840-74222843-57 ","Budžet Republike Srbije",97,"16-092","Zakon o RAT - tarifni broj 1"]
[null,"Grad Smederevo","Upotrebna dozvola","Donošenje rešenja","Republička administrativna taksa","DA","0.2% predračunske vrednosti objekta","0.2% predračunske vrednosti objekta","840-74222843-57 ","Budžet Republike Srbije",97,"16-092","Zakon o RAT - tarifni broj 170"]
[null,"Grad Smederevo","Upotrebna dozvola","Donošenje rešenja","Lokalna administrativna taksa",null,1200,1200,"840-742241843-03","Gradska uprava Smederevo",97,"16-092","Odluka o gradskim administrativnim taksama (\"Službeni list grada Smedereva\", broj 6/2015 - prečišćen tekst i 6/2017)"]
[null,"Grad Smederevo","Priključenje objekta na infrastrukturu","Podnošenje zahteva","Republička administrativna taksa",null,310,310,"840-74222843-57 ","Budžet Republike Srbije",97,"16-092","Zakon o RAT - tarifni broj 1"]
[null,"Grad Smederevo","Priključenje objekta na infrastrukturu","Donošenje rešenja","Lokalna administrativna taksa",null,1000,1000,"840-742241843-03","Gradska uprava Smederevo",97,"16-092","Odluka o gradskim administrativnim taksama (\"Službeni list grada Smedereva\", broj 6/2015 - prečišćen tekst i 6/2017)"]
[null,"Grad Sombor","Lokacijski uslovi","Podnošenje zahteva","Republička administrativna taksa",null,310,310,"840-742221843-57","Budžet Republike Srbije",97,"KB-232-PIB","Zakon o RAT - tarifni broj 1"]
[null,"Grad Sombor","Građevinska dozvola","Podnošenje zahteva","Republička administrativna taksa",null,310,310,"840-742221843-57","Budžet Republike Srbije",97,"KB-232-PIB","Zakon o RAT - tarifni broj 1"]
[null,"Grad Sombor","Građevinska dozvola","Donošenje rešenja","Republička administrativna taksa",null,800,800,"840-742221843-57","Budžet Republike Srbije",97,"KB-232-PIB","Zakon o RAT - tarifni broj 165"]
[null,"Grad Sombor","Rešenje o odobrenju izvođenja radova po članu 145 Zakona","Podnošenje zahteva","Republička administrativna taksa",null,310,310,"840-742221843-57","Budžet Republike Srbije",97,"KB-232-PIB","Zakon o RAT - tarifni broj 1"]
[null,"Grad Sombor","Rešenje o odobrenju izvođenja radova po članu 145 Zakona","Donošenje rešenja","Republička administrativna taksa",null,520,520,"840-742221843-57","Budžet Republike Srbije",97,"KB-232-PIB","Zakon o RAT - tarifni broj 9"]
[null,"Grad Sombor","Prijava radova","Podnošenje zahteva","Republička administrativna taksa",null,620,620,"840-742221843-57","Budžet Republike Srbije",97,"KB-232-PIB","Zakon o RAT - tarifni broj 1 i 11"]
[null,"Grad Sombor","Prijava završetka izrade temelja i završetka objekta u konstruktivnom smislu","Podnošenje zahteva","Republička administrativna taksa",null,{"$f":"1600+310","v":1910},{"$f":"1600+310","v":1910},"840-742221843-57","Budžet Republike Srbije",97,"KB-232-PIB","Zakon o RAT - tarifni broj 1 i 164"]
[null,"Grad Sombor","Dostavljanje tehničke dokumentacije","Podnošenje zahteva","Republička administrativna taksa",null,310,310,"840-742221843-57","Budžet Republike Srbije",97,"KB-232-PIB","Zakon o RAT - tarifni broj 1"]
[null,"Grad Sombor","Upotrebna dozvola","Podnošenje zahteva","Republička administrativna taksa",null,310,310,"840-742221843-57","Budžet Republike Srbije",97,"KB-232-PIB","Zakon o RAT - tarifni broj 1"]
[null,"Grad Sombor","Upotrebna dozvola","Donošenje rešenja","Republička administrativna taksa","DA","0.2% predračunske vrednosti objekta","0.2% predračunske vrednosti objekta","840-742221843-57","Budžet Republike Srbije",97,"KB-232-PIB","Zakon o RAT - tarifni broj 170"]
[null,"Grad Sombor","Priključenje objekta na infrastrukturu","Podnošenje zahteva","Republička administrativna taksa",null,310,310,"840-742221843-57","Budžet Republike Srbije",97,"KB-232-PIB","Zakon o RAT - tarifni broj 1"]
[null,"Grad Sremska Mitrovica","Lokacijski uslovi","Podnošenje zahteva","Republička administrativna taksa",null,310,310,"840-742221843-57","Budžet Republike Srbije",97,"75-234","Zakon o RAT - tarifni broj 1"]
[null,"Grad Sremska Mitrovica","Lokacijski uslovi","Podnošenje zahteva","Lokalna administrativna taksa",null,50300,50300,"840-742241843-03","Gradska uprava Sremska Mitrovica",97,"75-234","Odluka o gradskim administrativnim taksama („Službeni list Grada Sremska Mitrovica“, broj 2/2009, 3/2010, 4/2010, 13/2015, 16/2016)"]
[null,"Grad Sremska Mitrovica","Građevinska dozvola","Podnošenje zahteva","Republička administrativna taksa",null,{"$f":"310+800","v":1110},{"$f":"310+800","v":1110},"840-742221843-57","Budžet Republike Srbije",97,"75-234","Zakon o RAT - tarifni broj 1 i 165"]
[null,"Grad Sremska Mitrovica","Građevinska dozvola","Podnošenje zahteva","Lokalna administrativna taksa",null,200,200,"840-742241843-03","Gradska uprava Sremska Mitrovica",97,"75-234","Odluka o gradskim administrativnim taksama („Službeni list Grada Sremska Mitrovica“, broj 2/2009, 3/2010, 4/2010, 13/2015, 16/2016)"]
[null,"Grad Sremska Mitrovica","Rešenje o odobrenju izvođenja radova po članu 145 Zakona","Podnošenje zahteva","Republička administrativna taksa",null,{"$f":"310+520","v":830},{"$f":"310+520","v":830},"840-742221843-57","Budžet Republike Srbije",97,"75-234","Zakon o RAT - tarifni broj 1 i 9"]
[null,"Grad Sremska Mitrovica","Rešenje o odobrenju izvođenja radova po članu 145 Zakona","Podnošenje zahteva","Lokalna administrativna taksa",null,200,200,"840-742241843-03","Gradska uprava Sremska Mitrovica",97,"75-234","Odluka o gradskim administrativnim taksama („Službeni list Grada Sremska Mitrovica“, broj 2/2009, 3/2010, 4/2010, 13/2015, 16/2016)"]
[null,"Grad Sremska Mitrovica","Prijava radova","Podnošenje zahteva","Republička administrativna taksa",null,620,620,"840-742221843-57","Budžet Republike Srbije",97,"75-234","Zakon o RAT - tarifni broj 1 i 11"]
[null,"Grad Sremska Mitrovica","Prijava radova","Podnošenje zahteva","Lokalna administrativna taksa",null,200,200,"840-742241843-03","Gradska uprava Sremska Mitrovica",97,"75-234","Odluka o gradskim administrativnim taksama („Službeni list Grada Sremska Mitrovica“, broj 2/2009, 3/2010, 4/2010, 13/2015, 16/2016)"]
[null,"Grad Sremska Mitrovica","Prijava završetka izrade temelja i završetka objekta u konstruktivnom smislu","Podnošenje zahteva","Republička administrativna taksa",null,{"$f":"1600+310","v":1910},{"$f":"1600+310","v":1910},"840-742221843-57","Budžet Republike Srbije",97,"75-234","Zakon o RAT - tarifni broj 1 i 164"]
[null,"Grad Sremska Mitrovica","Prijava završetka izrade temelja i završetka objekta u konstruktivnom smislu","Podnošenje zahteva","Lokalna administrativna taksa",null,{"$f":"200+200","v":400},{"$f":"200+200","v":400},"840-742241843-03","Gradska uprava Sremska Mitrovica",97,"75-234","Odluka o gradskim administrativnim taksama („Službeni list Grada Sremska Mitrovica“, broj 2/2009, 3/2010, 4/2010, 13/2015, 16/2016)"]
[null,"Grad Sremska Mitrovica","Dostavljanje tehničke dokumentacije","Podnošenje zahteva","Republička administrativna taksa",null,310,310,"840-742221843-57","Budžet Republike Srbije",97,"75-234","Zakon o RAT - tarifni broj 1"]
[null,"Grad Sremska Mitrovica","Dostavljanje tehničke dokumentacije","Podnošenje zahteva","Lokalna administrativna taksa",null,200,200,"840-742241843-03","Gradska uprava Sremska Mitrovica",97,"75-234","Odluka o gradskim administrativnim taksama („Službeni list Grada Sremska Mitrovica“, broj 2/2009, 3/2010, 4/2010, 13/2015, 16/2016)"]
[null,"Grad Sremska Mitrovica","Upotrebna dozvola","Podnošenje zahteva","Republička administrativna taksa",null,310,310,"840-742221843-57","Budžet Republike Srbije",97,"75-234","Zakon o RAT - tarifni broj 1"]
[null,"Grad Sremska Mitrovica","Upotrebna dozvola","Podnošenje zahteva","Lokalna administrativna taksa",null,200,200,"840-742241843-03","Gradska uprava Sremska Mitrovica",97,"75-234","Odluka o gradskim administrativnim taksama („Službeni list Grada Sremska Mitrovica“, broj 2/2009, 3/2010, 4/2010, 13/2015, 16/2016)"]
[null,"Grad Sremska Mitrovica","Upotrebna dozvola","Donošenje rešenja","Republička administrativna taksa","DA","0.2% predračunske vrednosti objekta","0.2% predračunske vrednosti objekta","840-742221843-57","Budžet Republike Srbije",97,"75-234","Zakon o RAT - tarifni broj 170"]
[null,"Grad Sremska Mitrovica","Priključenje objekta na infrastrukturu","Podnošenje zahteva","Republička administrativna taksa",null,310,310,"840-742221843-57","Budžet Republike Srbije",97,"75-234","Zakon o RAT - tarifni broj 1"]
[null,"Grad Sremska Mitrovica","Priključenje objekta na infrastrukturu","Podnošenje zahteva","Lokalna administrativna taksa",null,200,200,"840-742241843-03","Gradska uprava Sremska Mitrovica",97,"75-234","Odluka o gradskim administrativnim taksama („Službeni list Grada Sremska Mitrovica“, broj 2/2009, 3/2010, 4/2010, 13/2015, 16/2016)"]
[null,"Grad Subotica","Lokacijski uslovi","Podnošenje zahteva","Lokalna administrativna taksa",null,1853,1853,"840-742241843-03","Gradska uprava Subotica",97,"69-236","Odluka o lokalnim adm.taksama"]
[null,"Grad Subotica","Građevinska dozvola","Podnošenje zahteva","Republička administrativna taksa",null,310,310,"840-742221843-57","Budžet Republike Srbije",97,"69-236","Zakon o RAT - tarifni broj 1"]
[null,"Grad Subotica","Građevinska dozvola","Donošenje rešenja","Republička administrativna taksa",null,800,800,"840-742221843-57","Budžet Republike Srbije",97,"69-236","Zakon o RAT - tarifni broj 165"]
[null,"Grad Subotica","Rešenje o odobrenju izvođenja radova po članu 145 Zakona","Podnošenje zahteva","Republička administrativna taksa",null,310,310,"840-742221843-57","Budžet Republike Srbije",97,"69-236","Zakon o RAT - tarifni broj 1"]
[null,"Grad Subotica","Rešenje o odobrenju izvođenja radova po članu 145 Zakona","Donošenje rešenja","Republička administrativna taksa",null,520,520,"840-742221843-57","Budžet Republike Srbije",97,"69-236","Zakon o RAT - tarifni broj 9"]
[null,"Grad Subotica","Prijava radova","Donošenje rešenja","Republička administrativna taksa",null,620,620,"840-742221843-57","Budžet Republike Srbije",97,"69-236","Zakon o RAT - tarifni broj 1 i 11"]
[null,"Grad Subotica","Prijava završetka izrade temelja i završetka objekta u konstruktivnom smislu","Donošenje rešenja","Republička administrativna taksa",null,{"$f":"1600+310","v":1910},{"$f":"1600+310","v":1910},"840-742221843-57","Budžet Republike Srbije",97,"69-236","Zakon o RAT - tarifni broj 1 i 164"]
[null,"Grad Subotica","Upotrebna dozvola","Podnošenje zahteva","Republička administrativna taksa",null,310,310,"840-742221843-57","Budžet Republike Srbije",97,"69-236","Zakon o RAT - tarifni broj 1"]
[null,"Grad Subotica","Upotrebna dozvola","Donošenje rešenja","Republička administrativna taksa","DA","0.2% predračunske vrednosti objekta","0.2% predračunske vrednosti objekta","840-742221843-57","Budžet Republike Srbije",97,"69-236","Zakon o RAT - tarifni broj 170"]
[null,"Grad Užice","Lokacijski uslovi","Podnošenje zahteva","Republička administrativna taksa",null,300,300,"840-742221843-57","Budžet Republike Srbije",97,"89-100","Zakon o RAT - tarifni broj"]
[null,"Grad Užice","Lokacijski uslovi","Donošenje rešenja","Lokalna naknada",null,7000,7000,"840-742241843-03","Gradska uprava Užice",97,"89-100","Odluka o administrativnim taksama"]
[null,"Grad Užice","Građevinska dozvola","Podnošenje zahteva","Republička administrativna taksa",null,310,310,"840-742221843-57","Budžet Republike Srbije",97,"89-100","Zakon o RAT - tarifni broj 1"]
[null,"Grad Užice","Građevinska dozvola","Donošenje rešenja","Republička administrativna taksa",null,830,830,"840-742221843-57","Budžet Republike Srbije",97,"89-100","Zakon o RAT - tarifni broj 1"]
[null,"Grad Užice","Rešenje o odobrenju izvođenja radova po članu 145 Zakona","Podnošenje zahteva","Republička administrativna taksa",null,310,310,"840-742221843-57","Budžet Republike Srbije",97,"89-100","Zakon o RAT - tarifni broj 1"]
[null,"Grad Užice","Rešenje o odobrenju izvođenja radova po članu 145 Zakona","Donošenje rešenja","Republička administrativna taksa",null,830,830,"840-742221843-57","Budžet Republike Srbije",97,"89-100","Zakon o RAT - tarifni broj 1"]
[null,"Grad Užice","Prijava radova","Podnošenje zahteva","Republička administrativna taksa",null,310,310,"840-742221843-57","Budžet Republike Srbije",97,"89-100","Zakon o RAT - tarifni broj 1"]
[null,"Grad Užice","Prijava završetka izrade temelja i završetka objekta u konstruktivnom smislu","Podnošenje zahteva","Republička administrativna taksa",null,1600,1600,"840-742221843-57","Budžet Republike Srbije",97,"89-100","Zakon o RAT - tarifni broj 164"]
[null,"Grad Užice","Upotrebna dozvola","Podnošenje zahteva","Republička administrativna taksa",null,310,310,"840-742221843-57","Budžet Republike Srbije",97,"89-100","Zakon o RAT - tarifni broj 1"]
[null,"Grad Užice","Upotrebna dozvola","Donošenje rešenja","Republička administrativna taksa","DA","0.2% predračunske vrednosti objekta","0.2% predračunske vrednosti objekta","840-742221843-57","Budžet Republike Srbije",97,"89-100","Zakon o RAT - tarifni broj 170"]
[null,"Grad Valjevo","Građevinska dozvola","Podnošenje zahteva","Republička administrativna taksa",null,310,310,"840-742221843-57","Budžet Republike Srbije",97,"68-107","Zakon o RAT - tarifni broj 1"]
[null,"Grad Valjevo","Građevinska dozvola","Donošenje rešenja","Lokalna naknada",null,459,459,"840-742341843-24","Gradska uprava Valjevo",97,"68-107","Odluka o naknadama za rad gradskih uprava grada Valjeva (Sl.glasnik grada Valjeva 1/11)"]
[null,"Grad Valjevo","Građevinska dozvola","Donošenje rešenja","Republička administrativna taksa",null,800,800,"840-742221843-57","Budžet Republike Srbije",97,"68-107","Zakon o RAT - tarifni broj 165"]
[null,"Grad Valjevo","Rešenje o odobrenju izvođenja radova po članu 145 Zakona","Podnošenje zahteva","Republička administrativna taksa",null,310,310,"840-742221843-57","Budžet Republike Srbije",97,"68-107","Zakon o RAT - tarifni broj 1"]
[null,"Grad Valjevo","Rešenje o odobrenju izvođenja radova po članu 145 Zakona","Donošenje rešenja","Lokalna naknada",null,459,459,"840-742341843-24","Gradska uprava Valjevo",97,"68-107","Odluka o naknadama za rad gradskih uprava grada Valjeva (Sl.glasnik grada Valjeva 1/11)"]
[null,"Grad Valjevo","Rešenje o odobrenju izvođenja radova po članu 145 Zakona","Donošenje rešenja","Republička administrativna taksa",null,400,400,"840-742221843-57","Budžet Republike Srbije",97,"68-107","Zakon o RAT - tarifni broj 165"]
[null,"Grad Valjevo","Prijava radova","Donošenje rešenja","Lokalna naknada",null,510,510,"840-742341843-24","Gradska uprava Valjevo",97,"68-107","Odluka o naknadama za rad gradskih uprava grada Valjeva (Sl.glasnik grada Valjeva 1/11)"]
[null,"Grad Valjevo","Prijava završetka izrade temelja i završetka objekta u konstruktivnom smislu","Donošenje rešenja","Lokalna naknada",null,510,510,"840-742341843-24","Gradska uprava Valjevo",97,"68-107","Odluka o naknadama za rad gradskih uprava grada Valjeva (Sl.glasnik grada Valjeva 1/11)"]
[null,"Grad Valjevo","Dostavljanje tehničke dokumentacije","Donošenje rešenja","Lokalna naknada",null,510,510,"840-742341843-24","Gradska uprava Valjevo",97,"68-107","Odluka o naknadama za rad gradskih uprava grada Valjeva (Sl.glasnik grada Valjeva 1/11)"]
[null,"Grad Valjevo","Upotrebna dozvola","Podnošenje zahteva","Republička administrativna taksa",null,310,310,"840-742221843-57","Budžet Republike Srbije",97,"68-107","Zakon o RAT - tarifni broj 1"]
[null,"Grad Valjevo","Upotrebna dozvola","Donošenje rešenja","Lokalna naknada",null,459,459,"840-742341843-24","Gradska uprava Valjevo",97,"68-107","Odluka o naknadama za rad gradskih uprava grada Valjeva (Sl.glasnik grada Valjeva 1/11)"]
[null,"Grad Valjevo","Upotrebna dozvola","Donošenje rešenja","Republička administrativna taksa",null,520,520,"840-742221843-57","Budžet Republike Srbije",97,"68-107","Zakon o RAT - tarifni broj 165"]
[null,"Grad Valjevo","Priključenje objekta na infrastrukturu","Donošenje rešenja","Lokalna naknada",null,510,510,"840-742341843-24","Gradska uprava Valjevo",97,"68-107","Odluka o naknadama za rad gradskih uprava grada Valjeva (Sl.glasnik grada Valjeva 1/11)"]
[null,"Grad Vršac","Lokacijski uslovi","Podnošenje zahteva","Republička administrativna taksa",null,310,310,"840-74222843-57 ","Budžet Republike Srbije",97,"54-241","Zakon o RAT - tarifni broj 1"]
[null,"Grad Vršac","Lokacijski uslovi","Podnošenje zahteva","Lokalna administrativna taksa",null,29000,29000,"840-742241843-03","Gradska uprava Vršac",97,"54-241","Odluka o gradskim administrativnim taksama (\"Sl.list grada Vršca\", br. 13/0/2009)"]
[null,"Grad Vršac","Građevinska dozvola","Podnošenje zahteva","Republička administrativna taksa",null,310,310,"840-74222843-57 ","Budžet Republike Srbije",97,"54-241","Zakon o RAT - tarifni broj 1"]
[null,"Grad Vršac","Građevinska dozvola","Podnošenje zahteva","Lokalna administrativna taksa",null,250,250,"840-742241843-03","Gradska uprava Vršac",97,"54-241","Odluka o gradskim administrativnim taksama (\"Sl.list grada Vršca\", br. 13/0/2009)"]
[null,"Grad Vršac","Građevinska dozvola","Donošenje rešenja","Republička administrativna taksa",null,800,800,"840-74222843-57 ","Budžet Republike Srbije",97,"54-241","Zakon o RAT - tarifni broj 165"]
[null,"Grad Vršac","Građevinska dozvola","Donošenje rešenja","Lokalna administrativna taksa",null,800,800,"840-742241843-03","Gradska uprava Vršac",97,"54-241","Odluka o gradskim administrativnim taksama (\"Sl.list grada Vršca\", br. 13/0/2009)"]
[null,"Grad Vršac","Rešenje o odobrenju izvođenja radova po članu 145 Zakona","Podnošenje zahteva","Republička administrativna taksa",null,310,310,"840-74222843-57 ","Budžet Republike Srbije",97,"54-241","Zakon o RAT - tarifni broj 1"]
[null,"Grad Vršac","Rešenje o odobrenju izvođenja radova po članu 145 Zakona","Podnošenje zahteva","Lokalna administrativna taksa",null,250,250,"840-742241843-03","Gradska uprava Vršac",97,"54-241","Odluka o gradskim administrativnim taksama (\"Sl.list grada Vršca\", br. 13/0/2009)"]
[null,"Grad Vršac","Rešenje o odobrenju izvođenja radova po članu 145 Zakona","Donošenje rešenja","Republička administrativna taksa",null,400,400,"840-74222843-57 ","Budžet Republike Srbije",97,"54-241","Zakon o RAT - tarifni broj 165"]
[null,"Grad Vršac","Rešenje o odobrenju izvođenja radova po članu 145 Zakona","Donošenje rešenja","Lokalna administrativna taksa",null,400,400,"840-742241843-03","Gradska uprava Vršac",97,"54-241","Odluka o gradskim administrativnim taksama (\"Sl.list grada Vršca\", br. 13/0/2009)"]
[null,"Grad Vršac","Prijava radova","Podnošenje zahteva","Republička administrativna taksa",null,310,310,"840-74222843-57 ","Budžet Republike Srbije",97,"54-241","Zakon o RAT - tarifni broj 1"]
[null,"Grad Vršac","Prijava radova","Podnošenje zahteva","Lokalna administrativna taksa",null,250,250,"840-742241843-03","Gradska uprava Vršac",97,"54-241","Odluka o gradskim administrativnim taksama (\"Sl.list grada Vršca\", br. 13/0/2009)"]
[null,"Grad Vršac","Prijava završetka izrade temelja i završetka objekta u konstruktivnom smislu","Podnošenje zahteva","Republička administrativna taksa",null,{"$f":"310+1600","v":1910},{"$f":"310+1600","v":1910},"840-74222843-57 ","Budžet Republike Srbije",97,"54-241","Zakon o RAT - tarifni broj 1"]
[null,"Grad Vršac","Prijava završetka izrade temelja i završetka objekta u konstruktivnom smislu","Podnošenje zahteva","Lokalna administrativna taksa",null,{"$f":"250+250","v":500},{"$f":"250+250","v":500},"840-742241843-03","Gradska uprava Vršac",97,"54-241","Odluka o gradskim administrativnim taksama (\"Sl.list grada Vršca\", br. 13/0/2009)"]
[null,"Grad Vršac","Dostavljanje tehničke dokumentacije","Podnošenje zahteva","Republička administrativna taksa",null,310,310,"840-74222843-57 ","Budžet Republike Srbije",97,"54-241","Zakon o RAT - tarifni broj 1"]
[null,"Grad Vršac","Dostavljanje tehničke dokumentacije","Podnošenje zahteva","Lokalna administrativna taksa",null,250,250,"840-742241843-03","Gradska uprava Vršac",97,"54-241","Odluka o gradskim administrativnim taksama (\"Sl.list grada Vršca\", br. 13/0/2009)"]
[null,"Grad Vršac","Upotrebna dozvola","Podnošenje zahteva","Republička administrativna taksa",null,310,310,"840-74222843-57 ","Budžet Republike Srbije",97,"54-241","Zakon o RAT - tarifni broj 1"]
[null,"Grad Vršac","Upotrebna dozvola","Podnošenje zahteva","Lokalna administrativna taksa",null,250,250,"840-742241843-03","Gradska uprava Vršac",97,"54-241","Odluka o gradskim administrativnim taksama (\"Sl.list grada Vršca\", br. 13/0/2009)"]
[null,"Grad Vršac","Upotrebna dozvola","Donošenje rešenja","Republička administrativna taksa","DA","0.2% predračunske vrednosti objekta","0.2% predračunske vrednosti objekta","840-74222843-57 ","Budžet Republike Srbije",97,"54-241","Zakon o RAT - tarifni broj 170"]
[null,"Grad Vršac","Upotrebna dozvola","Donošenje rešenja","Lokalna administrativna taksa",null,400,400,"840-742241843-03","Gradska uprava Vršac",97,"54-241","Odluka o gradskim administrativnim taksama (\"Sl.list grada Vršca\", br. 13/0/2009)"]
[null,"Grad Vršac","Priključenje objekta na infrastrukturu","Podnošenje zahteva","Republička administrativna taksa",null,310,310,"840-74222843-57 ","Budžet Republike Srbije",97,"54-241","Zakon o RAT - tarifni broj 1"]
[null,"Grad Vršac","Priključenje objekta na infrastrukturu","Podnošenje zahteva","Lokalna administrativna taksa",null,250,250,"840-742241843-03","Gradska uprava Vršac",97,"54-241","Odluka o gradskim administrativnim taksama (\"Sl.list grada Vršca\", br. 13/0/2009)"]
[null,"Grad Zaječar","Lokacijski uslovi","Podnošenje zahteva","Republička administrativna taksa",null,1110,1110,"840-742221843-57","Budžet Republike Srbije",97,"41-116","Zakon o RAT "]
[null,"Grad Zaječar","Lokacijski uslovi","Podnošenje zahteva","Lokalna naknada",null,7025,7025,"840-742341843-24","Gradska uprava Zaječar",97,"41-116","Odluka o visini naknade za izvršene usluge GU (Sl.list grada Zaječara, br. 6/12 i 5/16) i Repenje o utvrđivanju usklađenih iznosa naknada za izvršene usluge grada Zaječara (Sl.list grada Zaječara, br.14/15)"]
[null,"Grad Zaječar","Građevinska dozvola","Podnošenje zahteva","Republička administrativna taksa",null,310,310,"840-742221843-57","Budžet Republike Srbije",97,"41-116","Zakon o RAT - tarifni broj 1"]
[null,"Grad Zaječar","Građevinska dozvola","Podnošenje zahteva","Lokalna naknada",null,2425,2425,"840-742341843-24","Gradska uprava Zaječar",97,"41-116","Odluka o visini naknade za izvršene usluge GU (Sl.list grada Zaječara, br. 6/12 i 5/16) i Repenje o utvrđivanju usklađenih iznosa naknada za izvršene usluge grada Zaječara (Sl.list grada Zaječara, br.14/15)"]
[null,"Grad Zaječar","Građevinska dozvola","Donošenje rešenja","Republička administrativna taksa",null,800,800,"840-742221843-57","Budžet Republike Srbije",97,"41-116","Zakon o RAT - tarifni broj 165"]
[null,"Grad Zaječar","Rešenje o odobrenju izvođenja radova po članu 145 Zakona","Podnošenje zahteva","Republička administrativna taksa",null,310,310,"840-742221843-57","Budžet Republike Srbije",97,"41-116","Zakon o RAT - tarifni broj 1"]
[null,"Grad Zaječar","Rešenje o odobrenju izvođenja radova po članu 145 Zakona","Podnošenje zahteva","Lokalna naknada",null,2025,2025,"840-742341843-24","Gradska uprava Zaječar",97,"41-116","Odluka o visini naknade za izvršene usluge GU (Sl.list grada Zaječara, br. 6/12 i 5/16) i Repenje o utvrđivanju usklađenih iznosa naknada za izvršene usluge grada Zaječara (Sl.list grada Zaječara, br.14/15)"]
[null,"Grad Zaječar","Rešenje o odobrenju izvođenja radova po članu 145 Zakona","Donošenje rešenja","Republička administrativna taksa",null,400,400,"840-742221843-57","Budžet Republike Srbije",97,"41-116","Zakon o RAT - tarifni broj 165"]
[null,"Grad Zaječar","Prijava radova","Podnošenje zahteva","Republička administrativna taksa",null,1110,1110,"840-742221843-57","Budžet Republike Srbije",97,"41-116","Zakon o RAT"]
[null,"Grad Zaječar","Prijava radova","Podnošenje zahteva","Lokalna naknada",null,1225,1225,"840-742341843-24","Gradska uprava Zaječar",97,"41-116","Odluka o visini naknade za izvršene usluge GU (Sl.list grada Zaječara, br. 6/12 i 5/16) i Repenje o utvrđivanju usklađenih iznosa naknada za izvršene usluge grada Zaječara (Sl.list grada Zaječara, br.14/15)"]
[null,"Grad Zaječar","Prijava završetka izrade temelja i završetka objekta u konstruktivnom smislu","Podnošenje zahteva","Republička administrativna taksa",null,1910,1910,"840-742221843-57","Budžet Republike Srbije",97,"41-116","Zakon o RAT - tarifni broj 1 i tarifni broj 164"]
[null,"Grad Zaječar","Prijava završetka izrade temelja i završetka objekta u konstruktivnom smislu","Podnošenje zahteva","Lokalna administrativna taksa",null,1225,1225,"840-742341843-24","Gradska uprava Zaječar",97,"41-116","Odluka o visini naknade za izvršene usluge GU (Sl.list grada Zaječara, br. 6/12 i 5/16) i Repenje o utvrđivanju usklađenih iznosa naknada za izvršene usluge grada Zaječara (Sl.list grada Zaječara, br.14/15)"]
[null,"Grad Zaječar","Upotrebna dozvola","Podnošenje zahteva","Republička administrativna taksa",null,310,310,"840-742221843-57","Budžet Republike Srbije",97,"41-116","Zakon o RAT - tarifni broj 1"]
[null,"Grad Zaječar","Upotrebna dozvola","Podnošenje zahteva","Lokalna naknada",null,3625,3625,"840-742341843-24","Gradska uprava Zaječar",97,"41-116","Odluka o visini naknade za izvršene usluge GU (Sl.list grada Zaječara, br. 6/12 i 5/16) i Repenje o utvrđivanju usklađenih iznosa naknada za izvršene usluge grada Zaječara (Sl.list grada Zaječara, br.14/15)"]
[null,"Grad Zaječar","Upotrebna dozvola","Donošenje rešenja","Republička administrativna taksa",null,800,800,"840-742221843-57","Budžet Republike Srbije",97,"41-116","Zakon o RAT - tarifni broj 165"]
[null,"Grad Zaječar","Priključenje objekta na infrastrukturu","Podnošenje zahteva","Republička administrativna taksa",null,620,620,"840-742221843-57","Budžet Republike Srbije",97,"41-116","Zakon o RAT"]
[null,"Grad Zaječar","Priključenje objekta na infrastrukturu","Podnošenje zahteva","Lokalna naknada",null,1225,1225,"840-742341843-24","Gradska uprava Zaječar",97,"41-116","Odluka o visini naknade za izvršene usluge GU (Sl.list grada Zaječara, br. 6/12 i 5/16) i Repenje o utvrđivanju usklađenih iznosa naknada za izvršene usluge grada Zaječara (Sl.list grada Zaječara, br.14/15)"]
[null,"Grad Zrenjanin","Lokacijski uslovi","Podnošenje zahteva","Republička administrativna taksa",null,310,310,"840-742221843-57","Budžet Republike Srbije",97,"51-242","Zakon o RAT - tarifni broj 1"]
[null,"Grad Zrenjanin","Lokacijski uslovi","Podnošenje zahteva","Lokalna naknada",null,40000,40000,"840-742341843-24","Gradska uprava Zrenjanin",97,"51-242","Odluke o naknadama za usluge koje vrši Gradska uprava(“Sl.list grada Zrenjanina”, br.14/10, 5/10-ispravka , 5/11, 11/11, 14/11, 6/12, 17/13, 37/13, 6/14 и 15/15)"]
[null,"Grad Zrenjanin","Lokacijski uslovi","Donošenje rešenja","Republička administrativna taksa",null,520,520,"840-742221843-57","Budžet Republike Srbije",97,"51-242","Zakon o RAT - tarifni broj 9"]
[null,"Grad Zrenjanin","Građevinska dozvola","Podnošenje zahteva","Republička administrativna taksa",null,310,310,"840-742221843-57","Budžet Republike Srbije",97,"51-242","Zakon o RAT - tarifni broj 1"]
[null,"Grad Zrenjanin","Građevinska dozvola","Podnošenje zahteva","Lokalna naknada",null,1000,1000,"840-742341843-24","Gradska uprava Zrenjanin",97,"51-242","Odluke o naknadama za usluge koje vrši Gradska uprava(“Sl.list grada Zrenjanina”, br.14/10, 5/10-ispravka , 5/11, 11/11, 14/11, 6/12, 17/13, 37/13, 6/14 и 15/15)"]
[null,"Grad Zrenjanin","Građevinska dozvola","Donošenje rešenja","Republička administrativna taksa",null,800,800,"840-742221843-57","Budžet Republike Srbije",97,"51-242","Zakon o RAT - tarifni broj 165"]
[null,"Grad Zrenjanin","Rešenje o odobrenju izvođenja radova po članu 145 Zakona","Podnošenje zahteva","Republička administrativna taksa",null,310,310,"840-742221843-57","Budžet Republike Srbije",97,"51-242","Zakon o RAT - tarifni broj 1"]
[null,"Grad Zrenjanin","Rešenje o odobrenju izvođenja radova po članu 145 Zakona","Podnošenje zahteva","Lokalna naknada",null,1000,1000,"840-742341843-24","Gradska uprava Zrenjanin",97,"51-242","Odluke o naknadama za usluge koje vrši Gradska uprava(“Sl.list grada Zrenjanina”, br.14/10, 5/10-ispravka , 5/11, 11/11, 14/11, 6/12, 17/13, 37/13, 6/14 и 15/15)"]
[null,"Grad Zrenjanin","Rešenje o odobrenju izvođenja radova po članu 145 Zakona","Donošenje rešenja","Republička administrativna taksa",null,800,800,"840-742221843-57","Budžet Republike Srbije",97,"51-242","Zakon o RAT - tarifni broj 165"]
[null,"Grad Zrenjanin","Prijava radova","Podnošenje zahteva","Republička administrativna taksa",null,310,310,"840-742221843-57","Budžet Republike Srbije",97,"51-242","Zakon o RAT - tarifni broj 1"]
[null,"Grad Zrenjanin","Prijava radova","Podnošenje zahteva","Republička administrativna taksa",null,310,310,"840-742221843-57","Budžet Republike Srbije",97,"51-242","Zakon o RAT - tarifni broj 11"]
[null,"Grad Zrenjanin","Prijava završetka izrade temelja i završetka objekta u konstruktivnom smislu","Podnošenje zahteva","Republička administrativna taksa",null,310,310,"840-742221843-57","Budžet Republike Srbije",97,"51-242","Zakon o RAT - tarifni broj 1"]
[null,"Grad Zrenjanin","Dostavljanje tehničke dokumentacije","Podnošenje zahteva","Republička administrativna taksa",null,310,310,"840-742221843-57","Budžet Republike Srbije",97,"51-242","Zakon o RAT - tarifni broj 1"]
[null,"Grad Zrenjanin","Upotrebna dozvola","Podnošenje zahteva","Republička administrativna taksa",null,310,310,"840-742221843-57","Budžet Republike Srbije",97,"51-242","Zakon o RAT - tarifni broj 1"]
[null,"Grad Zrenjanin","Upotrebna dozvola","Donošenje rešenja","Republička administrativna taksa","DA","0.2% predračunske vrednosti objekta","0.2% predračunske vrednosti objekta","840-742221843-57","Budžet Republike Srbije",97,"51-242","Zakon o RAT - tarifni broj 170"]
[null,"Grad Zrenjanin","Priključenje objekta na infrastrukturu","Podnošenje zahteva","Republička administrativna taksa",null,310,310,"840-742221843-57","Budžet Republike Srbije",97,"51-242","Zakon o RAT - tarifni broj 1"]
[null,"Gradska opština Barajevo","Lokacijski uslovi","Podnošenje zahteva","Republička administrativna taksa",null,310,310,"840-742221843-57","Budžet Republike Srbije",97,"68-010","Zakon o RAT - tarifni broj 1"]
[null,"Gradska opština Barajevo","Lokacijski uslovi","Podnošenje zahteva","Lokalna naknada",null,14006,14006,"840-742251843-73","Opštinska uprava Barajevo",97,"68-010","Odluka o lokalnim administrativnim taksama\n(\"Sl.list grada Beograda 96/16\")"]
[null,"Gradska opština Barajevo","Građevinska dozvola","Podnošenje zahteva","Republička administrativna taksa",null,1110,1110,"840-742221843-57","Budžet Republike Srbije",97,"68-010","Zakon o RAT - tarifni broj 1 i tarifni broj 165"]
[null,"Gradska opština Barajevo","Rešenje o odobrenju izvođenja radova po članu 145 Zakona","Podnošenje zahteva","Republička administrativna taksa",null,1110,1110,"840-742221843-57","Budžet Republike Srbije",97,"68-010","Zakon o RAT - tarifni broj 1 i tarifni broj 165"]
[null,"Gradska opština Barajevo","Prijava radova","Podnošenje zahteva","Republička administrativna taksa",null,310,310,"840-742221843-57","Budžet Republike Srbije",97,"68-010","Zakon o RAT - tarifni broj 1"]
[null,"Gradska opština Barajevo","Prijava završetka izrade temelja i završetka objekta u konstruktivnom smislu","Podnošenje zahteva","Republička administrativna taksa",null,{"$f":"310+310+1600","v":2220},{"$f":"310+310+1600","v":2220},"840-742221843-57","Budžet Republike Srbije",97,"68-010","Zakon o RAT - tarifni broj 1, 1 i 164"]
[null,"Gradska opština Barajevo","Upotrebna dozvola","Podnošenje zahteva","Republička administrativna taksa",null,1110,1110,"840-742221843-57","Budžet Republike Srbije",97,"68-010","Zakon o RAT - tarifni broj 1 i tarifni broj 165"]
[null,"Gradska opština Barajevo","Upotrebna dozvola","Donošenje rešenja","Republička administrativna taksa","Da","0.2% predračunske vrednosti objekta","0.2% predračunske vrednosti objekta","840-742221843-57","Budžet Republike Srbije",97,"68-010","Zakon o RAT - tarifni broj 170"]
[null,"Gradska opština Barajevo","Priključenje objekta na infrastrukturu","Podnošenje zahteva","Republička administrativna taksa",null,310,310,"840-742221843-57","Budžet Republike Srbije",97,"68-010","Zakon o RAT - tarifni broj 1"]
[null,"Gradska opština Čukarica","Građevinska dozvola","Podnošenje zahteva","Republička administrativna taksa",null,310,310,"840-742221843-57","Budžet Republike Srbije",97,"65-011 ","Zakon o RAT - tarifni broj 1"]
[null,"Gradska opština Čukarica","Građevinska dozvola","Donošenje rešenja","Republička administrativna taksa",null,800,800,"840-742221843-57","Budžet Republike Srbije",97,"65-011 ","Zakon o RAT - tarifni broj 165"]
[null,"Gradska opština Čukarica","Rešenje o odobrenju izvođenja radova po članu 145 Zakona","Podnošenje zahteva","Republička administrativna taksa",null,310,310,"840-742221843-57","Budžet Republike Srbije",97,"65-011","Zakon o RAT - tarifni broj 1"]
[null,"Gradska opština Čukarica","Rešenje o odobrenju izvođenja radova po članu 145 Zakona","Donošenje rešenja","Republička administrativna taksa",null,400,400,"840-742221843-57","Budžet Republike Srbije",97,"65-011","Zakon o RAT - tarifni broj 165"]
[null,"Gradska opština Čukarica","Prijava radova","Podnošenje zahteva","Republička administrativna taksa",null,310,310,"840-742221843-57","Budžet Republike Srbije",97,"65-011","Zakon o RAT - tarifni broj 1"]
[null,"Gradska opština Čukarica","Prijava radova","Donošenje rešenja","Republička administrativna taksa",null,310,310,"840-742221843-57","Budžet Republike Srbije",97,"65-011","Zakon o RAT - tarifni broj 11"]
[null,"Gradska opština Čukarica","Prijava završetka izrade temelja i završetka objekta u konstruktivnom smislu","Podnošenje zahteva","Republička administrativna taksa",null,310,310,"840-742221843-57","Budžet Republike Srbije",97,"65-011","Zakon o RAT - tarifni broj 1"]
[null,"Gradska opština Čukarica","Prijava završetka izrade temelja i završetka objekta u konstruktivnom smislu","Donošenje rešenja","Republička administrativna taksa",null,1600,1600,"840-742221843-57","Budžet Republike Srbije",97,"65-011","Zakon o RAT - tarifni broj 164"]
[null,"Gradska opština Čukarica","Dostavljanje tehničke dokumentacije","Podnošenje zahteva","Republička administrativna taksa",null,310,310,"840-742221843-57","Budžet Republike Srbije",97,"65-011","Zakon o RAT - tarifni broj 1"]
[null,"Gradska opština Čukarica","Upotrebna dozvola","Podnošenje zahteva","Republička administrativna taksa",null,310,310,"840-742221843-57","Budžet Republike Srbije",97,"65-011","Zakon o RAT - tarifni broj 1"]
[null,"Gradska opština Čukarica","Upotrebna dozvola","Donošenje rešenja","Republička administrativna taksa",null,520,520,"840-742221843-57","Budžet Republike Srbije",97,"65-011","Zakon o RAT - tarifni broj 9"]
[null,"Gradska opština Čukarica","Upotrebna dozvola","Donošenje rešenja","Republička administrativna taksa","DA","0.2% predračunske vrednosti objekta","0.2% predračunske vrednosti objekta","840-742221843-57","Budžet Republike Srbije",97,"65-011","Zakon o RAT - tarifni broj 70"]
[null,"Gradska opština Čukarica","Priključenje objekta na infrastrukturu","Podnošenje zahteva","Republička administrativna taksa",null,310,310,"840-742221843-57","Budžet Republike Srbije",97,"65-011","Zakon o RAT - tarifni broj 1"]
[null,"Gradska opština Lazarevac","Lokacijski uslovi","Podnošenje zahteva","Lokalna administrativna taksa",null,300,300,"840-742251843-73 ","Opštinska uprava Lazarevac",97,"27-056","Odluka o lokalnim administrativnim taksama "]
[null,"Gradska opština Lazarevac","Lokacijski uslovi","Podnošenje zahteva","Lokalna administrativna taksa",null,14006,14006,"840-742251843-73 ","Opštinska uprava Lazarevac",97,"27-056","Odluka o lokalnim administrativnim taksama "]
[null,"Gradska opština Lazarevac","Građevinska dozvola","Podnošenje zahteva","Republička administrativna taksa",null,300,300,"840-742221843-57","Budžet Republike Srbije",97,"27-056","Zakon o RAT - tarifni broj 1"]
[null,"Gradska opština Lazarevac","Građevinska dozvola","Donošenje rešenja","Republička administrativna taksa",null,770,770,"840-742221843-57","Budžet Republike Srbije",97,"27-056","Zakon o RAT - tarifni broj 165"]
[null,"Gradska opština Lazarevac","Rešenje o odobrenju izvođenja radova po članu 145 Zakona","Podnošenje zahteva","Republička administrativna taksa",null,300,300,"840-742221843-57","Budžet Republike Srbije",97,"27-056","Zakon o RAT - tarifni broj 1"]
[null,"Gradska opština Lazarevac","Rešenje o odobrenju izvođenja radova po članu 145 Zakona","Donošenje rešenja","Republička administrativna taksa",null,770,770,"840-742221843-57","Budžet Republike Srbije",97,"27-056","Zakon o RAT - tarifni broj 165"]
[null,"Gradska opština Lazarevac","Prijava radova","Podnošenje zahteva","Republička administrativna taksa",null,300,300,"840-742221843-57","Budžet Republike Srbije",97,"27-056","Zakon o RAT - tarifni broj 1"]
[null,"Gradska opština Lazarevac","Prijava završetka izrade temelja i završetka objekta u konstruktivnom smislu","Podnošenje zahteva","Republička administrativna taksa",null,300,300,"840-742221843-57","Budžet Republike Srbije",97,"27-056","Zakon o RAT - tarifni broj 1"]
[null,"Gradska opština Lazarevac","Prijava završetka izrade temelja i završetka objekta u konstruktivnom smislu","Podnošenje zahteva","Republička administrativna taksa",null,300,300,"840-742221843-57","Budžet Republike Srbije",97,"27-056","Zakon o RAT - tarifni broj 1"]
[null,"Gradska opština Lazarevac","Prijava završetka izrade temelja i završetka objekta u konstruktivnom smislu","Podnošenje zahteva","Republička administrativna taksa",null,1530,1530,"840-742221843-57","Budžet Republike Srbije",97,"27-056","Zakon o RAT"]
[null,"Gradska opština Lazarevac","Dostavljanje tehničke dokumentacije","Podnošenje zahteva","Republička administrativna taksa",null,300,300,"840-742221843-57","Budžet Republike Srbije",97,"27-056","Zakon o RAT - tarifni broj 1"]
[null,"Gradska opština Lazarevac","Upotrebna dozvola","Podnošenje zahteva","Republička administrativna taksa",null,300,300,"840-742221843-57","Budžet Republike Srbije",97,"27-056","Zakon o RAT - tarifni broj 1"]
[null,"Gradska opština Lazarevac","Upotrebna dozvola","Donošenje rešenja","Republička administrativna taksa",null,770,770,"840-742221843-57","Budžet Republike Srbije",97,"27-056","Zakon o RAT - tarifni broj 165"]
[null,"Gradska opština Lazarevac","Upotrebna dozvola","Donošenje rešenja","Republička administrativna taksa","DA","0.2% predračunske vrednosti objekta","0.2% predračunske vrednosti objekta","840-742221843-57","Budžet Republike Srbije",97,"27-056","Zakon o RAT - tarifni broj 170"]
[null,"Gradska opština Novi Beograd","Građevinska dozvola","Podnošenje zahteva","Lokalna administrativna taksa",null,300,300,"840-742251843-73","Opštinska uprava Novog Beograad",97,"59-013","Odluka o lokanim administrativnim taksama"]
[null,"Gradska opština Novi Beograd","Građevinska dozvola","Donošenje rešenja","Republička administrativna taksa",null,800,800,"840-742221843-57","Budžet Republike Srbije",97,"59-013","Zakon o RAT - tarifni broj 165"]
[null,"Gradska opština Novi Beograd","Građevinska dozvola","Donošenje rešenja","Lokalna administrativna taksa",null,500,500,"840-742251843-73","Opštinska uprava Novog Beograad",97,"59-013","Odluka o lokanim administrativnim taksama"]
[null,"Gradska opština Novi Beograd","Rešenje o odobrenju izvođenja radova po članu 145 Zakona","Podnošenje zahteva","Lokalna administrativna taksa",null,300,300,"840-742251843-73","Opštinska uprava Novog Beograad",97,"59-013","Odluka o lokanim administrativnim taksama"]
[null,"Gradska opština Novi Beograd","Rešenje o odobrenju izvođenja radova po članu 145 Zakona","Donošenje rešenja","Republička administrativna taksa",null,800,800,"840-742221843-57","Budžet Republike Srbije",97,"59-013","Zakon o RAT - tarifni broj 165"]
[null,"Gradska opština Novi Beograd","Rešenje o odobrenju izvođenja radova po članu 145 Zakona","Donošenje rešenja","Lokalna administrativna taksa",null,500,500,"840-742251843-73","Opštinska uprava Novog Beograad",97,"59-013","Odluka o lokanim administrativnim taksama"]
[null,"Gradska opština Novi Beograd","Prijava radova","Podnošenje zahteva","Lokalna administrativna taksa",null,300,300,"840-742251843-73","Opštinska uprava Novog Beograad",97,"59-013","Odluka o lokanim administrativnim taksama"]
[null,"Gradska opština Novi Beograd","Prijava radova","Donošenje rešenja","Lokalna administrativna taksa",null,300,300,"840-742251843-73","Opštinska uprava Novog Beograad",97,"59-013","Odluka o lokanim administrativnim taksama"]
[null,"Gradska opština Novi Beograd","Prijava završetka izrade temelja i završetka objekta u konstruktivnom smislu","Podnošenje zahteva","Lokalna administrativna taksa",null,300,300,"840-742251843-73","Opštinska uprava Novog Beograad",97,"59-013","Odluka o lokanim administrativnim taksama"]
[null,"Gradska opština Novi Beograd","Prijava završetka izrade temelja i završetka objekta u konstruktivnom smislu","Donošenje rešenja","Republička administrativna taksa",null,1600,1600,"840-742221843-57","Budžet Republike Srbije",97,"59-013","Zakon o RAT - tarifni broj 164"]
[null,"Gradska opština Novi Beograd","Dostavljanje tehničke dokumentacije","Podnošenje zahteva","Lokalna administrativna taksa",null,300,300,"840-742251843-73","Opštinska uprava Novog Beograad",97,"59-013","Odluka o lokanim administrativnim taksama"]
[null,"Gradska opština Novi Beograd","Rešenje o odobrenju izvođenja radova po članu 145 Zakona","Podnošenje zahteva","Lokalna administrativna taksa",null,300,300,"840-742251843-73","Opštinska uprava Novog Beograad",97,"59-013","Odluka o lokanim administrativnim taksama"]
[null,"Gradska opština Novi Beograd","Rešenje o odobrenju izvođenja radova po članu 145 Zakona","Donošenje rešenja","Republička administrativna taksa","DA","0.2% predračunske vrednosti objekta","0.2% predračunske vrednosti objekta","840-742221843-57","Budžet Republike Srbije",97,"59-013","Zakon o RAT - tarifni broj 170"]
[null,"Gradska opština Novi Beograd","Rešenje o odobrenju izvođenja radova po članu 145 Zakona","Donošenje rešenja","Lokalna administrativna taksa",null,500,500,"840-742251843-73","Opštinska uprava Novog Beograad",97,"59-013","Odluka o lokanim administrativnim taksama"]
[null,"Gradska opština Obrenovac","Lokacijski uslovi","Podnošenje zahteva","Republička administrativna taksa",null,310,310,"840-742221843-57","Budžet Republike Srbije",97,"56-014","Zakon o RAT - tarifni broj 1"]
[null,"Gradska opština Obrenovac","Lokacijski uslovi","Podnošenje zahteva","Lokalna administrativna taksa",null,14006,14006,"840-742251843-73","Opštinska uprava Obrenovac",97,"56-014","Odluka o izmeni Odluke o lokalnim administrativnim taksama („Sl. list gada Beograda“ br. 17/2015)"]
[null,"Gradska opština Obrenovac","Građevinska dozvola","Podnošenje zahteva","Republička administrativna taksa",null,310,310,"840-742221843-57","Budžet Republike Srbije",97,"56-014","Zakon o RAT - tarifni broj 1"]
[null,"Gradska opština Obrenovac","Građevinska dozvola","Donošenje rešenja","Republička administrativna taksa",null,800,800,"840-742221843-57","Budžet Republike Srbije",97,"56-014","Zakon o RAT - tarifni broj 165"]
[null,"Gradska opština Obrenovac","Rešenje o odobrenju izvođenja radova po članu 145 Zakona","Podnošenje zahteva","Republička administrativna taksa",null,310,310,"840-742221843-57","Budžet Republike Srbije",97,"56-014","Zakon o RAT - tarifni broj 1"]
[null,"Gradska opština Obrenovac","Rešenje o odobrenju izvođenja radova po članu 145 Zakona","Donošenje rešenja","Republička administrativna taksa",null,800,800,"840-742221843-57","Budžet Republike Srbije",97,"56-014","Zakon o RAT - tarifni broj 165"]
[null,"Gradska opština Obrenovac","Prijava radova","Podnošenje zahteva","Republička administrativna taksa",null,310,310,"840-742221843-57","Budžet Republike Srbije",97,"56-014","Zakon o RAT - tarifni broj 1"]
[null,"Gradska opština Obrenovac","Prijava završetka izrade temelja i završetka objekta u konstruktivnom smislu","Podnošenje zahteva","Republička administrativna taksa",null,310,310,"840-742221843-57","Budžet Republike Srbije",97,"56-014","Zakon o RAT - tarifni broj 1"]
[null,"Gradska opština Obrenovac","Prijava završetka izrade temelja i završetka objekta u konstruktivnom smislu","Podnošenje zahteva","Republička administrativna taksa",null,1600,1600,"840-742221843-57","Budžet Republike Srbije",97,"56-014","Zakon o RAT - tarifni broj 164"]
[null,"Gradska opština Obrenovac","Dostavljanje tehničke dokumentacije","Podnošenje zahteva","Republička administrativna taksa",null,310,310,"840-742221843-57","Budžet Republike Srbije",97,"56-014","Zakon o RAT - tarifni broj 1"]
[null,"Gradska opština Obrenovac","Upotrebna dozvola","Podnošenje zahteva","Republička administrativna taksa",null,310,310,"840-742221843-57","Budžet Republike Srbije",97,"56-014","Zakon o RAT - tarifni broj 1"]
[null,"Gradska opština Obrenovac","Upotrebna dozvola","Donošenje rešenja","Republička administrativna taksa","DA","0.2% predračunske vrednosti objekta","0.2% predračunske vrednosti objekta","840-742221843-57","Budžet Republike Srbije",97,"56-014","Zakon o RAT - tarifni broj 170"]
[null,"Gradska opština Obrenovac","Upotrebna dozvola","Donošenje rešenja","Lokalna administrativna taksa","DA","0.1% predračunske vrednosti objekta","0.1% predračunske vrednosti objekta","840-742251843-73","Opštinska uprava Obrenovac",97,"56-014","Odluka o izmeni Odluke o lokalnim administrativnim taksama („Sl. list gada Beograda“ br. 17/2015)"]
[null,"Gradska opština Obrenovac","Priključenje objekta na infrastrukturu","Podnošenje zahteva","Republička administrativna taksa",null,310,310,"840-742221843-57","Budžet Republike Srbije",97,"56-014","Zakon o RAT - tarifni broj 1"]
[null,"Gradska opština Palilula","Građevinska dozvola","Podnošenje zahteva","Republička administrativna taksa",null,310,310,"840-742221843-57","Budžet Republike Srbije",97,"53-015","Zakon o RAT - tarifni broj 1"]
[null,"Gradska opština Palilula","Građevinska dozvola","Donošenje rešenja","Republička administrativna taksa",null,800,400,"840-742221843-57","Budžet Republike Srbije",97,"53-015","Zakon o RAT - tarifni broj 165"]
[null,"Gradska opština Palilula","Rešenje o odobrenju izvođenja radova po članu 145 Zakona","Podnošenje zahteva","Republička administrativna taksa",null,310,310,"840-742221843-57","Budžet Republike Srbije",97,"53-015","Zakon o RAT - tarifni broj 1"]
[null,"Gradska opština Palilula","Rešenje o odobrenju izvođenja radova po članu 145 Zakona","Donošenje rešenja","Republička administrativna taksa",null,520,520,"840-742221843-57","Budžet Republike Srbije",97,"53-015","Zakon o RAT - tarifni broj 9"]
[null,"Gradska opština Palilula","Prijava radova","Podnošenje zahteva","Republička administrativna taksa",null,310,310,"840-742221843-57","Budžet Republike Srbije",97,"53-015","Zakon o RAT - tarifni broj 1"]
[null,"Gradska opština Palilula","Prijava završetka izrade temelja i završetka objekta u konstruktivnom smislu","Podnošenje zahteva","Republička administrativna taksa",null,310,310,"840-742221843-57","Budžet Republike Srbije",97,"53-015","Zakon o RAT - tarifni broj 1"]
[null,"Gradska opština Palilula","Dostavljanje tehničke dokumentacije","Podnošenje zahteva","Republička administrativna taksa",null,310,310,"840-742221843-57","Budžet Republike Srbije",97,"53-015","Zakon o RAT - tarifni broj 1"]
[null,"Gradska opština Palilula","Upotrebna dozvola","Podnošenje zahteva","Republička administrativna taksa",null,310,310,"840-742221843-57","Budžet Republike Srbije",97,"53-015","Zakon o RAT - tarifni broj 1"]
[null,"Gradska opština Palilula","Upotrebna dozvola","Podnošenje zahteva","Republička administrativna taksa","DA","0.2% predračunske vrednosti objekta","0.2% predračunske vrednosti objekta","840-742221843-57","Budžet Republike Srbije",97,"53-015","Zakon o RAT - tarifni broj 170"]
[null,"Gradska opština Savski Venac","Građevinska dozvola","Podnošenje zahteva","Republička administrativna taksa",null,310,310,"840-742221843-57","Budžet Republike Srbije",97,"50-016","Zakon o RAT - tarifni broj 1"]
[null,"Gradska opština Savski Venac","Građevinska dozvola","Donošenje rešenja","Republička administrativna taksa",null,800,400,"840-742221843-57","Budžet Republike Srbije",97,"50-016","Zakon o RAT - tarifni broj 165"]
[null,"Gradska opština Savski Venac","Rešenje o odobrenju izvođenja radova po članu 145 Zakona","Podnošenje zahteva","Republička administrativna taksa",null,310,310,"840-742221843-57","Budžet Republike Srbije",97,"50-016","Zakon o RAT - tarifni broj 1"]
[null,"Gradska opština Savski Venac","Rešenje o odobrenju izvođenja radova po članu 145 Zakona","Donošenje rešenja","Republička administrativna taksa",null,800,400,"840-742221843-57","Budžet Republike Srbije",97,"50-016","Zakon o RAT - tarifni broj 165"]
[null,"Gradska opština Savski Venac","Prijava radova","Podnošenje zahteva","Republička administrativna taksa",null,310,310,"840-742221843-57","Budžet Republike Srbije",97,"50-016","Zakon o RAT - tarifni broj 1"]
[null,"Gradska opština Savski Venac","Prijava završetka izrade temelja i završetka objekta u konstruktivnom smislu","Podnošenje zahteva","Republička administrativna taksa",null,310,310,"840-742221843-57","Budžet Republike Srbije",97,"50-016","Zakon o RAT - tarifni broj 1"]
[null,"Gradska opština Savski Venac","Upotrebna dozvola","Podnošenje zahteva","Republička administrativna taksa",null,310,310,"840-742221843-57","Budžet Republike Srbije",97,"50-016","Zakon o RAT - tarifni broj 1"]
[null,"Gradska opština Savski Venac","Upotrebna dozvola","Podnošenje zahteva","Republička administrativna taksa","DA","0.2% predračunske vrednosti objekta","0.2% predračunske vrednosti objekta","840-742221843-57","Budžet Republike Srbije",97,"50-016","Zakon o RAT - tarifni broj 170"]
[null,"Gradska opština Savski Venac","Priključenje objekta na infrastrukturu","Podnošenje zahteva","Republička administrativna taksa",null,310,310,"840-742221843-57","Budžet Republike Srbije",97,"50-016","Zakon o RAT - tarifni broj 1"]
[null,"Gradska opština Sopot","Lokacijski uslovi","Podnošenje zahteva","Lokalna administrativna taksa",null,300,300,"840-742251843-73","Opštinska uprava Sopot",97,"47-017","Odluka o lokalnim administrativnim taksama (”Sl. list Grada Beograda” br. 50/14, 77/14, 17/15, 61/15 i 96/16)"]
[null,"Gradska opština Sopot","Lokacijski uslovi","Donošenje rešenja","Lokalna administrativna taksa",null,14006,14006,"840-742251843-73","Opštinska uprava Sopot",97,"47-017","Odluka o lokalnim administrativnim taksama (”Sl. list Grada Beograda” br. 50/14, 77/14, 17/15, 61/15 i 96/16)"]
[null,"Gradska opština Sopot","Građevinska dozvola","Podnošenje zahteva","Lokalna administrativna taksa",null,300,300,"840-742251843-73","Opštinska uprava Sopot",97,"47-017","Odluka o lokalnim administrativnim taksama (”Sl. list Grada Beograda” br. 50/14, 77/14, 17/15, 61/15 i 96/16)"]
[null,"Gradska opština Sopot","Građevinska dozvola","Donošenje rešenja","Lokalna administrativna taksa",null,500,500,"840-742251843-73","Opštinska uprava Sopot",97,"47-017","Odluka o lokalnim administrativnim taksama (”Sl. list Grada Beograda” br. 50/14, 77/14, 17/15, 61/15 i 96/16)"]
[null,"Gradska opština Sopot","Rešenje o odobrenju izvođenja radova po članu 145 Zakona","Podnošenje zahteva","Lokalna administrativna taksa",null,300,300,"840-742251843-73","Opštinska uprava Sopot",97,"47-017","Odluka o lokalnim administrativnim taksama (”Sl. list Grada Beograda” br. 50/14, 77/14, 17/15, 61/15 i 96/16)"]
[null,"Gradska opština Sopot","Rešenje o odobrenju izvođenja radova po članu 145 Zakona","Donošenje rešenja","Lokalna administrativna taksa",null,500,500,"840-742251843-73","Opštinska uprava Sopot",97,"47-017","Odluka o lokalnim administrativnim taksama (”Sl. list Grada Beograda” br. 50/14, 77/14, 17/15, 61/15 i 96/16)"]
[null,"Gradska opština Sopot","Prijava radova","Podnošenje zahteva","Lokalna administrativna taksa",null,300,300,"840-742251843-73","Opštinska uprava Sopot",97,"47-017","Odluka o lokalnim administrativnim taksama (”Sl. list Grada Beograda” br. 50/14, 77/14, 17/15, 61/15 i 96/16)"]
[null,"Gradska opština Sopot","Prijava radova","Donošenje rešenja","Lokalna administrativna taksa",null,300,300,"840-742251843-73","Opštinska uprava Sopot",97,"47-017","Odluka o lokalnim administrativnim taksama (”Sl. list Grada Beograda” br. 50/14, 77/14, 17/15, 61/15 i 96/16)"]
[null,"Gradska opština Sopot","Prijava završetka izrade temelja i završetka objekta u konstruktivnom smislu","Podnošenje zahteva","Lokalna administrativna taksa",null,300,300,"840-742251843-73","Opštinska uprava Sopot",97,"47-017","Odluka o lokalnim administrativnim taksama (”Sl. list Grada Beograda” br. 50/14, 77/14, 17/15, 61/15 i 96/16)"]
[null,"Gradska opština Sopot","Prijava završetka izrade temelja i završetka objekta u konstruktivnom smislu","Donošenje rešenja","Lokalna administrativna taksa",null,300,300,"840-742251843-73","Opštinska uprava Sopot",97,"47-017","Odluka o lokalnim administrativnim taksama (”Sl. list Grada Beograda” br. 50/14, 77/14, 17/15, 61/15 i 96/16)"]
[null,"Gradska opština Sopot","Upotrebna dozvola","Podnošenje zahteva","Lokalna administrativna taksa",null,300,300,"840-742251843-73","Opštinska uprava Sopot",97,"47-017","Odluka o lokalnim administrativnim taksama (”Sl. list Grada Beograda” br. 50/14, 77/14, 17/15, 61/15 i 96/16)"]
[null,"Gradska opština Sopot","Upotrebna dozvola","Donošenje rešenja","Lokalna administrativna taksa",null,500,500,"840-742251843-73","Opštinska uprava Sopot",97,"47-017","Odluka o lokalnim administrativnim taksama (”Sl. list Grada Beograda” br. 50/14, 77/14, 17/15, 61/15 i 96/16)"]
[null,"Gradska opština Sopot","Upotrebna dozvola","Donošenje rešenja","Republička administrativna taksa","DA","0.2% predračunske vrednosti objekta","0.2% predračunske vrednosti objekta","840-742221843-57","Budžet Republike Srbije",97,"47-017","Zakon o RAT - tarifni broj 170"]
[null,"Gradska opština Vračar","Građevinska dozvola","Podnošenje zahteva","Lokalna administrativna taksa",null,300,300,"840-742251843-73","Opštinska uprava Vračar",97,"38-020","Odluka o lokalnim administrativnim taksama ( „Sl list grada Beograda“ br. 50/14, 77/14, 17/15, 61/15 i 96/16)"]
[null,"Gradska opština Vračar","Građevinska dozvola","Donošenje rešenja","Lokalna administrativna taksa",null,800,800,"840-742221843-57","Budžet Republike Srbije",97,"38-020","Zakon o RAT - tarifni broj 165"]
[null,"Gradska opština Vračar","Rešenje o odobrenju izvođenja radova po članu 145 Zakona","Podnošenje zahteva","Lokalna administrativna taksa",null,300,300,"840-742251843-73","Opštinska uprava Vračar",97,"38-020","Odluka o lokalnim administrativnim taksama ( „Sl list grada Beograda“ br. 50/14, 77/14, 17/15, 61/15 i 96/16)"]
[null,"Gradska opština Vračar","Rešenje o odobrenju izvođenja radova po članu 145 Zakona","Donošenje rešenja","Lokalna administrativna taksa",null,400,400,"840-742221843-57","Budžet Republike Srbije",97,"38-020","Zakon o RAT - tarifni broj 165"]
[null,"Gradska opština Vračar","Prijava radova","Podnošenje zahteva","Lokalna administrativna taksa",null,300,300,"840-742251843-73","Opštinska uprava Vračar",97,"38-020","Odluka o lokalnim administrativnim taksama ( „Sl list grada Beograda“ br. 50/14, 77/14, 17/15, 61/15 i 96/16)"]
[null,"Gradska opština Vračar","Prijava završetka izrade temelja i završetka objekta u konstruktivnom smislu","Podnošenje zahteva","Lokalna administrativna taksa",null,300,300,"840-742251843-73","Opštinska uprava Vračar",97,"38-020","Odluka o lokalnim administrativnim taksama ( „Sl list grada Beograda“ br. 50/14, 77/14, 17/15, 61/15 i 96/16)"]
[null,"Gradska opština Vračar","Dostavljanje tehničke dokumentacije","Podnošenje zahteva","Lokalna administrativna taksa",null,300,300,"840-742251843-73","Opštinska uprava Vračar",97,"38-020","Odluka o lokalnim administrativnim taksama ( „Sl list grada Beograda“ br. 50/14, 77/14, 17/15, 61/15 i 96/16)"]
[null,"Gradska opština Vračar","Upotrebna dozvola","Podnošenje zahteva","Lokalna administrativna taksa",null,300,300,"840-742251843-73","Opštinska uprava Vračar",97,"38-020","Odluka o lokalnim administrativnim taksama ( „Sl list grada Beograda“ br. 50/14, 77/14, 17/15, 61/15 i 96/16)"]
[null,"Gradska opština Vračar","Upotrebna dozvola","Donošenje rešenja","Republička administrativna taksa","DA","0.2% predračunske vrednosti objekta","0.2% predračunske vrednosti objekta","840-742221843-57","Budžet Republike Srbije",97,"38-020","Zakon o RAT - tarifni broj 170"]
[null,"Gradska opština Vračar","Priključenje objekta na infrastrukturu","Podnošenje zahteva","Lokalna administrativna taksa",null,300,300,"840-742251843-73","Opštinska uprava Vračar",97,"38-020","Odluka o lokalnim administrativnim taksama ( „Sl list grada Beograda“ br. 50/14, 77/14, 17/15, 61/15 i 96/16)"]
[null,"Gradska opština Zemun","Građevinska dozvola","Podnošenje zahteva","Republička administrativna taksa",null,310,310,"840-742221843-57","Budžet Republike Srbije",97,"35-021","Zakon o RAT - tarifni broj 1"]
[null,"Gradska opština Zemun","Građevinska dozvola","Donošenje rešenja","Republička administrativna taksa",null,800,800,"840-742221843-57","Budžet Republike Srbije",97,"35-021","Zakon o RAT - tarifni broj 165"]
[null,"Gradska opština Zemun","Rešenje o odobrenju izvođenja radova po članu 145 Zakona","Podnošenje zahteva","Republička administrativna taksa",null,310,310,"840-742221843-57","Budžet Republike Srbije",97,"35-021","Zakon o RAT - tarifni broj 1"]
[null,"Gradska opština Zemun","Rešenje o odobrenju izvođenja radova po članu 145 Zakona","Donošenje rešenja","Republička administrativna taksa",null,400,400,"840-742221843-57","Budžet Republike Srbije",97,"35-021","Zakon o RAT - tarifni broj 165"]
[null,"Gradska opština Zemun","Prijava radova","Podnošenje zahteva","Republička administrativna taksa",null,310,310,"840-742221843-57","Budžet Republike Srbije",97,"35-021","Zakon o RAT - tarifni broj 1"]
[null,"Gradska opština Zemun","Prijava radova","Podnošenje zahteva","Republička administrativna taksa",null,310,310,"840-742221843-57","Budžet Republike Srbije",97,"35-021","Zakon o RAT - tarifni broj 11"]
[null,"Gradska opština Zemun","Prijava završetka izrade temelja i završetka objekta u konstruktivnom smislu","Podnošenje zahteva","Republička administrativna taksa",null,310,310,"840-742221843-57","Budžet Republike Srbije",97,"35-021","Zakon o RAT - tarifni broj 1"]
[null,"Gradska opština Zemun","Prijava završetka izrade temelja i završetka objekta u konstruktivnom smislu","Podnošenje zahteva","Republička administrativna taksa",null,310,310,"840-742221843-57","Budžet Republike Srbije",97,"35-021","Zakon o RAT - tarifni broj 11"]
[null,"Gradska opština Zemun","Prijava završetka izrade temelja i završetka objekta u konstruktivnom smislu","Podnošenje zahteva","Republička administrativna taksa",null,1600,1600,"840-742221843-57","Budžet Republike Srbije",97,"35-021","Zakon o RAT - tarifni broj 164"]
[null,"Gradska opština Zemun","Dostavljanje tehničke dokumentacije","Podnošenje zahteva","Republička administrativna taksa",null,310,310,"840-742221843-57","Budžet Republike Srbije",97,"35-021","Zakon o RAT - tarifni broj 1"]
[null,"Gradska opština Zemun","Upotrebna dozvola","Podnošenje zahteva","Republička administrativna taksa",null,310,310,"840-742221843-57","Budžet Republike Srbije",97,"35-021","Zakon o RAT - tarifni broj 1"]
[null,"Gradska opština Zemun","Upotrebna dozvola","Donošenje rešenja","Republička administrativna taksa","DA","0.2% predračunske vrednosti objekta","0.2% predračunske vrednosti objekta","840-742221843-57","Budžet Republike Srbije",97,"35-021","Zakon o RAT - tarifni broj 170"]
[null,"Gradska opština Zemun","Priključenje objekta na infrastrukturu","Podnošenje zahteva","Republička administrativna taksa",null,310,310,"840-742221843-57","Budžet Republike Srbije",97,"35-021","Zakon o RAT - tarifni broj 1"]
[null,"Gradska opština Zvezdara","Građevinska dozvola","Podnošenje zahteva","Republička administrativna taksa",null,310,310,"840-742221843-57","Budžet Republike Srbije",97,"32-022","Zakon o RAT - tarifni broj 1"]
[null,"Gradska opština Zvezdara","Građevinska dozvola","Donošenje rešenja","Republička administrativna taksa",null,800,800,"840-742221843-57","Budžet Republike Srbije",97,"32-022","Zakon o RAT - tarifni broj 165"]
[null,"Gradska opština Zvezdara","Rešenje o odobrenju izvođenja radova po članu 145 Zakona","Podnošenje zahteva","Republička administrativna taksa",null,310,310,"840-742221843-57","Budžet Republike Srbije",97,"32-022","Zakon o RAT - tarifni broj 1"]
[null,"Gradska opština Zvezdara","Rešenje o odobrenju izvođenja radova po članu 145 Zakona","Donošenje rešenja","Republička administrativna taksa",null,400,400,"840-742221843-57","Budžet Republike Srbije",97,"32-022","Zakon o RAT - tarifni broj 165"]
[null,"Gradska opština Zvezdara","Prijava radova","Podnošenje zahteva","Republička administrativna taksa",null,{"$f":"310+310","v":620},{"$f":"310+310","v":620},"840-742221843-57","Budžet Republike Srbije",97,"32-022","Zakon o RAT - tarifni broj 1 i 11"]
[null,"Gradska opština Zvezdara","Prijava završetka izrade temelja i završetka objekta u konstruktivnom smislu","Podnošenje zahteva","Republička administrativna taksa",null,{"$f":"310+1600","v":1910},{"$f":"310+1600","v":1910},"840-742221843-57","Budžet Republike Srbije",97,"32-022","Zakon o RAT - tarifni broj 1 i 164"]
[null,"Gradska opština Zvezdara","Prijava završetka izrade temelja i završetka objekta u konstruktivnom smislu","Podnošenje zahteva","Republička administrativna taksa",null,310,310,"840-742221843-57","Budžet Republike Srbije",97,"32-022","Zakon o RAT - tarifni broj 11"]
[null,"Gradska opština Zvezdara","Dostavljanje tehničke dokumentacije","Podnošenje zahteva","Republička administrativna taksa",null,310,310,"840-742221843-57","Budžet Republike Srbije",97,"32-022","Zakon o RAT - tarifni broj 1"]
[null,"Gradska opština Zvezdara","Upotrebna dozvola","Podnošenje zahteva","Republička administrativna taksa",null,310,310,"840-742221843-57","Budžet Republike Srbije",97,"32-022","Zakon o RAT - tarifni broj 1"]
[null,"Gradska opština Zvezdara","Upotrebna dozvola","Donošenje rešenja","Republička administrativna taksa","DA","0.2% predračunske vrednosti objekta","0.2% predračunske vrednosti objekta","840-742221843-57","Budžet Republike Srbije",97,"32-022","Zakon o RAT - tarifni broj 170"]
[null,"Gradska opština Zvezdara","Priključenje objekta na infrastrukturu","Podnošenje zahteva","Republička administrativna taksa",null,310,310,"840-742221843-57","Budžet Republike Srbije",97,"32-022","Zakon o RAT - tarifni broj 1"]
[null,"Opština Aleksandrovac","Lokacijski uslovi","Podnošenje zahteva","Lokalna administrativna taksa",null,10000,12000,"840-742251843-73","Opštinska uprava Aleksandrovac",97,"95-001","Odluka o lokalnim administrativnim taksama (\"Sl. List opštine Aleksandrovac br.1/2009 i 8/2015) - Tarifni broj 9\n"]
[null,"Opština Aleksandrovac","Građevinska dozvola","Podnošenje zahteva","Lokalna administrativna taksa",null,170,170,"840-742251843-73","Opštinska uprava Aleksandrovac",97,"95-001","Odluka o lokalnim administrativnim taksama (\"Sl. List opštine Aleksandrovac br.1/2009 i 8/2015) - Tarifni broj 9\n"]
[null,"Opština Aleksandrovac","Građevinska dozvola","Donošenje rešenja","Republička administrativna taksa",null,800,800,"840-742221843-57","Budžet Republike Srbije",97,"95-001","Zakon o RAT - tarifni broj 165"]
[null,"Opština Aleksandrovac","Rešenje o odobrenju izvođenja radova po članu 145 Zakona","Podnošenje zahteva","Lokalna administrativna taksa",null,170,170,"840-742251843-73","Opštinska uprava Aleksandrovac",97,"95-001","Odluka o lokalnim administrativnim taksama (\"Sl. List opštine Aleksandrovac br.1/2009 i 8/2015) - Tarifni broj 9\n"]
[null,"Opština Aleksandrovac","Rešenje o odobrenju izvođenja radova po članu 145 Zakona","Donošenje rešenja","Republička administrativna taksa",null,800,800,"840-742221843-57","Budžet Republike Srbije",97,"95-001","Zakon o RAT - tarifni broj 165"]
[null,"Opština Aleksandrovac","Prijava radova","Donošenje rešenja","Lokalna administrativna taksa",null,4000,4000,"840-742251843-73","Opštinska uprava Aleksandrovac",97,"95-001","Odluka o lokalnim administrativnim taksama (\"Sl. List opštine Aleksandrovac br.1/2009 i 8/2015) - Tarifni broj 9\n"]
[null,"Opština Aleksandrovac","Prijava završetka izrade temelja i završetka objekta u konstruktivnom smislu","Podnošenje zahteva","Republička administrativna taksa",null,1600,1600,"840-742221843-57","Budžet Republike Srbije",97,"95-001","Zakon o RAT - tarifni broj 164"]
[null,"Opština Aleksandrovac","Prijava završetka izrade temelja i završetka objekta u konstruktivnom smislu","Podnošenje zahteva","Lokalna administrativna taksa",null,170,170,"840-742251843-73","Opštinska uprava Aleksandrovac",97,"95-001","Odluka o lokalnim administrativnim taksama (\"Sl. List opštine Aleksandrovac br.1/2009 i 8/2015) - Tarifni broj 9\n"]
[null,"Opština Aleksandrovac","Upotrebna dozvola","Podnošenje zahteva","Lokalna administrativna taksa",null,170,170,"840-742251843-73","Opštinska uprava Aleksandrovac",97,"95-001","Odluka o lokalnim administrativnim taksama (\"Sl. List opštine Aleksandrovac br.1/2009 i 8/2015) - Tarifni broj 9\n"]
[null,"Opština Aleksandrovac","Upotrebna dozvola","Donošenje rešenja","Republička administrativna taksa","DA","0.2% predračunske vrednosti objekta","0.2% predračunske vrednosti objekta","840-742221843-57","Budžet Republike Srbije",97,"95-001","Zakon o RAT - tarifni broj 170"]
[null,"Opština Alibunar","Lokacijski uslovi","Podnošenje zahteva","Republička administrativna taksa",null,310,310,"840-742221843-57","Budžet Republike Srbije",97,"74-202 ","Zakon o RAT - tarifni broj 1"]
[null,"Opština Alibunar","Lokacijski uslovi","Donošenje rešenja","Lokalna naknada",null,4000,4000,"840-742251843-73","Opštinska uprava Alibunar",97,"74-202 ","Odluka o opšćtinskim administrativnim taksama (Sl.list opštine Alibunar 19/09, 5/11, 30/15)"]
[null,"Opština Alibunar","Građevinska dozvola","Podnošenje zahteva","Republička administrativna taksa",null,310,310,"840-742221843-57","Budžet Republike Srbije",97,"74-202 ","Zakon o RAT - tarifni broj 1"]
[null,"Opština Alibunar","Građevinska dozvola","Podnošenje zahteva","Republička administrativna taksa",null,800,270,"840-742221843-57","Budžet Republike Srbije",97,"74-202 ","Zakon o RAT - tarifni broj 165"]
[null,"Opština Alibunar","Rešenje o odobrenju izvođenja radova po članu 145 Zakona","Podnošenje zahteva","Republička administrativna taksa",null,310,310,"840-742221843-57","Budžet Republike Srbije",97,"74-202 ","Zakon o RAT - tarifni broj 1"]
[null,"Opština Alibunar","Rešenje o odobrenju izvođenja radova po članu 145 Zakona","Podnošenje zahteva","Republička administrativna taksa",null,800,270,"840-742221843-57","Budžet Republike Srbije",97,"74-202 ","Zakon o RAT - tarifni broj 165"]
[null,"Opština Alibunar","Prijava radova","Podnošenje zahteva","Republička administrativna taksa",null,310,310,"840-742221843-57","Budžet Republike Srbije",97,"74-202 ","Zakon o RAT - tarifni broj 1"]
[null,"Opština Alibunar","Prijava završetka izrade temelja i završetka objekta u konstruktivnom smislu","Podnošenje zahteva","Republička administrativna taksa",null,1600,1600,"840-742221843-57","Budžet Republike Srbije",97,"74-202 ","Zakon o RAT - tarifni broj 164"]
[null,"Opština Alibunar","Dostavljanje tehničke dokumentacije","Podnošenje zahteva","Republička administrativna taksa",null,310,310,"840-742221843-57","Budžet Republike Srbije",97,"74-202 ","Zakon o RAT - tarifni broj 1"]
[null,"Opština Alibunar","Upotrebna dozvola","Podnošenje zahteva","Republička administrativna taksa",null,310,310,"840-742221843-57","Budžet Republike Srbije",97,"74-202 ","Zakon o RAT - tarifni broj 1"]
[null,"Opština Alibunar","Upotrebna dozvola","Podnošenje zahteva","Republička administrativna taksa","DA","0.2% predračunske vrednosti objekta","0.2% predračunske vrednosti objekta","840-742221843-57","Budžet Republike Srbije",97,"74-202 ","Zakon o RAT - tarifni broj 170"]
[null,"Opština Alibunar","Priključenje objekta na infrastrukturu","Podnošenje zahteva","Republička administrativna taksa",null,310,310,"840-742221843-57","Budžet Republike Srbije",97,"74-202 ","Zakon o RAT - tarifni broj 1"]
[null,"Opština Aranđelovac","Lokacijski uslovi","Podnošenje zahteva","Lokalna naknada",null,{"$f":"13865*1.1","v":15251.500000000002},13865,"840-742251843-73","Opštinska uprava Aranđelovac",97,"89-003","Odluka o visini naknada za izdavanje urbanističkih akata (Sl.Gl.Opštine Aranđelovac, 27/11)"]
[null,"Opština Aranđelovac","Građevinska dozvola","Podnošenje zahteva","Republička administrativna taksa",null,310,310,"840-742221843-57","Budžet Republike Srbije",97,"89-003","Zakon o RAT - tarfni broj 1"]
[null,"Opština Aranđelovac","Građevinska dozvola","Donošenje rešenja","Republička administrativna taksa",null,800,800,"840-742221843-57","Budžet Republike Srbije",97,"89-003","Zakon o RAT - tarfni broj 165"]
[null,"Opština Aranđelovac","Rešenje o odobrenju izvođenja radova po članu 145 Zakona","Podnošenje zahteva","Republička administrativna taksa",null,310,310,"840-742221843-57","Budžet Republike Srbije",97,"89-003","Zakon o RAT - tarfni broj 1"]
[null,"Opština Aranđelovac","Rešenje o odobrenju izvođenja radova po članu 145 Zakona","Donošenje rešenja","Republička administrativna taksa",null,800,800,"840-742221843-57","Budžet Republike Srbije",97,"89-003","Zakon o RAT - tarfni broj 165"]
[null,"Opština Aranđelovac","Prijava radova","Podnošenje zahteva","Republička administrativna taksa",null,310,310,"840-742221843-57","Budžet Republike Srbije",97,"89-003","Zakon o RAT - tarfni broj 1"]
[null,"Opština Aranđelovac","Prijava završetka izrade temelja i završetka objekta u konstruktivnom smislu","Podnošenje zahteva","Republička administrativna taksa",null,1600,1600,"840-742221843-57","Budžet Republike Srbije",97,"89-003","Zakon o RAT - tarfni broj 165"]
[null,"Opština Aranđelovac","Upotrebna dozvola","Donošenje rešenja","Republička administrativna taksa","DA","0.2% predračunske vrednosti objekta","0.2% predračunske vrednosti objekta","840-742221843-57","Budžet Republike Srbije",97,"89-003","Zakon o RAT - tarfni broj 170"]
[null,"Opština Arilje","Lokacijski uslovi","Podnošenje zahteva","Lokalna administrativna taksa",null,3000,3000,"840-742251-843-73","Opštinska uprava Arilje",null,null,"Odluka o lokalnim administrativnim taksama (\"Sl. Glasnik Opštine Arilje\", br. 6/10)"]
[null,"Opština Arilje","Građevinska dozvola","Podnošenje zahteva","Republička administrativna taksa",null,300,300,"840-742221843-57","Budžet Republike Srbije",97,"86-004","Zakon o RAT - tarifni broj 1"]
[null,"Opština Arilje","Građevinska dozvola","Donošenje rešenja","Republička administrativna taksa",null,770,770,"840-742221843-57","Budžet Republike Srbije",97,"86-004","Zakon o RAT - tarifni broj 165"]
[null,"Opština Arilje","Rešenje o odobrenju izvođenja radova po članu 145 Zakona","Podnošenje zahteva","Republička administrativna taksa",null,300,300,"840-742221843-57","Budžet Republike Srbije",97,"86-004","Zakon o RAT - tarifni broj 1"]
[null,"Opština Arilje","Rešenje o odobrenju izvođenja radova po članu 145 Zakona","Donošenje rešenja","Republička administrativna taksa",null,770,770,"840-742221843-57","Budžet Republike Srbije",97,"86-004","Zakon o RAT - tarifni broj 165"]
[null,"Opština Arilje","Prijava završetka izrade temelja i završetka objekta u konstruktivnom smislu","Podnošenje zahteva","Republička administrativna taksa",null,300,300,"840-742221843-57","Budžet Republike Srbije",97,"86-004","Zakon o RAT - tarifni broj 1"]
[null,"Opština Arilje","Dostavljanje tehničke dokumentacije","Podnošenje zahteva","Republička administrativna taksa",null,600,600,"840-742221843-57","Budžet Republike Srbije",97,"86-004","Zakon o RAT - tarifni broj "]
[null,"Opština Arilje","Upotrebna dozvola","Podnošenje zahteva","Republička administrativna taksa",null,300,300,"840-742221843-57","Budžet Republike Srbije",97,"86-004","Zakon o RAT - tarifni broj 1"]
[null,"Opština Arilje","Upotrebna dozvola","Donošenje rešenja","Republička administrativna taksa","DA","0.2% predračunske vrednosti objekta","0.2% predračunske vrednosti objekta","840-742221843-57","Budžet Republike Srbije",97,"86-004","Zakon o RAT - tarifni broj 170"]
[null,"Opština Arilje","Prijava radova","Podnošenje zahteva","Republička administrativna taksa",null,300,300,"840-742221843-57","Budžet Republike Srbije",97,"86-004","Zakon o RAT - tarifni broj 1"]
[null,"Opština Arilje","Dostavljanje tehničke dokumentacije","Podnošenje zahteva","Lokalna administrativna taksa",null,3500,3500,"840-742251-843-73","Opštinska uprava Arilje"]
[null,"Opština Babušnica","Lokacijski uslovi","Podnošenje zahteva","Republička administrativna taksa",null,310,310,"840-742221843-57","Budžet Republike Srbije",97,"80-006","Zakon o RAT - tarifni broj 1"]
[null,"Opština Babušnica","Lokacijski uslovi","Podnošenje zahteva","Lokalna administrativna taksa",null,60,60,"840-742351843-94","Opštinska uprava Babušnica",97,"80-006","Odluka o izmeni i dopuni Odluke o lokalnim administrativnim taksama i naknadam (\"Skupštinski pregled opštine Babušnica\", br. 20/2015)"]
[null,"Opština Babušnica","Građevinska dozvola","Podnošenje zahteva","Republička administrativna taksa",null,310,310,"840-742221843-57","Budžet Republike Srbije",97,"80-006","Zakon o RAT - tarifni broj 1"]
[null,"Opština Babušnica","Građevinska dozvola","Podnošenje zahteva","Lokalna administrativna taksa",null,60,60,"840-742351843-94","Opštinska uprava Babušnica",97,"80-006","Odluka o izmeni i dopuni Odluke o lokalnim administrativnim taksama i naknadam (\"Skupštinski pregled opštine Babušnica\", br. 20/2015)"]
[null,"Opština Babušnica","Građevinska dozvola","Donošenje rešenja","Lokalna naknada",null,1200,1200,"840-742351843-94","Opštinska uprava Babušnica",97,"80-006","Odluka o izmeni i dopuni Odluke o lokalnim administrativnim taksama i naknadam (\"Skupštinski pregled opštine Babušnica\", br. 20/2015)"]
[null,"Opština Babušnica","Građevinska dozvola","Donošenje rešenja","Republička administrativna taksa",null,800,800,"840-742221843-57","Budžet Republike Srbije",97,"80-006","Zakon o RAT - tarifni broj 165"]
[null,"Opština Babušnica","Rešenje o odobrenju izvođenja radova po članu 145 Zakona","Podnošenje zahteva","Republička administrativna taksa",null,310,310,"840-742221843-57","Budžet Republike Srbije",97,"80-006","Zakon o RAT - tarifni broj 1"]
[null,"Opština Babušnica","Rešenje o odobrenju izvođenja radova po članu 145 Zakona","Podnošenje zahteva","Lokalna administrativna taksa",null,60,60,"840-742351843-94","Opštinska uprava Babušnica",97,"80-006","Odluka o izmeni i dopuni Odluke o lokalnim administrativnim taksama i naknadam (\"Skupštinski pregled opštine Babušnica\", br. 20/2015)"]
[null,"Opština Babušnica","Rešenje o odobrenju izvođenja radova po članu 145 Zakona","Donošenje rešenja","Lokalna naknada",null,600,600,"840-742351843-94","Opštinska uprava Babušnica",97,"80-006","Odluka o izmeni i dopuni Odluke o lokalnim administrativnim taksama i naknadam (\"Skupštinski pregled opštine Babušnica\", br. 20/2015)"]
[null,"Opština Babušnica","Rešenje o odobrenju izvođenja radova po članu 145 Zakona","Donošenje rešenja","Republička administrativna taksa",null,400,400,"840-742221843-57","Budžet Republike Srbije",97,"80-006","Zakon o RAT - tarifni broj 165"]
[null,"Opština Babušnica","Prijava radova","Podnošenje zahteva","Republička administrativna taksa",null,310,310,"840-742221843-57","Budžet Republike Srbije",97,"80-006","Zakon o RAT - tarifni broj 1"]
[null,"Opština Babušnica","Prijava radova","Podnošenje zahteva","Lokalna administrativna taksa",null,60,60,"840-742351843-94","Opštinska uprava Babušnica",97,"80-006","Odluka o izmeni i dopuni Odluke o lokalnim administrativnim taksama i naknadam (\"Skupštinski pregled opštine Babušnica\", br. 20/2015)"]
[null,"Opština Babušnica","Prijava radova","Podnošenje zahteva","Lokalna naknada",null,220,220,"840-742351843-94","Opštinska uprava Babušnica",97,"80-006","Odluka o izmeni i dopuni Odluke o lokalnim administrativnim taksama i naknadam (\"Skupštinski pregled opštine Babušnica\", br. 20/2015)"]
[null,"Opština Babušnica","Prijava završetka izrade temelja i završetka objekta u konstruktivnom smislu","Podnošenje zahteva","Republička administrativna taksa",null,{"$f":"310+1600+310","v":2220},{"$f":"310+1600+310","v":2220},"840-742221843-57","Budžet Republike Srbije",97,"80-006","Zakon o RAT - tarifni broj 1 (x2) + tarifni broj 164"]
[null,"Opština Babušnica","Prijava završetka izrade temelja i završetka objekta u konstruktivnom smislu","Podnošenje zahteva","Lokalna administrativna taksa",null,60,60,"840-742351843-94","Opštinska uprava Babušnica",97,"80-006","Odluka o izmeni i dopuni Odluke o lokalnim administrativnim taksama i naknadam (\"Skupštinski pregled opštine Babušnica\", br. 20/2015)"]
[null,"Opština Babušnica","Prijava završetka izrade temelja i završetka objekta u konstruktivnom smislu","Podnošenje zahteva","Lokalna naknada",null,220,220,"840-742351843-94","Opštinska uprava Babušnica",97,"80-006","Odluka o izmeni i dopuni Odluke o lokalnim administrativnim taksama i naknadam (\"Skupštinski pregled opštine Babušnica\", br. 20/2015)"]
[null,"Opština Babušnica","Dostavljanje tehničke dokumentacije","Podnošenje zahteva","Republička administrativna taksa",null,310,310,"840-742221843-57","Budžet Republike Srbije",97,"80-006","Zakon o RAT - tarifni broj 1"]
[null,"Opština Babušnica","Dostavljanje tehničke dokumentacije","Podnošenje zahteva","Lokalna administrativna taksa",null,60,60,"840-742351843-94","Opštinska uprava Babušnica",97,"80-006","Odluka o izmeni i dopuni Odluke o lokalnim administrativnim taksama i naknadam (\"Skupštinski pregled opštine Babušnica\", br. 20/2015)"]
[null,"Opština Babušnica","Upotrebna dozvola","Podnošenje zahteva","Republička administrativna taksa",null,310,310,"840-742221843-57","Budžet Republike Srbije",97,"80-006","Zakon o RAT - tarifni broj 1"]
[null,"Opština Babušnica","Upotrebna dozvola","Podnošenje zahteva","Lokalna administrativna taksa",null,60,60,"840-742351843-94","Opštinska uprava Babušnica",97,"80-006","Odluka o izmeni i dopuni Odluke o lokalnim administrativnim taksama i naknadam (\"Skupštinski pregled opštine Babušnica\", br. 20/2015)"]
[null,"Opština Babušnica","Upotrebna dozvola","Donošenje rešenja","Lokalna naknada",null,1500,1500,"840-742351843-94","Opštinska uprava Babušnica",97,"80-006","Odluka o izmeni i dopuni Odluke o lokalnim administrativnim taksama i naknadam (\"Skupštinski pregled opštine Babušnica\", br. 20/2015)"]
[null,"Opština Babušnica","Upotrebna dozvola","Donošenje rešenja","Republička administrativna taksa","DA","0.2% predračunske vrednosti objekta","0.2% predračunske vrednosti objekta","840-742221843-57","Budžet Republike Srbije",97,"80-006","Zakon o RAT - tarifni broj 170"]
[null,"Opština Babušnica","Priključenje objekta na infrastrukturu","Podnošenje zahteva","Republička administrativna taksa",null,310,310,"840-742221843-57","Budžet Republike Srbije",97,"80-006","Zakon o RAT - tarifni broj 1"]
[null,"Opština Babušnica","Priključenje objekta na infrastrukturu","Podnošenje zahteva","Lokalna administrativna taksa",null,60,60,"840-742351843-94","Opštinska uprava Babušnica",97,"80-006","Odluka o izmeni i dopuni Odluke o lokalnim administrativnim taksama i naknadam (\"Skupštinski pregled opštine Babušnica\", br. 20/2015)"]
[null,"Opština Bačka Palanka","Lokacijski uslovi","Podnošenje zahteva","Republička administrativna taksa",null,310,310,"840-742221843-57","Budžet Republike Srbije",97,"65-205","Zakon o RAT - tarifni broj 1"]
[null,"Opština Bačka Palanka","Građevinska dozvola","Podnošenje zahteva","Republička administrativna taksa",null,310,310,"840-742221843-57","Budžet Republike Srbije",97,"65-205","Zakon o RAT - tarifni broj 1"]
[null,"Opština Bačka Palanka","Građevinska dozvola","Podnošenje zahteva","Lokalna administrativna taksa",null,150,150,"840-742251843-73","Opštinska uprava Bačka Palanka",97,"65-205","Odluka o opštinskim administrativnim taksama ( „Sl. list opštine Bačka Palanka“ broj: 36/2014, 30/2015 i 27/2017)"]
[null,"Opština Bačka Palanka","Građevinska dozvola","Donošenje rešenja","Republička administrativna taksa",null,800,800,"840-742221843-57","Budžet Republike Srbije",97,"65-205","Zakon o RAT - tarifni broj 165"]
[null,"Opština Bačka Palanka","Građevinska dozvola","Donošenje rešenja","Lokalna administrativna taksa",null,3000,3000,"840-742251843-73","Opštinska uprava Bačka Palanka",97,"65-205","Odluka o opštinskim administrativnim taksama ( „Sl. list opštine Bačka Palanka“ broj: 36/2014, 30/2015 i 27/2017)"]
[null,"Opština Bačka Palanka","Rešenje o odobrenju izvođenja radova po članu 145 Zakona","Podnošenje zahteva","Republička administrativna taksa",null,310,310,"840-742221843-57","Budžet Republike Srbije",97,"65-205","Zakon o RAT - tarifni broj 1"]
[null,"Opština Bačka Palanka","Rešenje o odobrenju izvođenja radova po članu 145 Zakona","Podnošenje zahteva","Lokalna administrativna taksa",null,150,150,"840-742251843-73","Opštinska uprava Bačka Palanka",97,"65-205","Odluka o opštinskim administrativnim taksama ( „Sl. list opštine Bačka Palanka“ broj: 36/2014, 30/2015 i 27/2017)"]
[null,"Opština Bačka Palanka","Rešenje o odobrenju izvođenja radova po članu 145 Zakona","Donošenje rešenja","Republička administrativna taksa",null,800,800,"840-742221843-57","Budžet Republike Srbije",97,"65-205","Zakon o RAT - tarifni broj 165"]
[null,"Opština Bačka Palanka","Rešenje o odobrenju izvođenja radova po članu 145 Zakona","Donošenje rešenja","Lokalna administrativna taksa",null,3000,3000,"840-742251843-73","Opštinska uprava Bačka Palanka",97,"65-205","Odluka o opštinskim administrativnim taksama ( „Sl. list opštine Bačka Palanka“ broj: 36/2014, 30/2015 i 27/2017)"]
[null,"Opština Bačka Palanka","Prijava radova","Podnošenje zahteva","Republička administrativna taksa",null,310,310,"840-742221843-57","Budžet Republike Srbije",97,"65-205","Zakon o RAT - tarifni broj 1"]
[null,"Opština Bačka Palanka","Prijava radova","Podnošenje zahteva","Lokalna administrativna taksa",null,150,150,"840-742251843-73","Opštinska uprava Bačka Palanka",97,"65-205","Odluka o opštinskim administrativnim taksama ( „Sl. list opštine Bačka Palanka“ broj: 36/2014, 30/2015 i 27/2017)"]
[null,"Opština Bačka Palanka","Prijava završetka izrade temelja i završetka objekta u konstruktivnom smislu","Podnošenje zahteva","Republička administrativna taksa",null,1600,1600,"840-742221843-57","Budžet Republike Srbije",97,"65-205","Zakon o RAT - tarifni broj 164"]
[null,"Opština Bačka Palanka","Prijava završetka izrade temelja i završetka objekta u konstruktivnom smislu","Podnošenje zahteva","Lokalna administrativna taksa",null,150,150,"840-742251843-73","Opštinska uprava Bačka Palanka",97,"65-205","Odluka o opštinskim administrativnim taksama ( „Sl. list opštine Bačka Palanka“ broj: 36/2014, 30/2015 i 27/2017)"]
[null,"Opština Bačka Palanka","Dostavljanje tehničke dokumentacije","Podnošenje zahteva","Republička administrativna taksa",null,310,310,"840-742221843-57","Budžet Republike Srbije",97,"65-205","Zakon o RAT - tarifni broj 1"]
[null,"Opština Bačka Palanka","Dostavljanje tehničke dokumentacije","Podnošenje zahteva","Lokalna administrativna taksa",null,150,150,"840-742251843-73","Opštinska uprava Bačka Palanka",97,"65-205","Odluka o opštinskim administrativnim taksama ( „Sl. list opštine Bačka Palanka“ broj: 36/2014, 30/2015 i 27/2017)"]
[null,"Opština Bačka Palanka","Upotrebna dozvola","Podnošenje zahteva","Republička administrativna taksa",null,310,310,"840-742221843-57","Budžet Republike Srbije",97,"65-205","Zakon o RAT - tarifni broj 1"]
[null,"Opština Bačka Palanka","Upotrebna dozvola","Podnošenje zahteva","Lokalna administrativna taksa",null,150,150,"840-742251843-73","Opštinska uprava Bačka Palanka",97,"65-205","Odluka o opštinskim administrativnim taksama ( „Sl. list opštine Bačka Palanka“ broj: 36/2014, 30/2015 i 27/2017)"]
[null,"Opština Bačka Palanka","Upotrebna dozvola","Donošenje rešenja","Republička administrativna taksa","DA","0.2% predračunske vrednosti objekta","0.2% predračunske vrednosti objekta","840-742221843-57","Budžet Republike Srbije",97,"65-205","Zakon o RAT - tarifni broj 1"]
[null,"Opština Bačka Palanka","Upotrebna dozvola","Donošenje rešenja","Lokalna administrativna taksa",null,250,250,"840-742251843-73","Opštinska uprava Bačka Palanka",97,"65-205","Odluka o opštinskim administrativnim taksama ( „Sl. list opštine Bačka Palanka“ broj: 36/2014, 30/2015 i 27/2017)"]
[null,"Opština Bačka Palanka","Priključenje objekta na infrastrukturu","Podnošenje zahteva","Republička administrativna taksa",null,310,310,"840-742221843-57","Budžet Republike Srbije",97,"65-205","Zakon o RAT - tarifni broj 1"]
[null,"Opština Bačka Palanka","Priključenje objekta na infrastrukturu","Podnošenje zahteva","Lokalna administrativna taksa",null,150,150,"840-742251843-73","Opštinska uprava Bačka Palanka",97,"65-205","Odluka o opštinskim administrativnim taksama ( „Sl. list opštine Bačka Palanka“ broj: 36/2014, 30/2015 i 27/2017)"]
[null,"Opština Bačka Topola","Lokacijski uslovi","Podnošenje zahteva","Republička administrativna taksa",null,310,310,"840-742221843-57","Budžet Republike Srbije",97,"62-206","Zakon o RAT - tarifni broj 1"]
[null,"Opština Bačka Topola","Lokacijski uslovi","Podnošenje zahteva","Lokalna naknada",null," 1150"," 3460","840-742351843-94","Opštinska uprava Bačka Topola",97,"62-206","Odluka o lokalnim administrativnim taksama i naknadama "]
[null,"Opština Bačka Topola","Građevinska dozvola","Podnošenje zahteva","Republička administrativna taksa",null,310,310,"840-742221843-57","Budžet Republike Srbije",97,"62-206","Zakon o RAT - tarifni broj 1"]
[null,"Opština Bačka Topola","Građevinska dozvola","Podnošenje zahteva","Lokalna naknada",null,580," 1150","840-742351843-94","Opštinska uprava Bačka Topola",97,"62-206","Odluka o lokalnim administrativnim taksama i naknadama "]
[null,"Opština Bačka Topola","Građevinska dozvola","Donošenje rešenja","Republička administrativna taksa",null,520,520,"840-742221843-57","Budžet Republike Srbije",97,"62-206","Zakon o RAT - tarifni broj 9"]
[null,"Opština Bačka Topola","Rešenje o odobrenju izvođenja radova po članu 145 Zakona","Podnošenje zahteva","Republička administrativna taksa",null,310,310,"840-742221843-57","Budžet Republike Srbije",97,"62-206","Zakon o RAT - tarifni broj 1"]
[null,"Opština Bačka Topola","Rešenje o odobrenju izvođenja radova po članu 145 Zakona","Podnošenje zahteva","Lokalna naknada",null,460,1730,"840-742351843-94","Opštinska uprava Bačka Topola",97,"62-206","Odluka o lokalnim administrativnim taksama i naknadama "]
[null,"Opština Bačka Topola","Rešenje o odobrenju izvođenja radova po članu 145 Zakona","Donošenje rešenja","Republička administrativna taksa",null,400,400,"840-742221843-57","Budžet Republike Srbije",97,"62-206","Zakon o RAT - tarifni broj 165"]
[null,"Opština Bačka Topola","Prijava radova","Podnošenje zahteva","Republička administrativna taksa",null,310,310,"840-742221843-57","Budžet Republike Srbije",97,"62-206","Zakon o RAT - tarifni broj 11"]
[null,"Opština Bačka Topola","Prijava radova","Podnošenje zahteva","Lokalna naknada",null,600,600,"840-742351843-94","Opštinska uprava Bačka Topola",97,"62-206","Odluka o lokalnim administrativnim taksama i naknadama "]
[null,"Opština Batočina","Lokacijski uslovi","Podnošenje zahteva","Republička administrativna taksa",null,310,310,"840-74222843-57 ","Budžet Republike Srbije",97,"74-008","Zakon o RAT - tarifni broj 1"]
[null,"Opština Batočina","Lokacijski uslovi","Podnošenje zahteva","Lokalna administrativna taksa",null,8000,8000,"840-742251843-73","Opštinska uprava Batočina",97,"74-008","Odluka o I izmeni Odluke o opštinskim administrativnim taksama za usluge koje vrši opštinska uprava opštine Batočina"]
[null,"Opština Batočina","Građevinska dozvola","Podnošenje zahteva","Republička administrativna taksa",null,310,310,"840-74222843-57 ","Budžet Republike Srbije",97,"74-008","Zakon o RAT - tarifni broj 1"]
[null,"Opština Batočina","Građevinska dozvola","Podnošenje zahteva","Lokalna administrativna taksa",null,7500,7500,"840-742251843-73","Opštinska uprava Batočina",97,"74-008","Odluka o I izmeni Odluke o opštinskim administrativnim taksama za usluge koje vrši opštinska uprava opštine Batočina"]
[null,"Opština Batočina","Građevinska dozvola","Donošenje rešenja","Republička administrativna taksa",null,800,800,"840-74222843-57 ","Budžet Republike Srbije",97,"74-008","Zakon o RAT - tarifni broj 165"]
[null,"Opština Batočina","Rešenje o odobrenju izvođenja radova po članu 145 Zakona","Podnošenje zahteva","Republička administrativna taksa",null,310,310,"840-74222843-57 ","Budžet Republike Srbije",97,"74-008","Zakon o RAT - tarifni broj 1"]
[null,"Opština Batočina","Rešenje o odobrenju izvođenja radova po članu 145 Zakona","Podnošenje zahteva","Lokalna administrativna taksa",null,6000,6000,"840-742251843-73","Opštinska uprava Batočina",97,"74-008","Odluka o I izmeni Odluke o opštinskim administrativnim taksama za usluge koje vrši opštinska uprava opštine Batočina"]
[null,"Opština Batočina","Prijava radova","Podnošenje zahteva","Republička administrativna taksa",null,310,310,"840-74222843-57 ","Budžet Republike Srbije",97,"74-008","Zakon o RAT - tarifni broj 1"]
[null,"Opština Batočina","Prijava radova","Donošenje rešenja","Lokalna naknada",null,5000,5000,"840-742251843-73","Opštinska uprava Batočina",97,"74-008","Odluka o I izmeni Odluke o opštinskim administrativnim taksama za usluge koje vrši opštinska uprava opštine Batočina"]
[null,"Opština Batočina","Prijava završetka izrade temelja i završetka objekta u konstruktivnom smislu","Podnošenje zahteva","Republička administrativna taksa",null,310,310,"840-74222843-57 ","Budžet Republike Srbije",97,"74-008","Zakon o RAT - tarifni broj 1"]
[null,"Opština Batočina","Prijava završetka izrade temelja i završetka objekta u konstruktivnom smislu","Donošenje rešenja","Lokalna naknada",null,7500,7500,"840-742251843-73","Opštinska uprava Batočina",97,"74-008","Odluka o I izmeni Odluke o opštinskim administrativnim taksama za usluge koje vrši opštinska uprava opštine Batočina"]
[null,"Opština Batočina","Dostavljanje tehničke dokumentacije","Podnošenje zahteva","Republička administrativna taksa",null,310,310,"840-74222843-57 ","Budžet Republike Srbije",97,"74-008","Zakon o RAT - tarifni broj 1"]
[null,"Opština Batočina","Upotrebna dozvola","Podnošenje zahteva","Republička administrativna taksa",null,310,310,"840-74222843-57 ","Budžet Republike Srbije",97,"74-008","Zakon o RAT - tarifni broj 1"]
[null,"Opština Batočina","Upotrebna dozvola","Donošenje rešenja","Republička administrativna taksa","DA","0.2% predračunske vrednosti objekta","0.2% predračunske vrednosti objekta","840-74222843-57 ","Budžet Republike Srbije",97,"74-008","Zakon o RAT - tarifni broj 170"]
[null,"Opština Batočina","Upotrebna dozvola","Donošenje rešenja","Lokalna naknada",null,6000,6000,"840-742251843-73","Opštinska uprava Batočina",97,"74-008","Odluka o I izmeni Odluke o opštinskim administrativnim taksama za usluge koje vrši opštinska uprava opštine Batočina"]
[null,"Opština Batočina","Priključenje objekta na infrastrukturu","Podnošenje zahteva","Republička administrativna taksa",null,310,310,"840-74222843-57 ","Budžet Republike Srbije",97,"74-008","Zakon o RAT - tarifni broj 1"]
[null,"Opština Bečej","Lokacijski uslovi","Podnošenje zahteva","Republička administrativna taksa",null,310,310,"840-742221843-57","Budžet Republike Srbije",97,"56-208","Zakon o RAT - tarifni broj 1"]
[null,"Opština Bečej","Lokacijski uslovi","Podnošenje zahteva","Lokalna administrativna taksa",null,150,150,"840-742251843-73","Opštinska uprava Bečej",97,"56-208","Odluka o lokalnim administrativnim taksama"]
[null,"Opština Bečej","Lokacijski uslovi","Podnošenje zahteva","Lokalna naknada",null,1200,1200,"840-745151843-03","Opštinska uprava Bečej",97,"56-208","Odluka o lokalnim administrativnim taksama"]
[null,"Opština Bečej","Građevinska dozvola","Podnošenje zahteva","Republička administrativna taksa",null,310,310,"840-742221843-57","Budžet Republike Srbije",97,"56-208","Zakon o RAT - tarifni broj 1"]
[null,"Opština Bečej","Građevinska dozvola","Podnošenje zahteva","Lokalna administrativna taksa",null,150,150,"840-742251843-73","Opštinska uprava Bečej",97,"56-208","Odluka o lokalnim administrativnim taksama"]
[null,"Opština Bečej","Građevinska dozvola","Podnošenje zahteva","Lokalna naknada",null,2000,2000,"840-745151843-03","Opštinska uprava Bečej",97,"56-208","Odluka o lokalnim administrativnim taksama"]
[null,"Opština Bečej","Građevinska dozvola","Donošenje rešenja","Republička administrativna taksa",null,800,800,"840-742221843-57","Budžet Republike Srbije",97,"56-208","Zakon o RAT - tarifni broj 165"]
[null,"Opština Bečej","Građevinska dozvola","Donošenje rešenja","Lokalna administrativna taksa",null,3000,3000,"840-742251843-73","Opštinska uprava Bečej",97,"56-208","Odluka o lokalnim administrativnim taksama"]
[null,"Opština Bečej","Rešenje o odobrenju izvođenja radova po članu 145 Zakona","Podnošenje zahteva","Republička administrativna taksa",null,310,310,"840-742221843-57","Budžet Republike Srbije",97,"56-208","Zakon o RAT - tarifni broj 1"]
[null,"Opština Bečej","Rešenje o odobrenju izvođenja radova po članu 145 Zakona","Podnošenje zahteva","Lokalna administrativna taksa",null,150,150,"840-742251843-73","Opštinska uprava Bečej",97,"56-208","Odluka o lokalnim administrativnim taksama"]
[null,"Opština Bečej","Rešenje o odobrenju izvođenja radova po članu 145 Zakona","Podnošenje zahteva","Lokalna naknada",null,2000,2000,"840-745151843-03","Opštinska uprava Bečej",97,"56-208","Odluka o lokalnim administrativnim taksama"]
[null,"Opština Bečej","Rešenje o odobrenju izvođenja radova po članu 145 Zakona","Donošenje rešenja","Republička administrativna taksa",null,400,400,"840-742221843-57","Budžet Republike Srbije",97,"56-208","Zakon o RAT - tarifni broj 165"]
[null,"Opština Bečej","Rešenje o odobrenju izvođenja radova po članu 145 Zakona","Donošenje rešenja","Lokalna administrativna taksa",null,1000,1000,"840-742251843-73","Opštinska uprava Bečej",97,"56-208","Odluka o lokalnim administrativnim taksama"]
[null,"Opština Bečej","Prijava radova","Podnošenje zahteva","Republička administrativna taksa",null,310,310,"840-742221843-57","Budžet Republike Srbije",97,"56-208","Zakon o RAT - tarifni broj 1"]
[null,"Opština Bečej","Prijava radova","Podnošenje zahteva","Lokalna administrativna taksa",null,300,300,"840-742251843-73","Opštinska uprava Bečej",97,"56-208","Odluka o lokalnim administrativnim taksama"]
[null,"Opština Bečej","Prijava radova","Podnošenje zahteva","Lokalna naknada",null,2000,2000,"840-745151843-03","Opštinska uprava Bečej",97,"56-208","Odluka o lokalnim administrativnim taksama"]
[null,"Opština Bečej","Prijava radova","Podnošenje zahteva","Republička administrativna taksa","DA","0.2% predračunske vrednosti objekta","0.2% predračunske vrednosti objekta","840-742221843-57","Budžet Republike Srbije",97,"56-208","Zakon o RAT - tarifni broj 167"]
[null,"Opština Bečej","Prijava završetka izrade temelja i završetka objekta u konstruktivnom smislu","Podnošenje zahteva","Republička administrativna taksa",null,{"$f":"310+1600","v":1910},{"$f":"1600+310","v":1910},"840-742221843-57","Budžet Republike Srbije",97,"56-208","Zakon o RAT - tarifni broj 1 i 164"]
[null,"Opština Bečej","Prijava završetka izrade temelja i završetka objekta u konstruktivnom smislu","Podnošenje zahteva","Lokalna administrativna taksa",null,300,300,"840-742251843-73","Opštinska uprava Bečej",97,"56-208","Odluka o lokalnim administrativnim taksama"]
[null,"Opština Bečej","Dostavljanje tehničke dokumentacije","Podnošenje zahteva","Republička administrativna taksa",null,310,310,"840-742221843-57","Budžet Republike Srbije",97,"56-208","Zakon o RAT - tarifni broj 1"]
[null,"Opština Bečej","Dostavljanje tehničke dokumentacije","Podnošenje zahteva","Lokalna administrativna taksa",null,150,150,"840-742251843-73","Opštinska uprava Bečej",97,"56-208","Odluka o lokalnim administrativnim taksama"]
[null,"Opština Bečej","Upotrebna dozvola","Podnošenje zahteva","Republička administrativna taksa",null,310,310,"840-742221843-57","Budžet Republike Srbije",97,"56-208","Zakon o RAT - tarifni broj 1"]
[null,"Opština Bečej","Upotrebna dozvola","Podnošenje zahteva","Lokalna administrativna taksa",null,150,150,"840-742251843-73","Opštinska uprava Bečej",97,"56-208","Odluka o lokalnim administrativnim taksama"]
[null,"Opština Bečej","Upotrebna dozvola","Podnošenje zahteva","Lokalna naknada","DA","0.05% predračunske vrednosti objekta","0.05% predračunske vrednosti objekta","840-745151843-03","Opštinska uprava Bečej",97,"56-208","Odluka o lokalnim administrativnim taksama"]
[null,"Opština Bečej","Upotrebna dozvola","Donošenje rešenja","Republička administrativna taksa","DA","0.2% predračunske vrednosti objekta","0.2% predračunske vrednosti objekta","840-742221843-57","Budžet Republike Srbije",97,"56-208","Zakon o RAT - tarifni broj 1 i 164"]
[null,"Opština Bečej","Upotrebna dozvola","Donošenje rešenja","Lokalna administrativna taksa",null,200,200,"840-742251843-73","Opštinska uprava Bečej",97,"56-208","Odluka o lokalnim administrativnim taksama"]
[null,"Opština Bečej","Priključenje objekta na infrastrukturu","Podnošenje zahteva","Republička administrativna taksa",null,310,310,"840-742221843-57","Budžet Republike Srbije",97,"56-208","Zakon o RAT - tarifni broj 1"]
[null,"Opština Bečej","Priključenje objekta na infrastrukturu","Podnošenje zahteva","Lokalna administrativna taksa",null,150,150,"840-742251843-73","Opštinska uprava Bečej",97,"56-208","Odluka o lokalnim administrativnim taksama"]
[null,"Opština Bela Palanka","Lokacijski uslovi","Podnošenje zahteva","Republička administrativna taksa",null,310,310,"840-742221843-57 ","Budžet Republike Srbije",97,"71-009","Zakon o RAT- tarifni broj 1"]
[null,"Opština Bela Palanka","Lokacijski uslovi","Podnošenje zahteva","Lokalna administrativna taksa",null,120,120,"840-745151843-03","Opštinska uprava Bela Palanka",97,"71-009","Odluka o lokalnim administrativnim taksama Opštine Bela Palanka"]
[null,"Opština Bela Palanka","Građevinska dozvola","Podnošenje zahteva","Republička administrativna taksa",null,310,310,"840-742221843-57 ","Budžet Republike Srbije",97,"71-009","Zakon o RAT- tarifni broj 1"]
[null,"Opština Bela Palanka","Građevinska dozvola","Podnošenje zahteva","Lokalna administrativna taksa",null,120,120,"840-745151843-03","Opštinska uprava Bela Palanka",97,"71-009","Odluka o lokalnim administrativnim taksama Opštine Bela Palanka"]
[null,"Opština Bela Palanka","Građevinska dozvola","Donošenje rešenja","Republička administrativna taksa",null,800,800,"840-742221843-57 ","Budžet Republike Srbije",97,"71-009","Zakon o RAT- tarifni broj 1"]
[null,"Opština Bela Palanka","Građevinska dozvola","Donošenje rešenja","Lokalna administrativna taksa",null,1000,1000,"840-745151843-03","Opštinska uprava Bela Palanka",97,"71-009","Odluka o lokalnim administrativnim taksama Opštine Bela Palanka"]
[null,"Opština Bela Palanka","Rešenje o odobrenju izvođenja radova po članu 145 Zakona","Podnošenje zahteva","Republička administrativna taksa",null,310,310,"840-742221843-57 ","Budžet Republike Srbije",97,"71-009","Zakon o RAT- tarifni broj 1"]
[null,"Opština Bela Palanka","Rešenje o odobrenju izvođenja radova po članu 145 Zakona","Podnošenje zahteva","Lokalna administrativna taksa",null,120,120,"840-745151843-03","Opštinska uprava Bela Palanka",97,"71-009","Odluka o lokalnim administrativnim taksama Opštine Bela Palanka"]
[null,"Opština Bela Palanka","Rešenje o odobrenju izvođenja radova po članu 145 Zakona","Donošenje rešenja","Republička administrativna taksa",null,800,800,"840-742221843-57 ","Budžet Republike Srbije",97,"71-009","Zakon o RAT- tarifni broj 1"]
[null,"Opština Bela Palanka","Rešenje o odobrenju izvođenja radova po članu 145 Zakona","Donošenje rešenja","Lokalna administrativna taksa",null,1000,1000,"840-745151843-03","Opštinska uprava Bela Palanka",97,"71-009","Odluka o lokalnim administrativnim taksama Opštine Bela Palanka"]
[null,"Opština Bela Palanka","Prijava radova","Podnošenje zahteva","Republička administrativna taksa",null,310,310,"840-742221843-57 ","Budžet Republike Srbije",97,"71-009","Zakon o RAT- tarifni broj 11"]
[null,"Opština Bela Palanka","Prijava radova","Podnošenje zahteva","Lokalna administrativna taksa",null,120,120,"840-745151843-03","Opštinska uprava Bela Palanka",97,"71-009","Odluka o lokalnim administrativnim taksama Opštine Bela Palanka"]
[null,"Opština Bela Palanka","Prijava završetka izrade temelja i završetka objekta u konstruktivnom smislu","Podnošenje zahteva","Republička administrativna taksa",null,310,310,"840-742221843-57 ","Budžet Republike Srbije",97,"71-009","Zakon o RAT- tarifni broj 1"]
[null,"Opština Bela Palanka","Prijava završetka izrade temelja i završetka objekta u konstruktivnom smislu","Podnošenje zahteva","Lokalna administrativna taksa",null,120,120,"840-745151843-03","Opštinska uprava Bela Palanka",97,"71-009","Odluka o lokalnim administrativnim taksama Opštine Bela Palanka"]
[null,"Opština Bela Palanka","Prijava završetka izrade temelja i završetka objekta u konstruktivnom smislu","Donošenje rešenja","Republička administrativna taksa",null,1600,1600,"840-742221843-57 ","Budžet Republike Srbije",97,"71-009","Zakon o RAT- tarifni broj 164"]
[null,"Opština Bela Palanka","Dostavljanje tehničke dokumentacije","Podnošenje zahteva","Republička administrativna taksa",null,310,310,"840-742221843-57 ","Budžet Republike Srbije",97,"71-009","Zakon o RAT- tarifni broj 1"]
[null,"Opština Bela Palanka","Dostavljanje tehničke dokumentacije","Podnošenje zahteva","Lokalna administrativna taksa",null,120,120,"840-745151843-03","Opštinska uprava Bela Palanka",97,"71-009","Odluka o lokalnim administrativnim taksama Opštine Bela Palanka"]
[null,"Opština Bela Palanka","Upotrebna dozvola","Podnošenje zahteva","Republička administrativna taksa",null,310,310,"840-742221843-57 ","Budžet Republike Srbije",97,"71-009","Zakon o RAT- tarifni broj 1"]
[null,"Opština Bela Palanka","Upotrebna dozvola","Podnošenje zahteva","Lokalna administrativna taksa",null,120,120,"840-745151843-03","Opštinska uprava Bela Palanka",97,"71-009","Odluka o lokalnim administrativnim taksama Opštine Bela Palanka"]
[null,"Opština Bela Palanka","Upotrebna dozvola","Donošenje rešenja","Republička administrativna taksa","DA","0.2% predračunske vrednosti objekta","0.2% predračunske vrednosti objekta","840-742221843-57 ","Budžet Republike Srbije",97,"71-009","Zakon o RAT- tarifni broj 170"]
[null,"Opština Bela Palanka","Upotrebna dozvola","Donošenje rešenja","Lokalna administrativna taksa",null,{"$f":"60*1000","v":60000},{"$f":"60*1000","v":60000},"840-745151843-03","Opštinska uprava Bela Palanka",97,"71-009","Odluka o lokalnim administrativnim taksama Opštine Bela Palanka"]
[null,"Opština Bela Palanka","Priključenje objekta na infrastrukturu","Podnošenje zahteva","Republička administrativna taksa",null,310,310,"840-742221843-57 ","Budžet Republike Srbije",97,"71-009","Zakon o RAT- tarifni broj 1"]
[null,"Opština Bela Palanka","Priključenje objekta na infrastrukturu","Podnošenje zahteva","Lokalna administrativna taksa",null,120,120,"840-745151843-03","Opštinska uprava Bela Palanka",97,"71-009","Odluka o lokalnim administrativnim taksama Opštine Bela Palanka"]
[null,"Opština Beočin","Lokacijski uslovi","Podnošenje zahteva","Republička administrativna taksa",null,310,310,"840-742221843-57","Budžet Republike Srbije",97,"50-210 ","Zakon o RAT - tarifni broj 1"]
[null,"Opština Beočin","Lokacijski uslovi","Podnošenje zahteva","Lokalna administrativna taksa",null,2000,2000,"840-742251843-73 ","Opštinska uprava Beočin",97,"50-210","Odluka o lokalnim administrativnim taksama, 5.2.2016."]
[null,"Opština Beočin","Građevinska dozvola","Podnošenje zahteva","Republička administrativna taksa",null,310,310,"840-742221843-57","Budžet Republike Srbije",97,"50-210 ","Zakon o RAT - tarifni broj 1"]
[null,"Opština Beočin","Građevinska dozvola","Donošenje rešenja","Republička administrativna taksa",null,800,800,"840-742221843-57","Budžet Republike Srbije",97,"50-210","Zakon o RAT - tarifni broj 165"]
[null,"Opština Beočin","Građevinska dozvola","Donošenje rešenja","Lokalna administrativna taksa","DA","0.1% predračunske vrednosti objekta","0.1% predračunske vrednosti objekta","840-742251843-73 ","Opštinska uprava Beočin",97,"50-210","Odluka o lokalnim administrativnim taksama, 5.2.2016."]
[null,"Opština Blace","Lokacijski uslovi","Podnošenje zahteva","Republička administrativna taksa",null,800,800,"840-742221843-57","Budžet Republike Srbije",97,"29-023","Zakon o RAT - tarifni broj 1 i tarifni broj 9"]
[null,"Opština Blace","Lokacijski uslovi","Podnošenje zahteva","Lokalna naknada",null,100000,100000,"840-742251843-73","Opštinska uprava Blace",97,"29-023","Odluka o lokalnim administrativnim taksama i naknadama (\"Sl.list opštine Blace\", br.7/08)"]
[null,"Opština Blace","Građevinska dozvola","Podnošenje zahteva","Republička administrativna taksa",null,300,300,"840-742221843-57","Budžet Republike Srbije",97,"29-023","Zakon o RAT - tarifni broj 1 "]
[null,"Opština Blace","Građevinska dozvola","Podnošenje zahteva","Lokalna naknada",null,5920,5920,"840-742251843-73","Opštinska uprava Blace",97,"29-023","Odluka o lokalnim administrativnim taksama i naknadama (\"Sl.list opštine Blace\", br.7/08)"]
[null,"Opština Blace","Građevinska dozvola","Donošenje rešenja","Republička administrativna taksa",null,770,770,"840-742221843-57","Budžet Republike Srbije",97,"29-023","Zakon o RAT - tarifni broj 165"]
[null,"Opština Blace","Rešenje o odobrenju izvođenja radova po članu 145 Zakona","Podnošenje zahteva","Republička administrativna taksa",null,300,300,"840-742221843-57","Budžet Republike Srbije",97,"29-023","Zakon o RAT - tarifni broj 1 "]
[null,"Opština Blace","Rešenje o odobrenju izvođenja radova po članu 145 Zakona","Podnošenje zahteva","Lokalna naknada",null,780,780,"840-742251843-73","Opštinska uprava Blace",97,"29-023","Odluka o lokalnim administrativnim taksama i naknadama (\"Sl.list opštine Blace\", br.7/08)"]
[null,"Opština Blace","Rešenje o odobrenju izvođenja radova po članu 145 Zakona","Donošenje rešenja","Republička administrativna taksa",null,770,770,"840-742221843-57","Budžet Republike Srbije",97,"29-023","Zakon o RAT - tarifni broj 165"]
[null,"Opština Blace","Prijava radova","Podnošenje zahteva","Republička administrativna taksa",null,300,300,"840-742221843-57","Budžet Republike Srbije",97,"29-023","Zakon o RAT - tarifni broj 1"]
[null,"Opština Blace","Prijava radova","Podnošenje zahteva","Lokalna naknada",null,2630,1450,"840-742251843-73","Opštinska uprava Blace",97,"29-023","Odluka o lokalnim administrativnim taksama i naknadama (\"Sl.list opštine Blace\", br.7/08)"]
[null,"Opština Blace","Prijava završetka izrade temelja i završetka objekta u konstruktivnom smislu","Podnošenje zahteva","Republička administrativna taksa",null,{"$f":"1830+1830","v":3660},{"$f":"1830+1830","v":3660},"840-742221843-57","Budžet Republike Srbije",97,"29-023","Zakon o RAT - tarifni broj 1 (x164) i tarifni broj 164 (x2)"]
[null,"Opština Blace","Prijava završetka izrade temelja i završetka objekta u konstruktivnom smislu","Podnošenje zahteva","Lokalna naknada",null,{"$f":"1000+1000","v":2000},{"$f":"1000+1000","v":2000},"840-742251843-73","Opštinska uprava Blace",97,"29-023","Odluka o lokalnim administrativnim taksama i naknadama (\"Sl.list opštine Blace\", br.7/08)"]
[null,"Opština Blace","Upotrebna dozvola","Podnošenje zahteva","Republička administrativna taksa",null,300,300,"840-742221843-57","Budžet Republike Srbije",97,"29-023","Zakon o RAT - tarifni broj 1"]
[null,"Opština Blace","Upotrebna dozvola","Podnošenje zahteva","Lokalna naknada",null,2130,2130,"840-742251843-73","Opštinska uprava Blace",97,"29-023","Odluka o lokalnim administrativnim taksama i naknadama (\"Sl.list opštine Blace\", br.7/08)"]
[null,"Opština Blace","Upotrebna dozvola","Donošenje rešenja","Republička administrativna taksa","DA","0.2% predračunske vrednosti objekta","0.2% predračunske vrednosti objekta","840-742221843-57","Budžet Republike Srbije",97,"29-023","Zakon o RAT - tarifni broj 170"]
[null,"Opština Bogatić","Lokacijski uslovi","Podnošenje zahteva","Republička administrativna taksa",null,310,310,"840-74222843-57 ","Budžet Republike Srbije",97,"26-024","Zakon o RAT - tarifni broj 1"]
[null,"Opština Bogatić","Lokacijski uslovi","Donošenje rešenja","Lokalna naknada",null,9950,9950,"840-742351843-94","Opštinska uprava Bogatić",97,"26-024","Odluka o naknadama koje predstavljaju prihod ostvaren delatnošću opštinske uprave opštine Bogatić („Sl.list opštine“ br.32/2015)"]
[null,"Opština Bogatić","Građevinska dozvola","Podnošenje zahteva","Republička administrativna taksa",null,310,310,"840-74222843-57 ","Budžet Republike Srbije",97,"26-024","Zakon o RAT - tarifni broj 1"]
[null,"Opština Bogatić","Građevinska dozvola","Donošenje rešenja","Lokalna naknada",null,3180,3180,"840-742351843-94","Opštinska uprava Bogatić",97,"26-024","Odluka o naknadama koje predstavljaju prihod ostvaren delatnošću opštinske uprave opštine Bogatić („Sl.list opštine“ br.32/2015)"]
[null,"Opština Bogatić","Građevinska dozvola","Donošenje rešenja","Republička administrativna taksa",null,800,800,"840-74222843-57 ","Budžet Republike Srbije",97,"26-024","Zakon o RAT - tarifni broj 165"]
[null,"Opština Bogatić","Prijava radova","Podnošenje zahteva","Republička administrativna taksa",null,310,310,"840-74222843-57 ","Budžet Republike Srbije",97,"26-024","Zakon o RAT - tarifni broj 1"]
[null,"Opština Bogatić","Prijava završetka izrade temelja i završetka objekta u konstruktivnom smislu","Podnošenje zahteva","Republička administrativna taksa",null,1600,1600,"840-74222843-57 ","Budžet Republike Srbije",97,"26-024","Zakon o RAT - tarifni broj 164"]
[null,"Opština Bogatić","Prijava završetka izrade temelja i završetka objekta u konstruktivnom smislu","Donošenje rešenja","Lokalna naknada",null,2760,2760,"840-742351843-94","Opštinska uprava Bogatić",97,"26-024","Odluka o naknadama koje predstavljaju prihod ostvaren delatnošću opštinske uprave opštine Bogatić („Sl.list opštine“ br.32/2015)"]
[null,"Opština Bogatić","Dostavljanje tehničke dokumentacije","Podnošenje zahteva","Republička administrativna taksa",null,310,310,"840-74222843-57 ","Budžet Republike Srbije",97,"26-024","Zakon o RAT - tarifni broj 1"]
[null,"Opština Bogatić","Upotrebna dozvola","Podnošenje zahteva","Republička administrativna taksa",null,310,310,"840-74222843-57 ","Budžet Republike Srbije",97,"26-024","Zakon o RAT - tarifni broj 1"]
[null,"Opština Bogatić","Upotrebna dozvola","Donošenje rešenja","Lokalna naknada",null,3180,3180,"840-742351843-94","Opštinska uprava Bogatić",97,"26-024","Odluka o naknadama koje predstavljaju prihod ostvaren delatnošću opštinske uprave opštine Bogatić („Sl.list opštine“ br.32/2015)"]
[null,"Opština Bogatić","Upotrebna dozvola","Donošenje rešenja","Republička administrativna taksa","DA","0.2% predračunske vrednosti objekta","0.2% predračunske vrednosti objekta","840-74222843-57 ","Budžet Republike Srbije",97,"26-024","Zakon o RAT - tarifni broj 1"]
[null,"Opština Boljevac","Lokacijski uslovi","Podnošenje zahteva","Lokalna administrativna taksa",null,120,120]
[null,"Opština Boljevac","Lokacijski uslovi","Donošenje rešenja","Lokalna administrativna taksa",null,16000,10000]
[null,"Opština Boljevac","Građevinska dozvola","Podnošenje zahteva","Republička administrativna taksa",null,1110,1110]
[null,"Opština Bosilegrad","Lokacijski uslovi","Podnošenje zahteva","Republička administrativna taksa",null,310,310,"840-742221843-57","Budžet Republike Srbije",97,"14-028","Zakon o RAT - tarifni broj 1"]
[null,"Opština Bosilegrad","Lokacijski uslovi","Podnošenje zahteva","Lokalna administrativna taksa",null,80,80,"840-742351843-97","Opštinska uprava Bosilegrad",97,"14-028","Odluka o opštinskim administrativnim taksama („Sl.glasnik Pčinjskog okruga“, br.4/09)"]
[null,"Opština Bosilegrad","Lokacijski uslovi","Donošenje rešenja","Lokalna administrativna taksa",null,5000,5000,"840-742351843-97","Opštinska uprava Bosilegrad",97,"14-028","Odluka o opštinskim administrativnim taksama („Sl.glasnik Pčinjskog okruga“, br.4/09)"]
[null,"Opština Bosilegrad","Građevinska dozvola","Podnošenje zahteva","Republička administrativna taksa",null,310,310,"840-742221843-57","Budžet Republike Srbije",97,"14-028","Zakon o RAT - tafirni broj 1"]
[null,"Opština Bosilegrad","Građevinska dozvola","Podnošenje zahteva","Lokalna administrativna taksa",null,80,80,"840-742351843-97","Opštinska uprava Bosilegrad",97,"14-028","Odluka o opštinskim administrativnim taksama („Sl.glasnik Pčinjskog okruga“, br.4/09)"]
[null,"Opština Bosilegrad","Građevinska dozvola","Donošenje rešenja","Lokalna administrativna taksa",null,4500,4500,"840-742351843-97","Opštinska uprava Bosilegrad",97,"14-028","Odluka o opštinskim administrativnim taksama („Sl.glasnik Pčinjskog okruga“, br.4/09)"]
[null,"Opština Bosilegrad","Građevinska dozvola","Donošenje rešenja","Republička administrativna taksa",null,520,520,"840-742221843-57","Budžet Republike Srbije",97,"14-028","Zakon o RAT - tafirni broj 9"]
[null,"Opština Bosilegrad","Građevinska dozvola","Donošenje rešenja","Lokalna administrativna taksa",null,290,290,"840-742351843-97","Opštinska uprava Bosilegrad",97,"14-028","Odluka o opštinskim administrativnim taksama („Sl.glasnik Pčinjskog okruga“, br.4/09)"]
[null,"Opština Bosilegrad","Rešenje o odobrenju izvođenja radova po članu 145 Zakona","Podnošenje zahteva","Republička administrativna taksa",null,310,310,"840-742221843-57","Budžet Republike Srbije",97,"14-028","Zakon o RAT - tarifni broj 1"]
[null,"Opština Bosilegrad","Rešenje o odobrenju izvođenja radova po članu 145 Zakona","Podnošenje zahteva","Lokalna administrativna taksa",null,80,80,"840-742351843-97","Opštinska uprava Bosilegrad",97,"14-028","Odluka o opštinskim administrativnim taksama („Sl.glasnik Pčinjskog okruga“, br.4/09)"]
[null,"Opština Bosilegrad","Rešenje o odobrenju izvođenja radova po članu 145 Zakona","Donošenje rešenja","Lokalna administrativna taksa",null,2000,2000,"840-742351843-97","Opštinska uprava Bosilegrad",97,"14-028","Odluka o opštinskim administrativnim taksama („Sl.glasnik Pčinjskog okruga“, br.4/09)"]
[null,"Opština Bosilegrad","Rešenje o odobrenju izvođenja radova po članu 145 Zakona","Donošenje rešenja","Republička administrativna taksa",null,520,520,"840-742221843-57","Budžet Republike Srbije",97,"14-028","Zakon o RAT - tafirni broj 9"]
[null,"Opština Bosilegrad","Rešenje o odobrenju izvođenja radova po članu 145 Zakona","Donošenje rešenja","Lokalna administrativna taksa",null,290,290,"840-742351843-97","Opštinska uprava Bosilegrad",97,"14-028","Odluka o opštinskim administrativnim taksama („Sl.glasnik Pčinjskog okruga“, br.4/09)"]
[null,"Opština Bosilegrad","Prijava radova","Podnošenje zahteva","Republička administrativna taksa",null,310,310,"840-742221843-57","Budžet Republike Srbije",97,"14-028","Zakon o RAT - tafirni broj 9"]
[null,"Opština Bosilegrad","Prijava radova","Podnošenje zahteva","Lokalna administrativna taksa",null,80,80,"840-742351843-97","Opštinska uprava Bosilegrad",97,"14-028","Odluka o opštinskim administrativnim taksama („Sl.glasnik Pčinjskog okruga“, br.4/09)"]
[null,"Opština Bosilegrad","Prijava završetka izrade temelja i završetka objekta u konstruktivnom smislu","Podnošenje zahteva","Republička administrativna taksa",null,310,310,"840-742221843-57","Budžet Republike Srbije",97,"14-028","Zakon o RAT - tafirni broj 1"]
[null,"Opština Bosilegrad","Prijava završetka izrade temelja i završetka objekta u konstruktivnom smislu","Podnošenje zahteva","Lokalna administrativna taksa",null,80,80,"840-742351843-97","Opštinska uprava Bosilegrad",97,"14-028","Odluka o opštinskim administrativnim taksama („Sl.glasnik Pčinjskog okruga“, br.4/09)"]
[null,"Opština Bosilegrad","Prijava završetka izrade temelja i završetka objekta u konstruktivnom smislu","Donošenje rešenja","Lokalna administrativna taksa",null,800,800,"840-742351843-97","Opštinska uprava Bosilegrad",97,"14-028","Odluka o opštinskim administrativnim taksama („Sl.glasnik Pčinjskog okruga“, br.4/09)"]
[null,"Opština Bosilegrad","Dostavljanje tehničke dokumentacije","Podnošenje zahteva","Republička administrativna taksa",null,310,310,"840-742221843-57","Budžet Republike Srbije",97,"14-028","Zakon o RAT - tafirni broj 1"]
[null,"Opština Bosilegrad","Dostavljanje tehničke dokumentacije","Podnošenje zahteva","Lokalna administrativna taksa",null,80,80,"840-742351843-97","Opštinska uprava Bosilegrad",97,"14-028","Odluka o opštinskim administrativnim taksama („Sl.glasnik Pčinjskog okruga“, br.4/09)"]
[null,"Opština Bosilegrad","Upotrebna dozvola","Podnošenje zahteva","Republička administrativna taksa",null,310,310,"840-742221843-57","Budžet Republike Srbije",97,"14-028","Zakon o RAT - tafirni broj 1"]
[null,"Opština Bosilegrad","Upotrebna dozvola","Podnošenje zahteva","Lokalna administrativna taksa",null,80,80,"840-742351843-97","Opštinska uprava Bosilegrad",97,"14-028","Odluka o opštinskim administrativnim taksama („Sl.glasnik Pčinjskog okruga“, br.4/09)"]
[null,"Opština Bosilegrad","Upotrebna dozvola","Donošenje rešenja","Republička administrativna taksa","DA","0.2% predračunske vrednosti objekta","0.2% predračunske vrednosti objekta","840-742221843-57","Budžet Republike Srbije",97,"14-028","Zakon o RAT - tafirni broj 170"]
[null,"Opština Bosilegrad","Upotrebna dozvola","Donošenje rešenja","Lokalna administrativna taksa",null,290,290,"840-742351843-97","Opštinska uprava Bosilegrad",97,"14-028","Odluka o opštinskim administrativnim taksama („Sl.glasnik Pčinjskog okruga“, br.4/09)"]
[null,"Opština Bosilegrad","Priključenje objekta na infrastrukturu","Podnošenje zahteva","Republička administrativna taksa",null,310,310,"840-742221843-57","Budžet Republike Srbije",97,"14-028","Zakon o RAT - tafirni broj 1"]
[null,"Opština Bosilegrad","Priključenje objekta na infrastrukturu","Podnošenje zahteva","Lokalna administrativna taksa",null,80,80,"840-742351843-97","Opštinska uprava Bosilegrad",97,"14-028","Odluka o opštinskim administrativnim taksama („Sl.glasnik Pčinjskog okruga“, br.4/09)"]
[null,"Opština Brus","Lokacijski uslovi","Podnošenje zahteva","Republička administrativna taksa",null,310,310,"840-742221843-57","Budžet Republike Srbije",97,"11-029","Zakon o RAT - tarifni broj 1"]
[null,"Opština Brus","Lokacijski uslovi","Podnošenje zahteva","Lokalna administrativna taksa",null,190,190,"840-742251843-73","Opštinska uprava Brus",97,"11-029","Odluka o lokalnim administrativnim taksama (Sl.list Opštine Brus 2/13)"]
[null,"Opština Brus","Lokacijski uslovi","Donošenje rešenja","Lokalna administrativna taksa",null,11080,11080,"840-742251843-73","Opštinska uprava Brus",97,"11-029","Odluka o lokalnim administrativnim taksama (Sl.list Opštine Brus 2/13)"]
[null,"Opština Brus","Građevinska dozvola","Podnošenje zahteva","Republička administrativna taksa",null,310,310,"840-742221843-57","Budžet Republike Srbije",97,"11-029","Zakon o RAT - tarifni broj 1"]
[null,"Opština Brus","Građevinska dozvola","Podnošenje zahteva","Lokalna administrativna taksa",null,190,190,"840-742251843-73","Opštinska uprava Brus",97,"11-029","Odluka o lokalnim administrativnim taksama (Sl.list Opštine Brus 2/13)"]
[null,"Opština Brus","Građevinska dozvola","Donošenje rešenja","Republička administrativna taksa",null,800,800,"840-742221843-57","Budžet Republike Srbije",97,"11-029","Zakon o RAT - tarifni broj 165"]
[null,"Opština Brus","Građevinska dozvola","Donošenje rešenja","Lokalna administrativna taksa",null,360,360,"840-742251843-73","Opštinska uprava Brus",97,"11-029","Odluka o lokalnim administrativnim taksama (Sl.list Opštine Brus 2/13)"]
[null,"Opština Brus","Rešenje o odobrenju izvođenja radova po članu 145 Zakona","Podnošenje zahteva","Republička administrativna taksa",null,310,310,"840-742221843-57","Budžet Republike Srbije",97,"11-029","Zakon o RAT - tarifni broj 1"]
[null,"Opština Brus","Rešenje o odobrenju izvođenja radova po članu 145 Zakona","Podnošenje zahteva","Lokalna administrativna taksa",null,190,190,"840-742251843-73","Opštinska uprava Brus",97,"11-029","Odluka o lokalnim administrativnim taksama (Sl.list Opštine Brus 2/13)"]
[null,"Opština Brus","Rešenje o odobrenju izvođenja radova po članu 145 Zakona","Donošenje rešenja","Republička administrativna taksa",null,800,800,"840-742221843-57","Budžet Republike Srbije",97,"11-029","Zakon o RAT - tarifni broj 165"]
[null,"Opština Brus","Rešenje o odobrenju izvođenja radova po članu 145 Zakona","Donošenje rešenja","Lokalna administrativna taksa",null,360,360,"840-742251843-73","Opštinska uprava Brus",97,"11-029","Odluka o lokalnim administrativnim taksama (Sl.list Opštine Brus 2/13)"]
[null,"Opština Brus","Prijava radova","Podnošenje zahteva","Republička administrativna taksa",null,{"$f":"310+310","v":620},{"$f":"310+310","v":620},"840-742221843-57","Budžet Republike Srbije",97,"11-029","Zakon o RAT - tarifni broj 1 i 11"]
[null,"Opština Brus","Prijava radova","Podnošenje zahteva","Lokalna administrativna taksa",null,1320,1320,"840-742251843-73","Opštinska uprava Brus",97,"11-029","Odluka o lokalnim administrativnim taksama (Sl.list Opštine Brus 2/13)"]
[null,"Opština Brus","Prijava završetka izrade temelja i završetka objekta u konstruktivnom smislu","Podnošenje zahteva","Republička administrativna taksa",null,1910,1910,"840-742221843-57","Budžet Republike Srbije",97,"11-029","Zakon o RAT - tarifni broj 1 i 11"]
[null,"Opština Brus","Prijava završetka izrade temelja i završetka objekta u konstruktivnom smislu","Podnošenje zahteva","Lokalna administrativna taksa",null,1320,1320,"840-742251843-73","Opštinska uprava Brus",97,"11-029","Odluka o lokalnim administrativnim taksama (Sl.list Opštine Brus 2/13)"]
[null,"Opština Brus","Dostavljanje tehničke dokumentacije","Podnošenje zahteva","Republička administrativna taksa",null,{"$f":"310+310","v":620},{"$f":"310+310","v":620},"840-742221843-57","Budžet Republike Srbije",97,"11-029","Zakon o RAT - tarifni broj 1 i 11"]
[null,"Opština Brus","Dostavljanje tehničke dokumentacije","Podnošenje zahteva","Lokalna administrativna taksa",null,1320,1320,"840-742251843-73","Opštinska uprava Brus",97,"11-029","Odluka o lokalnim administrativnim taksama (Sl.list Opštine Brus 2/13)"]
[null,"Opština Brus","Upotrebna dozvola","Podnošenje zahteva","Republička administrativna taksa",null,310,310,"840-742221843-57","Budžet Republike Srbije",97,"11-029","Zakon o RAT - tarifni broj 1"]
[null,"Opština Brus","Upotrebna dozvola","Podnošenje zahteva","Lokalna administrativna taksa",null,190,190,"840-742251843-73","Opštinska uprava Brus",97,"11-029","Odluka o lokalnim administrativnim taksama (Sl.list Opštine Brus 2/13)"]
[null,"Opština Brus","Upotrebna dozvola","Donošenje rešenja","Republička administrativna taksa",null,520,520,"840-742221843-57","Budžet Republike Srbije",97,"11-029","Zakon o RAT - tarifni broj 9"]
[null,"Opština Brus","Upotrebna dozvola","Donošenje rešenja","Lokalna administrativna taksa",null,360,360,"840-742251843-73","Opštinska uprava Brus",97,"11-029","Odluka o lokalnim administrativnim taksama (Sl.list Opštine Brus 2/13)"]
[null,"Opština Brus","Priključenje objekta na infrastrukturu","Podnošenje zahteva","Republička administrativna taksa",null,{"$f":"310+520","v":830},{"$f":"310+520","v":830},"840-742221843-57","Budžet Republike Srbije",97,"11-029","Zakon o RAT - tarifni broj 1 i 9"]
[null,"Opština Brus","Priključenje objekta na infrastrukturu","Podnošenje zahteva","Lokalna administrativna taksa",null,710,710,"840-742251843-73","Opštinska uprava Brus",97,"11-029","Odluka o lokalnim administrativnim taksama (Sl.list Opštine Brus 2/13)"]
[null,"Opština Bujanovac","Lokacijski uslovi","Podnošenje zahteva","Republička administrativna taksa",null,310,310,"840-742221843-57","Budžet Republike Srbije",97,"08-030 ","Zakon o RAT - tarifni broj 1"]
[null,"Opština Bujanovac","Lokacijski uslovi","Podnošenje zahteva","Lokalna administrativna taksa",null,3300,3300,"840-742251843-73","Opštinska uprava Bujanovac",97,"08-030 ","Odluka o opštinskim administrativnim taksama za 2017. (Sl.g. opštine Bujanovac 20/16)"]
[null,"Opština Bujanovac","Građevinska dozvola","Podnošenje zahteva","Republička administrativna taksa",null,520,520,"840-742221843-57","Budžet Republike Srbije",97,"08-030 ","Zakon o RAT - tarifni broj 9"]
[null,"Opština Bujanovac","Građevinska dozvola","Podnošenje zahteva","Lokalna administrativna taksa",null,4000,2000,"840-742251843-73","Opštinska uprava Bujanovac",97,"08-030 ","Odluka o opštinskim administrativnim taksama za 2017. (Sl.g. opštine Bujanovac 20/16)"]
[null,"Opština Bujanovac","Građevinska dozvola","Podnošenje zahteva","Lokalna administrativna taksa",null,60000,53000,"840-745151843-03","Opštinska uprava Bujanovac",97,"08-030 ","Odluka o lokalnim komunalnim taksama – Tarifni broj 9. (Sl.g. opštine Bujanovac 20/16)"]
[null,"Opština Bujanovac","Prijava radova","Podnošenje zahteva","Republička administrativna taksa",null,310,310,"840-742221843-57","Budžet Republike Srbije",97,"08-030 ","Zakon o RAT - tarifni broj 1"]
[null,"Opština Bujanovac","Prijava radova","Podnošenje zahteva","Lokalna administrativna taksa",null,3000,3000,"840-742251843-73","Opštinska uprava Bujanovac",97,"08-030 ","Odluka o opštinskim administrativnim taksama za 2017. (Sl.g. opštine Bujanovac 20/16)"]
[null,"Opština Bujanovac","Prijava završetka izrade temelja i završetka objekta u konstruktivnom smislu","Podnošenje zahteva","Republička administrativna taksa",null,310,310,"840-742221843-57","Budžet Republike Srbije",97,"08-030 ","Zakon o RAT - tarifni broj 1"]
[null,"Opština Bujanovac","Prijava završetka izrade temelja i završetka objekta u konstruktivnom smislu","Podnošenje zahteva","Lokalna administrativna taksa",null,3500,3500,"840-742251843-73","Opštinska uprava Bujanovac",97,"08-030 ","Odluka o opštinskim administrativnim taksama za 2017. (Sl.g. opštine Bujanovac 20/16)"]
[null,"Opština Bujanovac","Dostavljanje tehničke dokumentacije","Podnošenje zahteva","Republička administrativna taksa",null,310,310,"840-742221843-57","Budžet Republike Srbije",97,"08-030 ","Zakon o RAT - tarifni broj 1"]
[null,"Opština Bujanovac","Dostavljanje tehničke dokumentacije","Podnošenje zahteva","Lokalna administrativna taksa",null,500,500,"840-742251843-73","Opštinska uprava Bujanovac",97,"08-030 ","Odluka o opštinskim administrativnim taksama za 2017. (Sl.g. opštine Bujanovac 20/16)"]
[null,"Opština Bujanovac","Upotrebna dozvola","Podnošenje zahteva","Republička administrativna taksa",null,310,310,"840-742221843-57","Budžet Republike Srbije",97,"08-030 ","Zakon o RAT - tarifni broj 1"]
[null,"Opština Bujanovac","Upotrebna dozvola","Podnošenje zahteva","Lokalna administrativna taksa",null,3200,1500,"840-742251843-73","Opštinska uprava Bujanovac",97,"08-030 ","Odluka o opštinskim administrativnim taksama za 2017. (Sl.g. opštine Bujanovac 20/16)"]
[null,"Opština Bujanovac","Upotrebna dozvola","Podnošenje zahteva","Lokalna administrativna taksa",null,42000,20000,"840-745151843-03","Opštinska uprava Bujanovac",97,"08-030 ","Odluka o lokalnim komunalnim taksama – Tarifni broj 9. (Sl.g. opštine Bujanovac 20/16)"]
[null,"Opština Bujanovac","Upotrebna dozvola","Donošenje rešenja","Republička administrativna taksa","DA","0.2% predračunske vrednosti objekta","0.2% predračunske vrednosti objekta","840-742221843-57","Budžet Republike Srbije",97,"14-028","Zakon o RAT - tafirni broj 170"]
[null,"Opština Bujanovac","Priključenje objekta na infrastrukturu","Podnošenje zahteva","Republička administrativna taksa",null,310,310,"840-742221843-57","Budžet Republike Srbije",97,"08-030 ","Zakon o RAT - tarifni broj 1"]
[null,"Opština Bujanovac","Priključenje objekta na infrastrukturu","Podnošenje zahteva","Lokalna administrativna taksa",null,500,500,"840-742251843-73","Opštinska uprava Bujanovac",97,"08-030 ","Odluka o opštinskim administrativnim taksama za 2017. (Sl.g. opštine Bujanovac 20/16)"]
[null,"Opština Čajetina","Lokacijski uslovi","Podnošenje zahteva","Republička administrativna taksa",null,620,620,"840-742221843-57","Budžet Republike Srbije",97,"90-035","Zakon o RAT - tarifni broj 1 i tarifni broj 9"]
[null,"Opština Čajetina","Lokacijski uslovi","Podnošenje zahteva","Lokalna administrativna taksa",null,{"$f":"25*1000","v":25000},{"$f":"25*1000","v":25000},"840-742251843-73","Opštinska uprava Čajetina",97,"90-035","Odluka o lokalnim administrativnim taksama broj 2-75/2016-01 (\"Sl.list opštine Čajetina\", broj 7/16)"]
[null,"Opština Čajetina","Građevinska dozvola","Podnošenje zahteva","Republička administrativna taksa",null,1100,1100,"840-742221843-57","Budžet Republike Srbije",97,"90-035","Zakon o RAT - tarifni broj 1 i tarifni broj 9"]
[null,"Opština Čajetina","Građevinska dozvola","Donošenje rešenja","Lokalna administrativna taksa",null,{"$f":"35*1000","v":35000},{"$f":"35*1000","v":35000},"840-742251843-73","Opštinska uprava Čajetina",97,"90-035","Odluka o lokalnim administrativnim taksama broj 2-75/2016-01 (\"Sl.list opštine Čajetina\", broj 7/16)"]
[null,"Opština Čajetina","Rešenje o odobrenju izvođenja radova po članu 145 Zakona","Podnošenje zahteva","Republička administrativna taksa",null,830,830,"840-742221843-57","Budžet Republike Srbije",97,"90-035","Zakon o RAT - tarifni broj 1 i tarifni broj 9"]
[null,"Opština Čajetina","Rešenje o odobrenju izvođenja radova po članu 145 Zakona","Podnošenje zahteva","Lokalna administrativna taksa",null,{"$f":"35*1000","v":35000},{"$f":"35*1000","v":35000},"840-742251843-73","Opštinska uprava Čajetina",97,"90-035","Odluka o lokalnim administrativnim taksama broj 2-75/2016-01 (\"Sl.list opštine Čajetina\", broj 7/16)"]
[null,"Opština Čajetina","Prijava radova","Podnošenje zahteva","Republička administrativna taksa",null,310,310,"840-742221843-57","Budžet Republike Srbije",97,"90-035","Zakon o RAT - tarifni broj 1"]
[null,"Opština Čajetina","Prijava završetka izrade temelja i završetka objekta u konstruktivnom smislu","Podnošenje zahteva","Republička administrativna taksa",null,310,310,"840-742221843-57","Budžet Republike Srbije",97,"90-035","Zakon o RAT - tarifni broj 1"]
[null,"Opština Čajetina","Dostavljanje tehničke dokumentacije","Podnošenje zahteva","Republička administrativna taksa",null,310,310,"840-742221843-57","Budžet Republike Srbije",97,"90-035","Zakon o RAT - tarifni broj 1"]
[null,"Opština Čajetina","Upotrebna dozvola","Podnošenje zahteva","Republička administrativna taksa",null,830,830,"840-742221843-57","Budžet Republike Srbije",97,"90-035","Zakon o RAT - tarifni broj 1 i tarifrni broj 9"]
[null,"Opština Čajetina","Upotrebna dozvola","Donošenje rešenja","Republička administrativna taksa","DA","0.2% predračunske vrednosti objekta","0.2% predračunske vrednosti objekta","840-742221843-57","Budžet Republike Srbije",97,"90-035","Zakon o RAT - tarifni broj 170"]
[null,"Opština Čajetina","Upotrebna dozvola","Donošenje rešenja","Lokalna administrativna taksa",null,{"$f":"50*1000","v":50000},{"$f":"50*1000","v":50000},"840-742251843-73","Opštinska uprava Čajetina",97,"90-035","Odluka o lokalnim administrativnim taksama broj 2-75/2016-01 (\"Sl.list opštine Čajetina\", broj 7/16)"]
[null,"Opština Čajetina","Priključenje objekta na infrastrukturu","Podnošenje zahteva","Republička administrativna taksa",null,310,310,"840-742221843-57","Budžet Republike Srbije",97,"90-035","Zakon o RAT - tarifni broj 1"]
[null,"Opština Ćićevac","Lokacijski uslovi","Podnošenje zahteva","Republička administrativna taksa",null,310,310,"840-742221843-57","Budžet Republike Srbije",97,"02-032","Zakon o RAT - tarifni broj 1"]
[null,"Opština Ćićevac","Lokacijski uslovi","Podnošenje zahteva","Lokalna administrativna taksa",null,4600,4600,"840-742351843-94","Opštinska uprava Ćićevac",97,"02-032","Odluka o naknadama koje vrši opštinska uprva opštine Ćićevac (Sl.list Opštine Ćićevac 10/15)"]
[null,"Opština Ćićevac","Građevinska dozvola","Podnošenje zahteva","Lokalna naknada",null,4600,4600,"840-742351843-94","Opštinska uprava Ćićevac",97,"02-032","Odluka o naknadama koje vrši opštinska uprva opštine Ćićevac (Sl.list Opštine Ćićevac 10/15)"]
[null,"Opština Ćićevac","Građevinska dozvola","Donošenje rešenja","Republička administrativna taksa",null,800,800,"840-742221843-57","Budžet Republike Srbije",97,"02-032","Zakon o RAT - tarifni broj 165"]
[null,"Opština Ćićevac","Rešenje o odobrenju izvođenja radova po članu 145 Zakona","Podnošenje zahteva","Lokalna naknada",null,600,600,"840-742351843-94","Opštinska uprava Ćićevac",97,"02-032","Odluka o naknadama koje vrši opštinska uprva opštine Ćićevac (Sl.list Opštine Ćićevac 10/15)"]
[null,"Opština Ćićevac","Rešenje o odobrenju izvođenja radova po članu 145 Zakona","Donošenje rešenja","Republička administrativna taksa",null,800,800,"840-742221843-57","Budžet Republike Srbije",97,"02-032","Zakon o RAT - tarifni broj 165"]
[null,"Opština Ćićevac","Prijava radova","Podnošenje zahteva","Republička administrativna taksa",null,310,310,"840-742221843-57","Budžet Republike Srbije",97,"02-032","Zakon o RAT - tarifni broj 1"]
[null,"Opština Ćićevac","Prijava radova","Donošenje rešenja","Lokalne naknade",null,600,600,"840-742351843-94","Opštinska uprava Ćićevac",97,"02-032","Odluka o naknadama koje vrši opštinska uprva opštine Ćićevac (Sl.list Opštine Ćićevac 10/15)"]
[null,"Opština Ćićevac","Prijava završetka izrade temelja i završetka objekta u konstruktivnom smislu","Podnošenje zahteva","Republička administrativna taksa",null,1600,1600,"840-742221843-57","Budžet Republike Srbije",97,"02-032","Zakon o RAT - tarifni broj 164"]
[null,"Opština Ćićevac","Prijava završetka izrade temelja i završetka objekta u konstruktivnom smislu","Donošenje rešenja","Lokalne naknade",null,3100,3100,"840-742351843-94","Opštinska uprava Ćićevac",97,"02-032","Odluka o naknadama koje vrši opštinska uprva opštine Ćićevac (Sl.list Opštine Ćićevac 10/15)"]
[null,"Opština Ćićevac","Dostavljanje tehničke dokumentacije","Podnošenje zahteva","Republička administrativna taksa",null,310,310,"840-742221843-57","Budžet Republike Srbije",97,"02-032","Zakon o RAT - tarifni broj 1"]
[null,"Opština Ćićevac","Dostavljanje tehničke dokumentacije","Donošenje rešenja","Lokalne naknade",null,800,800,"840-742351843-94","Opštinska uprava Ćićevac",97,"02-032","Odluka o naknadama koje vrši opštinska uprva opštine Ćićevac (Sl.list Opštine Ćićevac 10/15)"]
[null,"Opština Ćićevac","Upotrebna dozvola","Donošenje rešenja","Lokalne naknade",null,3100,3100,"840-742351843-94","Opštinska uprava Ćićevac",97,"02-032","Odluka o naknadama koje vrši opštinska uprva opštine Ćićevac (Sl.list Opštine Ćićevac 10/15)"]
[null,"Opština Ćićevac","Upotrebna dozvola","Donošenje rešenja","Republička administrativna taksa","DA","0.2% predračunske vrednosti objekta","0.2% predračunske vrednosti objekta","840-742221843-57","Budžet Republike Srbije",97,"02-032","Zakon o RAT - tarifni broj 170"]
[null,"Opština Ćićevac","Priključenje objekta na infrastrukturu","Donošenje rešenja","Lokalne naknade",null,400,400,"840-742351843-94","Opštinska uprava Ćićevac",97,"02-032","Odluka o naknadama koje vrši opštinska uprva opštine Ćićevac (Sl.list Opštine Ćićevac 10/15)"]
[null,"Opština Čoka","Lokacijski uslovi","Podnošenje zahteva","Republička administrativna taksa",null,300,300,"840-742221843-57","Budžet Republike Srbije",97,"47-211","Zakon o RAT - tarifni broj 1"]
[null,"Opština Čoka","Građevinska dozvola","Podnošenje zahteva","Republička administrativna taksa",null,300,300,"840-742221843-57","Budžet Republike Srbije",97,"47-211","Zakon o RAT - tarifni broj 1"]
[null,"Opština Čoka","Građevinska dozvola","Donošenje rešenja","Republička administrativna taksa","DA","0.3% predračunske vrednosti objekta","0.3% predračunske vrednosti objekta","840-742221843-57","Budžet Republike Srbije",97,"47-211","Zakon o RAT - tarifni broj 169"]
[null,"Opština Čoka","Rešenje o odobrenju izvođenja radova po članu 145 Zakona","Podnošenje zahteva","Republička administrativna taksa",null,300,300,"840-742221843-57","Budžet Republike Srbije",97,"47-211","Zakon o RAT - tarifni broj 1"]
[null,"Opština Čoka","Rešenje o odobrenju izvođenja radova po članu 145 Zakona","Donošenje rešenja","Republička administrativna taksa","DA","0.3% predračunske vrednosti objekta","0.3% predračunske vrednosti objekta","840-742221843-57","Budžet Republike Srbije",97,"47-211","Zakon o RAT - tarifni broj 169"]
[null,"Opština Čoka","Prijava radova","Podnošenje zahteva","Republička administrativna taksa",null,300,300,"840-742221843-57","Budžet Republike Srbije",97,"47-211","Zakon o RAT - tarifni broj 1"]
[null,"Opština Čoka","Prijava završetka izrade temelja i završetka objekta u konstruktivnom smislu","Podnošenje zahteva","Republička administrativna taksa",null,300,300,"840-742221843-57","Budžet Republike Srbije",97,"47-211","Zakon o RAT - tarifni broj 1"]
[null,"Opština Čoka","Dostavljanje tehničke dokumentacije","Podnošenje zahteva","Republička administrativna taksa",null,300,300,"840-742221843-57","Budžet Republike Srbije",97,"47-211","Zakon o RAT - tarifni broj 1"]
[null,"Opština Čoka","Upotrebna dozvola","Podnošenje zahteva","Republička administrativna taksa",null,300,300,"840-742221843-57","Budžet Republike Srbije",97,"47-211","Zakon o RAT - tarifni broj 1"]
[null,"Opština Čoka","Upotrebna dozvola","Donošenje rešenja","Republička administrativna taksa","DA","0.2% predračunske vrednosti objekta","0.2% predračunske vrednosti objekta","840-742221843-57","Budžet Republike Srbije",97,"47-211","Zakon o RAT - tarifni broj 170"]
[null,"Opština Čoka","Priključenje objekta na infrastrukturu","Podnošenje zahteva","Republička administrativna taksa",null,300,300,"840-742221843-57","Budžet Republike Srbije",97,"47-211","Zakon o RAT - tarifni broj 1"]
[null,"Opština Crna Trava","Lokacijski uslovi","Podnošenje zahteva","Republička administrativna taksa",null,310,310,"840-742221843-57 ","Budžet Republike Srbije",97,"05-031","Zakon o RAT- tarifni broj 1"]
[null,"Opština Crna Trava","Lokacijski uslovi","Podnošenje zahteva","Lokalna administrativna taksa",null,{"$f":"30*1000","v":30000},{"$f":"30*1000","v":30000},"840-742351843-94","Opštinska uprava Crna Trava",97,"05-031","Odluka o lokalnim administrativnim taksama"]
[null,"Opština Crna Trava","Građevinska dozvola","Podnošenje zahteva","Republička administrativna taksa",null,310,310,"840-742221843-57 ","Budžet Republike Srbije",97,"05-031","Zakon o RAT- tarifni broj 1"]
[null,"Opština Crna Trava","Građevinska dozvola","Podnošenje zahteva","Republička administrativna taksa",null,800,800,"840-742221843-57 ","Budžet Republike Srbije",97,"05-031","Zakon o RAT- tarifni broj 165"]
[null,"Opština Crna Trava","Rešenje o odobrenju izvođenja radova po članu 145 Zakona","Podnošenje zahteva","Republička administrativna taksa",null,310,310,"840-742221843-57 ","Budžet Republike Srbije",97,"05-031","Zakon o RAT- tarifni broj 1"]
[null,"Opština Crna Trava","Rešenje o odobrenju izvođenja radova po članu 145 Zakona","Podnošenje zahteva","Republička administrativna taksa",null,800,800,"840-742221843-57 ","Budžet Republike Srbije",97,"05-031","Zakon o RAT- tarifni broj 165"]
[null,"Opština Crna Trava","Prijava radova","Podnošenje zahteva","Republička administrativna taksa",null,310,310,"840-742221843-57 ","Budžet Republike Srbije",97,"05-031","Zakon o RAT- tarifni broj 11"]
[null,"Opština Crna Trava","Prijava završetka izrade temelja i završetka objekta u konstruktivnom smislu","Podnošenje zahteva","Republička administrativna taksa",null,310,310,"840-742221843-57 ","Budžet Republike Srbije",97,"05-031","Zakon o RAT- tarifni broj 1"]
[null,"Opština Crna Trava","Dostavljanje tehničke dokumentacije","Podnošenje zahteva","Republička administrativna taksa",null,310,310,"840-742221843-57 ","Budžet Republike Srbije",97,"05-031","Zakon o RAT- tarifni broj 1"]
[null,"Opština Crna Trava","Upotrebna dozvola","Podnošenje zahteva","Republička administrativna taksa",null,310,310,"840-742221843-57 ","Budžet Republike Srbije",97,"05-031","Zakon o RAT- tarifni broj 1"]
[null,"Opština Crna Trava","Upotrebna dozvola","Donošenje rešenja","Republička administrativna taksa","DA","0.2% predračunske vrednosti objekta","0.2% predračunske vrednosti objekta","840-742221843-57 ","Budžet Republike Srbije",97,"05-031","Zakon o RAT- tarifni broj 170"]
[null,"Opština Despotovac","Lokacijski uslovi","Podnošenje zahteva","Republička administrativna taksa",null,310,310,"840-74222843-57 ","Budžet Republike Srbije",97,"87-036","Zakon o RAT - tarifni broj 1"]
[null,"Opština Despotovac","Lokacijski uslovi","Podnošenje zahteva","Lokalna naknada",null,3650,3650,"840-742351843-94","Opštinska uprava Despotovac",97,"87-036","Odluke o visini naknade za usluge opštinske uprave („Službeni glasnik opštine Despotovac“, broj 19/2012 i 10/2015)"]
[null,"Opština Despotovac","Građevinska dozvola","Podnošenje zahteva","Republička administrativna taksa",null,310,310,"840-74222843-57 ","Budžet Republike Srbije",97,"87-036","Zakon o RAT - tarifni broj 1"]
[null,"Opština Despotovac","Građevinska dozvola","Podnošenje zahteva","Lokalna naknada",null,150,150,"840-742351843-94","Opštinska uprava Despotovac",97,"87-036","Odluke o visini naknade za usluge opštinske uprave („Službeni glasnik opštine Despotovac“, broj 19/2012 i 10/2015)"]
[null,"Opština Despotovac","Građevinska dozvola","Donošenje rešenja","Republička administrativna taksa",null,800,800,"840-74222843-57 ","Budžet Republike Srbije",97,"87-036","Zakon o RAT - tarifni broj 165"]
[null,"Opština Despotovac","Građevinska dozvola","Donošenje rešenja","Lokalna naknada",null,1000,1000,"840-742351843-94","Opštinska uprava Despotovac",97,"87-036","Odluke o visini naknade za usluge opštinske uprave („Službeni glasnik opštine Despotovac“, broj 19/2012 i 10/2015)"]
[null,"Opština Despotovac","Rešenje o odobrenju izvođenja radova po članu 145 Zakona","Podnošenje zahteva","Republička administrativna taksa",null,310,310,"840-74222843-57 ","Budžet Republike Srbije",97,"87-036","Zakon o RAT - tarifni broj 1"]
[null,"Opština Despotovac","Rešenje o odobrenju izvođenja radova po članu 145 Zakona","Podnošenje zahteva","Lokalna naknada",null,150,150,"840-742351843-94","Opštinska uprava Despotovac",97,"87-036","Odluke o visini naknade za usluge opštinske uprave („Službeni glasnik opštine Despotovac“, broj 19/2012 i 10/2015)"]
[null,"Opština Despotovac","Rešenje o odobrenju izvođenja radova po članu 145 Zakona","Donošenje rešenja","Republička administrativna taksa",null,800,800,"840-74222843-57 ","Budžet Republike Srbije",97,"87-036","Zakon o RAT - tarifni broj 165"]
[null,"Opština Despotovac","Rešenje o odobrenju izvođenja radova po članu 145 Zakona","Donošenje rešenja","Lokalna naknada",null,1000,1000,"840-742351843-94","Opštinska uprava Despotovac",97,"87-036","Odluke o visini naknade za usluge opštinske uprave („Službeni glasnik opštine Despotovac“, broj 19/2012 i 10/2015)"]
[null,"Opština Despotovac","Prijava radova","Podnošenje zahteva","Republička administrativna taksa",null,{"$f":"310+310","v":620},{"$f":"310+310","v":620},"840-74222843-57 ","Budžet Republike Srbije",97,"87-036","Zakon o RAT - tarifni broj 1 i 11"]
[null,"Opština Despotovac","Prijava radova","Podnošenje zahteva","Lokalna naknada",null,650,650,"840-742351843-94","Opštinska uprava Despotovac",97,"87-036","Odluke o visini naknade za usluge opštinske uprave („Službeni glasnik opštine Despotovac“, broj 19/2012 i 10/2015)"]
[null,"Opština Despotovac","Prijava završetka izrade temelja i završetka objekta u konstruktivnom smislu","Podnošenje zahteva","Republička administrativna taksa",null,{"$f":"310+1600+310+310","v":2530},{"$f":"310+1600+310+310","v":2530},"840-74222843-57 ","Budžet Republike Srbije",97,"87-036","Zakon o RAT - tarifni broj 1 i 164, 1 I 11"]
[null,"Opština Despotovac","Prijava završetka izrade temelja i završetka objekta u konstruktivnom smislu","Podnošenje zahteva","Lokalna naknada",null,{"$f":"650+650","v":1300},{"$f":"650+650","v":1300},"840-742351843-94","Opštinska uprava Despotovac",97,"87-036","Odluke o visini naknade za usluge opštinske uprave („Službeni glasnik opštine Despotovac“, broj 19/2012 i 10/2015)"]
[null,"Opština Despotovac","Upotrebna dozvola","Podnošenje zahteva","Republička administrativna taksa",null,310,310,"840-74222843-57 ","Budžet Republike Srbije",97,"87-036","Zakon o RAT - tarifni broj 1"]
[null,"Opština Despotovac","Upotrebna dozvola","Podnošenje zahteva","Lokalna naknada",null,150,150,"840-742351843-94","Opštinska uprava Despotovac",97,"87-036","Odluke o visini naknade za usluge opštinske uprave („Službeni glasnik opštine Despotovac“, broj 19/2012 i 10/2015)"]
[null,"Opština Despotovac","Upotrebna dozvola","Donošenje rešenja","Republička administrativna taksa",null,520,520,"840-74222843-57 ","Budžet Republike Srbije",97,"87-036","Zakon o RAT - tarifni broj 9"]
[null,"Opština Despotovac","Upotrebna dozvola","Donošenje rešenja","Lokalna naknada",null,1000,1000,"840-742351843-94","Opštinska uprava Despotovac",97,"87-036","Odluke o visini naknade za usluge opštinske uprave („Službeni glasnik opštine Despotovac“, broj 19/2012 i 10/2015)"]
[null,"Opština Despotovac","Priključenje objekta na infrastrukturu","Podnošenje zahteva","Republička administrativna taksa",null,1110,1110,"840-74222843-57 ","Budžet Republike Srbije",97,"87-036","Zakon o RAT - tarifni broj 1"]
[null,"Opština Despotovac","Priključenje objekta na infrastrukturu","Podnošenje zahteva","Lokalna naknada",null,1150,1150,"840-742351843-94","Opštinska uprava Despotovac",97,"87-036","Odluke o visini naknade za usluge opštinske uprave („Službeni glasnik opštine Despotovac“, broj 19/2012 i 10/2015)"]
[null,"Opština Dimitrovgrad","Lokacijski uslovi","Podnošenje zahteva","Republička administrativna taksa",null,310,310,"840-742221843-57","Budžet Republike Srbije",97,"84-037","Zakon o RAT - tarifni broj 1"]
[null,"Opština Dimitrovgrad","Lokacijski uslovi","Podnošenje zahteva","Lokalna administrativna taksa",null,1235,1235,"840-742351843-94","Opštinska uprava Dimitrovgrad",97,"84-037","Odluka o visini naknade za usluge koje vrši opštinska uprava, br.06-137/2016-I/11-10"]
[null,"Opština Dimitrovgrad","Građevinska dozvola","Donošenje rešenja","Republička administrativna taksa",null,800,800,"840-742221843-57","Budžet Republike Srbije",97,"84-037","Zakon o RAT - tarifni broj 1"]
[null,"Opština Dimitrovgrad","Građevinska dozvola","Donošenje rešenja","Lokalna administrativna taksa",null,1235,1235,"840-742351843-94","Opštinska uprava Dimitrovgrad",97,"84-037","Odluka o visini naknade za usluge koje vrši opštinska uprava, br.06-137/2016-I/11-10"]
[null,"Opština Dimitrovgrad","Rešenje o odobrenju izvođenja radova po članu 145 Zakona","Donošenje rešenja","Republička administrativna taksa",null,800,800,"840-742221843-57","Budžet Republike Srbije",97,"84-037","Zakon o RAT - tarifni broj 1"]
[null,"Opština Dimitrovgrad","Rešenje o odobrenju izvođenja radova po članu 145 Zakona","Donošenje rešenja","Lokalna administrativna taksa",null,1235,1235,"840-742351843-94","Opštinska uprava Dimitrovgrad",97,"84-037","Odluka o visini naknade za usluge koje vrši opštinska uprava, br.06-137/2016-I/11-10"]
[null,"Opština Dimitrovgrad","Prijava radova","Podnošenje zahteva","Lokalna administrativna taksa",null,172,172,"840-742351843-94","Opštinska uprava Dimitrovgrad",97,"84-037","Odluka o visini naknade za usluge koje vrši opštinska uprava, br.06-137/2016-I/11-10"]
[null,"Opština Dimitrovgrad","Prijava završetka izrade temelja i završetka objekta u konstruktivnom smislu","Podnošenje zahteva","Lokalna administrativna taksa",null,172,172,"840-742351843-94","Opštinska uprava Dimitrovgrad",97,"84-037","Odluka o visini naknade za usluge koje vrši opštinska uprava, br.06-137/2016-I/11-10"]
[null,"Opština Dimitrovgrad","Upotrebna dozvola","Donošenje rešenja","Republička administrativna taksa","DA","0.2% predračunske vrednosti objekta","0.2% predračunske vrednosti objekta","840-742221843-57","Budžet Republike Srbije",97,"84-037","Zakon o RAT - tarifni broj 170"]
[null,"Opština Dimitrovgrad","Upotrebna dozvola","Donošenje rešenja","Lokalna administrativna taksa",null,1239,1239,"840-742351843-94","Opštinska uprava Dimitrovgrad",97,"84-037","Odluka o visini naknade za usluge koje vrši opštinska uprava, br.06-137/2016-I/11-10"]
[null,"Opština Dimitrovgrad","Priključenje objekta na infrastrukturu","Podnošenje zahteva","Republička administrativna taksa",null,310,310,"840-742221843-57","Budžet Republike Srbije",97,"84-037","Zakon o RAT - tarifni broj 1"]
[null,"Opština Dimitrovgrad","Priključenje objekta na infrastrukturu","Podnošenje zahteva","Lokalna administrativna taksa",null,172,172,"840-742351843-94","Opštinska uprava Dimitrovgrad",97,"84-037","Odluka o visini naknade za usluge koje vrši opštinska uprava, br.06-137/2016-I/11-10"]
[null,"Opština Doljevac","Lokacijski uslovi","Podnošenje zahteva","Republička administrativna taksa",null,310,310,"840-742221843-57","Budžet Republike Srbije",97,"81-038 ","Zakon o RAT - tarifni broj 1"]
[null,"Opština Doljevac","Građevinska dozvola","Podnošenje zahteva","Republička administrativna taksa",null,310,310,"840-742221843-57","Budžet Republike Srbije",97,"81-038 ","Zakon o RAT - tarifni broj 1"]
[null,"Opština Doljevac","Građevinska dozvola","Donošenje rešenja","Republička administrativna taksa",null,800,800,"840-742221843-57","Budžet Republike Srbije",97,"81-038 ","Zakon o RAT - tarifni broj 165"]
[null,"Opština Doljevac","Rešenje o odobrenju izvođenja radova po članu 145 Zakona","Podnošenje zahteva","Republička administrativna taksa",null,310,310,"840-742221843-57","Budžet Republike Srbije",97,"81-038 ","Zakon o RAT - tarifni broj 1"]
[null,"Opština Doljevac","Rešenje o odobrenju izvođenja radova po članu 145 Zakona","Donošenje rešenja","Republička administrativna taksa",null,800,800,"840-742221843-57","Budžet Republike Srbije",97,"81-038 ","Zakon o RAT - tarifni broj 165"]
[null,"Opština Doljevac","Prijava radova","Podnošenje zahteva","Republička administrativna taksa",null,310,310,"840-742221843-57","Budžet Republike Srbije",97,"81-038 ","Zakon o RAT - tarifni broj 1"]
[null,"Opština Doljevac","Prijava završetka izrade temelja i završetka objekta u konstruktivnom smislu","Podnošenje zahteva","Republička administrativna taksa",null,310,310,"840-742221843-57","Budžet Republike Srbije",97,"81-038 ","Zakon o RAT - tarifni broj 1"]
[null,"Opština Doljevac","Dostavljanje tehničke dokumentacije","Podnošenje zahteva","Republička administrativna taksa",null,310,310,"840-742221843-57","Budžet Republike Srbije",97,"81-038 ","Zakon o RAT - tarifni broj 1"]
[null,"Opština Doljevac","Upotrebna dozvola","Podnošenje zahteva","Republička administrativna taksa",null,310,310,"840-742221843-57","Budžet Republike Srbije",97,"81-038 ","Zakon o RAT - tarifni broj 1"]
[null,"Opština Doljevac","Upotrebna dozvola","Donošenje rešenja","Republička administrativna taksa",null,520,520,"840-742221843-57","Budžet Republike Srbije",97,"81-038 ","Zakon o RAT - tarifni broj 9"]
[null,"Opština Doljevac","Priključenje objekta na infrastrukturu","Podnošenje zahteva","Republička administrativna taksa",null,310,310,"840-742221843-57","Budžet Republike Srbije",97,"81-038 ","Zakon o RAT - tarifni broj 1"]
[null,"Opština Gadžin Han","Lokacijski uslovi","Podnošenje zahteva","Republička administrativna taksa",null,310,310,"840-742221843-57","Budžet Republike Srbije",97,"78-039","Zakon o RAT - tarifni broj 1"]
[null,"Opština Gadžin Han","Lokacijski uslovi","Podnošenje zahteva","Lokalna administrativna taksa",null,180,180,"840-745151843-03","Opštinska uprava Gadžin Han",97,"78-039","Odluka o naknadama za rad organa opštinske uprave („Sl.list.gr.Niša“,br.14/06... 81/09)"]
[null,"Opština Gadžin Han","Lokacijski uslovi","Donošenje rešenja","Lokalna administrativna taksa",null,1500,1500,"840-745151843-03","Opštinska uprava Gadžin Han",97,"78-039","Odluka o naknadama za rad organa opštinske uprave („Sl.list.gr.Niša“,br.14/06... 81/09)"]
[null,"Opština Gadžin Han","Građevinska dozvola","Podnošenje zahteva","Republička administrativna taksa",null,310,310,"840-742221843-57","Budžet Republike Srbije",97,"78-039","Zakon o RAT - tarifni broj 1"]
[null,"Opština Gadžin Han","Građevinska dozvola","Podnošenje zahteva","Lokalna administrativna taksa",null,180,180,"840-745151843-03","Opštinska uprava Gadžin Han",97,"78-039","Odluka o naknadama za rad organa opštinske uprave („Sl.list.gr.Niša“,br.14/06... 81/09)"]
[null,"Opština Gadžin Han","Građevinska dozvola","Donošenje rešenja","Republička administrativna taksa",null,800,800,"840-742221843-57","Budžet Republike Srbije",97,"78-039","Zakon o RAT - tarifni broj 165"]
[null,"Opština Gadžin Han","Građevinska dozvola","Donošenje rešenja","Lokalna administrativna taksa",null,1500,1500,"840-745151843-03","Opštinska uprava Gadžin Han",97,"78-039","Odluka o naknadama za rad organa opštinske uprave („Sl.list.gr.Niša“,br.14/06... 81/09)"]
[null,"Opština Gadžin Han","Rešenje o odobrenju izvođenja radova po članu 145 Zakona","Podnošenje zahteva","Republička administrativna taksa",null,310,310,"840-742221843-57","Budžet Republike Srbije",97,"78-039","Zakon o RAT - tarifni broj 1"]
[null,"Opština Gadžin Han","Rešenje o odobrenju izvođenja radova po članu 145 Zakona","Podnošenje zahteva","Lokalna administrativna taksa",null,180,180,"840-745151843-03","Opštinska uprava Gadžin Han",97,"78-039","Odluka o naknadama za rad organa opštinske uprave („Sl.list.gr.Niša“,br.14/06... 81/09)"]
[null,"Opština Gadžin Han","Rešenje o odobrenju izvođenja radova po članu 145 Zakona","Donošenje rešenja","Republička administrativna taksa",null,800,800,"840-742221843-57","Budžet Republike Srbije",97,"78-039","Zakon o RAT - tarifni broj 165"]
[null,"Opština Gadžin Han","Rešenje o odobrenju izvođenja radova po članu 145 Zakona","Donošenje rešenja","Lokalna administrativna taksa",null,1500,1500,"840-745151843-03","Opštinska uprava Gadžin Han",97,"78-039","Odluka o naknadama za rad organa opštinske uprave („Sl.list.gr.Niša“,br.14/06... 81/09)"]
[null,"Opština Gadžin Han","Prijava radova","Podnošenje zahteva","Republička administrativna taksa",null,310,310,"840-742221843-57","Budžet Republike Srbije",97,"78-039","Zakon o RAT - tarifni broj 1"]
[null,"Opština Gadžin Han","Prijava radova","Podnošenje zahteva","Lokalna administrativna taksa",null,180,180,"840-745151843-03","Opštinska uprava Gadžin Han",97,"78-039","Odluka o naknadama za rad organa opštinske uprave („Sl.list.gr.Niša“,br.14/06... 81/09)"]
[null,"Opština Gadžin Han","Prijava radova","Donošenje rešenja","Lokalna administrativna taksa",null,1500,1500,"840-745151843-03","Opštinska uprava Gadžin Han",97,"78-039","Odluka o naknadama za rad organa opštinske uprave („Sl.list.gr.Niša“,br.14/06... 81/09)"]
[null,"Opština Gadžin Han","Prijava završetka izrade temelja i završetka objekta u konstruktivnom smislu","Podnošenje zahteva","Republička administrativna taksa",null,310,310,"840-742221843-57","Budžet Republike Srbije",97,"78-039","Zakon o RAT - tarifni broj 1"]
[null,"Opština Gadžin Han","Prijava završetka izrade temelja i završetka objekta u konstruktivnom smislu","Podnošenje zahteva","Lokalna administrativna taksa",null,180,180,"840-745151843-03","Opštinska uprava Gadžin Han",97,"78-039","Odluka o naknadama za rad organa opštinske uprave („Sl.list.gr.Niša“,br.14/06... 81/09)"]
[null,"Opština Gadžin Han","Prijava završetka izrade temelja i završetka objekta u konstruktivnom smislu","Donošenje rešenja","Lokalna administrativna taksa",null,1500,1500,"840-745151843-03","Opštinska uprava Gadžin Han",97,"78-039","Odluka o naknadama za rad organa opštinske uprave („Sl.list.gr.Niša“,br.14/06... 81/09)"]
[null,"Opština Gadžin Han","Dostavljanje tehničke dokumentacije","Podnošenje zahteva","Republička administrativna taksa",null,310,310,"840-742221843-57","Budžet Republike Srbije",97,"78-039","Zakon o RAT - tarifni broj 1"]
[null,"Opština Gadžin Han","Dostavljanje tehničke dokumentacije","Podnošenje zahteva","Lokalna administrativna taksa",null,180,180,"840-745151843-03","Opštinska uprava Gadžin Han",97,"78-039","Odluka o naknadama za rad organa opštinske uprave („Sl.list.gr.Niša“,br.14/06... 81/09)"]
[null,"Opština Gadžin Han","Dostavljanje tehničke dokumentacije","Donošenje rešenja","Lokalna administrativna taksa",null,1500,1500,"840-745151843-03","Opštinska uprava Gadžin Han",97,"78-039","Odluka o naknadama za rad organa opštinske uprave („Sl.list.gr.Niša“,br.14/06... 81/09)"]
[null,"Opština Gadžin Han","Upotrebna dozvola","Podnošenje zahteva","Republička administrativna taksa",null,310,310,"840-742221843-57","Budžet Republike Srbije",97,"78-039","Zakon o RAT - tarifni broj 1"]
[null,"Opština Gadžin Han","Upotrebna dozvola","Podnošenje zahteva","Lokalna administrativna taksa",null,180,180,"840-745151843-03","Opštinska uprava Gadžin Han",97,"78-039","Odluka o naknadama za rad organa opštinske uprave („Sl.list.gr.Niša“,br.14/06... 81/09)"]
[null,"Opština Gadžin Han","Upotrebna dozvola","Donošenje rešenja","Republička administrativna taksa",null,520,520,"840-742221843-57","Budžet Republike Srbije",97,"78-039","Zakon o RAT - tarifni broj 19"]
[null,"Opština Gadžin Han","Upotrebna dozvola","Donošenje rešenja","Lokalna administrativna taksa",null,1500,1500,"840-745151843-03","Opštinska uprava Gadžin Han",97,"78-039","Odluka o naknadama za rad organa opštinske uprave („Sl.list.gr.Niša“,br.14/06... 81/09)"]
[null,"Opština Gadžin Han","Priključenje objekta na infrastrukturu","Podnošenje zahteva","Republička administrativna taksa",null,310,310,"840-742221843-57","Budžet Republike Srbije",97,"78-039","Zakon o RAT - tarifni broj 1"]
[null,"Opština Gadžin Han","Priključenje objekta na infrastrukturu","Podnošenje zahteva","Lokalna administrativna taksa",null,180,180,"840-745151843-03","Opštinska uprava Gadžin Han",97,"78-039","Odluka o naknadama za rad organa opštinske uprave („Sl.list.gr.Niša“,br.14/06... 81/09)"]
[null,"Opština Golubac","Lokacijski uslovi","Podnošenje zahteva","Republička administrativna taksa",null,310,310,"840-74222843-57 ","Budžet Republike Srbije",97,"75-040","Zakon o RAT - tarifni broj 1"]
[null,"Opština Golubac","Lokacijski uslovi","Podnošenje zahteva","Lokalna administrativna taksa",null,150,150,"840-742251843-73","Opštinska uprava Golubac",97,"75-040","Odluke o visini naknade za usluge opštinske uprave"]
[null,"Opština Golubac","Lokacijski uslovi","Donošenje rešenja","Lokalna naknada",null,{"$f":"15*1000","v":15000},{"$f":"25*1000","v":25000},"840-74222843-57 ","Opštinska uprava Golubac",97,"75-040","Odluke o visini naknade za usluge opštinske uprave"]
[null,"Opština Golubac","Građevinska dozvola","Podnošenje zahteva","Republička administrativna taksa",null,310,310,"840-74222843-57 ","Budžet Republike Srbije",97,"75-040","Zakon o RAT - tarifni broj 1"]
[null,"Opština Golubac","Građevinska dozvola","Podnošenje zahteva","Lokalna administrativna taksa",null,150,150,"840-742251843-73","Opštinska uprava Golubac",97,"75-040","Odluke o visini naknade za usluge opštinske uprave"]
[null,"Opština Golubac","Građevinska dozvola","Donošenje rešenja","Republička administrativna taksa",null,800,800,"840-74222843-57 ","Budžet Republike Srbije",97,"75-040","Zakon o RAT - tarifni broj 165"]
[null,"Opština Golubac","Građevinska dozvola","Donošenje rešenja","Lokalna administrativna taksa",null,1800,1800,"840-742251843-73","Opštinska uprava Golubac",97,"75-040","Odluke o visini naknade za usluge opštinske uprave"]
[null,"Opština Golubac","Rešenje o odobrenju izvođenja radova po članu 145 Zakona","Podnošenje zahteva","Republička administrativna taksa",null,310,310,"840-74222843-57 ","Budžet Republike Srbije",97,"75-040","Zakon o RAT - tarifni broj 1"]
[null,"Opština Golubac","Rešenje o odobrenju izvođenja radova po članu 145 Zakona","Podnošenje zahteva","Lokalna administrativna taksa",null,150,150,"840-742251843-73","Opštinska uprava Golubac",97,"75-040","Odluke o visini naknade za usluge opštinske uprave"]
[null,"Opština Golubac","Rešenje o odobrenju izvođenja radova po članu 145 Zakona","Donošenje rešenja","Republička administrativna taksa",null,800,800,"840-74222843-57 ","Budžet Republike Srbije",97,"75-040","Zakon o RAT - tarifni broj 165"]
[null,"Opština Golubac","Rešenje o odobrenju izvođenja radova po članu 145 Zakona","Donošenje rešenja","Lokalna administrativna taksa",null,1000,1000,"840-742251843-73","Opštinska uprava Golubac",97,"75-040","Odluke o visini naknade za usluge opštinske uprave"]
[null,"Opština Golubac","Prijava radova","Podnošenje zahteva","Republička administrativna taksa",null,310,310,"840-74222843-57 ","Budžet Republike Srbije",97,"75-040","Zakon o RAT - tarifni broj 1"]
[null,"Opština Golubac","Prijava radova","Podnošenje zahteva","Lokalna administrativna taksa",null,150,150,"840-742251843-73","Opštinska uprava Golubac",97,"75-040","Odluke o visini naknade za usluge opštinske uprave"]
[null,"Opština Golubac","Prijava radova","Podnošenje zahteva","Lokalna administrativna taksa",null,500,500,"840-742251843-73","Opštinska uprava Golubac",97,"75-040","Odluke o visini naknade za usluge opštinske uprave"]
[null,"Opština Golubac","Prijava završetka izrade temelja i završetka objekta u konstruktivnom smislu","Podnošenje zahteva","Republička administrativna taksa",null,1600,1600,"840-74222843-57 ","Budžet Republike Srbije",97,"75-040","Zakon o RAT - tarifni broj 1"]
[null,"Opština Golubac","Prijava završetka izrade temelja i završetka objekta u konstruktivnom smislu","Podnošenje zahteva","Lokalna administrativna taksa",null,700,700,"840-742251843-73","Opštinska uprava Golubac",97,"75-040","Odluke o visini naknade za usluge opštinske uprave"]
[null,"Opština Golubac","Dostavljanje tehničke dokumentacije","Podnošenje zahteva","Republička administrativna taksa",null,310,310,"840-74222843-57 ","Budžet Republike Srbije",97,"75-040","Zakon o RAT - tarifni broj 1"]
[null,"Opština Golubac","Dostavljanje tehničke dokumentacije","Podnošenje zahteva","Lokalna administrativna taksa",null,150,150,"840-742251843-73","Opštinska uprava Golubac",97,"75-040","Odluke o visini naknade za usluge opštinske uprave"]
[null,"Opština Golubac","Upotrebna dozvola","Podnošenje zahteva","Republička administrativna taksa",null,310,310,"840-74222843-57 ","Budžet Republike Srbije",97,"75-040","Zakon o RAT - tarifni broj 1"]
[null,"Opština Golubac","Upotrebna dozvola","Podnošenje zahteva","Lokalna administrativna taksa",null,150,150,"840-742251843-73","Opštinska uprava Golubac",97,"75-040","Odluke o visini naknade za usluge opštinske uprave"]
[null,"Opština Golubac","Upotrebna dozvola","Donošenje rešenja","Republička administrativna taksa","DA","0.2% predračunske vrednosti objekta","0.2% predračunske vrednosti objekta","840-74222843-57 ","Budžet Republike Srbije",97,"75-040","Zakon o RAT - tarifni broj 1"]
[null,"Opština Golubac","Upotrebna dozvola","Donošenje rešenja","Lokalna administrativna taksa",null,1800,1800,"840-742251843-73","Opštinska uprava Golubac",97,"75-040","Odluke o visini naknade za usluge opštinske uprave"]
[null,"Opština Golubac","Priključenje objekta na infrastrukturu","Podnošenje zahteva","Republička administrativna taksa",null,310,310,"840-74222843-57 ","Budžet Republike Srbije",97,"75-040","Zakon o RAT - tarifni broj 1"]
[null,"Opština Golubac","Priključenje objekta na infrastrukturu","Podnošenje zahteva","Lokalna administrativna taksa",null,150,150,"840-742251843-73","Opštinska uprava Golubac",97,"75-040","Odluke o visini naknade za usluge opštinske uprave"]
[null,"Opština Gornji Milanovac","Lokacijski uslovi","Podnošenje zahteva","Lokalna administrativna taksa",null,900,900,"840-742251843-73","Opštinska uprava Gornji Milanovac",97,"72-041 ","Opštinske administrativne takse Beograd Pop Lukina 7-9"]
[null,"Opština Gornji Milanovac","Građevinska dozvola","Podnošenje zahteva","Republička administrativna taksa",null,800,800,"840-742221843-57","Budžet Republike Srbije",97,"72-041 ","Zakon o RAT - tarifni broj 165"]
[null,"Opština Gornji Milanovac","Građevinska dozvola","Donošenje rešenja","Lokalna administrativna taksa",null,{"$f":"67*1000","v":67000},{"$f":"45*1000","v":45000},"840-741535843-08","Opštinska uprava Gornji Milanovac",97,"72-041 ","Opštinske administrativne takse Beograd Pop Lukina 7-9"]
[null,"Opština Gornji Milanovac","Rešenje o odobrenju izvođenja radova po članu 145 Zakona","Podnošenje zahteva","Republička administrativna taksa",null,800,800,"840-742221843-57","Budžet Republike Srbije",97,"72-041 ","Zakon o RAT - tarifni broj 165"]
[null,"Opština Gornji Milanovac","Rešenje o odobrenju izvođenja radova po članu 145 Zakona","Donošenje rešenja","Lokalna administrativna taksa",null,{"$f":"67*1000","v":67000},{"$f":"45*1000","v":45000},"840-741535843-08","Opštinska uprava Gornji Milanovac",97,"72-041 ","Opštinske administrativne takse Beograd Pop Lukina 7-9"]
[null,"Opština Gornji Milanovac","Prijava radova","Podnošenje zahteva","Republička administrativna taksa",null,310,310,"840-742221843-57","Budžet Republike Srbije",97,"72-041 ","Zakon o RAT - tarifni broj 1"]
[null,"Opština Gornji Milanovac","Prijava završetka izrade temelja i završetka objekta u konstruktivnom smislu","Podnošenje zahteva","Republička administrativna taksa",null,{"$f":"310+1600","v":1910},{"$f":"310+1600","v":1910},"840-742221843-57","Budžet Republike Srbije",97,"72-041 ","Zakon o RAT - tarifni broj 1 i tarifni broj 164"]
[null,"Opština Gornji Milanovac","Dostavljanje tehničke dokumentacije","Podnošenje zahteva","Republička administrativna taksa",null,310,310,"840-742221843-57","Budžet Republike Srbije",97,"72-041 ","Zakon o RAT - tarifni broj 1"]
[null,"Opština Gornji Milanovac","Upotrebna dozvola","Podnošenje zahteva","Republička administrativna taksa",null,310,310,"840-742221843-57","Budžet Republike Srbije",97,"72-041 ","Zakon o RAT - tarifni broj 1"]
[null,"Opština Gornji Milanovac","Upotrebna dozvola","Donošenje rešenja","Republička administrativna taksa","DA","0.2% predračunske vrednosti objekta","0.2% predračunske vrednosti objekta","840-742221843-57","Budžet Republike Srbije",97,"72-041 ","Zakon o RAT - tarifni broj 170"]
[null,"Opština Gornji Milanovac","Priključenje objekta na infrastrukturu","Podnošenje zahteva","Republička administrativna taksa",null,310,310,"840-742221843-57","Budžet Republike Srbije",97,"72-041 ","Zakon o RAT - tarifni broj 1"]
[null,"Opština Irig","Lokacijski uslovi","Podnošenje zahteva","Republička administrativna taksa",null,{"$f":"310+520","v":830},{"$f":"310+520","v":830},"840-742221843-57","Budžet Republike Srbije",97,"41-213","Zakon o RAT - tarifni broj 1 i 9"]
[null,"Opština Irig","Lokacijski uslovi","Podnošenje zahteva","Lokalna administrativna taksa",null,3000,3000,"840-742251843-73","Opštinska uprava Irig",97,"41-213","Odluka o lokalnim administrativnim taksama, 43/2012"]
[null,"Opština Irig","Građevinska dozvola","Podnošenje zahteva","Republička administrativna taksa",null,830,830,"840-742221843-57","Budžet Republike Srbije",97,"41-213","Zakon o RAT - tarifni broj 1 i 9"]
[null,"Opština Irig","Građevinska dozvola","Podnošenje zahteva","Lokalna administrativna taksa",null,430,430,"840-742251843-73","Opštinska uprava Irig",97,"41-213","Odluka o lokalnim administrativnim taksama, 43/2012"]
[null,"Opština Irig","Rešenje o odobrenju izvođenja radova po članu 145 Zakona","Podnošenje zahteva","Republička administrativna taksa",null,830,830,"840-742221843-57","Budžet Republike Srbije",97,"41-213","Zakon o RAT - tarifni broj 1 i 9"]
[null,"Opština Irig","Rešenje o odobrenju izvođenja radova po članu 145 Zakona","Podnošenje zahteva","Lokalna administrativna taksa",null,430,430,"840-742251843-73","Opštinska uprava Irig",97,"41-213","Odluka o lokalnim administrativnim taksama, 43/2012"]
[null,"Opština Irig","Prijava radova","Podnošenje zahteva","Lokalna administrativna taksa",null,600,600,"840-742251843-73","Opštinska uprava Irig",97,"41-213","Odluka o lokalnim administrativnim taksama, 43/2012"]
[null,"Opština Irig","Prijava završetka izrade temelja i završetka objekta u konstruktivnom smislu","Podnošenje zahteva","Republička administrativna taksa",null,1600,1600,"840-742221843-57","Budžet Republike Srbije",97,"41-213","Zakon o RAT - tarifni broj 164"]
[null,"Opština Irig","Prijava završetka izrade temelja i završetka objekta u konstruktivnom smislu","Podnošenje zahteva","Lokalna administrativna taksa",null,600,600,"840-742251843-73","Opštinska uprava Irig",97,"41-213","Odluka o lokalnim administrativnim taksama, 43/2012"]
[null,"Opština Irig","Upotrebna dozvola","Podnošenje zahteva","Republička administrativna taksa",null,830,830,"840-742221843-57","Budžet Republike Srbije",97,"41-213","Zakon o RAT - tarifni broj 1 i 9"]
[null,"Opština Irig","Upotrebna dozvola","Podnošenje zahteva","Lokalna administrativna taksa",null,430,430,"840-742251843-73","Opštinska uprava Irig",97,"41-213","Odluka o lokalnim administrativnim taksama, 43/2012"]
[null,"Opština Ivanjica","Lokacijski uslovi","Podnošenje zahteva","Lokalna administrativna taksa",null,38500,38500,"840-742251843-73","Opštinska uprava Ivanjica",97,"69-042","Odluka o lokalnim adm. Taksama (Opštinski sl. glasnik br.10/12)"]
[null,"Opština Ivanjica","Građevinska dozvola","Donošenje rešenja","Republička administrativna taksa",null,800,800,"840-742221843-57","Budžet Republike Srbije",97,"69-042","Zakon o RAT - tarifni broj 165"]
[null,"Opština Ivanjica","Rešenje o odobrenju izvođenja radova po članu 145 Zakona","Donošenje rešenja","Republička administrativna taksa",null,1000,1000,"840-742221843-57","Budžet Republike Srbije",97,"69-042"]
[null,"Opština Ivanjica","Prijava radova","Podnošenje zahteva","Lokalna administrativna taksa",null,340,340,"840-742251843-73","Opštinska uprava Ivanjica",97,"69-042","Opštinske administrativne takse Beograd Pop Lukina 7-9"]
[null,"Opština Ivanjica","Prijava završetka izrade temelja i završetka objekta u konstruktivnom smislu","Podnošenje zahteva","Republička administrativna taksa",null,1600,1600,"840-742221843-57","Budžet Republike Srbije",97,"69-042","Zakon o RAT - taritni broj 164"]
[null,"Opština Ivanjica","Upotrebna dozvola","Donošenje rešenja","Republička administrativna taksa","DA","0.2% predračunske vrednosti objekta","0.2% predračunske vrednosti objekta","840-742221843-57","Budžet Republike Srbije",97,"69-042","Zakon o RAT - taritni broj 170"]
[null,"Opština Knić","Lokacijski uslovi","Podnošenje zahteva","Lokalna administrativna taksa",null,4380,4380,"840-742251843-73","Opštinska uprava Knić",97,"63-044","Odluka o lokalnim administrativnim taksama (Službeni glasnik opštine Knić br. 16/2013 i 19/2016)"]
[null,"Opština Knić","Građevinska dozvola","Podnošenje zahteva","Republička administrativna taksa",null,310,310,"840-742221843-57","Budžet Republike Srbije",97,"63-044","Zakon o RAT - tarifni broj 1"]
[null,"Opština Knić","Građevinska dozvola","Donošenje rešenja","Republička administrativna taksa",null,800,800,"840-742221843-57","Budžet Republike Srbije",97,"63-044","Zakon o RAT - tarifni broj 9"]
[null,"Opština Knić","Rešenje o odobrenju izvođenja radova po članu 145 Zakona","Podnošenje zahteva","Republička administrativna taksa",null,310,310,"840-742221843-57","Budžet Republike Srbije",97,"63-044","Zakon o RAT - tarifni broj 1"]
[null,"Opština Knić","Rešenje o odobrenju izvođenja radova po članu 145 Zakona","Donošenje rešenja","Republička administrativna taksa",null,270,270,"840-742221843-57","Budžet Republike Srbije",97,"63-044","Zakon o RAT - tarifni broj 9"]
[null,"Opština Knić","Prijava radova","Podnošenje zahteva","Republička administrativna taksa",null,310,310,"840-742221843-57","Budžet Republike Srbije",97,"63-044","Zakon o RAT - tarifni broj 1"]
[null,"Opština Knić","Prijava završetka izrade temelja i završetka objekta u konstruktivnom smislu","Podnošenje zahteva","Republička administrativna taksa",null,310,310,"840-742221843-57","Budžet Republike Srbije",97,"63-044","Zakon o RAT - tarifni broj 1"]
[null,"Opština Knić","Upotrebna dozvola","Podnošenje zahteva","Republička administrativna taksa",null,310,310,"840-742221843-57","Budžet Republike Srbije",97,"63-044","Zakon o RAT - tarifni broj 1"]
[null,"Opština Knić","Upotrebna dozvola","Donošenje rešenja","Republička administrativna taksa","DA","0.2% predračunske vrednosti objekta","0.2% predračunske vrednosti objekta","840-742221843-57","Budžet Republike Srbije",97,"63-044","Zakon o RAT - tarifni broj 170"]
[null,"Opština Knić","Upotrebna dozvola","Podnošenje zahteva","Republička administrativna taksa",null,310,310,"840-742221843-57","Budžet Republike Srbije",97,"63-044","Zakon o RAT - tarifni broj 1"]
[null,"Opština Knjaževac","Lokacijski uslovi","Podnošenje zahteva","Lokalna administrativna taksa",null,4131,4131,"840-742251843-73","Opštinska uprava Knjaževac",97,"60-045","Odluka o lokalnim administrativnim taksama "]
[null,"Opština Knjaževac","Građevinska dozvola","Podnošenje zahteva","Republička administrativna taksa",null,1110,1110,"840-742221843-57","Budžet Republike Srbije",97,"60-045","Zakon o RAT - tarifni broj 1 i tarifni broj 165"]
[null,"Opština Knjaževac","Prijava radova","Podnošenje zahteva","Lokalna administrativna taksa","DA","0.1% predračunske vrednosti objekta","0.1% predračunske vrednosti objekta","840-742251843-73","Opštinska uprava Knjaževac",97,"60-045","Odluka o lokalnim administrativnim taksama "]
[null,"Opština Knjaževac","Prijava završetka izrade temelja i završetka objekta u konstruktivnom smislu","Podnošenje zahteva","Republička administrativna taksa",null,1600,1600,"840-742221843-57","Budžet Republike Srbije",97,"60-045","Zakon o RAT - tarifni broj 164"]
[null,"Opština Knjaževac","Prijava završetka izrade temelja i završetka objekta u konstruktivnom smislu","Podnošenje zahteva","Lokalna administrativna taksa",null,1000,1000,"840-742251843-73","Opštinska uprava Knjaževac",97,"60-045","Odluka o lokalnim administrativnim taksama "]
[null,"Opština Knjaževac","Dostavljanje tehničke dokumentacije","Podnošenje zahteva","Lokalna administrativna taksa",null,5000,5000,"840-742251843-73","Opštinska uprava Knjaževac",97,"60-045","Odluka o lokalnim administrativnim taksama "]
[null,"Opština Knjaževac","Upotrebna dozvola","Donošenje rešenja","Republička administrativna taksa","DA","0.2% predračunske vrednosti objekta","0.2% predračunske vrednosti objekta","840-742221843-57","Budžet Republike Srbije",97,"60-045","Zakon o RAT - tarifni broj 170"]
[null,"Opština Knjaževac","Priključenje objekta na infrastrukturu","Podnošenje zahteva","Lokalna administrativna taksa",null,3000,3000,"840-742251843-73","Opštinska uprava Knjaževac",97,"60-045","Odluka o lokalnim administrativnim taksama "]
[null,"Opština Koceljeva","Lokacijski uslovi","Podnošenje zahteva","Republička administrativna taksa",null,310,310,"840-742221843-57","Budžet Republike Srbije",97,"57-046","Zakon o RAT - tarifni broj 1"]
[null,"Opština Koceljeva","Lokacijski uslovi","Donošenje rešenja","Lokalna administrativna taksa",null,4480,1390,"840-742251843-73","Opštinska uprava Koceljeva",97,"57-046","Odluka o LAT ’’Sl.list opštine Koceljeva’’, broj 23/13"]
[null,"Opština Koceljeva","Lokacijski uslovi","Donošenje rešenja","Lokalna naknada",null,2030,1410,"840-742351843-94","Opštinska uprava Koceljeva",97,"57-046","Odluka o LAT ’’Sl.list opštine Koceljeva’’, broj 23/13"]
[null,"Opština Koceljeva","Građevinska dozvola","Podnošenje zahteva","Republička administrativna taksa",null,310,310,"840-742221843-57","Budžet Republike Srbije",97,"57-046","Zakon o RAT - tarifni broj 1"]
[null,"Opština Koceljeva","Građevinska dozvola","Donošenje rešenja","Lokalna naknada",null,3040,1740,"840-742351843-94","Opštinska uprava Koceljeva",97,"57-046","Odluka o LAT ’’Sl.list opštine Koceljeva’’, broj 23/13"]
[null,"Opština Koceljeva","Građevinska dozvola","Donošenje rešenja","Republička administrativna taksa",null,800,270,"840-742221843-57","Budžet Republike Srbije",97,"57-046","Zakon o RAT - tarifni broj 165"]
[null,"Opština Koceljeva","Rešenje o odobrenju izvođenja radova po članu 145 Zakona","Podnošenje zahteva","Republička administrativna taksa",null,310,310,"840-742221843-57","Budžet Republike Srbije",97,"57-046","Zakon o RAT - tarifni broj 1"]
[null,"Opština Koceljeva","Rešenje o odobrenju izvođenja radova po članu 145 Zakona","Donošenje rešenja","Lokalna naknada",null,850,850,"840-742351843-94","Opštinska uprava Koceljeva",97,"57-046","Odluka o LAT ’’Sl.list opštine Koceljeva’’, broj 23/13"]
[null,"Opština Koceljeva","Rešenje o odobrenju izvođenja radova po članu 145 Zakona","Donošenje rešenja","Republička administrativna taksa",null,400,270,"840-742221843-57","Budžet Republike Srbije",97,"57-046","Zakon o RAT - tarifni broj 165"]
[null,"Opština Koceljeva","Prijava radova","Podnošenje zahteva","Republička administrativna taksa",null,310,310,"840-742221843-57","Budžet Republike Srbije",97,"57-046","Zakon o RAT - tarifni broj 1"]
[null,"Opština Koceljeva","Prijava radova","Donošenje rešenja","Lokalna naknada",null,600,600,"840-742351843-94","Opštinska uprava Koceljeva",97,"57-046","Odluka o LAT ’’Sl.list opštine Koceljeva’’, broj 23/13"]
[null,"Opština Koceljeva","Prijava završetka izrade temelja i završetka objekta u konstruktivnom smislu","Podnošenje zahteva","Republička administrativna taksa",null,{"$f":"310+1600","v":1910},{"$f":"310+1600","v":1910},"840-742221843-57","Budžet Republike Srbije",97,"57-046","Zakon o RAT - tarifni broj 1 i 164"]
[null,"Opština Koceljeva","Prijava završetka izrade temelja i završetka objekta u konstruktivnom smislu","Donošenje rešenja","Lokalna naknada",null,990,990,"840-742351843-94","Opštinska uprava Koceljeva",97,"57-046","Odluka o LAT ’’Sl.list opštine Koceljeva’’, broj 23/13"]
[null,"Opština Koceljeva","Dostavljanje tehničke dokumentacije","Podnošenje zahteva","Republička administrativna taksa",null,310,310,"840-742221843-57","Budžet Republike Srbije",97,"57-046","Zakon o RAT - tarifni broj 1"]
[null,"Opština Koceljeva","Upotrebna dozvola","Podnošenje zahteva","Republička administrativna taksa",null,310,310,"840-742221843-57","Budžet Republike Srbije",97,"57-046","Zakon o RAT - tarifni broj 1"]
[null,"Opština Koceljeva","Upotrebna dozvola","Donošenje rešenja","Lokalna naknada",null,990,990,"840-742351843-94","Opštinska uprava Koceljeva",97,"57-046","Odluka o LAT ’’Sl.list opštine Koceljeva’’, broj 23/13"]
[null,"Opština Koceljeva","Upotrebna dozvola","Podnošenje zahteva","Republička administrativna taksa","Da","0.2% predračunske vrednosti objekta","0.2% predračunske vrednosti objekta","840-742221843-57","Budžet Republike Srbije",97,"57-046","Zakon o RAT - tarifni broj 170"]
[null,"Opština Koceljeva","Priključenje objekta na infrastrukturu","Podnošenje zahteva","Republička administrativna taksa",null,310,310,"840-742221843-57","Budžet Republike Srbije",97,"57-046","Zakon o RAT - tarifni broj 1"]
[null,"Opština Kosjerić","Lokacijski uslovi","Podnošenje zahteva","Republička administrativna taksa",null,310,310,"840-74222843-57 ","Budžet Republike Srbije",97,"51-048","Zakon o RAT - tarifni broj 1"]
[null,"Opština Kosjerić","Lokacijski uslovi","Podnošenje zahteva","Lokalna administrativna taksa",null,80200,44200,"840-745151843-03","Opštinska uprava Kosjerić",97,"51-048","Odluka u lokalnim administrativnimm taksama "]
[null,"Opština Kosjerić","Građevinska dozvola","Podnošenje zahteva","Republička administrativna taksa",null,310,310,"840-74222843-57 ","Budžet Republike Srbije",97,"51-048","Zakon o RAT - tarifni broj 1"]
[null,"Opština Kosjerić","Građevinska dozvola","Podnošenje zahteva","Lokalna administrativna taksa",null,200,200,"840-745151843-03","Opštinska uprava Kosjerić",97,"51-048","Odluka u lokalnim administrativnimm taksama "]
[null,"Opština Kosjerić","Građevinska dozvola","Donošenje rešenja","Republička administrativna taksa",null,800,800,"840-74222843-57 ","Budžet Republike Srbije",97,"51-048","Zakon o RAT - tarifni broj 165"]
[null,"Opština Kosjerić","Građevinska dozvola","Donošenje rešenja","Lokalna administrativna taksa",null,500,500,"840-745151843-03","Opštinska uprava Kosjerić",97,"51-048","Odluka u lokalnim administrativnimm taksama "]
[null,"Opština Kosjerić","Rešenje o odobrenju izvođenja radova po članu 145 Zakona","Podnošenje zahteva","Republička administrativna taksa",null,310,310,"840-74222843-57 ","Budžet Republike Srbije",97,"51-048","Zakon o RAT - tarifni broj 1"]
[null,"Opština Kosjerić","Rešenje o odobrenju izvođenja radova po članu 145 Zakona","Podnošenje zahteva","Lokalna administrativna taksa",null,200,200,"840-745151843-03","Opštinska uprava Kosjerić",97,"51-048","Odluka u lokalnim administrativnimm taksama "]
[null,"Opština Kosjerić","Rešenje o odobrenju izvođenja radova po članu 145 Zakona","Donošenje rešenja","Republička administrativna taksa",null,800,800,"840-74222843-57 ","Budžet Republike Srbije",97,"51-048","Zakon o RAT - tarifni broj 165"]
[null,"Opština Kosjerić","Rešenje o odobrenju izvođenja radova po članu 145 Zakona","Donošenje rešenja","Lokalna administrativna taksa",null,500,500,"840-745151843-03","Opštinska uprava Kosjerić",97,"51-048","Odluka u lokalnim administrativnimm taksama "]
[null,"Opština Kosjerić","Prijava radova","Podnošenje zahteva","Republička administrativna taksa",null,310,310,"840-74222843-57 ","Budžet Republike Srbije",97,"51-048","Zakon o RAT - tarifni broj 1"]
[null,"Opština Kosjerić","Prijava radova","Podnošenje zahteva","Lokalna administrativna taksa",null,200,200,"840-745151843-03","Opštinska uprava Kosjerić",97,"51-048","Odluka u lokalnim administrativnimm taksama "]
[null,"Opština Kosjerić","Prijava završetka izrade temelja i završetka objekta u konstruktivnom smislu","Podnošenje zahteva","Republička administrativna taksa",null,{"$f":"310+1600","v":1910},{"$f":"310+1600","v":1910},"840-74222843-57 ","Budžet Republike Srbije",97,"51-048","Zakon o RAT - tarifni broj 1 i 164"]
[null,"Opština Kosjerić","Prijava završetka izrade temelja i završetka objekta u konstruktivnom smislu","Podnošenje zahteva","Lokalna administrativna taksa",null,200,200,"840-745151843-03","Opštinska uprava Kosjerić",97,"51-048","Odluka u lokalnim administrativnimm taksama "]
[null,"Opština Kosjerić","Dostavljanje tehničke dokumentacije","Podnošenje zahteva","Republička administrativna taksa",null,310,310,"840-74222843-57 ","Budžet Republike Srbije",97,"51-048","Zakon o RAT - tarifni broj 1"]
[null,"Opština Kosjerić","Dostavljanje tehničke dokumentacije","Podnošenje zahteva","Lokalna administrativna taksa",null,200,200,"840-745151843-03","Opštinska uprava Kosjerić",97,"51-048","Odluka u lokalnim administrativnimm taksama "]
[null,"Opština Kosjerić","Upotrebna dozvola","Podnošenje zahteva","Republička administrativna taksa",null,310,310,"840-74222843-57 ","Budžet Republike Srbije",97,"51-048","Zakon o RAT - tarifni broj 1"]
[null,"Opština Kosjerić","Upotrebna dozvola","Podnošenje zahteva","Lokalna administrativna taksa",null,200,200,"840-745151843-03","Opštinska uprava Kosjerić",97,"51-048","Odluka u lokalnim administrativnimm taksama "]
[null,"Opština Kosjerić","Upotrebna dozvola","Donošenje rešenja","Republička administrativna taksa",null,800,800,"840-74222843-57 ","Budžet Republike Srbije",97,"51-048","Zakon o RAT - tarifni broj 165"]
[null,"Opština Kosjerić","Upotrebna dozvola","Donošenje rešenja","Lokalna administrativna taksa",null,500,500,"840-745151843-03","Opštinska uprava Kosjerić",97,"51-048","Odluka u lokalnim administrativnimm taksama "]
[null,"Opština Kosjerić","Priključenje objekta na infrastrukturu","Podnošenje zahteva","Republička administrativna taksa",null,310,310,"840-74222843-57 ","Budžet Republike Srbije",97,"51-048","Zakon o RAT - tarifni broj 1"]
[null,"Opština Kosjerić","Priključenje objekta na infrastrukturu","Podnošenje zahteva","Lokalna administrativna taksa",null,200,200,"840-745151843-03","Opštinska uprava Kosjerić",97,"51-048","Odluka u lokalnim administrativnimm taksama "]
[null,"Opština Kovačica","Lokacijski uslovi","Podnošenje zahteva","Republička administrativna taksa",null,620,620,"840-742221843-57","Budžet Republike Srbije",97,"32-216","Zakon o RAT - tarifni broj 1 i 11"]
[null,"Opština Kovačica","Lokacijski uslovi","Podnošenje zahteva","Lokalna naknada",null,11300,9900,"840-742351843-94","Opštinska uprava Kovačica",97,"32-216","Odluka o naknadama Opštinske uprave za vršenje usluga trećim licima ( \"Sl. list opštine Kovačica\" br.3/07, 4/07 i 13/09 )"]
[null,"Opština Kovačica","Građevinska dozvola","Podnošenje zahteva","Republička administrativna taksa",null,310,310,"840-742221843-57","Budžet Republike Srbije",97,"32-216","Zakon o RAT - tarifni broj 1 "]
[null,"Opština Kovačica","Građevinska dozvola","Donošenje rešenja","Republička administrativna taksa",null,800,800,"840-742221843-57","Budžet Republike Srbije",97,"32-216","Zakon o RAT - tarifni broj 165"]
[null,"Opština Kovačica","Građevinska dozvola","Donošenje rešenja","Lokalna naknada",null,5200,1300,"840-742351843-94","Opštinska uprava Kovačica",97,"32-216","Odluka o naknadama Opštinske uprave za vršenje usluga trećim licima ( \"Sl. list opštine Kovačica\" br.3/07, 4/07 i 13/09 )"]
[null,"Opština Kovačica","Rešenje o odobrenju izvođenja radova po članu 145 Zakona","Podnošenje zahteva","Republička administrativna taksa",null,310,310,"840-742221843-57","Budžet Republike Srbije",97,"32-216","Zakon o RAT - tarifni broj 1 "]
[null,"Opština Kovačica","Rešenje o odobrenju izvođenja radova po članu 145 Zakona","Donošenje rešenja","Republička administrativna taksa",null,800,800,"840-742221843-57","Budžet Republike Srbije",97,"32-216","Zakon o RAT - tarifni broj 165"]
[null,"Opština Kovačica","Rešenje o odobrenju izvođenja radova po članu 145 Zakona","Donošenje rešenja","Lokalna naknada",null,1000,1000,"840-742351843-94","Opštinska uprava Kovačica",97,"32-216","Odluka o naknadama Opštinske uprave za vršenje usluga trećim licima ( \"Sl. list opštine Kovačica\" br.3/07, 4/07 i 13/09 )"]
[null,"Opština Kovačica","Prijava radova","Podnošenje zahteva","Republička administrativna taksa",null,620,620,"840-742221843-57","Budžet Republike Srbije",97,"32-216","Zakon o RAT - tarifni broj 1 i 11"]
[null,"Opština Kovačica","Prijava radova","Donošenje rešenja","Lokalna naknada",null,350,350,"840-742351843-94","Opštinska uprava Kovačica",97,"32-216","Odluka o naknadama Opštinske uprave za vršenje usluga trećim licima ( \"Sl. list opštine Kovačica\" br.3/07, 4/07 i 13/09 )"]
[null,"Opština Kovačica","Prijava završetka izrade temelja i završetka objekta u konstruktivnom smislu","Podnošenje zahteva","Republička administrativna taksa",null,{"$f":"310+1600+310","v":2220},{"$f":"310+1600+310","v":2220},"840-742221843-57","Budžet Republike Srbije",97,"32-216","Zakon o RAT - tarifni broj 1 (x2) i 164"]
[null,"Opština Kovačica","Prijava završetka izrade temelja i završetka objekta u konstruktivnom smislu","Donošenje rešenja","Lokalna naknada",null,920,920,"840-742351843-94","Opštinska uprava Kovačica",97,"32-216","Odluka o naknadama Opštinske uprave za vršenje usluga trećim licima ( \"Sl. list opštine Kovačica\" br.3/07, 4/07 i 13/09 )"]
[null,"Opština Kovačica","Dostavljanje tehničke dokumentacije","Podnošenje zahteva","Republička administrativna taksa",null,310,310,"840-742221843-57","Budžet Republike Srbije",97,"32-216","Zakon o RAT - tarifni broj 1 "]
[null,"Opština Kovačica","Upotrebna dozvola","Podnošenje zahteva","Republička administrativna taksa",null,310,310,"840-742221843-57","Budžet Republike Srbije",97,"32-216","Zakon o RAT - tarifni broj 1 "]
[null,"Opština Kovačica","Upotrebna dozvola","Donošenje rešenja","Republička administrativna taksa","DA","0.2% predračunske vrednosti objekta","0.2% predračunske vrednosti objekta","840-742221843-57","Budžet Republike Srbije",97,"32-216","Zakon o RAT - tarifni broj 170"]
[null,"Opština Kovačica","Upotrebna dozvola","Donošenje rešenja","Lokalna naknada",null,1700,800,"840-742351843-94","Opštinska uprava Kovačica",97,"32-216","Odluka o naknadama Opštinske uprave za vršenje usluga trećim licima ( \"Sl. list opštine Kovačica\" br.3/07, 4/07 i 13/09 )"]
[null,"Opština Kovačica","Priključenje objekta na infrastrukturu","Podnošenje zahteva","Republička administrativna taksa",null,310,310,"840-742221843-57","Budžet Republike Srbije",97,"32-216","Zakon o RAT - tarifni broj 1 "]
[null,"Opština Kovin","Lokacijski uslovi","Podnošenje zahteva","Republička administrativna taksa",null,310,310,"840-74222843-57 ","Budžet Republike Srbije",97,"29-217","Zakon o RAT - tarifni broj 1"]
[null,"Opština Kovin","Lokacijski uslovi","Podnošenje zahteva","Lokalna administrativna taksa",null,768,768,"840-742251843-73","Budžet Republike Srbije",97,"29-217","Odluka o lokalnim administrativnim taksama (Sl.list opštine Kovin, br. 7/2014)"]
[null,"Opština Kovin","Lokacijski uslovi","Donošenje rešenja","Lokalna naknada",null,9000,9000,"840-742351843-94","Budžet Republike Srbije",97,"29-217","Odluka o troškovima u postupcima urbanističkog planiranja i izgradnje objekta (Sl.list opštine Kovin, br 5/2016)\n"]
[null,"Opština Kovin","Građevinska dozvola","Podnošenje zahteva","Republička administrativna taksa",null,310,310,"840-74222843-57 ","Budžet Republike Srbije",97,"29-217","Zakon o RAT - tarifni broj 1"]
[null,"Opština Kovin","Građevinska dozvola","Podnošenje zahteva","Lokalna administrativna taksa",null,768,768,"840-742251843-73","Budžet Republike Srbije",97,"29-217","Odluka o lokalnim administrativnim taksama (Sl.list opštine Kovin, br. 7/2014)"]
[null,"Opština Kovin","Građevinska dozvola","Donošenje rešenja","Lokalna naknada",null,7000,7000,"840-742351843-94","Budžet Republike Srbije",97,"29-217","Odluka o troškovima u postupcima urbanističkog planiranja i izgradnje objekta (Sl.list opštine Kovin, br 5/2016)\n"]
[null,"Opština Kovin","Rešenje o odobrenju izvođenja radova po članu 145 Zakona","Podnošenje zahteva","Republička administrativna taksa",null,310,310,"840-74222843-57 ","Budžet Republike Srbije",97,"29-217","Zakon o RAT - tarifni broj 1"]
[null,"Opština Kovin","Rešenje o odobrenju izvođenja radova po članu 145 Zakona","Podnošenje zahteva","Lokalna administrativna taksa",null,768,768,"840-742251843-73","Budžet Republike Srbije",97,"29-217","Odluka o lokalnim administrativnim taksama (Sl.list opštine Kovin, br. 7/2014)"]
[null,"Opština Kovin","Rešenje o odobrenju izvođenja radova po članu 145 Zakona","Donošenje rešenja","Lokalna naknada",null,6000,6000,"840-742351843-94","Budžet Republike Srbije",97,"29-217","Odluka o troškovima u postupcima urbanističkog planiranja i izgradnje objekta (Sl.list opštine Kovin, br 5/2016)\n"]
[null,"Opština Kovin","Prijava radova","Podnošenje zahteva","Republička administrativna taksa",null,310,310,"840-74222843-57 ","Budžet Republike Srbije",97,"29-217","Zakon o RAT - tarifni broj 1"]
[null,"Opština Kovin","Prijava radova","Podnošenje zahteva","Lokalna administrativna taksa",null,153,153,"840-742251843-73","Budžet Republike Srbije",97,"29-217","Odluka o lokalnim administrativnim taksama (Sl.list opštine Kovin, br. 7/2014)"]
[null,"Opština Kovin","Prijava radova","Donošenje rešenja","Lokalna naknada",null,3000,3000,"840-742351843-94","Budžet Republike Srbije",97,"29-217","Odluka o troškovima u postupcima urbanističkog planiranja i izgradnje objekta (Sl.list opštine Kovin, br 5/2016)\n"]
[null,"Opština Kovin","Prijava završetka izrade temelja i završetka objekta u konstruktivnom smislu","Podnošenje zahteva","Republička administrativna taksa",null,310,310,"840-74222843-57 ","Budžet Republike Srbije",97,"29-217","Zakon o RAT - tarifni broj 1"]
[null,"Opština Kovin","Prijava završetka izrade temelja i završetka objekta u konstruktivnom smislu","Podnošenje zahteva","Lokalna administrativna taksa",null,153,153,"840-742251843-73","Budžet Republike Srbije",97,"29-217","Odluka o lokalnim administrativnim taksama (Sl.list opštine Kovin, br. 7/2014)"]
[null,"Opština Kovin","Prijava završetka izrade temelja i završetka objekta u konstruktivnom smislu","Donošenje rešenja","Lokalna naknada",null,3000,3000,"840-742351843-94","Budžet Republike Srbije",97,"29-217","Odluka o troškovima u postupcima urbanističkog planiranja i izgradnje objekta (Sl.list opštine Kovin, br 5/2016)\n"]
[null,"Opština Kovin","Dostavljanje tehničke dokumentacije","Podnošenje zahteva","Republička administrativna taksa",null,310,310,"840-74222843-57 ","Budžet Republike Srbije",97,"29-217","Zakon o RAT - tarifni broj 1"]
[null,"Opština Kovin","Upotrebna dozvola","Podnošenje zahteva","Republička administrativna taksa",null,310,310,"840-74222843-57 ","Budžet Republike Srbije",97,"29-217","Zakon o RAT - tarifni broj 1"]
[null,"Opština Kovin","Upotrebna dozvola","Podnošenje zahteva","Lokalna administrativna taksa",null,768,768,"840-742251843-73","Budžet Republike Srbije",97,"29-217","Odluka o lokalnim administrativnim taksama (Sl.list opštine Kovin, br. 7/2014)"]
[null,"Opština Kovin","Upotrebna dozvola","Donošenje rešenja","Lokalna naknada",null,7000,7000,"840-742351843-94","Budžet Republike Srbije",97,"29-217","Odluka o troškovima u postupcima urbanističkog planiranja i izgradnje objekta (Sl.list opštine Kovin, br 5/2016)\n"]
[null,"Opština Kovin","Priključenje objekta na infrastrukturu","Podnošenje zahteva","Republička administrativna taksa",null,310,310,"840-74222843-57 ","Budžet Republike Srbije",97,"29-217","Zakon o RAT - tarifni broj 1"]
[null,"Opština Krupanj","Lokacijski uslovi","Podnošenje zahteva","Republička administrativna taksa",null,310,310,"840-74222843-57 ","Budžet Republike Srbije",97,"42-051","Zakon o RAT - tarifni broj 1"]
[null,"Opština Krupanj","Lokacijski uslovi","Podnošenje zahteva","Lokalna administrativna taksa",null,7110,7110,"840-742251843-73","Opštinska uprava Krupanj",97,"42-051","Odluka o lokalnim administrativnim taksama (Sl.list opštine Krupanj 19/2008)"]
[null,"Opština Krupanj","Građevinska dozvola","Podnošenje zahteva","Republička administrativna taksa",null,310,310,"840-74222843-57 ","Budžet Republike Srbije",97,"42-051","Zakon o RAT - tarifni broj 1"]
[null,"Opština Krupanj","Građevinska dozvola","Donošenje rešenja","Lokalna administrativna taksa",null,2130,2130,"840-742251843-73","Opštinska uprava Krupanj",97,"42-051","Odluka o lokalnim administrativnim taksama (Sl.list opštine Krupanj 19/2008)"]
[null,"Opština Krupanj","Građevinska dozvola","Donošenje rešenja","Republička administrativna taksa",null,800,800,"840-74222843-57 ","Budžet Republike Srbije",97,"42-051","Zakon o RAT - tarifni broj 165"]
[null,"Opština Krupanj","Rešenje o odobrenju izvođenja radova po članu 145 Zakona","Podnošenje zahteva","Republička administrativna taksa",null,310,310,"840-74222843-57 ","Budžet Republike Srbije",97,"42-051","Zakon o RAT - tarifni broj 1"]
[null,"Opština Krupanj","Rešenje o odobrenju izvođenja radova po članu 145 Zakona","Donošenje rešenja","Lokalna administrativna taksa",null,2130,2130,"840-742251843-73","Opštinska uprava Krupanj",97,"42-051","Odluka o lokalnim administrativnim taksama (Sl.list opštine Krupanj 19/2008)"]
[null,"Opština Krupanj","Rešenje o odobrenju izvođenja radova po članu 145 Zakona","Donošenje rešenja","Republička administrativna taksa",null,400,400,"840-74222843-57 ","Budžet Republike Srbije",97,"42-051","Zakon o RAT - tarifni broj 165"]
[null,"Opština Krupanj","Prijava radova","Podnošenje zahteva","Republička administrativna taksa",null,310,310,"840-74222843-57 ","Budžet Republike Srbije",97,"42-051","Zakon o RAT - tarifni broj 1"]
[null,"Opština Krupanj","Prijava radova","Donošenje rešenja","Lokalna administrativna taksa",null,2560,2560,"840-742251843-73","Opštinska uprava Krupanj",97,"42-051","Odluka o lokalnim administrativnim taksama (Sl.list opštine Krupanj 19/2008)"]
[null,"Opština Krupanj","Prijava završetka izrade temelja i završetka objekta u konstruktivnom smislu","Podnošenje zahteva","Republička administrativna taksa",null,{"$f":"310+1600","v":1910},{"$f":"310+1600","v":1910},"840-74222843-57 ","Budžet Republike Srbije",97,"42-051","Zakon o RAT - tarifni broj 1 i 164"]
[null,"Opština Krupanj","Prijava završetka izrade temelja i završetka objekta u konstruktivnom smislu","Donošenje rešenja","Lokalna administrativna taksa",null,1070,1070,"840-742251843-73","Opštinska uprava Krupanj",97,"42-051","Odluka o lokalnim administrativnim taksama (Sl.list opštine Krupanj 19/2008)"]
[null,"Opština Krupanj","Dostavljanje tehničke dokumentacije","Podnošenje zahteva","Republička administrativna taksa",null,310,310,"840-74222843-57 ","Budžet Republike Srbije",97,"42-051","Zakon o RAT - tarifni broj 1"]
[null,"Opština Krupanj","Upotrebna dozvola","Podnošenje zahteva","Republička administrativna taksa",null,310,310,"840-74222843-57 ","Budžet Republike Srbije",97,"42-051","Zakon o RAT - tarifni broj 1"]
[null,"Opština Krupanj","Upotrebna dozvola","Donošenje rešenja","Lokalna administrativna taksa",null,600,600,"840-742251843-73","Opštinska uprava Krupanj",97,"42-051","Odluka o lokalnim administrativnim taksama (Sl.list opštine Krupanj 19/2008)"]
[null,"Opština Krupanj","Upotrebna dozvola","Donošenje rešenja","Republička administrativna taksa",null,520,520,"840-74222843-57 ","Budžet Republike Srbije",97,"42-051","Zakon o RAT - tarifni broj 9"]
[null,"Opština Krupanj","Upotrebna dozvola","Donošenje rešenja","Republička administrativna taksa","DA","0.2% predračunske vrednosti objekta","0.2% predračunske vrednosti objekta","840-74222843-57 ","Budžet Republike Srbije",97,"42-051","Zakon o RAT - tarifni broj 170"]
[null,"Opština Krupanj","Priključenje objekta na infrastrukturu","Podnošenje zahteva","Republička administrativna taksa",null,310,310,"840-74222843-57 ","Budžet Republike Srbije",97,"42-051","Zakon o RAT - tarifni broj 1"]
[null,"Opština Kučevo","Lokacijski uslovi","Donošenje rešenja","Republička administrativna taksa",null,{"$f":"310+800","v":1110},{"$f":"310+800","v":1110},"840-742221843-57","Budžet Republike Srbije",97,"36-053","Zakon o RAT - tarifni broj 1 i 165"]
[null,"Opština Kučevo","Lokacijski uslovi","Donošenje rešenja","Lokalna administrativna taksa",null,7000,1800,"840-742251843-73","Opštinska uprava Kučevo",97,"36-053","Odluka o LAT"]
[null,"Opština Kučevo","Građevinska dozvola","Donošenje rešenja","Republička administrativna taksa",null,{"$f":"310+800","v":1110},{"$f":"310+800","v":1110},"840-742221843-57","Budžet Republike Srbije",97,"36-053","Zakon o RAT - tarifni broj 1 i 165"]
[null,"Opština Kučevo","Građevinska dozvola","Donošenje rešenja","Lokalna administrativna taksa",null,7000,1800,"840-742251843-73","Opštinska uprava Kučevo",97,"36-053","Odluka o LAT"]
[null,"Opština Kučevo","Rešenje o odobrenju izvođenja radova po članu 145 Zakona","Donošenje rešenja","Republička administrativna taksa",null,{"$f":"310+800","v":1110},{"$f":"310+800","v":1110},"840-742221843-57","Budžet Republike Srbije",97,"36-053","Zakon o RAT - tarifni broj 1 i 165"]
[null,"Opština Kučevo","Rešenje o odobrenju izvođenja radova po članu 145 Zakona","Donošenje rešenja","Lokalna administrativna taksa",null,7000,1800,"840-742251843-73","Opštinska uprava Kučevo",97,"36-053","Odluka o LAT"]
[null,"Opština Kučevo","Prijava radova","Donošenje rešenja","Republička administrativna taksa",null,310,310,"840-742221843-57","Budžet Republike Srbije",97,"36-053","Zakon o RAT - tarifni broj 1"]
[null,"Opština Kučevo","Prijava radova","Donošenje rešenja","Lokalna administrativna taksa",null,3500,900,"840-742251843-73","Opštinska uprava Kučevo",97,"36-053","Odluka o LAT"]
[null,"Opština Kučevo","Prijava završetka izrade temelja i završetka objekta u konstruktivnom smislu","Donošenje rešenja","Republička administrativna taksa",null,{"$f":"310+1600","v":1910},{"$f":"310+1600","v":1910},"840-742221843-57","Budžet Republike Srbije",97,"36-053","Zakon o RAT - tarifni broj 1 i 164"]
[null,"Opština Kučevo","Prijava završetka izrade temelja i završetka objekta u konstruktivnom smislu","Donošenje rešenja","Lokalna administrativna taksa",null,350,350,"840-742251843-73","Opštinska uprava Kučevo",97,"36-053","Odluka o LAT"]
[null,"Opština Kučevo","Upotrebna dozvola","Donošenje rešenja","Republička administrativna taksa",null,{"$f":"310+800","v":1110},{"$f":"310+800","v":1110},"840-742221843-57","Budžet Republike Srbije",97,"36-053","Zakon o RAT - tarifni broj 1 i 165"]
[null,"Opština Kučevo","Upotrebna dozvola","Donošenje rešenja","Lokalna administrativna taksa",null,2000,2000,"840-742251843-73","Opštinska uprava Kučevo",97,"36-053","Odluka o LAT"]
[null,"Opština Kučevo","Priključenje objekta na infrastrukturu","Donošenje rešenja","Republička administrativna taksa",null,310,310,"840-742221843-57","Budžet Republike Srbije",97,"36-053","Zakon o RAT - tarifni broj 1"]
[null,"Opština Kučevo","Priključenje objekta na infrastrukturu","Donošenje rešenja","Lokalna administrativna taksa",null,300,300,"840-742251843-73","Opštinska uprava Kučevo",97,"36-053","Odluka o LAT"]
[null,"Opština Kula","Lokacijski uslovi","Podnošenje zahteva","Republička administrativna taksa",null,310,310,"840-742221843-57","Budžet Republike Srbije",97,"26-218","Zakon o RAT - tarifni broj 1 "]
[null,"Opština Kula","Lokacijski uslovi","Podnošenje zahteva","Lokalna administrativna taksa",null,2000,500,"840-742251843-73","Opštinska uprava Kula",97,"26-218","Odluka o lokalnim administrativnim taksama"]
[null,"Opština Kula","Građevinska dozvola","Podnošenje zahteva","Republička administrativna taksa",null,{"$f":"310+800","v":1110},{"$f":"310+800","v":1110},"840-742221843-57","Budžet Republike Srbije",97,"26-218","Zakon o RAT - tarifni broj 1 i 165"]
[null,"Opština Kula","Rešenje o odobrenju izvođenja radova po članu 145 Zakona","Podnošenje zahteva","Republička administrativna taksa",null,{"$f":"310+800","v":1110},{"$f":"310+800","v":1110},"840-742221843-57","Budžet Republike Srbije",97,"26-218","Zakon o RAT - tarifni broj 1 i 165"]
[null,"Opština Kula","Prijava radova","Podnošenje zahteva","Republička administrativna taksa",null,620,620,"840-742221843-57","Budžet Republike Srbije",97,"26-218","Zakon o RAT - tarifni broj 1 i 11"]
[null,"Opština Kula","Prijava završetka izrade temelja i završetka objekta u konstruktivnom smislu","Podnošenje zahteva","Republička administrativna taksa",null,{"$f":"310+1600+310+310","v":2530},{"$f":"310+1600+310+310","v":2530},"840-742221843-57","Budžet Republike Srbije",97,"26-218","Zakon o RAT - tarifni broj 1 i 11, 1 i 165"]
[null,"Opština Kula","Dostavljanje tehničke dokumentacije","Podnošenje zahteva","Republička administrativna taksa",null,310,310,"840-742221843-57","Budžet Republike Srbije",97,"26-218","Zakon o RAT - tarifni broj 1"]
[null,"Opština Kula","Upotrebna dozvola","Podnošenje zahteva","Republička administrativna taksa",null,310,310,"840-742221843-57","Budžet Republike Srbije",97,"26-218","Zakon o RAT - tarifni broj 1"]
[null,"Opština Kula","Upotrebna dozvola","Donošenje rešenja","Republička administrativna taksa",null,520,520,"840-742221843-57","Budžet Republike Srbije",97,"26-218","Zakon o RAT - tarifni broj 9"]
[null,"Opština Kula","Priključenje objekta na infrastrukturu","Podnošenje zahteva","Republička administrativna taksa",null,310,310,"840-742221843-57","Budžet Republike Srbije",97,"26-218","Zakon o RAT - tarifni broj 1"]
[null,"Opština Kuršumlija","Lokacijski uslovi","Podnošenje zahteva","Republička administrativna taksa",null,310,310,"840-742221843-57","Budžet Republike Srbije",97,"33-054","Zakon o RAT - tarifni broj 1"]
[null,"Opština Kuršumlija","Lokacijski uslovi","Donošenje rešenja","Lokalna administrativna taksa",null,50000,20000,"840-742251843-73","Opštinska uprava Kuršumlija",97,"33-054","Odluke o opštinskim administrativnim taksama i naknadama za usluge koje vrši opštinska uprava (Sl. list Opštine Kuršumlija“, br. 20/2013, 11/2015 i 35/2016)"]
[null,"Opština Kuršumlija","Građevinska dozvola","Podnošenje zahteva","Republička administrativna taksa",null,310,310,"840-742221843-57","Budžet Republike Srbije",97,"33-054","Zakon o RAT - tarifni broj 1"]
[null,"Opština Kuršumlija","Građevinska dozvola","Donošenje rešenja","Republička administrativna taksa",null,800,800,"840-742221843-57","Budžet Republike Srbije",97,"33-054","Zakon o RAT - tarifni broj 165"]
[null,"Opština Kuršumlija","Građevinska dozvola","Donošenje rešenja","Lokalna administrativna taksa",null,4200,4200,"840-742251843-73","Opštinska uprava Kuršumlija",97,"33-054","Odluke o opštinskim administrativnim taksama i naknadama za usluge koje vrši opštinska uprava (Sl. list Opštine Kuršumlija“, br. 20/2013, 11/2015 i 35/2016)"]
[null,"Opština Kuršumlija","Rešenje o odobrenju izvođenja radova po članu 145 Zakona","Podnošenje zahteva","Republička administrativna taksa",null,310,310,"840-742221843-57","Budžet Republike Srbije",97,"33-054","Zakon o RAT - tarifni broj 1"]
[null,"Opština Kuršumlija","Rešenje o odobrenju izvođenja radova po članu 145 Zakona","Donošenje rešenja","Republička administrativna taksa",null,800,800,"840-742221843-57","Budžet Republike Srbije",97,"33-054","Zakon o RAT - tarifni broj 165"]
[null,"Opština Kuršumlija","Rešenje o odobrenju izvođenja radova po članu 145 Zakona","Donošenje rešenja","Lokalna administrativna taksa",null,3000,3000,"840-742251843-73","Opštinska uprava Kuršumlija",97,"33-054","Odluke o opštinskim administrativnim taksama i naknadama za usluge koje vrši opštinska uprava (Sl. list Opštine Kuršumlija“, br. 20/2013, 11/2015 i 35/2016)"]
[null,"Opština Kuršumlija","Prijava radova","Podnošenje zahteva","Republička administrativna taksa",null,310,310,"840-742221843-57","Budžet Republike Srbije",97,"33-054","Zakon o RAT - tarifni broj 1"]
[null,"Opština Kuršumlija","Prijava radova","Donošenje rešenja","Lokalna naknada",null,500,500,"840-742251843-73","Opštinska uprava Kuršumlija",97,"33-054","Odluke o opštinskim administrativnim taksama i naknadama za usluge koje vrši opštinska uprava (Sl. list Opštine Kuršumlija“, br. 20/2013, 11/2015 i 35/2016)"]
[null,"Opština Kuršumlija","Prijava završetka izrade temelja i završetka objekta u konstruktivnom smislu","Podnošenje zahteva","Republička administrativna taksa",null,310,310,"840-742221843-57","Budžet Republike Srbije",97,"33-054","Zakon o RAT - tarifni broj 1"]
[null,"Opština Kuršumlija","Prijava završetka izrade temelja i završetka objekta u konstruktivnom smislu","Donošenje rešenja","Republička administrativna taksa",null,1600,1600,"840-742221843-57","Budžet Republike Srbije",97,"33-054","Zakon o RAT - tarifni broj 164"]
[null,"Opština Kuršumlija","Prijava završetka izrade temelja i završetka objekta u konstruktivnom smislu","Donošenje rešenja","Lokalna naknada",null,400,400,"840-742251843-73","Opštinska uprava Kuršumlija",97,"33-054","Odluke o opštinskim administrativnim taksama i naknadama za usluge koje vrši opštinska uprava (Sl. list Opštine Kuršumlija“, br. 20/2013, 11/2015 i 35/2016)"]
[null,"Opština Kuršumlija","Dostavljanje tehničke dokumentacije","Podnošenje zahteva","Republička administrativna taksa",null,310,310,"840-742221843-57","Budžet Republike Srbije",97,"33-054","Zakon o RAT - tarifni broj 1"]
[null,"Opština Kuršumlija","Dostavljanje tehničke dokumentacije","Donošenje rešenja","Lokalna naknada",null,200,200,"840-742251843-73","Opštinska uprava Kuršumlija",97,"33-054","Odluke o opštinskim administrativnim taksama i naknadama za usluge koje vrši opštinska uprava (Sl. list Opštine Kuršumlija“, br. 20/2013, 11/2015 i 35/2016)"]
[null,"Opština Kuršumlija","Upotrebna dozvola","Podnošenje zahteva","Republička administrativna taksa",null,310,310,"840-742221843-57","Budžet Republike Srbije",97,"33-054","Zakon o RAT - tarifni broj 1"]
[null,"Opština Kuršumlija","Upotrebna dozvola","Donošenje rešenja","Republička administrativna taksa","DA","0.2% predračunske vrednosti objekta","0.2% predračunske vrednosti objekta","840-742221843-57","Budžet Republike Srbije",97,"33-054","Zakon o RAT - tarifni broj 170"]
[null,"Opština Kuršumlija","Upotrebna dozvola","Donošenje rešenja","Lokalna naknada",null,4200,4200,"840-742251843-73","Opštinska uprava Kuršumlija",97,"33-054","Odluke o opštinskim administrativnim taksama i naknadama za usluge koje vrši opštinska uprava (Sl. list Opštine Kuršumlija“, br. 20/2013, 11/2015 i 35/2016)"]
[null,"Opština Kuršumlija","Priključenje objekta na infrastrukturu","Podnošenje zahteva","Republička administrativna taksa",null,310,310,"840-742221843-57","Budžet Republike Srbije",97,"33-054","Zakon o RAT - tarifni broj 1"]
[null,"Opština Kuršumlija","Priključenje objekta na infrastrukturu","Donošenje rešenja","Lokalna naknada",null,200,200,"840-742251843-73","Opštinska uprava Kuršumlija",97,"33-054","Odluke o opštinskim administrativnim taksama i naknadama za usluge koje vrši opštinska uprava (Sl. list Opštine Kuršumlija“, br. 20/2013, 11/2015 i 35/2016)"]
[null,"Opština Lajkovac","Lokacijski uslovi","Podnošenje zahteva","Republička administrativna taksa",null,310,310,"840-742221843-57","Budžet Republike Srbije",97,"30-055","Zakon o RAT - tarifni broj 1"]
[null,"Opština Lajkovac","Lokacijski uslovi","Podnošenje zahteva","Lokalna administrativna taksa",null,103,103,"840-742251843-73","Opštinska uprava Lajkovac",97,"30-055","Odluka o opštinskim administrativnim taksama (Sl.glasnik opštine Lajkovac 15/16)"]
[null,"Opština Lajkovac","Lokacijski uslovi","Donošenje rešenja","Lokalna administrativna taksa",null,26597,26597,"840-742251843-73","Opštinska uprava Lajkovac",97,"30-055","Odluka o opštinskim administrativnim taksama (Sl.glasnik opštine Lajkovac 15/16)"]
[null,"Opština Lajkovac","Građevinska dozvola","Podnošenje zahteva","Republička administrativna taksa",null,310,310,"840-742221843-57","Budžet Republike Srbije",97,"30-055","Zakon o RAT - tarifni broj 1"]
[null,"Opština Lajkovac","Građevinska dozvola","Podnošenje zahteva","Lokalna administrativna taksa",null,103,103,"840-742251843-73","Opštinska uprava Lajkovac",97,"30-055","Odluka o opštinskim administrativnim taksama (Sl.glasnik opštine Lajkovac 15/16)"]
[null,"Opština Lajkovac","Građevinska dozvola","Donošenje rešenja","Republička administrativna taksa",null,800,800,"840-742221843-57","Budžet Republike Srbije",97,"30-055","Zakon o RAT - tarifni broj 165"]
[null,"Opština Lajkovac","Građevinska dozvola","Donošenje rešenja","Lokalna administrativna taksa",null,145,103,"840-742251843-73","Opštinska uprava Lajkovac",97,"30-055","Odluka o opštinskim administrativnim taksama (Sl.glasnik opštine Lajkovac 15/16)"]
[null,"Opština Lajkovac","Rešenje o odobrenju izvođenja radova po članu 145 Zakona","Podnošenje zahteva","Republička administrativna taksa",null,310,310,"840-742221843-57","Budžet Republike Srbije",97,"30-055","Zakon o RAT - tarifni broj 1"]
[null,"Opština Lajkovac","Rešenje o odobrenju izvođenja radova po članu 145 Zakona","Podnošenje zahteva","Lokalna administrativna taksa",null,103,103,"840-742251843-73","Opštinska uprava Lajkovac",97,"30-055","Odluka o opštinskim administrativnim taksama (Sl.glasnik opštine Lajkovac 15/16)"]
[null,"Opština Lajkovac","Rešenje o odobrenju izvođenja radova po članu 145 Zakona","Donošenje rešenja","Republička administrativna taksa",null,800,800,"840-742221843-57","Budžet Republike Srbije",97,"30-055","Zakon o RAT - tarifni broj 165"]
[null,"Opština Lajkovac","Rešenje o odobrenju izvođenja radova po članu 145 Zakona","Donošenje rešenja","Lokalna administrativna taksa",null,145,103,"840-742251843-73","Opštinska uprava Lajkovac",97,"30-055","Odluka o opštinskim administrativnim taksama (Sl.glasnik opštine Lajkovac 15/16)"]
[null,"Opština Lajkovac","Prijava radova","Podnošenje zahteva","Republička administrativna taksa",null,310,310,"840-742221843-57","Budžet Republike Srbije",97,"30-055","Zakon o RAT - tarifni broj 1"]
[null,"Opština Lajkovac","Prijava radova","Podnošenje zahteva","Lokalna administrativna taksa",null,103,103,"840-742251843-73","Opštinska uprava Lajkovac",97,"30-055","Odluka o opštinskim administrativnim taksama (Sl.glasnik opštine Lajkovac 15/16)"]
[null,"Opština Lajkovac","Prijava završetka izrade temelja i završetka objekta u konstruktivnom smislu","Podnošenje zahteva","Republička administrativna taksa",null,1600,1600,"840-742221843-57","Budžet Republike Srbije",97,"30-055","Zakon o RAT - tarifni broj 164"]
[null,"Opština Lajkovac","Prijava završetka izrade temelja i završetka objekta u konstruktivnom smislu","Podnošenje zahteva","Lokalna administrativna taksa",null,103,103,"840-742251843-73","Opštinska uprava Lajkovac",97,"30-055","Odluka o opštinskim administrativnim taksama (Sl.glasnik opštine Lajkovac 15/16)"]
[null,"Opština Lajkovac","Upotrebna dozvola","Podnošenje zahteva","Republička administrativna taksa",null,310,310,"840-742221843-57","Budžet Republike Srbije",97,"30-055","Zakon o RAT - tarifni broj 1"]
[null,"Opština Lajkovac","Upotrebna dozvola","Podnošenje zahteva","Lokalna administrativna taksa",null,103,103,"840-742251843-73","Opštinska uprava Lajkovac",97,"30-055","Odluka o opštinskim administrativnim taksama (Sl.glasnik opštine Lajkovac 15/16)"]
[null,"Opština Lajkovac","Upotrebna dozvola","Donošenje rešenja","Republička administrativna taksa","DA","0.2% predračunske vrednosti objekta","0.2% predračunske vrednosti objekta","840-742221843-57","Budžet Republike Srbije",97,"30-055","Zakon o RAT - tarifni broj 170"]
[null,"Opština Lajkovac","Upotrebna dozvola","Donošenje rešenja","Lokalna administrativna taksa",null,145,103,"840-742251843-73","Opštinska uprava Lajkovac",97,"30-055","Odluka o opštinskim administrativnim taksama (Sl.glasnik opštine Lajkovac 15/16)"]
[null,"Opština Lajkovac","Priključenje objekta na infrastrukturu","Podnošenje zahteva","Republička administrativna taksa",null,310,310,"840-742221843-57","Budžet Republike Srbije",97,"30-055","Zakon o RAT - tarifni broj 1"]
[null,"Opština Lajkovac","Priključenje objekta na infrastrukturu","Podnošenje zahteva","Lokalna administrativna taksa",null,103,103,"840-742251843-73","Opštinska uprava Lajkovac",97,"30-055","Odluka o opštinskim administrativnim taksama (Sl.glasnik opštine Lajkovac 15/16)"]
[null,"Opština Lebane ","Lokacijski uslovi","Podnošenje zahteva","Republička administrativna taksa",null,310,310,"840-742221843-57","Budžet Republike Srbije",97,"24-057 ","Zakon o RAT - tarifni broj 1"]
[null,"Opština Lebane ","Lokacijski uslovi","Podnošenje zahteva","Lokalne naknade",null,5600,5600,"840-742251843-73 ","Opštinska uprava Lebane",97,"24-057 ","Odluka o lokalnim taksama i naknadama "]
[null,"Opština Lebane ","Građevinska dozvola","Podnošenje zahteva","Republička administrativna taksa",null,770,770,"840-742221843-57","Budžet Republike Srbije",97,"24-057 ","Zakon o RAT"]
[null,"Opština Lebane ","Građevinska dozvola","Podnošenje zahteva","Lokalne naknade",null,6000,6000,"840-742251843-73 ","Opštinska uprava Lebane",97,"24-057 ","Odluka o lokalnim taksama i naknadama "]
[null,"Opština Lebane ","Rešenje o odobrenju izvođenja radova po članu 145 Zakona","Podnošenje zahteva","Republička administrativna taksa",null,770,770,"840-742221843-57","Budžet Republike Srbije",97,"24-057 ","Zakon o RAT"]
[null,"Opština Lebane ","Rešenje o odobrenju izvođenja radova po članu 145 Zakona","Podnošenje zahteva","Lokalne naknade",null,6000,6000,"840-742251843-73 ","Opštinska uprava Lebane",97,"24-057 ","Odluka o lokalnim taksama i naknadama "]
[null,"Opština Lebane ","Prijava radova","Podnošenje zahteva","Republička administrativna taksa",null,300,300,"840-742221843-57","Budžet Republike Srbije",97,"24-057 ","Zakon o RAT"]
[null,"Opština Lebane ","Prijava radova","Podnošenje zahteva","Lokalne naknade",null,400,400,"840-742251843-73 ","Opštinska uprava Lebane",97,"24-057 ","Odluka o lokalnim taksama i naknadama "]
[null,"Opština Lebane ","Prijava završetka izrade temelja i završetka objekta u konstruktivnom smislu","Podnošenje zahteva","Republička administrativna taksa",null,1540,1540,"840-742221843-57","Budžet Republike Srbije",97,"24-057 ","Zakon o RAT"]
[null,"Opština Lebane ","Prijava završetka izrade temelja i završetka objekta u konstruktivnom smislu","Podnošenje zahteva","Lokalne naknade",null,400,400,"840-742251843-73 ","Opštinska uprava Lebane",97,"24-057 ","Odluka o lokalnim taksama i naknadama "]
[null,"Opština Lebane ","Upotrebna dozvola","Donošenje rešenja","Republička administrativna taksa","DA","0.2% predračunske vrednosti objekta","0.2% predračunske vrednosti objekta","840-742221843-57","Budžet Republike Srbije",97,"24-057 ","Zakon o RAT"]
[null,"Opština Ljig","Lokacijski uslovi","Podnošenje zahteva","Lokalna administrativna taksa",null,32000,12000,"840-742251843-73","Opštinska uprava Ljig",97,"12-061","Odluka o izmeni odluke o opštinskim administrativnim taksama\n („Sl. glasnik Opštine Ljig“ br.\n4/2016);\n"]
[null,"Opština Ljig","Građevinska dozvola","Podnošenje zahteva","Lokalna administrativna taksa",null,3600,3600,"840-742251843-73","Opštinska uprava Ljig",97,"12-061","Odluka o izmeni odluke o opštinskim administrativnim taksama\n („Sl. glasnik Opštine Ljig“ br.\n4/2016);\n"]
[null,"Opština Ljig","Građevinska dozvola","Donošenje rešenja","Republička administrativna taksa",null,800,800,"840-742221843-57","Budžet Republike Srbije",97,"12-061","Zakon o RAT - tarifni broj 165"]
[null,"Opština Ljig","Rešenje o odobrenju izvođenja radova po članu 145 Zakona","Podnošenje zahteva","Lokalna administrativna taksa",null,3600,3600,"840-742251843-73","Opštinska uprava Ljig",97,"12-061","Odluka o izmeni odluke o opštinskim administrativnim taksama\n („Sl. glasnik Opštine Ljig“ br.\n4/2016);\n"]
[null,"Opština Ljig","Rešenje o odobrenju izvođenja radova po članu 145 Zakona","Donošenje rešenja","Republička administrativna taksa",null,800,800,"840-742221843-57","Budžet Republike Srbije",97,"12-061","Zakon o RAT - tarifni broj 165"]
[null,"Opština Ljig","Prijava radova","Podnošenje zahteva","Lokalna administrativna taksa",null,500,500,"840-742251843-73","Opštinska uprava Ljig",97,"12-061","Odluka o izmeni odluke o opštinskim administrativnim taksama\n („Sl. glasnik Opštine Ljig“ br.\n4/2016);\n"]
[null,"Opština Ljig","Prijava radova","Donošenje rešenja","Republička administrativna taksa",null,620,620,"840-742221843-57","Budžet Republike Srbije",97,"12-061","Zakon o RAT - tarifni broj 1 i 11"]
[null,"Opština Ljig","Prijava završetka izrade temelja i završetka objekta u konstruktivnom smislu","Donošenje rešenja","Republička administrativna taksa",null,{"$f":"1600+310+310","v":2220},{"$f":"310+310+1600","v":2220},"840-742221843-57","Budžet Republike Srbije",97,"12-061","Zakon o RAT - tarifni broj 1 i 11 i 164"]
[null,"Opština Ljig","Prijava završetka izrade temelja i završetka objekta u konstruktivnom smislu","Donošenje rešenja","Lokalna administrativna taksa",null,1500,1500,"840-742251843-73","Opštinska uprava Ljig",97,"12-061","Odluka o izmeni odluke o opštinskim administrativnim taksama\n („Sl. glasnik Opštine Ljig“ br.\n4/2016);\n"]
[null,"Opština Ljig","Upotrebna dozvola","Donošenje rešenja","Lokalna administrativna taksa",null,6000,6000,"840-742251843-73","Opštinska uprava Ljig",97,"12-061","Odluka o izmeni odluke o opštinskim administrativnim taksama\n („Sl. glasnik Opštine Ljig“ br.\n4/2016);\n"]
[null,"Opština Ljig","Upotrebna dozvola","Donošenje rešenja","Republička administrativna taksa","DA","0.2% predračunske vrednosti objekta","0.2% predračunske vrednosti objekta","840-742221843-57","Budžet Republike Srbije",97,"12-061","Zakon o RAT - tarifni broj 170"]
[null,"Opština Lučani","Lokacijski uslovi","Podnošenje zahteva","Republička administrativna taksa",null,310,310,"840-742221843-57","Budžet Republike Srbije",97,"15-060","Zakon o RAT - tarifni broj 1"]
[null,"Opština Lučani","Lokacijski uslovi","Podnošenje zahteva","Lokalna administrativna taksa",null,200,200,"840-742251843-73","Opštinska uprava Lučani",97,"15-060","Odluke o lokalnim administrativnim taksama http://www.lucani"]
[null,"Opština Lučani","Lokacijski uslovi","Donošenje rešenja","Republička administrativna taksa",null,520,520,"840-742221843-57","Budžet Republike Srbije",97,"15-060","Zakon o RAT - tarifni broj 9"]
[null,"Opština Lučani","Lokacijski uslovi","Donošenje rešenja","Lokalna administrativna taksa",null,2500,1000,"840-742251843-73","Opštinska uprava Lučani",97,"15-060","Odluke o lokalnim administrativnim taksama http://www.lucani"]
[null,"Opština Lučani","Građevinska dozvola","Podnošenje zahteva","Republička administrativna taksa",null,310,310,"840-742221843-57","Budžet Republike Srbije",97,"15-060","Zakon o RAT - tarifni broj 1"]
[null,"Opština Lučani","Građevinska dozvola","Podnošenje zahteva","Lokalna administrativna taksa",null,200,200,"840-742251843-73","Opštinska uprava Lučani",97,"15-060","Odluke o lokalnim administrativnim taksama http://www.lucani"]
[null,"Opština Lučani","Građevinska dozvola","Donošenje rešenja","Republička administrativna taksa",null,800,800,"840-742221843-57","Budžet Republike Srbije",97,"15-060","Zakon o RAT - tarifni broj 165"]
[null,"Opština Lučani","Građevinska dozvola","Donošenje rešenja","Lokalna administrativna taksa",null,2500,1000,"840-742251843-73","Opštinska uprava Lučani",97,"15-060","Odluke o lokalnim administrativnim taksama http://www.lucani"]
[null,"Opština Lučani","Rešenje o odobrenju izvođenja radova po članu 145 Zakona","Podnošenje zahteva","Republička administrativna taksa",null,310,310,"840-742221843-57","Budžet Republike Srbije",97,"15-060","Zakon o RAT - tarifni broj 1"]
[null,"Opština Lučani","Rešenje o odobrenju izvođenja radova po članu 145 Zakona","Podnošenje zahteva","Lokalna administrativna taksa",null,200,200,"840-742251843-73","Opštinska uprava Lučani",97,"15-060","Odluke o lokalnim administrativnim taksama http://www.lucani"]
[null,"Opština Lučani","Rešenje o odobrenju izvođenja radova po članu 145 Zakona","Donošenje rešenja","Republička administrativna taksa",null,400,400,"840-742221843-57","Budžet Republike Srbije",97,"15-060","Zakon o RAT - tarifni broj 165"]
[null,"Opština Lučani","Rešenje o odobrenju izvođenja radova po članu 145 Zakona","Donošenje rešenja","Lokalna administrativna taksa",null,2500,2500,"840-742251843-73","Opštinska uprava Lučani",97,"15-060","Odluke o lokalnim administrativnim taksama http://www.lucani"]
[null,"Opština Lučani","Prijava radova","Podnošenje zahteva","Republička administrativna taksa",null,310,310,"840-742221843-57","Budžet Republike Srbije",97,"15-060","Zakon o RAT - tarifni broj 1"]
[null,"Opština Lučani","Prijava radova","Podnošenje zahteva","Lokalna administrativna taksa",null,200,200,"840-742251843-73","Opštinska uprava Lučani",97,"15-060","Odluke o lokalnim administrativnim taksama http://www.lucani"]
[null,"Opština Lučani","Prijava radova","Donošenje rešenja","Republička administrativna taksa",null,310,310,"840-742221843-57","Budžet Republike Srbije",97,"15-060","Zakon o RAT - tarifni broj 11"]
[null,"Opština Lučani","Prijava radova","Donošenje rešenja","Lokalna administrativna taksa",null,1000,1000,"840-742251843-73","Opštinska uprava Lučani",97,"15-060","Odluke o lokalnim administrativnim taksama http://www.lucani"]
[null,"Opština Lučani","Prijava završetka izrade temelja i završetka objekta u konstruktivnom smislu","Podnošenje zahteva","Republička administrativna taksa",null,310,310,"840-742221843-57","Budžet Republike Srbije",97,"15-060","Zakon o RAT - tarifni broj 1"]
[null,"Opština Lučani","Prijava završetka izrade temelja i završetka objekta u konstruktivnom smislu","Podnošenje zahteva","Lokalna administrativna taksa",null,200,200,"840-742251843-73","Opštinska uprava Lučani",97,"15-060","Odluke o lokalnim administrativnim taksama http://www.lucani"]
[null,"Opština Lučani","Prijava završetka izrade temelja i završetka objekta u konstruktivnom smislu","Donošenje rešenja","Republička administrativna taksa",null,310,310,"840-742221843-57","Budžet Republike Srbije",97,"15-060","Zakon o RAT - tarifni broj 1"]
[null,"Opština Lučani","Prijava završetka izrade temelja i završetka objekta u konstruktivnom smislu","Donošenje rešenja","Lokalna administrativna taksa",null,300,300,"840-742251843-73","Opštinska uprava Lučani",97,"15-060","Odluke o lokalnim administrativnim taksama http://www.lucani"]
[null,"Opština Lučani","Dostavljanje tehničke dokumentacije","Podnošenje zahteva","Republička administrativna taksa",null,310,310,"840-742221843-57","Budžet Republike Srbije",97,"15-060","Zakon o RAT - tarifni broj 1"]
[null,"Opština Lučani","Dostavljanje tehničke dokumentacije","Podnošenje zahteva","Lokalna administrativna taksa",null,200,200,"840-742251843-73","Opštinska uprava Lučani",97,"15-060","Odluke o lokalnim administrativnim taksama http://www.lucani"]
[null,"Opština Lučani","Upotrebna dozvola","Podnošenje zahteva","Republička administrativna taksa",null,310,310,"840-742221843-57","Budžet Republike Srbije",97,"15-060","Zakon o RAT - tarifni broj 1"]
[null,"Opština Lučani","Upotrebna dozvola","Podnošenje zahteva","Lokalna administrativna taksa",null,200,200,"840-742251843-73","Opštinska uprava Lučani",97,"15-060","Odluke o lokalnim administrativnim taksama http://www.lucani"]
[null,"Opština Lučani","Upotrebna dozvola","Donošenje rešenja","Republička administrativna taksa","DA","0.2% predračunske vrednosti objekta","0.2% predračunske vrednosti objekta","840-742221843-57","Budžet Republike Srbije",97,"15-060","Zakon o RAT - tarifni broj 11"]
[null,"Opština Lučani","Upotrebna dozvola","Donošenje rešenja","Lokalna administrativna taksa",null,2000,2000,"840-742251843-73","Opštinska uprava Lučani",97,"15-060","Odluke o lokalnim administrativnim taksama http://www.lucani"]
[null,"Opština Lučani","Priključenje objekta na infrastrukturu","Podnošenje zahteva","Republička administrativna taksa",null,310,310,"840-742221843-57","Budžet Republike Srbije",97,"15-060","Zakon o RAT - tarifni broj 1"]
[null,"Opština Lučani","Priključenje objekta na infrastrukturu","Donošenje rešenja","Republička administrativna taksa",null,520,520,"840-742221843-57","Budžet Republike Srbije",97,"15-060","Zakon o RAT - tarifni broj 9"]
[null,"Opština Malo Crniće","Lokacijski uslovi","Podnošenje zahteva","Republička administrativna taksa",null,780,780,"840-74222843-57 ","Budžet Republike Srbije",97,"94-066 ","Zakon o RAT"]
[null,"Opština Malo Crniće","Lokacijski uslovi","Podnošenje zahteva","Lokalna administrativna taksa",null,1800,1800,"840-742251843-73","Opštinska uprava Malo Crniće",97,"94-066 ","Odluka o lokalnim administrativnim taksama"]
[null,"Opština Malo Crniće","Građevinska dozvola","Podnošenje zahteva","Republička administrativna taksa",null,310,310,"840-74222843-57 ","Budžet Republike Srbije",97,"94-066 ","Zakon o RAT - tarifni broj 1"]
[null,"Opština Malo Crniće","Građevinska dozvola","Podnošenje zahteva","Lokalna administrativna taksa",null,100,100,"840-742251843-73","Opštinska uprava Malo Crniće",97,"94-066 ","Odluka o lokalnim administrativnim taksama"]
[null,"Opština Malo Crniće","Građevinska dozvola","Donošenje rešenja","Republička administrativna taksa",null,780,780,"840-74222843-57 ","Budžet Republike Srbije",97,"94-066 ","Zakon o RAT - tarifni broj 1"]
[null,"Opština Malo Crniće","Građevinska dozvola","Donošenje rešenja","Lokalna administrativna taksa",null,5000,5000,"840-742251843-73","Opštinska uprava Malo Crniće",97,"94-066 ","Odluka o lokalnim administrativnim taksama"]
[null,"Opština Malo Crniće","Rešenje o odobrenju izvođenja radova po članu 145 Zakona","Podnošenje zahteva","Republička administrativna taksa",null,310,310,"840-74222843-57 ","Budžet Republike Srbije",97,"94-066 ","Zakon o RAT - tarifni broj 1"]
[null,"Opština Malo Crniće","Rešenje o odobrenju izvođenja radova po članu 145 Zakona","Podnošenje zahteva","Lokalna administrativna taksa",null,100,100,"840-742251843-73","Opštinska uprava Malo Crniće",97,"94-066 ","Odluka o lokalnim administrativnim taksama"]
[null,"Opština Malo Crniće","Rešenje o odobrenju izvođenja radova po članu 145 Zakona","Donošenje rešenja","Republička administrativna taksa",null,780,780,"840-74222843-57 ","Budžet Republike Srbije",97,"94-066 ","Zakon o RAT - tarifni broj 1"]
[null,"Opština Malo Crniće","Rešenje o odobrenju izvođenja radova po članu 145 Zakona","Donošenje rešenja","Lokalna administrativna taksa",null,5000,5000,"840-742251843-73","Opštinska uprava Malo Crniće",97,"94-066 ","Odluka o lokalnim administrativnim taksama"]
[null,"Opština Malo Crniće","Prijava radova","Podnošenje zahteva","Republička administrativna taksa",null,310,310,"840-74222843-57 ","Budžet Republike Srbije",97,"94-066 ","Zakon o RAT - tarifni broj 1"]
[null,"Opština Malo Crniće","Prijava radova","Podnošenje zahteva","Lokalna administrativna taksa",null,100,100,"840-742251843-73","Opštinska uprava Malo Crniće",97,"94-066 ","Odluka o lokalnim administrativnim taksama"]
[null,"Opština Malo Crniće","Prijava završetka izrade temelja i završetka objekta u konstruktivnom smislu","Podnošenje zahteva","Republička administrativna taksa",null,310,310,"840-74222843-57 ","Budžet Republike Srbije",97,"94-066 ","Zakon o RAT - tarifni broj 1"]
[null,"Opština Malo Crniće","Prijava završetka izrade temelja i završetka objekta u konstruktivnom smislu","Podnošenje zahteva","Lokalna administrativna taksa",null,100,100,"840-742251843-73","Opštinska uprava Malo Crniće",97,"94-066 ","Odluka o lokalnim administrativnim taksama"]
[null,"Opština Malo Crniće","Prijava završetka izrade temelja i završetka objekta u konstruktivnom smislu","Donošenje rešenja","Republička administrativna taksa",null,500,500,"840-742251843-73","Opštinska uprava Malo Crniće",97,"94-066 ","Odluka o lokalnim administrativnim taksama"]
[null,"Opština Malo Crniće","Upotrebna dozvola","Podnošenje zahteva","Republička administrativna taksa",null,310,310,"840-74222843-57 ","Budžet Republike Srbije",97,"94-066 ","Zakon o RAT - tarifni broj 1"]
[null,"Opština Malo Crniće","Upotrebna dozvola","Podnošenje zahteva","Lokalna administrativna taksa",null,100,100,"840-742251843-73","Opštinska uprava Malo Crniće",97,"94-066 ","Odluka o lokalnim administrativnim taksama"]
[null,"Opština Malo Crniće","Upotrebna dozvola","Donošenje rešenja","Republička administrativna taksa",null,780,780,"840-74222843-57 ","Budžet Republike Srbije",97,"94-066 ","Zakon o RAT - tarifni broj 1"]
[null,"Opština Malo Crniće","Upotrebna dozvola","Donošenje rešenja","Lokalna administrativna taksa",null,8000,8000,"840-742251843-73","Opštinska uprava Malo Crniće",97,"94-066 ","Odluka o lokalnim administrativnim taksama"]
[null,"Opština Medveđa","Lokacijski uslovi","Podnošenje zahteva","Republička administrativna taksa",null,310,310,"840-742221843-57","Budžet Republike Srbije",97,"91-067","Zakon o RAT - tarifni broj 1"]
[null,"Opština Medveđa","Lokacijski uslovi","Podnošenje zahteva","Lokalna naknada",null,2400,2400,"840-742351843-94","Opštinska uprava Medveđa",97,"91-067","Odluka o naknadama za rad Opstinske uprave opstine Medvedja(„Sl.glasnik grada Leskovca“ br.9/2014 i 31/2015)"]
[null,"Opština Medveđa","Građevinska dozvola","Podnošenje zahteva","Republička administrativna taksa",null,310,310,"840-742221843-57","Budžet Republike Srbije",97,"91-067","Zakon o RAT - tarifni broj 1"]
[null,"Opština Medveđa","Građevinska dozvola","Podnošenje zahteva","Lokalna naknada",null,2400,2400,"840-742351843-94","Opštinska uprava Medveđa",97,"91-067","Odluka o naknadama za rad Opstinske uprave opstine Medvedja(„Sl.glasnik grada Leskovca“ br.9/2014 i 31/2015)"]
[null,"Opština Medveđa","Građevinska dozvola","Donošenje rešenja","Republička administrativna taksa",null,800,800,"840-742221843-57","Budžet Republike Srbije",97,"91-067","Zakon o RAT - tarifni broj 165"]
[null,"Opština Medveđa","Rešenje o odobrenju izvođenja radova po članu 145 Zakona","Podnošenje zahteva","Republička administrativna taksa",null,310,310,"840-742221843-57","Budžet Republike Srbije",97,"91-067","Zakon o RAT - tarifni broj 1"]
[null,"Opština Medveđa","Rešenje o odobrenju izvođenja radova po članu 145 Zakona","Podnošenje zahteva","Lokalna naknada",null,2000,2000,"840-742351843-94","Opštinska uprava Medveđa",97,"91-067","Odluka o naknadama za rad Opstinske uprave opstine Medvedja(„Sl.glasnik grada Leskovca“ br.9/2014 i 31/2015)"]
[null,"Opština Medveđa","Rešenje o odobrenju izvođenja radova po članu 145 Zakona","Donošenje rešenja","Republička administrativna taksa",null,800,800,"840-742221843-57","Budžet Republike Srbije",97,"91-067","Zakon o RAT - tarifni broj 165"]
[null,"Opština Medveđa","Prijava radova","Podnošenje zahteva","Republička administrativna taksa",null,620,620,"840-742221843-57","Budžet Republike Srbije",97,"91-067","Zakon o RAT - tarifni broj 1 (x2)"]
[null,"Opština Medveđa","Prijava radova","Podnošenje zahteva","Lokalna naknada",null,2000,2000,"840-742351843-94","Opštinska uprava Medveđa",97,"91-067","Odluka o naknadama za rad Opstinske uprave opstine Medvedja(„Sl.glasnik grada Leskovca“ br.9/2014 i 31/2015)"]
[null,"Opština Medveđa","Prijava završetka izrade temelja i završetka objekta u konstruktivnom smislu","Podnošenje zahteva","Republička administrativna taksa",null,620,620,"840-742221843-57","Budžet Republike Srbije",97,"91-067","Zakon o RAT - tarifni broj 1 (x2)"]
[null,"Opština Medveđa","Dostavljanje tehničke dokumentacije","Podnošenje zahteva","Republička administrativna taksa",null,310,310,"840-742221843-57","Budžet Republike Srbije",97,"91-067","Zakon o RAT - tarifni broj 1"]
[null,"Opština Medveđa","Upotrebna dozvola","Podnošenje zahteva","Republička administrativna taksa",null,310,310,"840-742221843-57","Budžet Republike Srbije",97,"91-067","Zakon o RAT - tarifni broj 1"]
[null,"Opština Medveđa","Upotrebna dozvola","Podnošenje zahteva","Lokalna naknada",null,2000,2000,"840-742351843-94","Opštinska uprava Medveđa",97,"91-067","Odluka o naknadama za rad Opstinske uprave opstine Medvedja(„Sl.glasnik grada Leskovca“ br.9/2014 i 31/2015)"]
[null,"Opština Medveđa","Upotrebna dozvola","Donošenje rešenja","Republička administrativna taksa","DA","0.2% predračunske vrednosti objekta","0.2% predračunske vrednosti objekta","840-742221843-57","Budžet Republike Srbije",97,"91-067","Zakon o RAT - tarifni broj 170"]
[null,"Opština Medveđa","Priključenje objekta na infrastrukturu","Podnošenje zahteva","Republička administrativna taksa",null,310,310,"840-742221843-57","Budžet Republike Srbije",97,"91-067","Zakon o RAT - tarifni broj 1"]
[null,"Opština Merošina","Lokacijski uslovi","Podnošenje zahteva","Republička administrativna taksa",null,830,830,"840-742221843-57","Budžet Republike Srbije",97,"88-068 ","Zakon o RAT - tarifni broj 1 i 9"]
[null,"Opština Merošina","Lokacijski uslovi","Podnošenje zahteva","Lokalna administrativna taksa",null,800,800,"840-742251843-73","Opštinska uprava Merošina",97,"88-068","Odluke o opštinskim administrativnim taksama - Tarifni broj 9. (Sl.list grada Niša br.112/2008)"]
[null,"Opština Merošina","Građevinska dozvola","Podnošenje zahteva","Republička administrativna taksa",null,310,310,"840-742221843-57","Budžet Republike Srbije",97,"88-068 ","Zakon o RAT - tarifni broj 1"]
[null,"Opština Merošina","Građevinska dozvola","Podnošenje zahteva","Lokalna administrativna taksa",null,150,150,"840-742221843-57","Opštinska uprava Merošina",97,"88-068","Odluke o opštinskim administrativnim taksama - Tarifni broj 9. (Sl.list grada Niša br.112/2008)"]
[null,"Opština Merošina","Građevinska dozvola","Donošenje rešenja","Republička administrativna taksa",null,800,270,"840-742221843-57","Budžet Republike Srbije",97,"88-068 ","Zakon o RAT - tarifni broj 165"]
[null,"Opština Merošina","Građevinska dozvola","Donošenje rešenja","Lokalna administrativna taksa","DA","0.1% predračunske vrednosti objekta","0.1% predračunske vrednosti objekta","840-742251843-73","Opštinska uprava Merošina",97,"88-068","Odluke o opštinskim administrativnim taksama - Tarifni broj 9. (Sl.list grada Niša br.112/2008)"]
[null,"Opština Merošina","Rešenje o odobrenju izvođenja radova po članu 145 Zakona","Podnošenje zahteva","Republička administrativna taksa",null,310,310,"840-742221843-57","Budžet Republike Srbije",97,"88-068 ","Zakon o RAT - tarifni broj 1"]
[null,"Opština Merošina","Rešenje o odobrenju izvođenja radova po članu 145 Zakona","Podnošenje zahteva","Lokalna administrativna taksa",null,150,150,"840-742221843-57","Opštinska uprava Merošina",97,"88-068","Odluke o opštinskim administrativnim taksama - Tarifni broj 9. (Sl.list grada Niša br.112/2008)"]
[null,"Opština Merošina","Rešenje o odobrenju izvođenja radova po članu 145 Zakona","Donošenje rešenja","Republička administrativna taksa",null,800,270,"840-742221843-57","Budžet Republike Srbije",97,"88-068 ","Zakon o RAT - tarifni broj 165"]
[null,"Opština Merošina","Rešenje o odobrenju izvođenja radova po članu 145 Zakona","Donošenje rešenja","Lokalna administrativna taksa","DA","0.1% predračunske vrednosti objekta","0.1% predračunske vrednosti objekta","840-742251843-73","Opštinska uprava Merošina",97,"88-068","Odluke o opštinskim administrativnim taksama - Tarifni broj 9. (Sl.list grada Niša br.112/2008)"]
[null,"Opština Merošina","Upotrebna dozvola","Podnošenje zahteva","Republička administrativna taksa",null,310,310,"840-742221843-57","Budžet Republike Srbije",97,"88-068 ","Zakon o RAT - tarifni broj 1"]
[null,"Opština Merošina","Upotrebna dozvola","Podnošenje zahteva","Lokalna administrativna taksa",null,150,150,"840-742251843-73","Opštinska uprava Merošina",97,"88-068","Odluke o opštinskim administrativnim taksama - Tarifni broj 9. (Sl.list grada Niša br.112/2008)"]
[null,"Opština Merošina","Upotrebna dozvola","Donošenje rešenja","Republička administrativna taksa",null,520,520,"840-742221843-57","Budžet Republike Srbije",97,"88-068 ","Zakon o RAT - tarifni broj 9"]
[null,"Opština Merošina","Upotrebna dozvola","Donošenje rešenja","Lokalna administrativna taksa",null,4500,1800,"840-742251843-73","Opštinska uprava Merošina",97,"88-068","Odluke o opštinskim administrativnim taksama - Tarifni broj 9. (Sl.list grada Niša br.112/2008)"]
[null,"Opština Merošina","Prijava radova","Podnošenje zahteva","Republička administrativna taksa",null,620,620,"840-742221843-57","Budžet Republike Srbije",97,"88-068 ","Zakon o RAT - tarifni broj 1 (x2)"]
[null,"Opština Merošina","Prijava radova","Podnošenje zahteva","Lokalna administrativna taksa",null,400,400,"840-742251843-73","Opštinska uprava Merošina",97,"88-068","Odluke o opštinskim administrativnim taksama - Tarifni broj 9. (Sl.list grada Niša br.112/2008)"]
[null,"Opština Merošina","Prijava završetka izrade temelja i završetka objekta u konstruktivnom smislu","Podnošenje zahteva","Republička administrativna taksa",null,620,620,"840-742221843-57","Budžet Republike Srbije",97,"88-068 ","Zakon o RAT - tarifni broj 1 (x2)"]
[null,"Opština Merošina","Prijava završetka izrade temelja i završetka objekta u konstruktivnom smislu","Podnošenje zahteva","Lokalna administrativna taksa",null,400,400,"840-742251843-73","Opštinska uprava Merošina",97,"88-068","Odluke o opštinskim administrativnim taksama - Tarifni broj 9. (Sl.list grada Niša br.112/2008)"]
[null,"Opština Mionica","Lokacijski uslovi","Podnošenje zahteva","Lokalne naknade",null,10500,6500,"840-742351843-94","Opštinska uprava Mionica",97,"85-069","Odluka o naknadama za rad OU Mionica (Sl.glansik SO Mionica, br 7/2015) "]
[null,"Opština Mionica","Građevinska dozvola","Podnošenje zahteva","Republička administrativna taksa",null,310,310,"840-74222843-57 ","Budžet Republike Srbije",97,"85-069","Zakon o RAT - tarifni broj 1"]
[null,"Opština Mionica","Građevinska dozvola","Donošenje rešenja","Lokalne naknade",null,1500,700,"840-742351843-94","Opštinska uprava Mionica",97,"85-069","Odluka o naknadama za rad OU Mionica (Sl.glansik SO Mionica, br 7/2015) "]
[null,"Opština Mionica","Građevinska dozvola","Donošenje rešenja","Republička administrativna taksa",null,800,270,"840-74222843-57 ","Budžet Republike Srbije",97,"85-069","Zakon o RAT - tarifni broj 165"]
[null,"Opština Mionica","Rešenje o odobrenju izvođenja radova po članu 145 Zakona","Podnošenje zahteva","Republička administrativna taksa",null,310,310,"840-74222843-57 ","Budžet Republike Srbije",97,"85-069","Zakon o RAT - tarifni broj 1"]
[null,"Opština Mionica","Rešenje o odobrenju izvođenja radova po članu 145 Zakona","Donošenje rešenja","Lokalne naknade",null,3000,1500,"840-742351843-94","Opštinska uprava Mionica",97,"85-069","Odluka o naknadama za rad OU Mionica (Sl.glansik SO Mionica, br 7/2015) "]
[null,"Opština Mionica","Rešenje o odobrenju izvođenja radova po članu 145 Zakona","Donošenje rešenja","Republička administrativna taksa",null,800,270,"840-74222843-57 ","Budžet Republike Srbije",97,"85-069","Zakon o RAT - tarifni broj 165"]
[null,"Opština Mionica","Prijava radova","Podnošenje zahteva","Republička administrativna taksa",null,310,310,"840-74222843-57 ","Budžet Republike Srbije",97,"85-069","Zakon o RAT - tarifni broj 1"]
[null,"Opština Mionica","Prijava radova","Donošenje rešenja","Lokalne naknade",null,400,400,"840-742351843-94","Opštinska uprava Mionica",97,"85-069","Odluka o naknadama za rad OU Mionica (Sl.glansik SO Mionica, br 7/2015) "]
[null,"Opština Mionica","Prijava završetka izrade temelja i završetka objekta u konstruktivnom smislu","Podnošenje zahteva","Republička administrativna taksa",null,{"$f":"310+1600+310","v":2220},{"$f":"310+1600+310","v":2220},"840-74222843-57 ","Budžet Republike Srbije",97,"85-069","Zakon o RAT - tarifni broj 1 i 164, 1"]
[null,"Opština Mionica","Prijava završetka izrade temelja i završetka objekta u konstruktivnom smislu","Donošenje rešenja","Lokalne naknade",null,1500,1500,"840-742351843-94","Opštinska uprava Mionica",97,"85-069","Odluka o naknadama za rad OU Mionica (Sl.glansik SO Mionica, br 7/2015) "]
[null,"Opština Mionica","Upotrebna dozvola","Podnošenje zahteva","Republička administrativna taksa",null,310,310,"840-74222843-57 ","Budžet Republike Srbije",97,"85-069","Zakon o RAT - tarifni broj 1"]
[null,"Opština Mionica","Upotrebna dozvola","Donošenje rešenja","Lokalne naknade",null,1500,1500,"840-742351843-94","Opštinska uprava Mionica",97,"85-069","Odluka o naknadama za rad OU Mionica (Sl.glansik SO Mionica, br 7/2015) "]
[null,"Opština Mionica","Upotrebna dozvola","Donošenje rešenja","Republička administrativna taksa","DA","0.2% predračunske vrednosti objekta","0.2% predračunske vrednosti objekta","840-74222843-57 ","Budžet Republike Srbije",97,"85-069","Zakon o RAT - tarifni broj 170"]
[null,"Opština Nova Crnja","Lokacijski uslovi","Podnošenje zahteva","Republička administrativna taksa",null,310,310,"840-742221843-57","Budžet Republike Srbije",97,"20-220","Zakon o RAT - tarifni broj 1"]
[null,"Opština Nova Crnja","Građevinska dozvola","Donošenje rešenja","Republička administrativna taksa",null,{"$f":"310+800","v":1110},{"$f":"800+310","v":1110},"840-742221843-57","Budžet Republike Srbije",97,"20-220","Zakon o RAT - tarifni broj 1 i 165"]
[null,"Opština Nova Crnja","Rešenje o odobrenju izvođenja radova po članu 145 Zakona","Donošenje rešenja","Republička administrativna taksa",null,{"$f":"310+800","v":1110},{"$f":"800+310","v":1110},"840-742221843-57","Budžet Republike Srbije",97,"20-220","Zakon o RAT - tarifni broj 1 i 165"]
[null,"Opština Nova Crnja","Prijava radova","Podnošenje zahteva","Republička administrativna taksa",null,310,310,"840-742221843-57","Budžet Republike Srbije",97,"20-220","Zakon o RAT - tarifni broj 1"]
[null,"Opština Nova Crnja","Prijava završetka izrade temelja i završetka objekta u konstruktivnom smislu","Podnošenje zahteva","Republička administrativna taksa",null,310,310,"840-742221843-57","Budžet Republike Srbije",97,"20-220","Zakon o RAT - tarifni broj 1"]
[null,"Opština Nova Crnja","Dostavljanje tehničke dokumentacije","Podnošenje zahteva","Republička administrativna taksa",null,310,310,"840-742221843-57","Budžet Republike Srbije",97,"20-220","Zakon o RAT - tarifni broj 1"]
[null,"Opština Nova Crnja","Upotrebna dozvola","Podnošenje zahteva","Republička administrativna taksa",null,310,310,"840-742221843-57","Budžet Republike Srbije",97,"20-220","Zakon o RAT - tarifni broj 1"]
[null,"Opština Nova Crnja","Upotrebna dozvola","Donošenje rešenja","Republička administrativna taksa","DA","0.2% predračunske vrednosti objekta","0.2% predračunske vrednosti objekta","840-742221843-57","Budžet Republike Srbije",97,"20-220","Zakon o RAT - tarifni broj 1"]
[null,"Opština Nova Crnja","Priključenje objekta na infrastrukturu","Podnošenje zahteva","Republička administrativna taksa",null,310,310,"840-742221843-57","Budžet Republike Srbije",97,"20-220","Zakon o RAT - tarifni broj 1"]
[null,"Opština Nova Varoš","Lokacijski uslovi","Podnošenje zahteva","Republička administrativna taksa",null,770,770,"840-742221843-57","Budžet Republike Srbije",97,"70-074","Zakon o RAT - tarifni broj 165"]
[null,"Opština Nova Varoš","Lokacijski uslovi","Podnošenje zahteva","Lokalna administrativna taksa",null,1000,1000,"840-742221843-73","Opštinska uprava Nova Varoš",97,"70-074","Odluka o lokalnim administrativnim taksama(SL.list opštine Nova Varoš, br. 5/2008)"]
[null,"Opština Nova Varoš","Lokacijski uslovi","Donošenje rešenja","Lokalna administrativna taksa",null,7500,2200,"840-742351843-94","Opštinska uprava Nova Varoš",97,"70-074","Odluka o lokalnim administrativnim taksama(SL.list opštine Nova Varoš, br. 5/2008)"]
[null,"Opština Nova Varoš","Građevinska dozvola","Podnošenje zahteva","Republička administrativna taksa",null,300,300,"840-742221843-57","Budžet Republike Srbije",97,"70-074","Zakon o RAT - tarifni broj 1"]
[null,"Opština Nova Varoš","Građevinska dozvola","Podnošenje zahteva","Lokalna administrativna taksa",null,1000,1000,"840-742221843-73","Opštinska uprava Nova Varoš",97,"70-074","Odluka o lokalnim administrativnim taksama(SL.list opštine Nova Varoš, br. 5/2008)"]
[null,"Opština Nova Varoš","Građevinska dozvola","Donošenje rešenja","Republička administrativna taksa",null,770,770,"840-742221843-57","Budžet Republike Srbije",97,"70-074","Zakon o RAT - tarifni broj 165"]
[null,"Opština Nova Varoš","Građevinska dozvola","Donošenje rešenja","Lokalna administrativna taksa",null,1000,1000,"840-742221843-73","Opštinska uprava Nova Varoš",97,"70-074","Odluka o lokalnim administrativnim taksama(SL.list opštine Nova Varoš, br. 5/2008)"]
[null,"Opština Nova Varoš","Rešenje o odobrenju izvođenja radova po članu 145 Zakona","Podnošenje zahteva","Republička administrativna taksa",null,300,300,"840-742221843-57","Budžet Republike Srbije",97,"70-074","Zakon o RAT - tarifni broj 1"]
[null,"Opština Nova Varoš","Rešenje o odobrenju izvođenja radova po članu 145 Zakona","Podnošenje zahteva","Lokalna administrativna taksa",null,1000,1000,"840-742221843-73","Opštinska uprava Nova Varoš",97,"70-074","Odluka o lokalnim administrativnim taksama(SL.list opštine Nova Varoš, br. 5/2008)"]
[null,"Opština Nova Varoš","Rešenje o odobrenju izvođenja radova po članu 145 Zakona","Donošenje rešenja","Republička administrativna taksa",null,770,770,"840-742221843-57","Budžet Republike Srbije",97,"70-074","Zakon o RAT - tarifni broj 165"]
[null,"Opština Nova Varoš","Rešenje o odobrenju izvođenja radova po članu 145 Zakona","Donošenje rešenja","Lokalna administrativna taksa",null,1000,1000,"840-742221843-73","Opštinska uprava Nova Varoš",97,"70-074","Odluka o lokalnim administrativnim taksama(SL.list opštine Nova Varoš, br. 5/2008)"]
[null,"Opština Nova Varoš","Prijava radova","Podnošenje zahteva","Republička administrativna taksa",null,200,200,"840-742221843-57","Budžet Republike Srbije",97,"70-074","Zakon o RAT "]
[null,"Opština Nova Varoš","Prijava radova","Donošenje rešenja","Lokalna administrativna taksa",null,580,580,"840-745151843-03","Opštinska uprava Nova Varoš",97,"70-074","Odluka o lokalnim administrativnim taksama(SL.list opštine Nova Varoš, br. 5/2008)"]
[null,"Opština Nova Varoš","Dostavljanje tehničke dokumentacije","Podnošenje zahteva","Republička administrativna taksa",null,300,300,"840-742221843-57","Budžet Republike Srbije",97,"70-074","Zakon o RAT - tarifni broj 1"]
[null,"Opština Nova Varoš","Upotrebna dozvola","Podnošenje zahteva","Republička administrativna taksa",null,300,300,"840-742221843-57","Budžet Republike Srbije",97,"70-074","Zakon o RAT - tarifni broj 1"]
[null,"Opština Nova Varoš","Upotrebna dozvola","Podnošenje zahteva","Lokalna administrativna taksa",null,780,780,"840-7422218843-57","Opštinska uprava Nova Varoš",97,"70-074","Odluka o lokalnim administrativnim taksama(SL.list opštine Nova Varoš, br. 5/2008)"]
[null,"Opština Nova Varoš","Upotrebna dozvola","Donošenje rešenja","Republička administrativna taksa",null,340,340,"840-742221843-57","Budžet Republike Srbije",97,"70-074","Zakon o RAT - tarifni broj 165"]
[null,"Opština Nova Varoš","Upotrebna dozvola","Donošenje rešenja","Lokalna administrativna taksa",null,780,780,"840-742221843-73","Opštinska uprava Nova Varoš",97,"70-074","Odluka o lokalnim administrativnim taksama(SL.list opštine Nova Varoš, br. 5/2008)"]
[null,"Opština Nova Varoš","Priključenje objekta na infrastrukturu","Podnošenje zahteva","Republička administrativna taksa",null,300,300,"840-742221843-57","Budžet Republike Srbije",97,"70-074","Zakon o RAT - tarifni broj 1"]
[null,"Opština Novi Bečej","Lokacijski uslovi","Podnošenje zahteva","Republička administrativna taksa",null,830,830,"840-742221843-57","Budžet Republike Srbije",97,"17-221","Zakon o RAT - tarifni broj 1 i 9"]
[null,"Opština Novi Bečej","Lokacijski uslovi","Podnošenje zahteva","Lokalna administrativna taksa",null,45000,12000,"840-742351843-94","Opštinska uprava Novi Bečej",97,"17-221","Odluka o lokalnim administrativnim taksama (\"Sl.list Opštine Novi Bečej\", br. 11/2011 i 11/2017)"]
[null,"Opština Novi Bečej","Građevinska dozvola","Podnošenje zahteva","Republička administrativna taksa",null,310,310,"840-742221843-57","Budžet Republike Srbije",97,"17-221","Zakon o RAT - tarifni broj 1"]
[null,"Opština Novi Bečej","Građevinska dozvola","Donošenje rešenja","Republička administrativna taksa",null,800,270,"840-742221843-57","Budžet Republike Srbije",97,"17-221","Zakon o RAT - tarifni broj 165"]
[null,"Opština Novi Bečej","Građevinska dozvola","Donošenje rešenja","Lokalna administrativna taksa",null,700,250,"840-742351843-94","Opštinska uprava Novi Bečej",97,"17-221","Odluka o lokalnim administrativnim taksama (\"Sl.list Opštine Novi Bečej\", br. 11/2011 i 11/2017)"]
[null,"Opština Novi Bečej","Rešenje o odobrenju izvođenja radova po članu 145 Zakona","Podnošenje zahteva","Republička administrativna taksa",null,null,310,"840-742221843-57","Budžet Republike Srbije",97,"17-221","Zakon o RAT - tarifni broj 1"]
[null,"Opština Novi Bečej","Rešenje o odobrenju izvođenja radova po članu 145 Zakona","Donošenje rešenja","Republička administrativna taksa",null,null,270,"840-742221843-57","Budžet Republike Srbije",97,"17-221","Zakon o RAT - tarifni broj 165"]
[null,"Opština Novi Bečej","Rešenje o odobrenju izvođenja radova po članu 145 Zakona","Donošenje rešenja","Lokalna administrativna taksa",null,null,250,"840-742351843-94","Opštinska uprava Novi Bečej",97,"17-221","Odluka o lokalnim administrativnim taksama (\"Sl.list Opštine Novi Bečej\", br. 11/2011 i 11/2017)"]
[null,"Opština Novi Bečej","Prijava radova","Podnošenje zahteva","Republička administrativna taksa",null,620,620,"840-742221843-57","Budžet Republike Srbije",97,"17-221","Zakon o RAT - tarifni broj 1 i 11"]
[null,"Opština Novi Bečej","Prijava radova","Podnošenje zahteva","Lokalna administrativna taksa",null,250,250,"840-742351843-94","Opštinska uprava Novi Bečej",97,"17-221","Odluka o lokalnim administrativnim taksama (\"Sl.list Opštine Novi Bečej\", br. 11/2011 i 11/2017)"]
[null,"Opština Novi Bečej","Prijava završetka izrade temelja i završetka objekta u konstruktivnom smislu","Podnošenje zahteva","Republička administrativna taksa",null,{"$f":"310+1600","v":1910},{"$f":"310+1600","v":1910},"840-742221843-57","Budžet Republike Srbije",97,"17-221","Zakon o RAT - tarifni broj 1 i 165"]
[null,"Opština Novi Bečej","Prijava završetka izrade temelja i završetka objekta u konstruktivnom smislu","Podnošenje zahteva","Lokalna administrativna taksa",null,250,250,"840-742351843-94","Opštinska uprava Novi Bečej",97,"17-221","Odluka o lokalnim administrativnim taksama (\"Sl.list Opštine Novi Bečej\", br. 11/2011 i 11/2017)"]
[null,"Opština Novi Bečej","Upotrebna dozvola","Podnošenje zahteva","Republička administrativna taksa",null,310,310,"840-742221843-57","Budžet Republike Srbije",97,"17-221","Zakon o RAT - tarifni broj 1"]
[null,"Opština Novi Bečej","Upotrebna dozvola","Donošenje rešenja","Republička administrativna taksa","DA","0.2% predračunske vrednosti objekta","0.2% predračunske vrednosti objekta","840-742221843-57","Budžet Republike Srbije",97,"17-221","Zakon o RAT - tarifni broj 170"]
[null,"Opština Novi Bečej","Upotrebna dozvola","Donošenje rešenja","Lokalna administrativna taksa",null,700,250,"840-742351843-94","Opštinska uprava Novi Bečej",97,"17-221","Odluka o lokalnim administrativnim taksama (\"Sl.list Opštine Novi Bečej\", br. 11/2011 i 11/2017)"]
[null,"Opština Novi Bečej","Priključenje objekta na infrastrukturu","Podnošenje zahteva","Republička administrativna taksa",null,310,310,"840-742221843-57","Budžet Republike Srbije",97,"17-221","Zakon o RAT - tarifni broj 1 "]
[null,"Opština Novi Bečej","Priključenje objekta na infrastrukturu","Podnošenje zahteva","Lokalna administrativna taksa",null,200,200,"840-742351843-94","Opštinska uprava Novi Bečej",97,"17-221","Odluka o lokalnim administrativnim taksama (\"Sl.list Opštine Novi Bečej\", br. 11/2011 i 11/2017)"]
[null,"Opština Novi Kneževac","Lokacijski uslovi","Podnošenje zahteva","Republička administrativna taksa",null,600,600,"840-742221843-57","Budžet Republike Srbije",97,"14-222","Zakon o RAT - tarifni broj 1 "]
[null,"Opština Novi Kneževac","Lokacijski uslovi","Podnošenje zahteva","Lokalna administrativna taksa",null,50,50,"840-742251843-73","Opštinska uprava Novi Kneževac",97,"14-222","Odluka o lokalnim administrativnim taksama (\"Sl.list Opštine Novi Kneževac\", br. 9/02)"]
[null,"Opština Novi Kneževac","Građevinska dozvola","Podnošenje zahteva","Republička administrativna taksa",null,800,800,"840-742221843-57","Budžet Republike Srbije",97,"14-222","Zakon o RAT - tarifni broj 165"]
[null,"Opština Novi Kneževac","Građevinska dozvola","Podnošenje zahteva","Lokalna administrativna taksa",null,2550,1550,"840-742251843-73","Opštinska uprava Novi Kneževac",97,"14-222","Odluka o lokalnim administrativnim taksama (\"Sl.list Opštine Novi Kneževac\", br. 9/02)"]
[null,"Opština Novi Kneževac","Građevinska dozvola","Podnošenje zahteva","Lokalna naknada",null,1500,500,"840-714562843-56","Opštinska uprava Novi Kneževac",97,"14-222","Odluka o lokalnim administrativnim taksama (\"Sl.list Opštine Novi Kneževac\", br. 9/02)"]
[null,"Opština Novi Kneževac","Rešenje o odobrenju izvođenja radova po članu 145 Zakona","Podnošenje zahteva","Republička administrativna taksa",null,800,800,"840-742221843-57","Budžet Republike Srbije",97,"14-222","Zakon o RAT - tarifni broj 165"]
[null,"Opština Novi Kneževac","Rešenje o odobrenju izvođenja radova po članu 145 Zakona","Podnošenje zahteva","Lokalna administrativna taksa",null,2550,550,"840-742251843-73","Opštinska uprava Novi Kneževac",97,"14-222","Odluka o lokalnim administrativnim taksama (\"Sl.list Opštine Novi Kneževac\", br. 9/02)"]
[null,"Opština Novi Kneževac","Rešenje o odobrenju izvođenja radova po članu 145 Zakona","Podnošenje zahteva","Lokalna naknada",null,300,300,"840-714562843-56","Opštinska uprava Novi Kneževac",97,"14-222","Odluka o lokalnim administrativnim taksama (\"Sl.list Opštine Novi Kneževac\", br. 9/02)"]
[null,"Opština Novi Kneževac","Prijava radova","Podnošenje zahteva","Republička administrativna taksa",null,600,600,"840-742221843-57","Budžet Republike Srbije",97,"14-222","Zakon o RAT - tarifni broj 165"]
[null,"Opština Novi Kneževac","Prijava radova","Podnošenje zahteva","Lokalna administrativna taksa",null,50,50,"840-742251843-73","Opštinska uprava Novi Kneževac",97,"14-222","Odluka o lokalnim administrativnim taksama (\"Sl.list Opštine Novi Kneževac\", br. 9/02)"]
[null,"Opština Novi Kneževac","Prijava završetka izrade temelja i završetka objekta u konstruktivnom smislu","Podnošenje zahteva","Republička administrativna taksa",null,1530,1530,"840-742221843-57","Budžet Republike Srbije",97,"14-222","Zakon o RAT "]
[null,"Opština Novi Kneževac","Prijava završetka izrade temelja i završetka objekta u konstruktivnom smislu","Podnošenje zahteva","Lokalna administrativna taksa",null,60,60,"840-742251843-73","Opštinska uprava Novi Kneževac",97,"14-222","Odluka o lokalnim administrativnim taksama (\"Sl.list Opštine Novi Kneževac\", br. 9/02)"]
[null,"Opština Novi Kneževac","Upotrebna dozvola","Podnošenje zahteva","Republička administrativna taksa",null,800,800,"840-742221843-57","Budžet Republike Srbije",97,"14-222","Zakon o RAT - tarifni broj 165"]
[null,"Opština Novi Kneževac","Upotrebna dozvola","Podnošenje zahteva","Lokalna administrativna taksa",null,1550,550,"840-742251843-73","Opštinska uprava Novi Kneževac",97,"14-222","Odluka o lokalnim administrativnim taksama (\"Sl.list Opštine Novi Kneževac\", br. 9/02)"]
[null,"Opština Odžaci","Lokacijski uslovi","Podnošenje zahteva","Republička administrativna taksa",null,300,300,"840-742221843-57","Budžet Republike Srbije",97,"08-224","Zakon o RAT - tarifni broj 1"]
[null,"Opština Odžaci","Lokacijski uslovi","Podnošenje zahteva","Lokalne naknade",null,4000,4000,"840-742351843-94","Opštinska uprava Odžaci",97,"08-224","Odluka o naknadama za usluge koje opštinska uprava vrši drugim licima „Službeni list opštine Odžaci“               22/2008, 29/2010  "]
[null,"Opština Odžaci","Građevinska dozvola","Podnošenje zahteva","Republička administrativna taksa",null,1070,1070,"840-742221843-57","Budžet Republike Srbije",97,"08-224","Zakon o RAT - tarifni broj 165"]
[null,"Opština Odžaci","Građevinska dozvola","Podnošenje zahteva","Lokalne naknade",null,3000,3000,"840-742351843-94","Opštinska uprava Odžaci",97,"08-224","Odluka o naknadama za usluge koje opštinska uprava vrši drugim licima „Službeni list opštine Odžaci“               22/2008, 29/2010  "]
[null,"Opština Odžaci","Rešenje o odobrenju izvođenja radova po članu 145 Zakona","Podnošenje zahteva","Republička administrativna taksa",null,1070,1070,"840-742221843-57","Budžet Republike Srbije",97,"08-224","Zakon o RAT - tarifni broj 165"]
[null,"Opština Odžaci","Rešenje o odobrenju izvođenja radova po članu 145 Zakona","Podnošenje zahteva","Lokalne naknade",null,3000,3000,"840-742351843-94","Opštinska uprava Odžaci",97,"08-224","Odluka o naknadama za usluge koje opštinska uprava vrši drugim licima „Službeni list opštine Odžaci“               22/2008, 29/2010  "]
[null,"Opština Odžaci","Prijava radova","Podnošenje zahteva","Republička administrativna taksa",null,600,600,"840-742221843-57","Budžet Republike Srbije",97,"08-224","Zakon o RAT - tarifni broj 167"]
[null,"Opština Odžaci","Prijava završetka izrade temelja i završetka objekta u konstruktivnom smislu","Podnošenje zahteva","Republička administrativna taksa",null,1070,1070,"840-742221843-57","Budžet Republike Srbije",97,"08-224","Zakon o RAT - tarifni broj 164"]
[null,"Opština Odžaci","Prijava završetka izrade temelja i završetka objekta u konstruktivnom smislu","Podnošenje zahteva","Lokalne naknade",null,2200,2200,"840-742351843-94","Opštinska uprava Odžaci",97,"08-224","Odluka o naknadama za usluge koje opštinska uprava vrši drugim licima „Službeni list opštine Odžaci“               22/2008, 29/2010  "]
[null,"Opština Odžaci","Upotrebna dozvola","Podnošenje zahteva","Republička administrativna taksa","DA","0.2% predračunske vrednosti objekta","0.2% predračunske vrednosti objekta","840-742221843-57","Budžet Republike Srbije",97,"08-224","Zakon o RAT - tarifni broj 170"]
[null,"Opština Odžaci","Upotrebna dozvola","Podnošenje zahteva","Lokalne naknade","DA","0.1% predračunske vrednosti objekta","0.1% predračunske vrednosti objekta","840-742351843-94","Opštinska uprava Odžaci",97,"08-224","Odluka o naknadama za usluge koje opštinska uprava vrši drugim licima „Službeni list opštine Odžaci“               22/2008, 29/2010  "]
[null,"Opština Opovo","Lokacijski uslovi","Podnošenje zahteva","Republička administrativna taksa",null,600,600,"840-742221843-57","Budžet Republike Srbije",97,"05-225","Zakon o RAT - tarifni broj 1 i 11"]
[null,"Opština Opovo","Lokacijski uslovi","Podnošenje zahteva","Lokalne naknade",null,5000,5000,"840-742351843-94","Opštinska uprava Opovo",97,"05-225","Odluka o visina i načinu plačanja naknade troškova za izvadanje izvoda iz urbanističkog plana  i akta o urbanističkim uslovina\nSkupštine opštine  Opovo br. 011-17/03-III\n  "]
[null,"Opština Opovo","Građevinska dozvola","Podnošenje zahteva","Republička administrativna taksa",null,300,300,"840-742221843-57","Budžet Republike Srbije",97,"05-225","Zakon o RAT - tarifni broj 1 "]
[null,"Opština Opovo","Građevinska dozvola","Donošenje rešenja","Lokalne naknade",null,800,800,"840-742351843-94","Opštinska uprava Opovo",97,"05-225","Odluka o visina i načinu plačanja naknade troškova za izvadanje izvoda iz urbanističkog plana  i akta o urbanističkim uslovina\nSkupštine opštine  Opovo br. 011-17/03-III\n  "]
[null,"Opština Opovo","Građevinska dozvola","Donošenje rešenja","Republička administrativna taksa",null,770,770,"840-742221843-57","Budžet Republike Srbije",97,"05-225","Zakon o RAT - tarifni broj 165 "]
[null,"Opština Opovo","Rešenje o odobrenju izvođenja radova po članu 145 Zakona","Donošenje rešenja","Lokalne naknade",null,800,800,"840-742351843-94","Opštinska uprava Opovo",97,"05-225","Odluka o visina i načinu plačanja naknade troškova za izvadanje izvoda iz urbanističkog plana  i akta o urbanističkim uslovina\nSkupštine opštine  Opovo br. 011-17/03-III\n  "]
[null,"Opština Opovo","Rešenje o odobrenju izvođenja radova po članu 145 Zakona","Donošenje rešenja","Republička administrativna taksa",null,1070,1070,"840-742221843-57","Budžet Republike Srbije",97,"05-225","Zakon o RAT - tarifni broj 165 "]
[null,"Opština Opovo","Prijava radova","Podnošenje zahteva","Republička administrativna taksa",null,600,600,"840-742221843-57","Budžet Republike Srbije",97,"05-225","Zakon o RAT - tarifni broj 1 i 11"]
[null,"Opština Opovo","Prijava radova","Podnošenje zahteva","Lokalne naknade",null,200,200,"840-742351843-94","Opštinska uprava Opovo",97,"05-225","Odluka o visina i načinu plačanja naknade troškova za izvadanje izvoda iz urbanističkog plana  i akta o urbanističkim uslovina\nSkupštine opštine  Opovo br. 011-17/03-III\n  "]
[null,"Opština Opovo","Prijava završetka izrade temelja i završetka objekta u konstruktivnom smislu","Podnošenje zahteva","Republička administrativna taksa",null,{"$f":"1830+300","v":2130},{"$f":"1830+300","v":2130},"840-742221843-57","Budžet Republike Srbije",97,"05-225","Zakon o RAT - tarifni broj 1 i 164"]
[null,"Opština Opovo","Prijava završetka izrade temelja i završetka objekta u konstruktivnom smislu","Podnošenje zahteva","Lokalne naknade",null,200,200,"840-742351843-94","Opštinska uprava Opovo",97,"05-225","Odluka o visina i načinu plačanja naknade troškova za izvadanje izvoda iz urbanističkog plana  i akta o urbanističkim uslovina\nSkupštine opštine  Opovo br. 011-17/03-III\n  "]
[null,"Opština Opovo","Upotrebna dozvola","Podnošenje zahteva","Republička administrativna taksa",null,300,300,"840-742221843-57","Budžet Republike Srbije",97,"05-225","Zakon o RAT - tarifni broj 1 "]
[null,"Opština Opovo","Upotrebna dozvola","Donošenje rešenja","Lokalne naknade","DA","0.2% predračunske vrednosti objekta","0.2% predračunske vrednosti objekta","840-742351843-94","Opštinska uprava Opovo",97,"05-225","Odluka o visina i načinu plačanja naknade troškova za izvadanje izvoda iz urbanističkog plana  i akta o urbanističkim uslovina\nSkupštine opštine  Opovo br. 011-17/03-III\n  "]
[null,"Opština Opovo","Upotrebna dozvola","Donošenje rešenja","Republička administrativna taksa","DA","0.2% predračunske vrednosti objekta","0.2% predračunske vrednosti objekta","840-742221843-57","Budžet Republike Srbije",97,"05-225","Zakon o RAT - tarifni broj 170"]
[null,"Opština Pećinci","Lokacijski uslovi","Podnošenje zahteva","Lokalna administrativna taksa",null,290,290,"840-742251843-73","Opštinska uprava Pećinci",97,"96-227","Opštinske administrativne takse (Sl. List Opštine Srema 27/2015)"]
[null,"Opština Pećinci","Lokacijski uslovi","Podnošenje zahteva","Lokalna naknada",null,30706,30706,"840-742251843-73","Opštinska uprava Pećinci",97,"96-227","Opštinske administrativne takse (Sl. List Opštine Srema 27/2015)"]
[null,"Opština Pećinci","Građevinska dozvola","Podnošenje zahteva","Republička administrativna taksa",null,310,310,"840-742221843-57","Budžet Republike Srbije",97,"96-227","Zakon o RAT - tarifni broj 1"]
[null,"Opština Pećinci","Građevinska dozvola","Donošenje rešenja","Republička administrativna taksa",null,800,800,"840-742221843-57","Budžet Republike Srbije",97,"96-227","Zakon o RAT - tarifni broj 165"]
[null,"Opština Pećinci","Rešenje o odobrenju izvođenja radova po članu 145 Zakona","Podnošenje zahteva","Republička administrativna taksa",null,310,310,"840-742221843-57","Budžet Republike Srbije",97,"96-227","Zakon o RAT - tarifni broj 1"]
[null,"Opština Pećinci","Rešenje o odobrenju izvođenja radova po članu 145 Zakona","Donošenje rešenja","Lokalna administrativna taksa",null,1000,1000,"840-742251843-73","Opštinska uprava Pećinci",97,"96-227","Opštinske administrativne takse (Sl. List Opštine Srema 27/2015) –tarifni  broj 3"]
[null,"Opština Pećinci","Prijava završetka izrade temelja i završetka objekta u konstruktivnom smislu","Podnošenje zahteva","Republička administrativna taksa",null,310,310,"840-742221843-57","Budžet Republike Srbije",97,"96-227","Zakon o RAT - tarifni broj 1"]
[null,"Opština Pećinci","Prijava završetka izrade temelja i završetka objekta u konstruktivnom smislu","Donošenje rešenja","Republička administrativna taksa",null,1600,1600,"840-742221843-57","Budžet Republike Srbije",97,"96-227","Zakon o RAT - tarifni broj 164"]
[null,"Opština Pećinci","Dostavljanje tehničke dokumentacije","Podnošenje zahteva","Republička administrativna taksa",null,310,310,"840-742221843-57","Budžet Republike Srbije",97,"96-227","Zakon o RAT - tarifni broj 1"]
[null,"Opština Pećinci","Upotrebna dozvola","Podnošenje zahteva","Republička administrativna taksa",null,310,310,"840-742221843-57","Budžet Republike Srbije",97,"96-227","Zakon o RAT - tarifni broj 1"]
[null,"Opština Pećinci","Upotrebna dozvola","Donošenje rešenja","Republička administrativna taksa","DA","0.2% predračunske vrednosti objekta","0.2% predračunske vrednosti objekta","840-742221843-57","Budžet Republike Srbije",97,"96-227","Zakon o RAT - tarifni broj 170"]
[null,"Opština Pećinci","Priključenje objekta na infrastrukturu","Podnošenje zahteva","Republička administrativna taksa",null,310,310,"840-742221843-57","Budžet Republike Srbije",97,"96-227","Zakon o RAT - tarifni broj 1"]
[null,"Opština Petrovac na Mlavi","Lokacijski uslovi","Podnošenje zahteva","Lokalne naknade",null,9500,9500,"840-742251843-73","Opština Petrovac na Mlavi",97,"58-078","Odluka o opštinskim administrativnim taksana"]
[null,"Opština Petrovac na Mlavi","Lokacijski uslovi","Podnošenje zahteva","Republička administrativna taksa",null,310,310,"840-742221843-57","Budžet Republike Srbije",97,"58-078","Zakon o RAT - tarifni broj 1"]
[null,"Opština Petrovac na Mlavi","Lokacijski uslovi","Donošenje rešenja","Republička administrativna taksa",null,800,800,"840-742221843-57","Budžet Republike Srbije",97,"58-078","Zakon o RAT - tarifni broj 165"]
[null,"Opština Petrovac na Mlavi","Građevinska dozvola","Podnošenje zahteva","Republička administrativna taksa",null,310,310,"840-742221843-57","Budžet Republike Srbije",97,"58-078","Zakon o RAT - tarifni broj 1"]
[null,"Opština Petrovac na Mlavi","Građevinska dozvola","Donošenje rešenja","Republička administrativna taksa",null,800,800,"840-742221843-57","Budžet Republike Srbije",97,"58-078","Zakon o RAT - tarifni broj 165"]
[null,"Opština Petrovac na Mlavi","Rešenje o odobrenju izvođenja radova po članu 145 Zakona","Podnošenje zahteva","Republička administrativna taksa",null,310,310,"840-742221843-57","Budžet Republike Srbije",97,"58-078","Zakon o RAT - tarifni broj 1"]
[null,"Opština Petrovac na Mlavi","Rešenje o odobrenju izvođenja radova po članu 145 Zakona","Donošenje rešenja","Republička administrativna taksa",null,800,800,"840-742221843-57","Budžet Republike Srbije",97,"58-078","Zakon o RAT - tarifni broj 165"]
[null,"Opština Petrovac na Mlavi","Prijava završetka izrade temelja i završetka objekta u konstruktivnom smislu","Podnošenje zahteva","Republička administrativna taksa",null,310,310,"840-742221843-57","Budžet Republike Srbije",97,"58-078","Zakon o RAT - tarifni broj 1"]
[null,"Opština Petrovac na Mlavi","Prijava završetka izrade temelja i završetka objekta u konstruktivnom smislu","Donošenje rešenja","Republička administrativna taksa",null,1600,1600,"840-742221843-57","Budžet Republike Srbije",97,"58-078","Zakon o RAT - tarifni broj 164"]
[null,"Opština Petrovac na Mlavi","Upotrebna dozvola","Podnošenje zahteva","Republička administrativna taksa",null,310,310,"840-742221843-57","Budžet Republike Srbije",97,"58-078","Zakon o RAT - tarifni broj 1"]
[null,"Opština Petrovac na Mlavi","Upotrebna dozvola","Donošenje rešenja","Republička administrativna taksa","DA","0.2% predračunske vrednosti objekta","0.2% predračunske vrednosti objekta","840-742221843-57","Budžet Republike Srbije",97,"58-078","Zakon o RAT - tarifni broj 170"]
[null,"Opština Plandište","Lokacijski uslovi","Podnošenje zahteva","Lokalna administrativna taksa",null,150,150,"840-742251843-73","Opštinska uprava Plandište",97,"93-228  ","Odluka o lokalnim administrativnim taksama"]
[null,"Opština Plandište","Lokacijski uslovi","Donošenje rešenja","Lokalna naknada",null,3000,1000,"840-742251843-73","Opštinska uprava Plandište",97,"93-228  ","Odluka o lokalnim administrativnim taksama"]
[null,"Opština Plandište","Građevinska dozvola","Podnošenje zahteva","Republička administrativna taksa",null,310,310,"840-742221843-57","Budžet Republike Srbije",97,"93-228  ","Zakon o RAT - tarifni broj 1"]
[null,"Opština Plandište","Građevinska dozvola","Donošenje rešenja","Republička administrativna taksa",null,800,800,"840-742221843-57","Budžet Republike Srbije",97,"93-228  ","Zakon o RAT - tarifni broj 165"]
[null,"Opština Plandište","Rešenje o odobrenju izvođenja radova po članu 145 Zakona","Podnošenje zahteva","Republička administrativna taksa",null,310,310,"840-742221843-57","Budžet Republike Srbije",97,"93-228  ","Zakon o RAT - tarifni broj 1"]
[null,"Opština Plandište","Rešenje o odobrenju izvođenja radova po članu 145 Zakona","Donošenje rešenja","Republička administrativna taksa",null,400,400,"840-742221843-57","Budžet Republike Srbije",97,"93-228  ","Zakon o RAT - tarifni broj 165"]
[null,"Opština Plandište","Prijava radova","Podnošenje zahteva","Republička administrativna taksa",null,310,310,"840-742221843-57","Budžet Republike Srbije",97,"93-228  ","Zakon o RAT - tarifni broj 1"]
[null,"Opština Plandište","Prijava radova","Donošenje rešenja","Republička administrativna taksa",null,310,310,"840-742221843-57","Budžet Republike Srbije",97,"93-228  ","Zakon o RAT - tarifni broj 11"]
[null,"Opština Plandište","Prijava završetka izrade temelja i završetka objekta u konstruktivnom smislu","Podnošenje zahteva","Republička administrativna taksa",null,310,310,"840-742221843-57","Budžet Republike Srbije",97,"93-228  ","Zakon o RAT - tarifni broj 1"]
[null,"Opština Plandište","Prijava završetka izrade temelja i završetka objekta u konstruktivnom smislu","Donošenje rešenja","Republička administrativna taksa",null,1600,1600,"840-742221843-57","Budžet Republike Srbije",97,"93-228  ","Zakon o RAT - tarifni broj 164"]
[null,"Opština Plandište","Upotrebna dozvola","Podnošenje zahteva","Republička administrativna taksa",null,310,310,"840-742221843-57","Budžet Republike Srbije",97,"93-228  ","Zakon o RAT - tarifni broj 1"]
[null,"Opština Plandište","Upotrebna dozvola","Donošenje rešenja","Republička administrativna taksa","DA","0.2% predračunske vrednosti objekta","0.2% predračunske vrednosti objekta","840-742221843-57","Budžet Republike Srbije",97,"93-228  ","Zakon o RAT - tarifni broj 170"]
[null,"Opština Požega","Lokacijski uslovi","Podnošenje zahteva","Republička administrativna taksa",null,310,310,"840-742221843-57","Budžet Republike Srbije",97,"49-081","Zakon o RAT - tarifni broj 1"]
[null,"Opština Požega","Lokacijski uslovi","Podnošenje zahteva","Lokalna administrativna taksa",null,42000,42000,"840-742251843-73","Opštinska uprava Požega",97,"49-081","Odluka o lokalnim administrativnim taksama (Sl.list opštine Požega, 7/8)"]
[null,"Opština Požega","Građevinska dozvola","Podnošenje zahteva","Republička administrativna taksa",null,310,310,"840-742221843-57","Budžet Republike Srbije",97,"49-081","Zakon o RAT - tarifni broj 1"]
[null,"Opština Požega","Građevinska dozvola","Donošenje rešenja","Republička administrativna taksa",null,800,800,"840-742221843-57","Budžet Republike Srbije",97,"49-081","Zakon o RAT - tarifni broj 165"]
[null,"Opština Požega","Rešenje o odobrenju izvođenja radova po članu 145 Zakona","Podnošenje zahteva","Republička administrativna taksa",null,310,310,"840-742221843-57","Budžet Republike Srbije",97,"49-081","Zakon o RAT - tarifni broj 1"]
[null,"Opština Požega","Rešenje o odobrenju izvođenja radova po članu 145 Zakona","Donošenje rešenja","Republička administrativna taksa",null,800,800,"840-742221843-57","Budžet Republike Srbije",97,"49-081","Zakon o RAT - tarifni broj 165"]
[null,"Opština Požega","Prijava radova","Podnošenje zahteva","Republička administrativna taksa",null,310,310,"840-742221843-57","Budžet Republike Srbije",97,"49-081","Zakon o RAT - tarifni broj 1"]
[null,"Opština Požega","Prijava završetka izrade temelja i završetka objekta u konstruktivnom smislu","Podnošenje zahteva","Republička administrativna taksa",null,310,310,"840-742221843-57","Budžet Republike Srbije",97,"49-081","Zakon o RAT - tarifni broj 1"]
[null,"Opština Požega","Dostavljanje tehničke dokumentacije","Podnošenje zahteva","Republička administrativna taksa",null,310,310,"840-742221843-57","Budžet Republike Srbije",97,"49-081","Zakon o RAT - tarifni broj 1"]
[null,"Opština Požega","Upotrebna dozvola","Podnošenje zahteva","Republička administrativna taksa",null,310,310,"840-742221843-57","Budžet Republike Srbije",97,"49-081","Zakon o RAT - tarifni broj 1"]
[null,"Opština Požega","Upotrebna dozvola","Donošenje rešenja","Republička administrativna taksa","DA","0.2% predračunske vrednosti objekta","0.2% predračunske vrednosti objekta","840-742221843-57","Budžet Republike Srbije",97,"49-081","Zakon o RAT - tarifni broj 170"]
[null,"Opština Požega","Priključenje objekta na infrastrukturu","Podnošenje zahteva","Republička administrativna taksa",null,310,310,"840-742221843-57","Budžet Republike Srbije",97,"49-081","Zakon o RAT - tarifni broj 1"]
[null,"Opština Preševo ","Lokacijski uslovi","Podnošenje zahteva","Lokalna administrativna taksa",null,10000,10000,"840-742251843-73","Opštinska uprava Preševo",97,"46-082","Odluka o opštinskim administrativnim taksama I odluka o naknadama za usluge koja vrši opštinska uprava Preševo SL.Gl.Opštine Bujanovac br.19/2016 od 20.12.2016.god"]
[null,"Opština Preševo ","Građevinska dozvola","Podnošenje zahteva","Lokalna administrativna taksa",null,10000,10000,"840-742251843-73","Opštinska uprava Preševo",97,"46-082","Odluka o opštinskim administrativnim taksama I odluka o naknadama za usluge koja vrši opštinska uprava Preševo SL.Gl.Opštine Bujanovac br.19/2016 od 20.12.2016.god"]
[null,"Opština Preševo ","Rešenje o odobrenju izvođenja radova po članu 145 Zakona","Podnošenje zahteva","Lokalna administrativna taksa",null,10000,10000,"840-742251843-73","Opštinska uprava Preševo",97,"46-082","Odluka o opštinskim administrativnim taksama I odluka o naknadama za usluge koja vrši opštinska uprava Preševo SL.Gl.Opštine Bujanovac br.19/2016 od 20.12.2016.god"]
[null,"Opština Preševo ","Rešenje o odobrenju izvođenja radova po članu 145 Zakona","Donošenje rešenja","Republička administrativna taksa",null,770,770,"840-742221843-57","Budžet Republike Srbije",97,"46-082","Zakon o RAT "]
[null,"Opština Preševo ","Prijava radova","Podnošenje zahteva","Republička administrativna taksa",null,300,300,"840-742221843-57","Budžet Republike Srbije",97,"46-082","Zakon o RAT "]
[null,"Opština Preševo ","Prijava radova","Podnošenje zahteva","Lokalna administrativna taksa",null,10000,10000,"840-742251843-73","Opštinska uprava Preševo",97,"46-082","Odluka o opštinskim administrativnim taksama I odluka o naknadama za usluge koja vrši opštinska uprava Preševo SL.Gl.Opštine Bujanovac br.19/2016 od 20.12.2016.god"]
[null,"Opština Preševo ","Prijava završetka izrade temelja i završetka objekta u konstruktivnom smislu","Podnošenje zahteva","Republička administrativna taksa",null,1540,1540,"840-742221843-57","Budžet Republike Srbije",97,"46-082","Zakon o RAT "]
[null,"Opština Preševo ","Prijava završetka izrade temelja i završetka objekta u konstruktivnom smislu","Podnošenje zahteva","Lokalna administrativna taksa",null,10000,10000,"840-742251843-73","Opštinska uprava Preševo",97,"46-082","Odluka o opštinskim administrativnim taksama I odluka o naknadama za usluge koja vrši opštinska uprava Preševo SL.Gl.Opštine Bujanovac br.19/2016 od 20.12.2016.god"]
[null,"Opština Preševo ","Upotrebna dozvola","Podnošenje zahteva","Lokalna administrativna taksa",null,10000,10000,"840-742251843-73","Opštinska uprava Preševo",97,"46-082","Odluka o opštinskim administrativnim taksama I odluka o naknadama za usluge koja vrši opštinska uprava Preševo SL.Gl.Opštine Bujanovac br.19/2016 od 20.12.2016.god"]
[null,"Opština Preševo ","Upotrebna dozvola","Donošenje rešenja","Republička administrativna taksa","DA","0.2% predračunske vrednosti objekta","0.2% predračunske vrednosti objekta","840-742221843-57","Budžet Republike Srbije",97,"46-082","Zakon o RAT - tarifni broj 170"]
[null,"Opština Preševo ","Priključenje objekta na infrastrukturu","Podnošenje zahteva","Lokalna administrativna taksa",null,750,750,"840-742251843-73","Opštinska uprava Preševo",97,"46-082","Odluka o opštinskim administrativnim taksama I odluka o naknadama za usluge koja vrši opštinska uprava Preševo SL.Gl.Opštine Bujanovac br.19/2016 od 20.12.2016.god"]
[null,"Opština Priboj","Lokacijski uslovi","Podnošenje zahteva","Republička administrativna taksa",null,310,310,"840-742221843-57","Budžet Republike Srbije",97,"43-083 ","Zakon o RAT - tarifni broj 1"]
[null,"Opština Priboj","Lokacijski uslovi","Donošenje rešenja","Lokalna administrativna taksa",null,20000,20000,null,null,null,null,"Odluka o lokalnim adm. Taksama (Sl. list Op. Priboj br. 3/09, 6/09, 2/10, 4/10, 7/11)"]
[null,"Opština Priboj","Građevinska dozvola","Podnošenje zahteva","Republička administrativna taksa",null,310,310,"840-742221843-57","Budžet Republike Srbije",97,"43-083 ","Zakon o RAT - tarifni broj 1"]
[null,"Opština Priboj","Građevinska dozvola","Donošenje rešenja","Republička administrativna taksa",null,800,800,"840-742221843-57","Budžet Republike Srbije",97,"43-083 ","Zakon o RAT - tarifni broj 165"]
[null,"Opština Priboj","Rešenje o odobrenju izvođenja radova po članu 145 Zakona","Podnošenje zahteva","Republička administrativna taksa",null,310,310,"840-742221843-57","Budžet Republike Srbije",97,"43-083 ","Zakon o RAT - tarifni broj 1"]
[null,"Opština Priboj","Rešenje o odobrenju izvođenja radova po članu 145 Zakona","Donošenje rešenja","Republička administrativna taksa",null,400,400,"840-742221843-57","Budžet Republike Srbije",97,"43-083 ","Zakon o RAT - tarifni broj 165"]
[null,"Opština Priboj","Prijava radova","Podnošenje zahteva","Republička administrativna taksa",null,310,310,"840-742221843-57","Budžet Republike Srbije",97,"43-083 ","Zakon o RAT - tarifni broj 1"]
[null,"Opština Priboj","Prijava završetka izrade temelja i završetka objekta u konstruktivnom smislu","Podnošenje zahteva","Republička administrativna taksa",null,310,310,"840-742221843-57","Budžet Republike Srbije",97,"43-083 ","Zakon o RAT - tarifni broj 1"]
[null,"Opština Priboj","Dostavljanje tehničke dokumentacije","Podnošenje zahteva","Republička administrativna taksa",null,310,310,"840-742221843-57","Budžet Republike Srbije",97,"43-083 ","Zakon o RAT - tarifni broj 1"]
[null,"Opština Priboj","Upotrebna dozvola","Podnošenje zahteva","Republička administrativna taksa",null,310,310,"840-742221843-57","Budžet Republike Srbije",97,"43-083 ","Zakon o RAT - tarifni broj 1"]
[null,"Opština Priboj","Upotrebna dozvola","Donošenje rešenja","Republička administrativna taksa","DA","0.2% predračunske vrednosti objekta","0.2% predračunske vrednosti objekta","840-742221843-57","Budžet Republike Srbije",97,"43-083 ","Zakon o RAT - tarifni broj 170"]
[null,"Opština Priboj","Priključenje objekta na infrastrukturu","Podnošenje zahteva","Republička administrativna taksa",null,310,310,"840-742221843-57","Budžet Republike Srbije",97,"43-083 ","Zakon o RAT - tarifni broj 1"]
[null,"Opština Prijepolje","Lokacijski uslovi","Podnošenje zahteva","Republička administrativna taksa",null,310,310,"840-742221843-57","Budžet Republike Srbije",97,"40-084","Zakon o RAT - tarifni broj 1"]
[null,"Opština Prijepolje","Građevinska dozvola","Podnošenje zahteva","Republička administrativna taksa",null,310,310,"840-742221843-57","Budžet Republike Srbije",97,"40-084","Zakon o RAT - tarifni broj 1"]
[null,"Opština Prijepolje","Rešenje o odobrenju izvođenja radova po članu 145 Zakona","Podnošenje zahteva","Republička administrativna taksa",null,310,310,"840-742221843-57","Budžet Republike Srbije",97,"40-084","Zakon o RAT - tarifni broj 1"]
[null,"Opština Prijepolje","Prijava radova","Podnošenje zahteva","Republička administrativna taksa",null,310,310,"840-742221843-57","Budžet Republike Srbije",97,"40-084","Zakon o RAT - tarifni broj 1"]
[null,"Opština Prijepolje","Prijava završetka izrade temelja i završetka objekta u konstruktivnom smislu","Podnošenje zahteva","Republička administrativna taksa",null,310,310,"840-742221843-57","Budžet Republike Srbije",97,"40-084","Zakon o RAT - tarifni broj 1"]
[null,"Opština Prijepolje","Dostavljanje tehničke dokumentacije","Podnošenje zahteva","Republička administrativna taksa",null,310,310,"840-742221843-57","Budžet Republike Srbije",97,"40-084","Zakon o RAT - tarifni broj 1"]
[null,"Opština Prijepolje","Upotrebna dozvola","Podnošenje zahteva","Republička administrativna taksa",null,310,310,"840-742221843-57","Budžet Republike Srbije",97,"40-084","Zakon o RAT - tarifni broj 1"]
[null,"Opština Prijepolje","Priključenje objekta na infrastrukturu","Podnošenje zahteva","Republička administrativna taksa",null,310,310,"840-742221843-57","Budžet Republike Srbije",97,"40-084","Zakon o RAT - tarifni broj 1"]
[null,"Opština Rača","Lokacijski uslovi","Podnošenje zahteva","Republička administrativna taksa",null,310,310,"840-74222843-57 ","Budžet Republike Srbije",97,"34-086","Zakon o RAT - tarifni broj 1"]
[null,"Opština Rača","Lokacijski uslovi","Podnošenje zahteva","Lokalna administrativna taksa",null,68.8,68.8,"840-742251843-73","Budžet Republike Srbije",97,"34-086","Odluka o lokalnim administrativnim taksama ( SL.glasnik opštine Rača br.19/13)"]
[null,"Opština Rača","Građevinska dozvola","Podnošenje zahteva","Republička administrativna taksa",null,310,310,"840-74222843-57 ","Budžet Republike Srbije",97,"34-086","Zakon o RAT - tarifni broj 1"]
[null,"Opština Rača","Građevinska dozvola","Podnošenje zahteva","Lokalna administrativna taksa",null,68.8,68.8,"840-742251843-73","Budžet Republike Srbije",97,"34-086","Odluka o lokalnim administrativnim taksama ( SL.glasnik opštine Rača br.19/13)"]
[null,"Opština Rača","Građevinska dozvola","Donošenje rešenja","Republička administrativna taksa",null,800,800,"840-74222843-57 ","Budžet Republike Srbije",97,"34-086","Zakon o RAT - tarifni broj 165"]
[null,"Opština Rača","Građevinska dozvola","Donošenje rešenja","Lokalna administrativna taksa",null,744.5,744.5,"840-742251843-73","Budžet Republike Srbije",97,"34-086","Odluka o lokalnim administrativnim taksama ( SL.glasnik opštine Rača br.19/13)"]
[null,"Opština Rača","Rešenje o odobrenju izvođenja radova po članu 145 Zakona","Podnošenje zahteva","Republička administrativna taksa",null,310,310,"840-74222843-57 ","Budžet Republike Srbije",97,"34-086","Zakon o RAT - tarifni broj 1"]
[null,"Opština Rača","Rešenje o odobrenju izvođenja radova po članu 145 Zakona","Podnošenje zahteva","Lokalna administrativna taksa",null,68.8,68.8,"840-742251843-73","Budžet Republike Srbije",97,"34-086","Odluka o lokalnim administrativnim taksama ( SL.glasnik opštine Rača br.19/13)"]
[null,"Opština Rača","Rešenje o odobrenju izvođenja radova po članu 145 Zakona","Donošenje rešenja","Republička administrativna taksa",null,400,400,"840-74222843-57 ","Budžet Republike Srbije",97,"34-086","Zakon o RAT - tarifni broj 165"]
[null,"Opština Rača","Rešenje o odobrenju izvođenja radova po članu 145 Zakona","Donošenje rešenja","Lokalna administrativna taksa",null,12949,12949,"840-742251843-73","Budžet Republike Srbije",97,"34-086","Odluka o lokalnim administrativnim taksama ( SL.glasnik opštine Rača br.19/13)"]
[null,"Opština Rača","Prijava radova","Podnošenje zahteva","Republička administrativna taksa",null,310,310,"840-74222843-57 ","Budžet Republike Srbije",97,"34-086","Zakon o RAT - tarifni broj 1"]
[null,"Opština Rača","Prijava završetka izrade temelja i završetka objekta u konstruktivnom smislu","Podnošenje zahteva","Republička administrativna taksa",null,1600,1600,"840-74222843-57 ","Budžet Republike Srbije",97,"34-086","Zakon o RAT - tarifni broj 164"]
[null,"Opština Rača","Dostavljanje tehničke dokumentacije","Podnošenje zahteva","Republička administrativna taksa",null,23660,23660,"840-74222843-57 ","Budžet Republike Srbije",97,"34-086","Zakon o RAT - tarifni broj 166"]
[null,"Opština Rača","Upotrebna dozvola","Podnošenje zahteva","Republička administrativna taksa",null,310,310,"840-74222843-57 ","Budžet Republike Srbije",97,"34-086","Zakon o RAT - tarifni broj 1"]
[null,"Opština Rača","Upotrebna dozvola","Podnošenje zahteva","Lokalna administrativna taksa",null,68.8,68.8,"840-742251843-73","Budžet Republike Srbije",97,"34-086","Odluka o lokalnim administrativnim taksama ( SL.glasnik opštine Rača br.19/13)"]
[null,"Opština Rača","Upotrebna dozvola","Donošenje rešenja","Republička administrativna taksa","DA","0.2% predračunske vrednosti objekta","0.2% predračunske vrednosti objekta","840-74222843-57 ","Budžet Republike Srbije",97,"34-086","Zakon o RAT - tarifni broj 170"]
[null,"Opština Rača","Upotrebna dozvola","Donošenje rešenja","Lokalna administrativna taksa",null,4964,4964,"840-742251843-73","Budžet Republike Srbije",97,"34-086","Odluka o lokalnim administrativnim taksama ( SL.glasnik opštine Rača br.19/13)"]
[null,"Opština Rača","Priključenje objekta na infrastrukturu","Podnošenje zahteva","Republička administrativna taksa",null,310,310,"840-74222843-57 ","Budžet Republike Srbije",97,"34-086","Zakon o RAT - tarifni broj 1"]
[null,"Opština Ražanj","Lokacijski uslovi","Podnošenje zahteva","Republička administrativna taksa",null,310,310,"840-742221843-57","Budžet Republike Srbije",97,"28-088","Zakon o RAT - tarifni broj 1"]
[null,"Opština Ražanj","Lokacijski uslovi","Podnošenje zahteva","Lokalna naknada",null,6000,20000,"840-742351843-94","Opštinska uprava Ražanj",97,"28-088","Odluka o naknadama za rad opštinske uprave opštine Ražanj "]
[null,"Opština Ražanj","Građevinska dozvola","Podnošenje zahteva","Republička administrativna taksa",null,310,310,"840-742221843-57","Budžet Republike Srbije",97,"28-088","Zakon o RAT - tarifni broj 1"]
[null,"Opština Ražanj","Građevinska dozvola","Podnošenje zahteva","Lokalna naknada",null,4000,4000,"840-742351843-94","Opštinska uprava Ražanj",97,"28-088","Odluka o naknadama za rad opštinske uprave opštine Ražanj "]
[null,"Opština Ražanj","Građevinska dozvola","Donošenje rešenja","Republička administrativna taksa",null,800,800,"840-742221843-57","Budžet Republike Srbije",97,"28-088","Zakon o RAT - tarifni broj 165"]
[null,"Opština Ražanj","Rešenje o odobrenju izvođenja radova po članu 145 Zakona","Podnošenje zahteva","Republička administrativna taksa",null,310,310,"840-742221843-57","Budžet Republike Srbije",97,"28-088","Zakon o RAT - tarifni broj 1"]
[null,"Opština Ražanj","Rešenje o odobrenju izvođenja radova po članu 145 Zakona","Podnošenje zahteva","Lokalna naknada",null,1000,1000,"840-742351843-94","Opštinska uprava Ražanj",97,"28-088","Odluka o naknadama za rad opštinske uprave opštine Ražanj "]
[null,"Opština Ražanj","Rešenje o odobrenju izvođenja radova po članu 145 Zakona","Donošenje rešenja","Republička administrativna taksa",null,800,800,"840-742221843-57","Budžet Republike Srbije",97,"28-088","Zakon o RAT - tarifni broj 165"]
[null,"Opština Ražanj","Prijava radova","Podnošenje zahteva","Republička administrativna taksa",null,310,310,"840-742221843-57","Budžet Republike Srbije",97,"28-088","Zakon o RAT - tarifni broj 1"]
[null,"Opština Ražanj","Prijava radova","Podnošenje zahteva","Lokalna naknada",null,250,250,"840-742351843-94","Opštinska uprava Ražanj",97,"28-088","Odluka o naknadama za rad opštinske uprave opštine Ražanj "]
[null,"Opština Ražanj","Prijava radova","Donošenje rešenja","Republička administrativna taksa",null,310,310,"840-742221843-57","Budžet Republike Srbije",97,"28-088","Zakon o RAT - tarifni broj 11"]
[null,"Opština Ražanj","Prijava završetka izrade temelja i završetka objekta u konstruktivnom smislu","Podnošenje zahteva","Republička administrativna taksa",null,{"$f":"1600+310","v":1910},{"$f":"1600+310","v":1910},"840-742221843-57","Budžet Republike Srbije",97,"28-088","Zakon o RAT - tarifni broj 164 i tarifni broj 1"]
[null,"Opština Ražanj","Dostavljanje tehničke dokumentacije","Podnošenje zahteva","Republička administrativna taksa",null,310,310,"840-742221843-57","Budžet Republike Srbije",97,"28-088","Zakon o RAT - tarifni broj 1"]
[null,"Opština Ražanj","Upotrebna dozvola","Podnošenje zahteva","Republička administrativna taksa",null,310,310,"840-742221843-57","Budžet Republike Srbije",97,"28-088","Zakon o RAT - tarifni broj 1"]
[null,"Opština Ražanj","Upotrebna dozvola","Podnošenje zahteva","Lokalna naknada",null,3000,3000,"840-742351843-94","Opštinska uprava Ražanj",97,"28-088","Odluka o naknadama za rad opštinske uprave opštine Ražanj "]
[null,"Opština Ražanj","Upotrebna dozvola","Donošenje rešenja","Republička administrativna taksa","DA","0.2% predračunske vrednosti objekta","0.2% predračunske vrednosti objekta","840-742221843-57","Budžet Republike Srbije",97,"28-088","Zakon o RAT - tarifni broj 170"]
[null,"Opština Ražanj","Priključenje objekta na infrastrukturu","Podnošenje zahteva","Republička administrativna taksa",null,310,310,"840-742221843-57","Budžet Republike Srbije",97,"28-088","Zakon o RAT - tarifni broj 1"]
[null,"Opština Rekovac","Lokacijski uslovi","Podnošenje zahteva","Republička administrativna taksa",null,310,310,"840-742221843-57","Budžet Republike Srbije",97,"25-089","Zakon o RAT - tarifni broj 1"]
[null,"Opština Rekovac","Lokacijski uslovi","Podnošenje zahteva","Lokalna administrativna taksa",null,100,100,"840-742351843-94","Opštinska uprava Rekovac",97,"22-089","Odluka o izmenama i dopunama Odluke o opštinskim administrativnim taksama. Broj 434-02/08-01 od 17.12.2008;"]
[null,"Opština Rekovac","Lokacijski uslovi","Donošenje rešenja","Lokalna administrativna taksa",null,15000,15000,"840-742351843-94","Opštinska uprava Rekovac",97,"22-089","Odluka o izmenama i dopunama Odluke o opštinskim administrativnim taksama. Broj 434-02/08-01 od 17.12.2008;"]
[null,"Opština Rekovac","Građevinska dozvola","Podnošenje zahteva","Republička administrativna taksa",null,310,310,"840-742221843-57","Budžet Republike Srbije",97,"25-089","Zakon o RAT - tarifni broj 1"]
[null,"Opština Rekovac","Građevinska dozvola","Podnošenje zahteva","Lokalna administrativna taksa",null,100,100,"840-742351843-94","Opštinska uprava Rekovac",97,"22-089","Odluka o izmenama i dopunama Odluke o opštinskim administrativnim taksama. Broj 434-02/08-01 od 17.12.2008;"]
[null,"Opština Rekovac","Građevinska dozvola","Donošenje rešenja","Republička administrativna taksa",null,800,800,"840-742221843-57","Budžet Republike Srbije",97,"25-089","Zakon o RAT - tarifni broj 165"]
[null,"Opština Rekovac","Građevinska dozvola","Donošenje rešenja","Lokalna administrativna taksa",null,300,300,"840-742351843-94","Opštinska uprava Rekovac",97,"22-089","Odluka o izmenama i dopunama Odluke o opštinskim administrativnim taksama. Broj 434-02/08-01 od 17.12.2008;"]
[null,"Opština Rekovac","Rešenje o odobrenju izvođenja radova po članu 145 Zakona","Podnošenje zahteva","Republička administrativna taksa",null,310,310,"840-742221843-57","Budžet Republike Srbije",97,"25-089","Zakon o RAT - tarifni broj 1"]
[null,"Opština Rekovac","Rešenje o odobrenju izvođenja radova po članu 145 Zakona","Podnošenje zahteva","Lokalna administrativna taksa",null,100,100,"840-742351843-94","Opštinska uprava Rekovac",97,"22-089","Odluka o izmenama i dopunama Odluke o opštinskim administrativnim taksama. Broj 434-02/08-01 od 17.12.2008;"]
[null,"Opština Rekovac","Rešenje o odobrenju izvođenja radova po članu 145 Zakona","Donošenje rešenja","Republička administrativna taksa",null,800,800,"840-742221843-57","Budžet Republike Srbije",97,"25-089","Zakon o RAT - tarifni broj 165"]
[null,"Opština Rekovac","Rešenje o odobrenju izvođenja radova po članu 145 Zakona","Donošenje rešenja","Lokalna administrativna taksa",null,300,300,"840-742351843-94","Opštinska uprava Rekovac",97,"22-089","Odluka o izmenama i dopunama Odluke o opštinskim administrativnim taksama. Broj 434-02/08-01 od 17.12.2008;"]
[null,"Opština Rekovac","Prijava radova","Podnošenje zahteva","Republička administrativna taksa",null,310,310,"840-742221843-57","Budžet Republike Srbije",97,"25-089","Zakon o RAT - tarifni broj 1"]
[null,"Opština Rekovac","Prijava radova","Podnošenje zahteva","Lokalna administrativna taksa",null,100,100,"840-742351843-94","Opštinska uprava Rekovac",97,"22-089","Odluka o izmenama i dopunama Odluke o opštinskim administrativnim taksama. Broj 434-02/08-01 od 17.12.2008;"]
[null,"Opština Rekovac","Prijava završetka izrade temelja i završetka objekta u konstruktivnom smislu","Podnošenje zahteva","Republička administrativna taksa",null,310,310,"840-742221843-57","Budžet Republike Srbije",97,"25-089","Zakon o RAT - tarifni broj 1"]
[null,"Opština Rekovac","Prijava završetka izrade temelja i završetka objekta u konstruktivnom smislu","Podnošenje zahteva","Lokalna administrativna taksa",null,100,100,"840-742351843-94","Opštinska uprava Rekovac",97,"22-089","Odluka o izmenama i dopunama Odluke o opštinskim administrativnim taksama. Broj 434-02/08-01 od 17.12.2008;"]
[null,"Opština Rekovac","Dostavljanje tehničke dokumentacije","Podnošenje zahteva","Republička administrativna taksa",null,310,310,"840-742221843-57","Budžet Republike Srbije",97,"25-089","Zakon o RAT - tarifni broj 1"]
[null,"Opština Rekovac","Dostavljanje tehničke dokumentacije","Podnošenje zahteva","Lokalna administrativna taksa",null,100,100,"840-742351843-94","Opštinska uprava Rekovac",97,"22-089","Odluka o izmenama i dopunama Odluke o opštinskim administrativnim taksama. Broj 434-02/08-01 od 17.12.2008;"]
[null,"Opština Rekovac","Upotrebna dozvola","Podnošenje zahteva","Republička administrativna taksa",null,310,310,"840-742221843-57","Budžet Republike Srbije",97,"25-089","Zakon o RAT - tarifni broj 1"]
[null,"Opština Rekovac","Upotrebna dozvola","Podnošenje zahteva","Lokalna administrativna taksa",null,100,100,"840-742351843-94","Opštinska uprava Rekovac",97,"22-089","Odluka o izmenama i dopunama Odluke o opštinskim administrativnim taksama. Broj 434-02/08-01 od 17.12.2008;"]
[null,"Opština Rekovac","Upotrebna dozvola","Donošenje rešenja","Republička administrativna taksa",null,800,800,"840-742221843-57","Budžet Republike Srbije",97,"25-089","Zakon o RAT - tarifni broj 165"]
[null,"Opština Rekovac","Upotrebna dozvola","Donošenje rešenja","Lokalna administrativna taksa",null,300,300,"840-742351843-94","Opštinska uprava Rekovac",97,"22-089","Odluka o izmenama i dopunama Odluke o opštinskim administrativnim taksama. Broj 434-02/08-01 od 17.12.2008;"]
[null,"Opština Rekovac","Priključenje objekta na infrastrukturu","Podnošenje zahteva","Republička administrativna taksa",null,310,310,"840-742221843-57","Budžet Republike Srbije",97,"25-089","Zakon o RAT - tarifni broj 1"]
[null,"Opština Rekovac","Priključenje objekta na infrastrukturu","Podnošenje zahteva","Lokalna administrativna taksa",null,100,100,"840-742351843-94","Opštinska uprava Rekovac",97,"22-089","Odluka o izmenama i dopunama Odluke o opštinskim administrativnim taksama. Broj 434-02/08-01 od 17.12.2008;"]
[null,"Opština Sečanj","Lokacijski uslovi","Podnošenje zahteva","Republička administrativna taksa",null,310,310,"840-7432221843-57","Budžet Republike Srbije",97,"87-230","Zakon o RAT - tarifni broj 1"]
[null,"Opština Sečanj","Lokacijski uslovi","Podnošenje zahteva","Lokalna administrativna taksa",null,80,80,"840-742251843-73","Opštinska uprava Sečanj",97,"87-230","Opštinska administrativna taksa za podnošenje zahteva za izdavanje lokacijski uslova "]
[null,"Opština Sečanj","Lokacijski uslovi","Podnošenje zahteva","Lokalna administrativna taksa",null,2000,2000,"840-742251843-73","Opštinska uprava Sečanj",97,"87-230","Opštinska administrativna taksa za podnošenje zahteva za izdavanje lokacijski uslova "]
[null,"Opština Sečanj","Građevinska dozvola","Podnošenje zahteva","Republička administrativna taksa",null,310,310,"840-7432221843-57","Budžet Republike Srbije",97,"87-230","Zakon o RAT - tarifni broj 1"]
[null,"Opština Sečanj","Građevinska dozvola","Podnošenje zahteva","Lokalna administrativna taksa",null,80,80,"840-742251843-73","Opštinska uprava Sečanj",97,"87-230","Opštinska administrativna taksa za podnošenje zahteva za izdavanje lokacijski uslova "]
[null,"Opština Sečanj","Građevinska dozvola","Podnošenje zahteva","Lokalna naknada",null,1000,1000,"840-742251843-73","Opštinska uprava Sečanj",97,"87-230","Opštinska administrativna taksa za podnošenje zahteva za izdavanje lokacijski uslova "]
[null,"Opština Sečanj","Građevinska dozvola","Donošenje rešenja","Republička administrativna taksa",null,800,800,"840-742251843-73","Budžet Republike Srbije",97,"87-230","Zakon o RAT - tarifni broj 165"]
[null,"Opština Sečanj","Rešenje o odobrenju izvođenja radova po članu 145 Zakona","Podnošenje zahteva","Republička administrativna taksa",null,310,310,"840-7432221843-57","Budžet Republike Srbije",97,"87-230","Zakon o RAT - tarifni broj 1"]
[null,"Opština Sečanj","Rešenje o odobrenju izvođenja radova po članu 145 Zakona","Podnošenje zahteva","Lokalna administrativna taksa",null,80,80,"840-742251843-73","Opštinska uprava Sečanj",97,"87-230","Opštinska administrativna taksa za podnošenje zahteva za izdavanje lokacijski uslova "]
[null,"Opština Sečanj","Rešenje o odobrenju izvođenja radova po članu 145 Zakona","Podnošenje zahteva","Lokalna naknada",null,1000,1000,"840-742251843-73","Opštinska uprava Sečanj",97,"87-230","Opštinska administrativna taksa za podnošenje zahteva za izdavanje lokacijski uslova "]
[null,"Opština Sečanj","Rešenje o odobrenju izvođenja radova po članu 145 Zakona","Donošenje rešenja","Republička administrativna taksa",null,800,800,"840-742251843-73","Budžet Republike Srbije",97,"87-230","Zakon o RAT - tarifni broj 165"]
[null,"Opština Sečanj","Prijava radova","Podnošenje zahteva","Republička administrativna taksa",null,310,310,"840-7432221843-57","Budžet Republike Srbije",97,"87-230","Zakon o RAT - tarifni broj 1"]
[null,"Opština Sečanj","Prijava radova","Podnošenje zahteva","Lokalna administrativna taksa",null,80,80,"840-742251843-73","Opštinska uprava Sečanj",97,"87-230","Opštinska administrativna taksa za podnošenje zahteva za izdavanje lokacijski uslova "]
[null,"Opština Sečanj","Prijava završetka izrade temelja i završetka objekta u konstruktivnom smislu","Podnošenje zahteva","Republička administrativna taksa",null,310,310,"840-7432221843-57","Budžet Republike Srbije",97,"87-230","Zakon o RAT - tarifni broj 1"]
[null,"Opština Sečanj","Prijava završetka izrade temelja i završetka objekta u konstruktivnom smislu","Podnošenje zahteva","Lokalna administrativna taksa",null,80,80,"840-742251843-73","Opštinska uprava Sečanj",97,"87-230","Opštinska administrativna taksa za podnošenje zahteva za izdavanje lokacijski uslova "]
[null,"Opština Sečanj","Dostavljanje tehničke dokumentacije","Podnošenje zahteva","Republička administrativna taksa",null,310,310,"840-7432221843-57","Budžet Republike Srbije",97,"87-230","Zakon o RAT - tarifni broj 1"]
[null,"Opština Sečanj","Upotrebna dozvola","Podnošenje zahteva","Republička administrativna taksa",null,310,310,"840-7432221843-57","Budžet Republike Srbije",97,"87-230","Zakon o RAT - tarifni broj 1"]
[null,"Opština Sečanj","Upotrebna dozvola","Podnošenje zahteva","Lokalna administrativna taksa",null,80,80,"840-742251843-73","Opštinska uprava Sečanj",97,"87-230","Opštinska administrativna taksa za podnošenje zahteva za izdavanje lokacijski uslova "]
[null,"Opština Sečanj","Upotrebna dozvola","Podnošenje zahteva","Republička administrativna taksa","DA","0.2% predračunske vrednosti objekta","0.2% predračunske vrednosti objekta","840-7432221843-57","Budžet Republike Srbije",97,"87-230","Zakon o RAT - tarifni broj 1"]
[null,"Opština Sečanj","Priključenje objekta na infrastrukturu","Podnošenje zahteva","Republička administrativna taksa",null,310,310,"840-7432221843-57","Budžet Republike Srbije",97,"87-230","Zakon o RAT - tarifni broj 1"]
[null,"Opština Sečanj","Priključenje objekta na infrastrukturu","Podnošenje zahteva","Lokalna administrativna taksa",null,80,80,"840-742251843-73","Opštinska uprava Sečanj",97,"87-230","Opštinska administrativna taksa za podnošenje zahteva za izdavanje lokacijski uslova "]
[null,"Opština Senta","Lokacijski uslovi","Podnošenje zahteva","Republička administrativna taksa",null,310,310,"840-742221843-57","Budžet Republike Srbije",97,"84-231","Zakon o RAT - tarifni broj 1"]
[null,"Opština Senta","Lokacijski uslovi","Podnošenje zahteva","Lokalna administrativna taksa",null,338,338,"840-742251843-73 ","Budžet Republike Srbije",97,"84-231","Odluka o opštinskim adminstrativnim taksama ( Sl. List opštine Senta бр. 22/2013)"]
[null,"Opština Senta","Lokacijski uslovi","Podnošenje zahteva","Lokalna naknada",null,112500,75000,"840-742251843-73 ","Budžet Republike Srbije",97,"84-231","Odluka o opštinskim adminstrativnim taksama ( Sl. List opštine Senta бр. 22/2013)"]
[null,"Opština Senta","Građevinska dozvola","Podnošenje zahteva","Republička administrativna taksa",null,310,310,"840-742221843-57","Budžet Republike Srbije",97,"84-231","Zakon o RAT - tarifni broj 1"]
[null,"Opština Senta","Građevinska dozvola","Podnošenje zahteva","Lokalna administrativna taksa",null,243,243,"840-742251843-73 ","Budžet Republike Srbije",97,"84-231","Odluka o opštinskim adminstrativnim taksama ( Sl. List opštine Senta бр. 22/2013)"]
[null,"Opština Senta","Građevinska dozvola","Donošenje rešenja","Republička administrativna taksa",null,800,800,"840-742221843-57","Budžet Republike Srbije",97,"84-231","Zakon o RAT - tarifni broj 165"]
[null,"Opština Senta","Građevinska dozvola","Donošenje rešenja","Lokalna administrativna taksa","DA","1‰ predračunske vrednosti objekta","1‰ predračunske vrednosti objekta","840-742251843-73 ","Budžet Republike Srbije",97,"84-231","Odluka o opštinskim adminstrativnim taksama ( Sl. List opštine Senta бр. 22/2013)"]
[null,"Opština Senta","Rešenje o odobrenju izvođenja radova po članu 145 Zakona","Podnošenje zahteva","Republička administrativna taksa",null,310,310,"840-742221843-57","Budžet Republike Srbije",97,"84-231","Zakon o RAT - tarifni broj 1"]
[null,"Opština Senta","Rešenje o odobrenju izvođenja radova po članu 145 Zakona","Podnošenje zahteva","Lokalna administrativna taksa",null,243,243,"840-742251843-73 ","Budžet Republike Srbije",97,"84-231","Odluka o opštinskim adminstrativnim taksama ( Sl. List opštine Senta бр. 22/2013)"]
[null,"Opština Senta","Rešenje o odobrenju izvođenja radova po članu 145 Zakona","Donošenje rešenja","Republička administrativna taksa",null,400,400,"840-742221843-57","Budžet Republike Srbije",97,"84-231","Zakon o RAT - tarifni broj 165"]
[null,"Opština Senta","Rešenje o odobrenju izvođenja radova po članu 145 Zakona","Donošenje rešenja","Lokalna administrativna taksa",null,833,833,"840-742251843-73 ","Budžet Republike Srbije",97,"84-231","Odluka o opštinskim adminstrativnim taksama ( Sl. List opštine Senta бр. 22/2013)"]
[null,"Opština Senta","Prijava radova","Podnošenje zahteva","Republička administrativna taksa",null,310,310,"840-742221843-57","Budžet Republike Srbije",97,"84-231","Zakon o RAT - tarifni broj 1"]
[null,"Opština Senta","Prijava radova","Podnošenje zahteva","Lokalna administrativna taksa",null,443,443,"840-742251843-73 ","Budžet Republike Srbije",97,"84-231","Odluka o opštinskim adminstrativnim taksama ( Sl. List opštine Senta бр. 22/2013)"]
[null,"Opština Senta","Prijava završetka izrade temelja i završetka objekta u konstruktivnom smislu","Podnošenje zahteva","Republička administrativna taksa",null,1600,1600,"840-742221843-57","Budžet Republike Srbije",97,"84-231","Zakon o RAT - tarifni broj 164"]
[null,"Opština Senta","Prijava završetka izrade temelja i završetka objekta u konstruktivnom smislu","Podnošenje zahteva","Lokalna administrativna taksa",null,1002,1002,"840-742251843-73 ","Budžet Republike Srbije",97,"84-231","Odluka o opštinskim adminstrativnim taksama ( Sl. List opštine Senta бр. 22/2013)"]
[null,"Opština Senta","Dostavljanje tehničke dokumentacije","Podnošenje zahteva","Republička administrativna taksa",null,310,310,"840-742221843-57","Budžet Republike Srbije",97,"84-231","Zakon o RAT - tarifni broj 1"]
[null,"Opština Senta","Dostavljanje tehničke dokumentacije","Podnošenje zahteva","Lokalna administrativna taksa",null,243,243,"840-742251843-73 ","Budžet Republike Srbije",97,"84-231","Odluka o opštinskim adminstrativnim taksama ( Sl. List opštine Senta бр. 22/2013)"]
[null,"Opština Senta","Upotrebna dozvola","Podnošenje zahteva","Republička administrativna taksa",null,310,310,"840-742221843-57","Budžet Republike Srbije",97,"84-231","Zakon o RAT - tarifni broj 1"]
[null,"Opština Senta","Upotrebna dozvola","Podnošenje zahteva","Lokalna administrativna taksa",null,243,243,"840-742251843-73 ","Budžet Republike Srbije",97,"84-231","Odluka o opštinskim adminstrativnim taksama ( Sl. List opštine Senta бр. 22/2013)"]
[null,"Opština Senta","Upotrebna dozvola","Donošenje rešenja","Republička administrativna taksa","DA","0.2% predračunske vrednosti objekta","0.2% predračunske vrednosti objekta","840-742221843-57","Budžet Republike Srbije",97,"84-231","Zakon o RAT - tarifni broj 170"]
[null,"Opština Senta","Upotrebna dozvola","Donošenje rešenja","Lokalna administrativna taksa","DA","1‰ predračunske vrednosti objekta","1‰ predračunske vrednosti objekta","840-742251843-73 ","Budžet Republike Srbije",97,"84-231","Odluka o opštinskim adminstrativnim taksama ( Sl. List opštine Senta бр. 22/2013)"]
[null,"Opština Senta","Priključenje objekta na infrastrukturu","Podnošenje zahteva","Republička administrativna taksa",null,310,310,"840-742221843-57","Budžet Republike Srbije",97,"84-231","Zakon o RAT - tarifni broj 1"]
[null,"Opština Senta","Priključenje objekta na infrastrukturu","Podnošenje zahteva","Lokalna administrativna taksa",null,243,243,"840-742251843-73 ","Budžet Republike Srbije",97,"84-231","Odluka o opštinskim adminstrativnim taksama ( Sl. List opštine Senta бр. 22/2013)"]
[null,"Opština Šid","Lokacijski uslovi","Podnošenje zahteva","Lokalna administrativna taksa",null,41600,41600,"840-742251843-73","Opštinska uprava Šid",97,"66-237","Odluka o izmenama Odluke o lokalnim administrativnim taksama \"Sl.list Opštine Šid\", br.19/2015"]
[null,"Opština Šid","Lokacijski uslovi","Podnošenje zahteva","Republička administrativna taksa",null,310,310,"840-742221843-57","Budžet Republike Srbije",97,"66-237","Zakon o RAT - tarifni broj 1"]
[null,"Opština Šid","Građevinska dozvola","Podnošenje zahteva","Republička administrativna taksa",null,1070,1070,"840-742221843-57","Budžet Republike Srbije",97,"66-237","Zakon o RAT - tarifni broj 165"]
[null,"Opština Šid","Rešenje o odobrenju izvođenja radova po članu 145 Zakona","Podnošenje zahteva","Republička administrativna taksa",null,310,310,"840-742221843-57","Budžet Republike Srbije",97,"66-237","Zakon o RAT - tarifni broj 1"]
[null,"Opština Šid","Rešenje o odobrenju izvođenja radova po članu 145 Zakona","Donošenje rešenja","Republička administrativna taksa",null,800,800,"840-742221843-57","Budžet Republike Srbije",97,"66-237","Zakon o RAT - tarifni broj 165"]
[null,"Opština Šid","Prijava radova","Podnošenje zahteva","Republička administrativna taksa",null,620,620,"840-742221843-57","Budžet Republike Srbije",97,"66-237","Zakon o RAT - tarifni broj 1 i 11"]
[null,"Opština Šid","Prijava završetka izrade temelja i završetka objekta u konstruktivnom smislu","Podnošenje zahteva","Republička administrativna taksa",null,{"$f":"310+310","v":620},{"$f":"310+310","v":620},"840-742221843-57","Budžet Republike Srbije",97,"66-237","Zakon o RAT - tarifni broj 1 (x2)"]
[null,"Opština Šid","Prijava završetka izrade temelja i završetka objekta u konstruktivnom smislu","Podnošenje zahteva","Republička administrativna taksa",null,1600,1600,"840-742221843-57","Budžet Republike Srbije",97,"66-237","Zakon o RAT - tarifni broj 164"]
[null,"Opština Šid","Upotrebna dozvola","Podnošenje zahteva","Republička administrativna taksa",null,310,310,"840-742221843-57","Budžet Republike Srbije",97,"66-237","Zakon o RAT - tarifni broj 1"]
[null,"Opština Šid","Upotrebna dozvola","Donošenje rešenja","Republička administrativna taksa","DA","0.2% predračunske vrednosti objekta","0.2% predračunske vrednosti objekta","840-742221843-57","Budžet Republike Srbije",97,"66-237","Zakon o RAT - tarifni broj 170"]
[null,"Opština Sjenica","Lokacijski uslovi","Podnošenje zahteva","Republička administrativna taksa",null,310,310,"840-742221843-57","Budžet Republike Srbije",97,"19-091","Zakon o RAT - tarifni broj 1"]
[null,"Opština Sjenica","Lokacijski uslovi","Podnošenje zahteva","Lokalna administrativna taksa",null,12000,8000,"840-742251843-73","Opštinska uprava Sjenica",97,"19-091","Odluke o opš.admin. taksama (opšt.sl.gl.6/2015)"]
[null,"Opština Sjenica","Građevinska dozvola","Donošenje rešenja","Republička administrativna taksa",null,800,800,"840-742221843-57","Budžet Republike Srbije",97,"19-091","Zakon o RAT - tarifni broj 165"]
[null,"Opština Sjenica","Građevinska dozvola","Donošenje rešenja","Lokalna administrativna taksa",null,3000,1500,"840-742251843-73","Opštinska uprava Sjenica",97,"19-091","Odluke o opš.admin. taksama (opšt.sl.gl.6/2015)"]
[null,"Opština Sjenica","Rešenje o odobrenju izvođenja radova po članu 145 Zakona","Donošenje rešenja","Republička administrativna taksa",null,800,800,"840-742221843-57","Budžet Republike Srbije",97,"19-091","Zakon o RAT - tarifni broj 165"]
[null,"Opština Sjenica","Rešenje o odobrenju izvođenja radova po članu 145 Zakona","Donošenje rešenja","Lokalna administrativna taksa",null,2000,2000,"840-742251843-73","Opštinska uprava Sjenica",97,"19-091","Odluke o opš.admin. taksama (opšt.sl.gl.6/2015)"]
[null,"Opština Sjenica","Prijava radova","Podnošenje zahteva","Republička administrativna taksa",null,800,800,"840-742221843-57","Budžet Republike Srbije",97,"19-091","Zakon o RAT - tarifni broj 165"]
[null,"Opština Sjenica","Prijava radova","Podnošenje zahteva","Lokalna administrativna taksa",null,250,250,"840-742251843-73","Opštinska uprava Sjenica",97,"19-091","Odluke o opš.admin. taksama (opšt.sl.gl.6/2015)"]
[null,"Opština Sjenica","Prijava završetka izrade temelja i završetka objekta u konstruktivnom smislu","Podnošenje zahteva","Republička administrativna taksa",null,800,800,"840-742221843-57","Budžet Republike Srbije",97,"19-091","Zakon o RAT - tarifni broj 165"]
[null,"Opština Sjenica","Prijava završetka izrade temelja i završetka objekta u konstruktivnom smislu","Podnošenje zahteva","Lokalna administrativna taksa",null,1000,2500,"840-742251843-73","Opštinska uprava Sjenica",97,"19-091","Odluke o opš.admin. taksama (opšt.sl.gl.6/2015)"]
[null,"Opština Sjenica","Dostavljanje tehničke dokumentacije","Donošenje rešenja","Lokalna administrativna taksa",null,3000,3000,"840-742251843-73","Opštinska uprava Sjenica",97,"19-091","Odluke o opš.admin. taksama (opšt.sl.gl.6/2015)"]
[null,"Opština Sjenica","Upotrebna dozvola","Donošenje rešenja","Republička administrativna taksa","DA","0.2% predračunske vrednosti objekta","0.2% predračunske vrednosti objekta","840-742221843-57","Budžet Republike Srbije",97,"19-091","Zakon o RAT - tarifni broj 170"]
[null,"Opština Sjenica","Upotrebna dozvola","Donošenje rešenja","Lokalna administrativna taksa",null,4000,4000,"840-742251843-73","Opštinska uprava Sjenica",97,"19-091","Odluke o opš.admin. taksama (opšt.sl.gl.6/2015)"]
[null,"Opština Sokobanja","Lokacijski uslovi","Podnošenje zahteva","Lokalna administrativna taksa",null,300,300,"840-742251843-73 ","Opštinska uprava Sokobanja",97,"10-094 ","Odluka o lokalnim administrativnim taksama („Sl.list opštine“ br.3/08,07/13,\n11/14 i 24/14) "]
[null,"Opština Sokobanja","Lokacijski uslovi","Donošenje rešenja","Lokalna administrativna taksa",null,8778,8778,"840-742251843-73 ","Opštinska uprava Sokobanja",97,"10-094 ","Odluka o lokalnim administrativnim taksama („Sl.list opštine“ br.3/08,07/13,\n11/14 i 24/14) "]
[null,"Opština Sokobanja","Građevinska dozvola","Podnošenje zahteva","Republička administrativna taksa",null,310,310,"840-742221843-57","Budžet Republike Srbije",97,"10-094 ","Zakon o RAT - tarifni broj 1"]
[null,"Opština Sokobanja","Građevinska dozvola","Donošenje rešenja","Republička administrativna taksa",null,800,800,"840-742221843-57","Budžet Republike Srbije",97,"10-094 ","Zakon o RAT - tarifni broj 165"]
[null,"Opština Sokobanja","Rešenje o odobrenju izvođenja radova po članu 145 Zakona","Podnošenje zahteva","Republička administrativna taksa",null,310,310,"840-742221843-57","Budžet Republike Srbije",97,"10-094 ","Zakon o RAT - tarifni broj 1"]
[null,"Opština Sokobanja","Rešenje o odobrenju izvođenja radova po članu 145 Zakona","Donošenje rešenja","Republička administrativna taksa",null,800,800,"840-742221843-57","Budžet Republike Srbije",97,"10-094 ","Zakon o RAT - tarifni broj 165"]
[null,"Opština Sokobanja","Rešenje o odobrenju izvođenja radova po članu 145 Zakona","Podnošenje zahteva","Lokalna administrativna taksa",null,770,770,"840-742251843-73 ","Opštinska uprava Sokobanja",97,"10-094 ","Odluka o lokalnim administrativnim taksama („Sl.list opštine“ br.3/08,07/13,\n11/14 i 24/14) "]
[null,"Opština Sokobanja","Prijava radova","Podnošenje zahteva","Lokalna administrativna taksa",null,300,300,"840-742251843-73 ","Opštinska uprava Sokobanja",97,"10-094 ","Odluka o lokalnim administrativnim taksama („Sl.list opštine“ br.3/08,07/13,\n11/14 i 24/14) "]
[null,"Opština Sokobanja","Prijava završetka izrade temelja i završetka objekta u konstruktivnom smislu","Podnošenje zahteva","Republička administrativna taksa",null,310,310,"840-742221843-57","Budžet Republike Srbije",97,"10-094 ","Zakon o RAT - tarifni broj 1"]
[null,"Opština Sokobanja","Prijava završetka izrade temelja i završetka objekta u konstruktivnom smislu","Donošenje rešenja","Republička administrativna taksa",null,1600,1600,"840-742221843-57","Budžet Republike Srbije",97,"10-094 ","Zakon o RAT - tarifni broj 164"]
[null,"Opština Sokobanja","Dostavljanje tehničke dokumentacije","Podnošenje zahteva","Republička administrativna taksa",null,310,310,"840-742221843-57","Budžet Republike Srbije",97,"10-094 ","Zakon o RAT - tarifni broj 1"]
[null,"Opština Sokobanja","Upotrebna dozvola","Podnošenje zahteva","Republička administrativna taksa",null,310,310,"840-742221843-57","Budžet Republike Srbije",97,"10-094 ","Zakon o RAT - tarifni broj 1"]
[null,"Opština Sokobanja","Upotrebna dozvola","Donošenje rešenja","Republička administrativna taksa","DA","0.2% predračunske vrednosti objekta","0.2% predračunske vrednosti objekta","840-742221843-57","Budžet Republike Srbije",97,"10-094 ","Zakon o RAT - tarifni broj 170"]
[null,"Opština Sokobanja","Priključenje objekta na infrastrukturu","Podnošenje zahteva","Republička administrativna taksa",null,310,310,"840-742221843-57","Budžet Republike Srbije",97,"10-094 ","Zakon o RAT - tarifni broj 1"]
[null,"Opština Srbobran","Lokacijski uslovi","Podnošenje zahteva","Lokalna administrativna taksa",null,5122,10197,"840-742251843-73","Opštinska uprava Srbobran",97,"78-233","Opštinska administrativna taksa"]
[null,"Opština Srbobran","Građevinska dozvola","Podnošenje zahteva","Republička administrativna taksa",null,310,310,"840-742221843-57","Budžet Republike Srbije",97,"78-233","Zakon o RAT - tarifni broj 1"]
[null,"Opština Srbobran","Građevinska dozvola","Donošenje rešenja","Republička administrativna taksa",null,800,800,"840-742221843-57","Budžet Republike Srbije",97,"78-233","Zakon o RAT - tarifni broj 165"]
[null,"Opština Srbobran","Rešenje o odobrenju izvođenja radova po članu 145 Zakona","Podnošenje zahteva","Lokalna administrativna taksa",null,47,47,"840-742251843-73","Opštinska uprava Srbobran",97,"78-233","Opštinska administrativna taksa"]
[null,"Opština Srbobran","Rešenje o odobrenju izvođenja radova po članu 145 Zakona","Donošenje rešenja","Lokalna administrativna taksa",null,1570,1570,"840-742251843-73","Opštinska uprava Srbobran",97,"78-233","Opštinska administrativna taksa"]
[null,"Opština Srbobran","Prijava radova","Donošenje rešenja","Lokalna administrativna taksa",null,5122,5122,"840-742251843-73","Opštinska uprava Srbobran",97,"78-233","Opštinska administrativna taksa"]
[null,"Opština Srbobran","Prijava završetka izrade temelja i završetka objekta u konstruktivnom smislu","Donošenje rešenja","Republička administrativna taksa",null,1600,1600,"840-742221843-57","Budžet Republike Srbije",97,"78-233","Zakon o RAT - tarifni broj 164"]
[null,"Opština Srbobran","Upotrebna dozvola","Podnošenje zahteva","Republička administrativna taksa",null,310,310,"840-742221843-57","Budžet Republike Srbije",97,"78-233","Zakon o RAT - tarifni broj 1"]
[null,"Opština Srbobran","Upotrebna dozvola","Donošenje rešenja","Republička administrativna taksa","DA","0.2% predračunske vrednosti objekta","0.2% predračunske vrednosti objekta","840-742221843-57","Budžet Republike Srbije",97,"78-233","Zakon o RAT - tarifni broj 170"]
[null,"Opština Sremski Karlovci","Lokacijski uslovi","Podnošenje zahteva","Republička administrativna taksa",null,310,310,"840-742221843-57","Budžet Republike Srbije",97,"27-250","Zakon o RAT - tarifni broj 1"]
[null,"Opština Sremski Karlovci","Lokacijski uslovi","Podnošenje zahteva","Lokalna administrativna taksa",null,7000,7000,"840-742251843-73","Opštinska uprava Sremski Karlovci",97,"27-250","Odluka o izmenama i dopunama odluke o lokalnim administrativnim taksama (s.list opštine Sremski Karlovci 7/12)"]
[null,"Opština Sremski Karlovci","Građevinska dozvola","Podnošenje zahteva","Republička administrativna taksa",null,{"$f":"310+800","v":1110},{"$f":"310+800","v":1110},"840-742221843-57","Budžet Republike Srbije",97,"27-250","Zakon o RAT - tarifni broj 1 i 165"]
[null,"Opština Sremski Karlovci","Građevinska dozvola","Donošenje rešenja","Lokalna administrativna taksa",null,6000,6000,"840-742251843-73","Opštinska uprava Sremski Karlovci",97,"27-250","Odluka o izmenama i dopunama odluke o lokalnim administrativnim taksama (s.list opštine Sremski Karlovci 7/12)"]
[null,"Opština Sremski Karlovci","Rešenje o odobrenju izvođenja radova po članu 145 Zakona","Podnošenje zahteva","Republička administrativna taksa",null,{"$f":"310+800","v":1110},{"$f":"310+800","v":1110},"840-742221843-57","Budžet Republike Srbije",97,"27-250","Zakon o RAT - tarifni broj 1 i 165"]
[null,"Opština Sremski Karlovci","Rešenje o odobrenju izvođenja radova po članu 145 Zakona","Donošenje rešenja","Lokalna administrativna taksa",null,1200,1200,"840-742251843-73","Opštinska uprava Sremski Karlovci",97,"27-250","Odluka o izmenama i dopunama odluke o lokalnim administrativnim taksama (s.list opštine Sremski Karlovci 7/12)"]
[null,"Opština Sremski Karlovci","Prijava radova","Podnošenje zahteva","Republička administrativna taksa",null,310,310,"840-742221843-57","Budžet Republike Srbije",97,"27-250","Zakon o RAT - tarifni broj 1"]
[null,"Opština Sremski Karlovci","Prijava radova","Donošenje rešenja","Lokalna administrativna taksa",null,300,300,"840-742251843-73","Opštinska uprava Sremski Karlovci",97,"27-250","Odluka o izmenama i dopunama odluke o lokalnim administrativnim taksama (s.list opštine Sremski Karlovci 7/12)"]
[null,"Opština Sremski Karlovci","Prijava završetka izrade temelja i završetka objekta u konstruktivnom smislu","Podnošenje zahteva","Republička administrativna taksa",null,{"$f":"310+1600","v":1910},{"$f":"310+1600","v":1910},"840-742221843-57","Budžet Republike Srbije",97,"27-250","Zakon o RAT - tarifni broj 1 i 164"]
[null,"Opština Sremski Karlovci","Prijava završetka izrade temelja i završetka objekta u konstruktivnom smislu","Donošenje rešenja","Lokalna administrativna taksa",null,{"$f":"300+300","v":600},{"$f":"300+300","v":600},"840-742251843-73","Opštinska uprava Sremski Karlovci",97,"27-250","Odluka o izmenama i dopunama odluke o lokalnim administrativnim taksama (s.list opštine Sremski Karlovci 7/12)"]
[null,"Opština Sremski Karlovci","Dostavljanje tehničke dokumentacije","Podnošenje zahteva","Republička administrativna taksa",null,310,310,"840-742221843-57","Budžet Republike Srbije",97,"27-250","Zakon o RAT - tarifni broj 1"]
[null,"Opština Sremski Karlovci","Dostavljanje tehničke dokumentacije","Donošenje rešenja","Lokalna administrativna taksa",null,300,300,"840-742251843-73","Opštinska uprava Sremski Karlovci",97,"27-250","Odluka o izmenama i dopunama odluke o lokalnim administrativnim taksama (s.list opštine Sremski Karlovci 7/12)"]
[null,"Opština Sremski Karlovci","Upotrebna dozvola","Podnošenje zahteva","Republička administrativna taksa",null,310,310,"840-742221843-57","Budžet Republike Srbije",97,"27-250","Zakon o RAT - tarifni broj 1"]
[null,"Opština Sremski Karlovci","Upotrebna dozvola","Donošenje rešenja","Lokalna administrativna taksa",null,300,300,"840-742251843-73","Opštinska uprava Sremski Karlovci",97,"27-250","Odluka o izmenama i dopunama odluke o lokalnim administrativnim taksama (s.list opštine Sremski Karlovci 7/12)"]
[null,"Opština Sremski Karlovci","Upotrebna dozvola","Donošenje rešenja","Republička administrativna taksa","DA","0.2% predračunske vrednosti objekta","0.2% predračunske vrednosti objekta","840-742221843-57","Budžet Republike Srbije",97,"27-250","Zakon o RAT - tarifni broj 170"]
[null,"Opština Sremski Karlovci","Priključenje objekta na infrastrukturu","Podnošenje zahteva","Republička administrativna taksa",null,310,310,"840-742221843-57","Budžet Republike Srbije",97,"27-250","Zakon o RAT - tarifni broj 1"]
[null,"Opština Sremski Karlovci","Priključenje objekta na infrastrukturu","Donošenje rešenja","Lokalna administrativna taksa",null,300,300,"840-742251843-73","Opštinska uprava Sremski Karlovci",97,"27-250","Odluka o izmenama i dopunama odluke o lokalnim administrativnim taksama (s.list opštine Sremski Karlovci 7/12)"]
[null,"Opština Stara Pazova","Lokacijski uslovi","Podnošenje zahteva","Republička administrativna taksa",null,310,310,"840-742221843-57","Budžet Republike Srbije",97,"72-235","Zakon o RAT - tarifni broj 1"]
[null,"Opština Stara Pazova","Lokacijski uslovi","Donošenje rešenja","Republička administrativna taksa",null,520,520,"840-742221843-57","Budžet Republike Srbije",97,"72-235","Zakon o RAT - tarifni broj 9"]
[null,"Opština Stara Pazova","Lokacijski uslovi","Donošenje rešenja","Lokalna administrativna taksa",null,null,null,"840-742251843-73","Opštinska uprava Stara Pazova",97,"72-235","Odluka o lokalnim administrativnim taksama (Sl.glasnik opštine Stara Pazova, 42/16)"]
[null,"Opština Stara Pazova","Građevinska dozvola","Podnošenje zahteva","Republička administrativna taksa",null,310,310,"840-742221843-57","Budžet Republike Srbije",97,"72-235","Zakon o RAT - tarifni broj 1"]
[null,"Opština Stara Pazova","Građevinska dozvola","Podnošenje zahteva","Lokalna administrativna taksa",null,300,300,"840-742251843-73","Opštinska uprava Stara Pazova",97,"72-235","Odluka o lokalnim administrativnim taksama (Sl.glasnik opštine Stara Pazova, 42/16)"]
[null,"Opština Stara Pazova","Građevinska dozvola","Donošenje rešenja","Republička administrativna taksa",null,800,800,"840-742221843-57","Budžet Republike Srbije",97,"72-235","Zakon o RAT - tarifni broj 165"]
[null,"Opština Stara Pazova","Građevinska dozvola","Donošenje rešenja","Lokalna administrativna taksa","DA","0.15% od iznosa LAT za izdavanje lokacijskih uslova","0.15% od iznosa LAT za izdavanje lokacijskih uslova","840-742251843-73","Opštinska uprava Stara Pazova",97,"72-235","Odluka o lokalnim administrativnim taksama (Sl.glasnik opštine Stara Pazova, 42/16)"]
[null,"Opština Stara Pazova","Rešenje o odobrenju izvođenja radova po članu 145 Zakona","Podnošenje zahteva","Republička administrativna taksa",null,310,310,"840-742221843-57","Budžet Republike Srbije",97,"72-235","Zakon o RAT - tarifni broj 1"]
[null,"Opština Stara Pazova","Rešenje o odobrenju izvođenja radova po članu 145 Zakona","Podnošenje zahteva","Lokalna administrativna taksa",null,300,300,"840-742251843-73","Opštinska uprava Stara Pazova",97,"72-235","Odluka o lokalnim administrativnim taksama (Sl.glasnik opštine Stara Pazova, 42/16)"]
[null,"Opština Stara Pazova","Rešenje o odobrenju izvođenja radova po članu 145 Zakona","Donošenje rešenja","Republička administrativna taksa",null,800,800,"840-742221843-57","Budžet Republike Srbije",97,"72-235","Zakon o RAT - tarifni broj 165"]
[null,"Opština Stara Pazova","Rešenje o odobrenju izvođenja radova po članu 145 Zakona","Donošenje rešenja","Lokalna administrativna taksa",null,4000,4000,"840-742251843-73","Opštinska uprava Stara Pazova",97,"72-235","Odluka o lokalnim administrativnim taksama (Sl.glasnik opštine Stara Pazova, 42/16)"]
[null,"Opština Stara Pazova","Prijava radova","Podnošenje zahteva","Republička administrativna taksa",null,310,310,"840-742221843-57","Budžet Republike Srbije",97,"72-235","Zakon o RAT - tarifni broj 1"]
[null,"Opština Stara Pazova","Prijava radova","Podnošenje zahteva","Lokalna administrativna taksa",null,300,300,"840-742251843-73","Opštinska uprava Stara Pazova",97,"72-235","Odluka o lokalnim administrativnim taksama (Sl.glasnik opštine Stara Pazova, 42/16)"]
[null,"Opština Stara Pazova","Prijava završetka izrade temelja i završetka objekta u konstruktivnom smislu","Podnošenje zahteva","Republička administrativna taksa",null,310,310,"840-742221843-57","Budžet Republike Srbije",97,"72-235","Zakon o RAT - tarifni broj 1"]
[null,"Opština Stara Pazova","Prijava završetka izrade temelja i završetka objekta u konstruktivnom smislu","Podnošenje zahteva","Lokalna administrativna taksa",null,300,300,"840-742251843-73","Opštinska uprava Stara Pazova",97,"72-235","Odluka o lokalnim administrativnim taksama (Sl.glasnik opštine Stara Pazova, 42/16)"]
[null,"Opština Stara Pazova","Prijava završetka izrade temelja i završetka objekta u konstruktivnom smislu","Donošenje rešenja","Republička administrativna taksa",null,1600,1600,"840-742221843-57","Budžet Republike Srbije",97,"72-235","Zakon o RAT - tarifni broj 164"]
[null,"Opština Stara Pazova","Prijava završetka izrade temelja i završetka objekta u konstruktivnom smislu","Donošenje rešenja","Lokalna administrativna taksa",null,1000,1000,"840-742251843-73","Opštinska uprava Stara Pazova",97,"72-235","Odluka o lokalnim administrativnim taksama (Sl.glasnik opštine Stara Pazova, 42/16)"]
[null,"Opština Stara Pazova","Dostavljanje tehničke dokumentacije","Podnošenje zahteva","Republička administrativna taksa",null,310,310,"840-742221843-57","Budžet Republike Srbije",97,"72-235","Zakon o RAT - tarifni broj 1"]
[null,"Opština Stara Pazova","Dostavljanje tehničke dokumentacije","Podnošenje zahteva","Lokalna administrativna taksa",null,300,300,"840-742251843-73","Opštinska uprava Stara Pazova",97,"72-235","Odluka o lokalnim administrativnim taksama (Sl.glasnik opštine Stara Pazova, 42/16)"]
[null,"Opština Stara Pazova","Upotrebna dozvola","Podnošenje zahteva","Republička administrativna taksa",null,310,310,"840-742221843-57","Budžet Republike Srbije",97,"72-235","Zakon o RAT - tarifni broj 1"]
[null,"Opština Stara Pazova","Upotrebna dozvola","Podnošenje zahteva","Lokalna administrativna taksa",null,300,300,"840-742251843-73","Opštinska uprava Stara Pazova",97,"72-235","Odluka o lokalnim administrativnim taksama (Sl.glasnik opštine Stara Pazova, 42/16)"]
[null,"Opština Stara Pazova","Upotrebna dozvola","Donošenje rešenja","Republička administrativna taksa","DA","0.2% predračunske vrednosti objekta","0.2% predračunske vrednosti objekta","840-742221843-57","Budžet Republike Srbije",97,"72-235","Zakon o RAT - tarifni broj 1"]
[null,"Opština Stara Pazova","Upotrebna dozvola","Donošenje rešenja","Lokalna administrativna taksa",null,1000,2000,"840-742251843-73","Opštinska uprava Stara Pazova",97,"72-235","Odluka o lokalnim administrativnim taksama (Sl.glasnik opštine Stara Pazova, 42/16)"]
[null,"Opština Stara Pazova","Priključenje objekta na infrastrukturu","Podnošenje zahteva","Republička administrativna taksa",null,310,310,"840-742221843-57","Budžet Republike Srbije",97,"72-235","Zakon o RAT - tarifni broj 1"]
[null,"Opština Stara Pazova","Priključenje objekta na infrastrukturu","Podnošenje zahteva","Lokalna administrativna taksa",null,300,300,"840-742251843-73","Opštinska uprava Stara Pazova",97,"72-235","Odluka o lokalnim administrativnim taksama (Sl.glasnik opštine Stara Pazova, 42/16)"]
[null,"Opština Surdulica ","Lokacijski uslovi","Podnošenje zahteva","Republička administrativna taksa",null,310,310,"840-742221843-57","Budžet Republike Srbije",97,"07-095","Zakon o RAT - tarifni broj 1"]
[null,"Opština Surdulica ","Lokacijski uslovi","Podnošenje zahteva","Lokalna naknada ",null,4900,4900,"840-742351843-94","Budžet Republike Srbije",97,"07-095","Odluka o naknadama za usluge koje vrši opštinska uprava („Sl.gl. grada Vranja“, br.32/2009, 33/2010, 34/2011, 33/2012 i 31/2016)"]
[null,"Opština Surdulica ","Građevinska dozvola","Podnošenje zahteva","Republička administrativna taksa",null,800,800,"840-742221843-57 ","Budžet Republike Srbije",97,"07-095","Zakon o RAT - tarifni broj 165"]
[null,"Opština Surdulica ","Građevinska dozvola","Podnošenje zahteva","Lokalna naknada ",null,4900,4900,"840-742351843-94","Opštinska uprava Surdulica",97,"07-095","Odluka o naknadama za usluge koje vrši opštinska uprava („Sl.gl. grada Vranja“, br.32/2009, 33/2010, 34/2011, 33/2012 i 31/2016)"]
[null,"Opština Surdulica ","Rešenje o odobrenju izvođenja radova po članu 145 Zakona","Podnošenje zahteva","Republička administrativna taksa",null,800,800,"840-742221843-57","Budžet Republike Srbije",97,"07-095","Zakon o RAT - tarifni broj 165"]
[null,"Opština Surdulica ","Rešenje o odobrenju izvođenja radova po članu 145 Zakona","Podnošenje zahteva","Lokalna naknada ",null,4900,4900,"840-742351843-94","Opštinska uprava Surdulica",97,"07-095","Odluka o naknadama za usluge koje vrši opštinska uprava („Sl.gl. grada Vranja“, br.32/2009, 33/2010, 34/2011, 33/2012 i 31/2016) "]
[null,"Opština Surdulica ","Prijava radova","Podnošenje zahteva","Republička administrativna taksa",null,310,310,"840-742221843-57","Budžet Republike Srbije",97,"07-095 ","Zakon o RAT - tarifni broj 1"]
[null,"Opština Surdulica ","Prijava radova","Podnošenje zahteva","Lokalna naknada ",null,1000,1000,"840-742351843-94","Budžet Republike Srbije",97,"07-095 ","Odluka o naknadama za usluge koje vrši opštinska uprava („Sl.gl. grada Vranja“, br.32/2009, 33/2010, 34/2011, 33/2012 i 31/2016) "]
[null,"Opština Surdulica ","Prijava završetka izrade temelja i završetka objekta u konstruktivnom smislu","Podnošenje zahteva","Republička administrativna taksa",null,{"$f":"1600+310","v":1910},{"$f":"1600+310","v":1910},"840-742221843-57 ","Budžet Republike Srbije",97,"07-095 ","Zakon o RAT - tarifni broj 164"]
[null,"Opština Surdulica ","Prijava završetka izrade temelja i završetka objekta u konstruktivnom smislu","Podnošenje zahteva","Republička administrativna taksa",null,1700,1700,"840-742351843-94","Opštinska uprava Surdulica",97,"07-095","Odluka o naknadama za usluge koje vrši opštinska uprava („Sl.gl. grada Vranja“, br.32/2009, 33/2010, 34/2011, 33/2012 i 31/2016) "]
[null,"Opština Surdulica ","Dostavljanje tehničke dokumentacije","Podnošenje zahteva","Republička administrativna taksa",null,310,310,"840-742221843-57 ","Budžet Republike Srbije",97,"07-095","Zakon o RAT - tarifni broj 1"]
[null,"Opština Surdulica ","Dostavljanje tehničke dokumentacije","Podnošenje zahteva","Lokalna naknada ",null,500,500,"840-742351843-94","Opštinska uprava Surdulica",97,"07-095 ","Odluka o naknadama za usluge koje vrši opštinska uprava („Sl.gl. grada Vranja“, br.32/2009, 33/2010, 34/2011, 33/2012 i 31/2016)"]
[null,"Opština Surdulica ","Upotrebna dozvola","Podnošenje zahteva","Republička administrativna taksa",null,310,310,"840-742221843-57 ","Budžet Republike Srbije",97,"07-095","Zakon o RAT - tarifni broj 1"]
[null,"Opština Surdulica ","Upotrebna dozvola","Podnošenje zahteva","Republička administrativna taksa","Da","0.2% predračunske vrednosti objekta","0.2% predračunske vrednosti objekta","840-742221843-57 ","Budžet Republike Srbije",97,"07-095","Zakon o RAT - tarifni broj 170"]
[null,"Opština Surdulica ","Upotrebna dozvola","Podnošenje zahteva","Lokalna naknada ",null,9200,9200,"840-742351843-94","Opštinska uprava Surdulica",97,"07-095 ","Odluka o naknadama za usluge koje vrši opštinska uprava („Sl.gl. grada Vranja“, br.32/2009, 33/2010, 34/2011, 33/2012 i 31/2016)"]
[null,"Opština Surdulica ","Priključenje objekta na infrastrukturu","Podnošenje zahteva","Republička administrativna taksa",null,310,310,"840-742221843-57 ","Budžet Republike Srbije",97,"07-095","Zakon o RAT - tarifni broj 11"]
[null,"Opština Surdulica ","Priključenje objekta na infrastrukturu","Podnošenje zahteva","Lokalna naknada ",null,1200,1200,"840-742351843-94 ","Opštinska uprava Surdulica",97,"07-095","Odluka o naknadama za usluge koje vrši opštinska uprava („Sl.gl. grada Vranja“, br.32/2009, 33/2010, 34/2011, 33/2012 i 31/2016) "]
[null,"Opština Svrljig ","Lokacijski uslovi","Podnošenje zahteva","Republička administrativna taksa",null,310,310,"840-742221843-57","Budžet Republike Srbije",97,"95-098 ","Zakon o RAT - tarifni broj 1"]
[null,"Opština Svrljig ","Lokacijski uslovi","Podnošenje zahteva","Lokalna administrativna taksa",null,700,700,"840-742251843-73","Opštinska uprava Svrljig",97,"95-098","Odluka o izmenama i dopunama Odluke o lokalnim administrativnim taksama ( Sl.list grada Niša br.46/2010 )"]
[null,"Opština Svrljig ","Lokacijski uslovi","Podnošenje zahteva","Lokalna administrativna taksa",null,100,100,"840-742251843-73","Opštinska uprava Svrljig",97,"95-098","Odluka o izmenama i dopunama Odluke o lokalnim administrativnim taksama ( Sl.list grada Niša br.46/2010 )"]
[null,"Opština Svrljig ","Građevinska dozvola","Podnošenje zahteva","Republička administrativna taksa",null,310,310,"840-742221843-57","Budžet Republike Srbije",97,"95-098","Odluka o izmenama i dopunama Odluke o lokalnim administrativnim taksama ( Sl.list grada Niša br.46/2010 )"]
[null,"Opština Svrljig ","Građevinska dozvola","Podnošenje zahteva","Lokalna administrativna taksa",null,100,100,"840-742251843-73","Opštinska uprava Svrljig",97,"95-098","Odluka o izmenama i dopunama Odluke o lokalnim administrativnim taksama ( Sl.list grada Niša br.46/2010 )"]
[null,"Opština Svrljig ","Građevinska dozvola","Donošenje rešenja","Republička administrativna taksa",null,520,520,"840-742221843-57","Budžet Republike Srbije",97,"95-098","Odluka o izmenama i dopunama Odluke o lokalnim administrativnim taksama ( Sl.list grada Niša br.46/2010 )"]
[null,"Opština Svrljig ","Građevinska dozvola","Donošenje rešenja","Lokalna administrativna taksa","DA","0.1% predračunske vrednosti objekta","0.1% predračunske vrednosti objekta","840-742251843-73","Opštinska uprava Svrljig",97,"95-098","Odluka o izmenama i dopunama Odluke o lokalnim administrativnim taksama ( Sl.list grada Niša br.46/2010 )"]
[null,"Opština Svrljig ","Rešenje o odobrenju izvođenja radova po članu 145 Zakona","Podnošenje zahteva","Republička administrativna taksa",null,310,310,"840-742221843-57","Budžet Republike Srbije ",97,"95-098 ","Zakon o RAT - tarifni broj 1"]
[null,"Opština Svrljig ","Rešenje o odobrenju izvođenja radova po članu 145 Zakona","Podnošenje zahteva","Lokalna administrativna taksa",null,100,100,"840-742251843-73","Opštinska uprava Svrljig",97,"95-098","Odluka o izmenama i dopunama Odluke o lokalnim administrativnim taksama ( Sl.list grada Niša br.46/2010 )"]
[null,"Opština Svrljig ","Rešenje o odobrenju izvođenja radova po članu 145 Zakona","Donošenje rešenja","Republička administrativna taksa",null,520,520,"840-742221843-57","Opštinska uprava Svrljig",97,"95-098","Zakon o RAT - tarifni broj 9"]
[null,"Opština Svrljig ","Rešenje o odobrenju izvođenja radova po članu 145 Zakona","Donošenje rešenja","Lokalna administrativna taksa","DA","0.1% predračunske vrednosti objekta","0.1% predračunske vrednosti objekta","840-742251843-73","Opštinska uprava Svrljig",97,"95-098","Odluka o izmenama i dopunama Odluke o lokalnim administrativnim taksama ( Sl.list grada Niša br.46/2010 )"]
[null,"Opština Svrljig ","Prijava radova","Podnošenje zahteva","Republička administrativna taksa",null,310,310,"840-742221843-57","Budžet Republike Srbije",97,"95-098","Zakon o RAT - tarifni broj 11"]
[null,"Opština Svrljig ","Prijava radova","Podnošenje zahteva","Lokalna administrativna taksa",null,100,100,"840-742251843-73","Opštinska uprava Svrljig",97,"95-098","Odluka o izmenama i dopunama Odluke o lokalnim administrativnim taksama ( Sl.list grada Niša br.46/2010 )"]
[null,"Opština Svrljig ","Prijava završetka izrade temelja i završetka objekta u konstruktivnom smislu","Podnošenje zahteva","Republička administrativna taksa",null,310,310,"840-742221843-57","Budžet Republike Srbije",97,"95-098","Zakon o RAT - tarifni broj 1"]
[null,"Opština Svrljig ","Prijava završetka izrade temelja i završetka objekta u konstruktivnom smislu","Podnošenje zahteva","Lokalna administrativna taksa",null,100,100,"840-742251843-73","Opštinska uprava Svrljig",97,"95-098 ","Odluka o izmenama i dopunama Odluke o lokalnim administrativnim taksama ( Sl.list grada Niša br.46/2010 )"]
[null,"Opština Svrljig ","Upotrebna dozvola","Podnošenje zahteva","Republička administrativna taksa",null,310,310,"840-742221843-57","Budžet Republike Srbije",97,"95-098","Zakon o RAT - tarifni broj 1"]
[null,"Opština Svrljig ","Upotrebna dozvola","Podnošenje zahteva","Lokalna administrativna taksa",null,500,500,"840-742251843-73","Opštinska uprava Svrljig",97,"95-098","Odluka o izmenama i dopunama Odluke o lokalnim administrativnim taksama ( Sl.list grada Niša br.46/2010 )"]
[null,"Opština Svrljig ","Upotrebna dozvola","Donošenje rešenja","Republička administrativna taksa","DA","0,2% od predračunske vrednosti","0,2% od predračunske vrednosti","840-742221843-57","Budžet Republike Srbije",97,"95-098","Zakon o RAT - tarifni broj 170"]
[null,"Opština Svrljig ","Upotrebna dozvola","Donošenje rešenja","Lokalna administrativna taksa",null,2000,2000,"840-742251843-73","Opštinska uprava Svrljig",97,"95-098","Odluka o izmenama i dopunama Odluke o lokalnim administrativnim taksama ( Sl.list grada Niša br.46/2010 )"]
[null,"Opština Temerin","Lokacijski uslovi","Podnošenje zahteva","Republička administrativna taksa",null,310,310,"840-742221843-57","Budžet Republike Srbije",97,"63-238","Zakon o RAT - tarifni broj 1"]
[null,"Opština Temerin","Lokacijski uslovi","Podnošenje zahteva","Lokalna administrativna taksa",null,60000,60000,"840-742251843-73","Opštinska uprava Temerin",97,"63-238","Odluka o lokalnim administrativnim taksama (\"Sl.list Opštine Temerin\", br.14/2014)"]
[null,"Opština Temerin","Građevinska dozvola","Podnošenje zahteva","Republička administrativna taksa",null,520,520,"840-742221843-57","Budžet Republike Srbije",97,"63-238","Zakon o RAT - tarifni broj 9"]
[null,"Opština Temerin","Građevinska dozvola","Podnošenje zahteva","Republička administrativna taksa",null,800,800,"840-742221843-57","Budžet Republike Srbije",97,"63-238","Zakon o RAT - tarifni broj 165"]
[null,"Opština Temerin","Rešenje o odobrenju izvođenja radova po članu 145 Zakona","Podnošenje zahteva","Republička administrativna taksa",null,520,520,"840-742221843-57","Budžet Republike Srbije",97,"63-238","Zakon o RAT - tarifni broj 9"]
[null,"Opština Temerin","Rešenje o odobrenju izvođenja radova po članu 145 Zakona","Podnošenje zahteva","Republička administrativna taksa",null,260,260,"840-742221843-57","Budžet Republike Srbije",97,"63-238","Zakon o RAT - tarifni broj 165"]
[null,"Opština Temerin","Prijava radova","Podnošenje zahteva","Republička administrativna taksa",null,310,310,"840-742221843-57","Budžet Republike Srbije",97,"63-238","Zakon o RAT - tarifni broj 1"]
[null,"Opština Temerin","Prijava radova","Podnošenje zahteva","Lokalna administrativna taksa",null,1500,1500,"840-742251843-73","Opštinska uprava Temerin",97,"63-238","Odluka o lokalnim administrativnim taksama (\"Sl.list Opštine Temerin\", br.14/2014)"]
[null,"Opština Temerin","Prijava završetka izrade temelja i završetka objekta u konstruktivnom smislu","Podnošenje zahteva","Republička administrativna taksa",null,{"$f":"310+1600","v":1910},{"$f":"310+1600","v":1910},"840-742221843-57","Budžet Republike Srbije",97,"63-238","Zakon o RAT - tarifni broj 1 i 164"]
[null,"Opština Temerin","Upotrebna dozvola","Podnošenje zahteva","Republička administrativna taksa",null,310,310,"840-742221843-57","Budžet Republike Srbije",97,"63-238","Zakon o RAT - tarifni broj 1"]
[null,"Opština Temerin","Upotrebna dozvola","Donošenje rešenja","Republička administrativna taksa","DA","0.2% predračunske vrednosti objekta","0.2% predračunske vrednosti objekta","840-742221843-57","Budžet Republike Srbije",97,"63-238","Zakon o RAT - tarifni broj 170"]
[null,"Opština Temerin","Priključenje objekta na infrastrukturu","Podnošenje zahteva","Republička administrativna taksa",null,310,310,"840-742221843-57","Budžet Republike Srbije",97,"63-238","Zakon o RAT - tarifni broj 1"]
[null,"Opština Titel","Lokacijski uslovi","Podnošenje zahteva","Republička administrativna taksa",null,310,310,"840-742221843-57","Budžet Republike Srbije",97,"60-239","Zakon o RAT - tarifni broj 1"]
[null,"Opština Titel","Lokacijski uslovi","Podnošenje zahteva","Lokalna naknada",null,5000,2000,"840-742351843-94","Opštinska uprava Titel",97,"60-239","Odluka o lokalnim administrativnim taksama (Sl. List Opštine Titel, br.1/2015)"]
[null,"Opština Titel","Građevinska dozvola","Podnošenje zahteva","Republička administrativna taksa",null,310,310,"840-742221843-57","Budžet Republike Srbije",97,"60-239","Zakon o RAT - tarifni broj 1"]
[null,"Opština Titel","Građevinska dozvola","Podnošenje zahteva","Lokalna naknada",null,6150,2150,"840-742351843-94","Opštinska uprava Titel",97,"60-239","Odluka o lokalnim administrativnim taksama (Sl. List Opštine Titel, br.1/2015)"]
[null,"Opština Titel","Građevinska dozvola","Donošenje rešenja","Republička administrativna taksa",null,800,800,"840-742221843-57","Budžet Republike Srbije",97,"60-239","Zakon o RAT - tarifni broj 165"]
[null,"Opština Titel","Rešenje o odobrenju izvođenja radova po članu 145 Zakona","Podnošenje zahteva","Republička administrativna taksa",null,310,310,"840-742221843-57","Budžet Republike Srbije",97,"60-239","Zakon o RAT - tarifni broj 1"]
[null,"Opština Titel","Rešenje o odobrenju izvođenja radova po članu 145 Zakona","Podnošenje zahteva","Lokalna naknada",null,2150,2150,"840-742351843-94","Opštinska uprava Titel",97,"60-239","Odluka o lokalnim administrativnim taksama (Sl. List Opštine Titel, br.1/2015)"]
[null,"Opština Titel","Rešenje o odobrenju izvođenja radova po članu 145 Zakona","Donošenje rešenja","Republička administrativna taksa",null,400,400,"840-742221843-57","Budžet Republike Srbije",97,"60-239","Zakon o RAT - tarifni broj 165"]
[null,"Opština Titel","Prijava radova","Podnošenje zahteva","Republička administrativna taksa",null,310,310,"840-742221843-57","Budžet Republike Srbije",97,"60-239","Zakon o RAT - tarifni broj 1"]
[null,"Opština Titel","Prijava radova","Podnošenje zahteva","Lokalna naknada",null,500,500,"840-742351843-94","Opštinska uprava Titel",97,"60-239","Odluka o lokalnim administrativnim taksama (Sl. List Opštine Titel, br.1/2015)"]
[null,"Opština Titel","Prijava završetka izrade temelja i završetka objekta u konstruktivnom smislu","Podnošenje zahteva","Republička administrativna taksa",null,1600,1600,"840-742221843-57","Budžet Republike Srbije",97,"60-239","Zakon o RAT - tarifni broj 164"]
[null,"Opština Titel","Prijava završetka izrade temelja i završetka objekta u konstruktivnom smislu","Podnošenje zahteva","Lokalna naknada",null,6000,2000,"840-742351843-94","Opštinska uprava Titel",97,"60-239","Odluka o lokalnim administrativnim taksama (Sl. List Opštine Titel, br.1/2015)"]
[null,"Opština Titel","Dostavljanje tehničke dokumentacije","Podnošenje zahteva","Republička administrativna taksa",null,310,310,"840-742221843-57","Budžet Republike Srbije",97,"60-239","Zakon o RAT - tarifni broj 1"]
[null,"Opština Titel","Dostavljanje tehničke dokumentacije","Podnošenje zahteva","Lokalna naknada",null,150,150,"840-742351843-94","Opštinska uprava Titel",97,"60-239","Odluka o lokalnim administrativnim taksama (Sl. List Opštine Titel, br.1/2015)"]
[null,"Opština Titel","Upotrebna dozvola","Podnošenje zahteva","Republička administrativna taksa",null,310,310,"840-742221843-57","Budžet Republike Srbije",97,"60-239","Zakon o RAT - tarifni broj 1"]
[null,"Opština Titel","Upotrebna dozvola","Podnošenje zahteva","Lokalna naknada",null,6150,2150,"840-742351843-94","Opštinska uprava Titel",97,"60-239","Odluka o lokalnim administrativnim taksama (Sl. List Opštine Titel, br.1/2015)"]
[null,"Opština Titel","Upotrebna dozvola","Donošenje rešenja","Republička administrativna taksa","DA","0.2% predračunske vrednosti objekta","0.2% predračunske vrednosti objekta","840-742221843-57","Budžet Republike Srbije",97,"60-239","Zakon o RAT - tarifni broj 170"]
[null,"Opština Titel","Priključenje objekta na infrastrukturu","Podnošenje zahteva","Republička administrativna taksa",null,310,310,"840-742221843-57","Budžet Republike Srbije",97,"60-239","Zakon o RAT - tarifni broj 1"]
[null,"Opština Titel","Priključenje objekta na infrastrukturu","Podnošenje zahteva","Lokalna naknada",null,150,150,"840-742351843-94","Opštinska uprava Titel",97,"60-239","Odluka o lokalnim administrativnim taksama (Sl. List Opštine Titel, br.1/2015)"]
[null,"Opština Trstenik","Lokacijski uslovi","Podnošenje zahteva","Lokalna administrativna taksa",null,15000,15000,"840-742351843-94","Opštinska uprava Trstenik",97,"80-103","Odluka o lokalnim administrativnim taksama"]
[null,"Opština Trstenik","Građevinska dozvola","Podnošenje zahteva","Republička administrativna taksa",null,1320,1320,"840-742221843-57","Budžet Republike Srbije",97,"80-103","Zakon o RAT - tarifni broj 9 i tarifni broj 165"]
[null,"Opština Trstenik","Rešenje o odobrenju izvođenja radova po članu 145 Zakona","Podnošenje zahteva","Republička administrativna taksa",null,1320,1320,"840-742221843-57","Budžet Republike Srbije",97,"80-103","Zakon o RAT - tarifni broj 9 i tarifni broj 165"]
[null,"Opština Trstenik","Prijava radova","Podnošenje zahteva","Republička administrativna taksa",null,620,620,"840-742221843-57","Budžet Republike Srbije",97,"80-103","Zakon o RAT - tarifni broj 1 i 11"]
[null,"Opština Trstenik","Prijava završetka izrade temelja i završetka objekta u konstruktivnom smislu","Podnošenje zahteva","Republička administrativna taksa",null,{"$f":"310+1600","v":1910},{"$f":"1600+310","v":1910},"840-742221843-57","Budžet Republike Srbije",97,"80-103","Zakon o RAT - tarifni broj 1 i 164"]
[null,"Opština Trstenik","Upotrebna dozvola","Podnošenje zahteva","Republička administrativna taksa",null,310,310,"840-742221843-57","Budžet Republike Srbije",97,"80-103","Zakon o RAT - tarifni broj 1"]
[null,"Opština Trstenik","Upotrebna dozvola","Podnošenje zahteva","Republička administrativna taksa","DA","0,2% od predračunske vrednosti","0,2% od predračunske vrednosti","840-742221843-57","Budžet Republike Srbije",97,"80-103","Zakon o RAT - tarifni broj 170"]
[null,"Opština Velika Plana","Lokacijski uslovi","Podnošenje zahteva","Republička administrativna taksa",null,310,310,"840-742221843-57","Budžet Republike Srbije",97,"62-109 ","Zakon o RAT - tarifni broj 1"]
[null,"Opština Velika Plana","Građevinska dozvola","Podnošenje zahteva","Republička administrativna taksa",null,310,310,"840-742221843-57","Budžet Republike Srbije",97,"62-109 ","Zakon o RAT - tarifni broj 1"]
[null,"Opština Velika Plana","Rešenje o odobrenju izvođenja radova po članu 145 Zakona","Podnošenje zahteva","Republička administrativna taksa",null,310,310,"840-742221843-57","Budžet Republike Srbije",97,"62-109 ","Zakon o RAT - tarifni broj 1"]
[null,"Opština Velika Plana","Rešenje o odobrenju izvođenja radova po članu 145 Zakona","Donošenje rešenja","Republička administrativna taksa",null,800,800,"840-742221843-57","Budžet Republike Srbije",97,"62-109 ","Zakon o RAT - tarifni broj 165"]
[null,"Opština Velika Plana","Prijava radova","Podnošenje zahteva","Republička administrativna taksa",null,310,310,"840-742221843-57","Budžet Republike Srbije",97,"62-109 ","Zakon o RAT - tarifni broj 11"]
[null,"Opština Velika Plana","Prijava završetka izrade temelja i završetka objekta u konstruktivnom smislu","Podnošenje zahteva","Republička administrativna taksa",null,310,310,"840-742221843-57","Budžet Republike Srbije",97,"62-109 ","Zakon o RAT - tarifni broj 1"]
[null,"Opština Velika Plana","Prijava završetka izrade temelja i završetka objekta u konstruktivnom smislu","Donošenje rešenja","Republička administrativna taksa",null,1600,1600,"840-742221843-57","Budžet Republike Srbije",97,"62-109 ","Zakon o RAT - tarifni broj 164"]
[null,"Opština Velika Plana","Upotrebna dozvola","Podnošenje zahteva","Republička administrativna taksa",null,310,310,"840-742221843-57","Budžet Republike Srbije",97,"62-109 ","Zakon o RAT - tarifni broj 1"]
[null,"Opština Velika Plana","Upotrebna dozvola","Donošenje rešenja","Republička administrativna taksa","DA","0.2% predračunske vrednosti objekta","0.2% predračunske vrednosti objekta","840-742221843-57","Budžet Republike Srbije",97,"62-109 ","Zakon o RAT - tarifni broj 170"]
[null,"Opština Velika Plana","Građevinska dozvola","Donošenje rešenja","Republička administrativna taksa",null,800,800,"840-742221843-57","Budžet Republike Srbije",97,"62-109 ","Zakon o RAT - tarifni broj 165"]
[null,"Opština Vladičin Han","Lokacijski uslovi","Podnošenje zahteva","Republička administrativna taksa",null,310,310,"840-742221843-57","Budžet Republike Srbije",97,"56-111","Zakon o RAT - tarifni broj 1"]
[null,"Opština Vladičin Han","Lokacijski uslovi","Podnošenje zahteva","Lokalna administrativna taksa",null,2000,2000,"840-742251843-73","Opštinska uprava Vladičin Han",97,"56-111","Odluka o lokalnim administrativnim taksama"]
[null,"Opština Vladičin Han","Građevinska dozvola","Podnošenje zahteva","Republička administrativna taksa",null,310,310,"840-742221843-57 ","Budžet Republike Srbije",97,"56-111","Zakon o RAT - tarifni broj 1"]
[null,"Opština Vladičin Han","Građevinska dozvola","Podnošenje zahteva","Lokalna administrativna taksa",null,100,100,"840-742251843-73 ","Opštinska uprava Vladičin Han",97,"56-111","Odluka o lokalnim administrativnim taksama"]
[null,"Opština Vladičin Han","Građevinska dozvola","Donošenje rešenja","Republička administrativna taksa",null,800,800,"840-742221843-57 ","Budžet Republike Srbije",97,"56-111","Zakon o RAT - tarifni broj 165"]
[null,"Opština Vladičin Han","Građevinska dozvola","Donošenje rešenja","Lokalna administrativna taksa",null,2000,2000,"840-742251843-73 ","Opštinska uprava Vladičin Han",97,"56-111","Odluka o lokalnim administrativnim taksama"]
[null,"Opština Vladičin Han","Rešenje o odobrenju izvođenja radova po članu 145 Zakona","Podnošenje zahteva","Republička administrativna taksa",null,310,310,"840-742221843-57 ","Budžet Republike Srbije",97,"56-111","Zakon o RAT - tarifni broj 1"]
[null,"Opština Vladičin Han","Rešenje o odobrenju izvođenja radova po članu 145 Zakona","Podnošenje zahteva","Lokalna administrativna taksa",null,100,100,"840-742251843-73 ","Opštinska uprava Vladičin Han",97,"56-111","Odluka o lokalnim administrativnim taksama"]
[null,"Opština Vladičin Han","Rešenje o odobrenju izvođenja radova po članu 145 Zakona","Donošenje rešenja","Republička administrativna taksa",null,400,400,"840-742221843-57 ","Budžet Republike Srbije",97,"56-111","Zakon o RAT - tarifni broj 165"]
[null,"Opština Vladičin Han","Rešenje o odobrenju izvođenja radova po članu 145 Zakona","Donošenje rešenja","Lokalna administrativna taksa",null,2000,2000,"840-742251843-73 ","Opštinska uprava Vladičin Han",97,"56-111","Odluka o lokalnim administrativnim taksama"]
[null,"Opština Vladičin Han","Prijava radova","Podnošenje zahteva","Republička administrativna taksa",null,310,310,"840-742221843-57 ","Budžet Republike Srbije",97,"56-111","Zakon o RAT - tarifni broj 1"]
[null,"Opština Vladičin Han","Prijava radova","Podnošenje zahteva","Lokalna administrativna taksa",null,100,100,"840-742251843-73 ","Opštinska uprava Vladičin Han",97,"56-111","Odluka o lokalnim administrativnim taksama"]
[null,"Opština Vladičin Han","Prijava završetka izrade temelja i završetka objekta u konstruktivnom smislu","Podnošenje zahteva","Republička administrativna taksa",null,310,310,"840-742221843-57 ","Budžet Republike Srbije",97,"56-111","Zakon o RAT - tarifni broj 1"]
[null,"Opština Vladičin Han","Prijava završetka izrade temelja i završetka objekta u konstruktivnom smislu","Podnošenje zahteva","Lokalna administrativna taksa",null,100,100,"840-742251843-73 ","Opštinska uprava Vladičin Han",97,"56-111","Odluka o lokalnim administrativnim taksama"]
[null,"Opština Vladičin Han","Dostavljanje tehničke dokumentacije","Podnošenje zahteva","Republička administrativna taksa",null,310,310,"840-742221843-57 ","Budžet Republike Srbije",97,"56-111","Zakon o RAT - tarifni broj 1"]
[null,"Opština Vladičin Han","Dostavljanje tehničke dokumentacije","Podnošenje zahteva","Lokalna administrativna taksa",null,100,100,"840-742251843-73 ","Opštinska uprava Vladičin Han",97,"56-111","Odluka o lokalnim administrativnim taksama"]
[null,"Opština Vladičin Han","Upotrebna dozvola","Podnošenje zahteva","Republička administrativna taksa",null,310,310,"840-742221843-57 ","Budžet Republike Srbije",97,"56-111","Zakon o RAT - tarifni broj 1"]
[null,"Opština Vladičin Han","Upotrebna dozvola","Podnošenje zahteva","Lokalna administrativna taksa",null,100,100,"840-742251843-73 ","Opštinska uprava Vladičin Han",97,"56-111","Odluka o lokalnim administrativnim taksama"]
[null,"Opština Vladičin Han","Upotrebna dozvola","Donošenje rešenja","Republička administrativna taksa","DA","0.2% predračunske vrednosti objekta","0.2% predračunske vrednosti objekta","840-742221843-57 ","Budžet Republike Srbije",97,"56-111","Zakon o RAT - tarifni broj 170"]
[null,"Opština Vladičin Han","Upotrebna dozvola","Donošenje rešenja","Lokalna administrativna taksa",null,2000,2000,"840-742251843-73 ","Opštinska uprava Vladičin Han",97,"56-111","Odluka o lokalnim administrativnim taksama"]
[null,"Opština Vladičin Han","Priključenje objekta na infrastrukturu","Podnošenje zahteva","Republička administrativna taksa",null,310,310,"840-742221843-57 ","Budžet Republike Srbije",97,"56-111","Zakon o RAT - tarifni broj 1"]
[null,"Opština Vladičin Han","Priključenje objekta na infrastrukturu","Podnošenje zahteva","Lokalna administrativna taksa",null,100,100,"840-742251843-73 ","Opštinska uprava Vladičin Han",97,"56-111","Odluka o lokalnim administrativnim taksama"]
[null,"Opština Vrbas","Lokacijski uslovi","Podnošenje zahteva","Republička administrativna taksa",null,310,310,"840-742221843-57","Budžet Republike Srbije",97,"57-240","Zakon o RAT - tarifni broj 1"]
[null,"Opština Vrbas","Lokacijski uslovi","Podnošenje zahteva","Lokalna administrativna taksa",null,30000,30000,"840-742251843-73","Opštinska uprava Vrbas",97,"57-240","Sl.list opštine Vrbas br. 22 /2015, 30.12.2015. godine"]
[null,"Opština Vrbas","Građevinska dozvola","Podnošenje zahteva","Republička administrativna taksa",null,310,310,"840-742221843-57","Budžet Republike Srbije",97,"57-240","Zakon o RAT - tarifni broj 1"]
[null,"Opština Vrbas","Građevinska dozvola","Podnošenje zahteva","Republička administrativna taksa",null,800,800,"840-742221843-57","Budžet Republike Srbije",97,"57-240","Zakon o RAT - tarifni broj 165"]
[null,"Opština Vrbas","Rešenje o odobrenju izvođenja radova po članu 145 Zakona","Podnošenje zahteva","Republička administrativna taksa",null,310,310,"840-742221843-57","Budžet Republike Srbije",97,"57-240","Zakon o RAT - tarifni broj 1"]
[null,"Opština Vrbas","Rešenje o odobrenju izvođenja radova po članu 145 Zakona","Podnošenje zahteva","Republička administrativna taksa",null,800,800,"840-742221843-57","Budžet Republike Srbije",97,"57-240","Zakon o RAT - tarifni broj 165"]
[null,"Opština Vrbas","Prijava radova","Podnošenje zahteva","Republička administrativna taksa",null,310,310,"840-742221843-57","Budžet Republike Srbije",97,"57-240","Zakon o RAT - tarifni broj 1"]
[null,"Opština Vrbas","Prijava završetka izrade temelja i završetka objekta u konstruktivnom smislu","Podnošenje zahteva","Republička administrativna taksa",null,310,310,"840-742221843-57","Budžet Republike Srbije",97,"57-240","Zakon o RAT - tarifni broj 1"]
[null,"Opština Vrbas","Upotrebna dozvola","Podnošenje zahteva","Republička administrativna taksa",null,310,310,"840-742221843-57","Budžet Republike Srbije",97,"57-240","Zakon o RAT - tarifni broj 1"]
[null,"Opština Vrbas","Upotrebna dozvola","Donošenje rešenja","Republička administrativna taksa","DA","0.2% predračunske vrednosti objekta","0.2% predračunske vrednosti objekta","840-742221843-57","Budžet Republike Srbije",97,"57-240","Zakon o RAT - tarifni broj 170"]
[null,"Opština Žabalj","Lokacijski uslovi","Podnošenje zahteva","Republička administrativna taksa",null,310,310,"840-742221843-57","Budžet Republike Srbije",97,"48-243","Zakon o RAT - tarifni broj 1"]
[null,"Opština Žabalj","Lokacijski uslovi","Podnošenje zahteva","Lokalna administrativna taksa",null,200,200,"840-742251843-73 ","Opštinska uprava Žabalj",97,"48-243","Odluka o LAT"]
[null,"Opština Žabalj","Lokacijski uslovi","Podnošenje zahteva","Lokalna administrativna taksa",null,7000,7000,"840-742251843-73 ","Opštinska uprava Žabalj",97,"48-243","Odluka o LAT"]
[null,"Opština Žabalj","Građevinska dozvola","Podnošenje zahteva","Republička administrativna taksa",null,310,310,"840-742221843-57","Budžet Republike Srbije",97,"48-243","Zakon o RAT - tarifni broj 1"]
[null,"Opština Žabalj","Građevinska dozvola","Podnošenje zahteva","Lokalna administrativna taksa",null,200,200,"840-742251843-73 ","Opštinska uprava Žabalj",97,"48-243","Odluka o LAT"]
[null,"Opština Žabalj","Građevinska dozvola","Donošenje rešenja","Republička administrativna taksa",null,800,800,"840-742221843-57","Budžet Republike Srbije",97,"48-243","Zakon o RAT - tarifni broj 165"]
[null,"Opština Žabalj","Rešenje o odobrenju izvođenja radova po članu 145 Zakona","Podnošenje zahteva","Republička administrativna taksa",null,310,310,"840-742221843-57","Budžet Republike Srbije",97,"48-243","Zakon o RAT - tarifni broj 1"]
[null,"Opština Žabalj","Rešenje o odobrenju izvođenja radova po članu 145 Zakona","Podnošenje zahteva","Lokalna administrativna taksa",null,200,200,"840-742251843-73 ","Opštinska uprava Žabalj",97,"48-243","Odluka o LAT"]
[null,"Opština Žabalj","Rešenje o odobrenju izvođenja radova po članu 145 Zakona","Donošenje rešenja","Republička administrativna taksa",null,800,800,"840-742221843-57","Budžet Republike Srbije",97,"48-243","Zakon o RAT - tarifni broj 165"]
[null,"Opština Žabalj","Prijava radova","Podnošenje zahteva","Republička administrativna taksa",null,310,310,"840-742221843-57","Budžet Republike Srbije",97,"48-243","Zakon o RAT - tarifni broj 1"]
[null,"Opština Žabalj","Prijava radova","Podnošenje zahteva","Lokalna administrativna taksa",null,3000,3000,"840-742251843-73 ","Opštinska uprava Žabalj",97,"48-243","Odluka o LAT"]
[null,"Opština Žabalj","Prijava završetka izrade temelja i završetka objekta u konstruktivnom smislu","Podnošenje zahteva","Republička administrativna taksa",null,620,620,"840-742221843-57","Budžet Republike Srbije",97,"48-243","Zakon o RAT - tarifni broj 1 x 2"]
[null,"Opština Žabalj","Prijava završetka izrade temelja i završetka objekta u konstruktivnom smislu","Podnošenje zahteva","Lokalna administrativna taksa",null,{"$f":"200+200","v":400},{"$f":"200+200","v":400},"840-742251843-73 ","Opštinska uprava Žabalj",97,"48-243","Odluka o LAT x 2"]
[null,"Opština Žabalj","Prijava završetka izrade temelja i završetka objekta u konstruktivnom smislu","Podnošenje zahteva","Lokalna administrativna taksa",null,1600,1600,"840-742221843-57","Budžet Republike Srbije",97,"48-243","Zakon o RAT - tarifni broj 164"]
[null,"Opština Žabalj","Dostavljanje tehničke dokumentacije","Podnošenje zahteva","Republička administrativna taksa",null,310,310,"840-742221843-57","Budžet Republike Srbije",97,"48-243","Zakon o RAT - tarifni broj 1"]
[null,"Opština Žabalj","Dostavljanje tehničke dokumentacije","Podnošenje zahteva","Lokalna administrativna taksa",null,200,200,"840-742251843-73 ","Opštinska uprava Žabalj",97,"48-243","Odluka o LAT "]
[null,"Opština Žabalj","Priključenje objekta na infrastrukturu","Podnošenje zahteva","Republička administrativna taksa",null,310,310,"840-742221843-57","Budžet Republike Srbije",97,"48-243","Zakon o RAT - tarifni broj 1"]
[null,"Opština Žabalj","Priključenje objekta na infrastrukturu","Podnošenje zahteva","Lokalna administrativna taksa",null,200,200,"840-742251843-73 ","Opštinska uprava Žabalj",97,"48-243","Odluka o LAT "]
[null,"Opština Žabalj","Upotrebna dozvola","Podnošenje zahteva","Republička administrativna taksa",null,310,310,"840-742221843-57","Budžet Republike Srbije",97,"48-243","Zakon o RAT - tarifni broj 1"]
[null,"Opština Žabalj","Upotrebna dozvola","Donošenje rešenja","Republička administrativna taksa","DA","0.2% predračunske vrednosti objekta","0.2% predračunske vrednosti objekta","840-742221843-57","Budžet Republike Srbije",97,"48-243","Zakon o RAT - tarifni broj 170"]
[null,"Opština Žabari","Lokacijski uslovi","Podnošenje zahteva","Republička administrativna taksa",null,310,310,"840-74222843-57 ","Budžet Republike Srbije",97,"38-117","Zakon o RAT - tarifni broj 1"]
[null,"Opština Žabari","Lokacijski uslovi","Podnošenje zahteva","Lokalna administrativna taksa",null,200,200,"840-742251843-73","Opštinska uprava Žabari",97,"38-117","Odluka o lokalnim administrativnim taksama (Sl.glasnik RS, br 17/2016)"]
[null,"Opština Žabari","Lokacijski uslovi","Donošenje rešenja","Lokalna administrativna taksa",null,4850,1720,"840-742251843-73","Opštinska uprava Žabari",97,"38-117","Odluka o lokalnim administrativnim taksama (Sl.glasnik RS, br 17/2016)"]
[null,"Opština Žabari","Lokacijski uslovi","Donošenje rešenja","Republička administrativna taksa",null,310,310,"840-74222843-57 ","Budžet Republike Srbije",97,"38-117","Zakon o RAT - tarifni broj 11"]
[null,"Opština Žabari","Građevinska dozvola","Podnošenje zahteva","Republička administrativna taksa",null,310,310,"840-74222843-57 ","Budžet Republike Srbije",97,"38-117","Zakon o RAT - tarifni broj 1"]
[null,"Opština Žabari","Građevinska dozvola","Podnošenje zahteva","Lokalna administrativna taksa",null,200,200,"840-742251843-73","Opštinska uprava Žabari",97,"38-117","Odluka o lokalnim administrativnim taksama (Sl.glasnik RS, br 17/2016)"]
[null,"Opština Žabari","Građevinska dozvola","Donošenje rešenja","Lokalna administrativna taksa",null,800,800,"840-742251843-73","Opštinska uprava Žabari",97,"38-117","Odluka o lokalnim administrativnim taksama (Sl.glasnik RS, br 17/2016)"]
[null,"Opština Žabari","Građevinska dozvola","Donošenje rešenja","Republička administrativna taksa",null,800,800,"840-74222843-57 ","Budžet Republike Srbije",97,"38-117","Zakon o RAT - tarifni broj 165"]
[null,"Opština Žabari","Rešenje o odobrenju izvođenja radova po članu 145 Zakona","Podnošenje zahteva","Republička administrativna taksa",null,310,310,"840-74222843-57 ","Budžet Republike Srbije",97,"38-117","Zakon o RAT - tarifni broj 1"]
[null,"Opština Žabari","Rešenje o odobrenju izvođenja radova po članu 145 Zakona","Podnošenje zahteva","Lokalna administrativna taksa",null,200,200,"840-742251843-73","Opštinska uprava Žabari",97,"38-117","Odluka o lokalnim administrativnim taksama (Sl.glasnik RS, br 17/2016)"]
[null,"Opština Žabari","Rešenje o odobrenju izvođenja radova po članu 145 Zakona","Donošenje rešenja","Lokalna administrativna taksa",null,800,800,"840-742251843-73","Opštinska uprava Žabari",97,"38-117","Odluka o lokalnim administrativnim taksama (Sl.glasnik RS, br 17/2016)"]
[null,"Opština Žabari","Rešenje o odobrenju izvođenja radova po članu 145 Zakona","Donošenje rešenja","Republička administrativna taksa",null,800,800,"840-74222843-57 ","Budžet Republike Srbije",97,"38-117","Zakon o RAT - tarifni broj 165"]
[null,"Opština Žabari","Prijava radova","Podnošenje zahteva","Republička administrativna taksa",null,310,310,"840-74222843-57 ","Budžet Republike Srbije",97,"38-117","Zakon o RAT - tarifni broj 1"]
[null,"Opština Žabari","Prijava radova","Podnošenje zahteva","Lokalna administrativna taksa",null,200,200,"840-742251843-73","Opštinska uprava Žabari",97,"38-117","Odluka o lokalnim administrativnim taksama (Sl.glasnik RS, br 17/2016)"]
[null,"Opština Žabari","Prijava radova","Donošenje rešenja","Lokalna administrativna taksa",null,2100,1150,"840-742251843-73","Opštinska uprava Žabari",97,"38-117","Odluka o lokalnim administrativnim taksama (Sl.glasnik RS, br 17/2016)"]
[null,"Opština Žabari","Prijava radova","Donošenje rešenja","Republička administrativna taksa",null,310,310,"840-74222843-57 ","Budžet Republike Srbije",97,"38-117","Zakon o RAT - tarifni broj 11"]
[null,"Opština Žabari","Prijava završetka izrade temelja i završetka objekta u konstruktivnom smislu","Podnošenje zahteva","Republička administrativna taksa",null,{"$f":"310+1600","v":1910},{"$f":"310+1600","v":1910},"840-74222843-57 ","Budžet Republike Srbije",97,"38-117","Zakon o RAT - tarifni broj 1 i 164"]
[null,"Opština Žabari","Prijava završetka izrade temelja i završetka objekta u konstruktivnom smislu","Podnošenje zahteva","Lokalna administrativna taksa",null,200,200,"840-742251843-73","Opštinska uprava Žabari",97,"38-117","Odluka o lokalnim administrativnim taksama (Sl.glasnik RS, br 17/2016)"]
[null,"Opština Žabari","Prijava završetka izrade temelja i završetka objekta u konstruktivnom smislu","Donošenje rešenja","Lokalna administrativna taksa",null,770,770,"840-742251843-73","Opštinska uprava Žabari",97,"38-117","Odluka o lokalnim administrativnim taksama (Sl.glasnik RS, br 17/2016)"]
[null,"Opština Žabari","Prijava završetka izrade temelja i završetka objekta u konstruktivnom smislu","Donošenje rešenja","Republička administrativna taksa",null,310,310,"840-74222843-57 ","Budžet Republike Srbije",97,"38-117","Zakon o RAT - tarifni broj 11"]
[null,"Opština Žabari","Dostavljanje tehničke dokumentacije","Podnošenje zahteva","Republička administrativna taksa",null,{"$f":"310+1600","v":1910},{"$f":"310+1600","v":1910},"840-74222843-57 ","Budžet Republike Srbije",97,"38-117","Zakon o RAT - tarifni broj 1 i 164"]
[null,"Opština Žabari","Dostavljanje tehničke dokumentacije","Podnošenje zahteva","Lokalna administrativna taksa",null,200,200,"840-742251843-73","Opštinska uprava Žabari",97,"38-117","Odluka o lokalnim administrativnim taksama (Sl.glasnik RS, br 17/2016)"]
[null,"Opština Žabari","Upotrebna dozvola","Podnošenje zahteva","Republička administrativna taksa",null,310,310,"840-74222843-57 ","Budžet Republike Srbije",97,"38-117","Zakon o RAT - tarifni broj 1"]
[null,"Opština Žabari","Upotrebna dozvola","Podnošenje zahteva","Lokalna administrativna taksa",null,200,200,"840-742251843-73","Opštinska uprava Žabari",97,"38-117","Odluka o lokalnim administrativnim taksama (Sl.glasnik RS, br 17/2016)"]
[null,"Opština Žabari","Upotrebna dozvola","Donošenje rešenja","Lokalna administrativna taksa","DA","0.1% predračunske vrednosti objekta","0.1% predračunske vrednosti objekta","840-742251843-73","Opštinska uprava Žabari",97,"38-117","Odluka o lokalnim administrativnim taksama (Sl.glasnik RS, br 17/2016)"]
[null,"Opština Žabari","Upotrebna dozvola","Donošenje rešenja","Republička administrativna taksa","DA","0.2% predračunske vrednosti objekta","0.2% predračunske vrednosti objekta","840-74222843-57 ","Budžet Republike Srbije",97,"38-117","Zakon o RAT - tarifni broj 170"]
[null,"Opština Žabari","Priključenje objekta na infrastrukturu","Podnošenje zahteva","Republička administrativna taksa",null,310,310,"840-74222843-57 ","Budžet Republike Srbije",97,"38-117","Zakon o RAT - tarifni broj 1"]
[null,"Opština Žabari","Priključenje objekta na infrastrukturu","Podnošenje zahteva","Lokalna administrativna taksa",null,200,200,"840-742251843-73","Opštinska uprava Žabari",97,"38-117","Odluka o lokalnim administrativnim taksama (Sl.glasnik RS, br 17/2016)"]
[null,"Opština Žagubica","Lokacijski uslovi","Podnošenje zahteva","Republička administrativna taksa",null,310,310,"840-74222843-57 ","Budžet Republike Srbije",97,"35-118","Zakon o RAT - tarifni broj 1"]
[null,"Opština Žagubica","Lokacijski uslovi","Podnošenje zahteva","Lokalna administrativna taksa",null,100,100,"840-742251843-73","Opštinska uprava Žagubica",97,"35-118","Odluka o opštinskim administrativnim taksana"]
[null,"Opština Žagubica","Lokacijski uslovi","Donošenje rešenja","Lokalna administrativna taksa",null,1200,1200,"840-742251843-73","Opštinska uprava Žagubica",97,"35-118","Odluka o opštinskim administrativnim taksana"]
[null,"Opština Žagubica","Lokacijski uslovi","Donošenje rešenja","Republička administrativna taksa",null,310,310,"840-74222843-57 ","Budžet Republike Srbije",97,"35-118","Zakon o RAT - tarifni broj 11"]
[null,"Opština Žagubica","Građevinska dozvola","Podnošenje zahteva","Republička administrativna taksa",null,310,310,"840-74222843-57 ","Budžet Republike Srbije",97,"35-118","Zakon o RAT - tarifni broj 1"]
[null,"Opština Žagubica","Građevinska dozvola","Podnošenje zahteva","Lokalna administrativna taksa",null,100,100,"840-742251843-73","Opštinska uprava Žagubica",97,"35-118","Odluka o opštinskim administrativnim taksana"]
[null,"Opština Žagubica","Građevinska dozvola","Donošenje rešenja","Lokalna administrativna taksa",null,800,800,"840-742251843-73","Opštinska uprava Žagubica",97,"35-118","Odluka o opštinskim administrativnim taksana"]
[null,"Opština Žagubica","Građevinska dozvola","Donošenje rešenja","Republička administrativna taksa",null,800,800,"840-74222843-57 ","Budžet Republike Srbije",97,"35-118","Zakon o RAT - tarifni broj 165"]
[null,"Opština Žagubica","Rešenje o odobrenju izvođenja radova po članu 145 Zakona","Podnošenje zahteva","Republička administrativna taksa",null,310,310,"840-74222843-57 ","Budžet Republike Srbije",97,"35-118","Zakon o RAT - tarifni broj 1"]
[null,"Opština Žagubica","Rešenje o odobrenju izvođenja radova po članu 145 Zakona","Podnošenje zahteva","Lokalna administrativna taksa",null,100,100,"840-742251843-73","Opštinska uprava Žagubica",97,"35-118","Odluka o opštinskim administrativnim taksana"]
[null,"Opština Žagubica","Rešenje o odobrenju izvođenja radova po članu 145 Zakona","Donošenje rešenja","Lokalna administrativna taksa",null,800,800,"840-742251843-73","Opštinska uprava Žagubica",97,"35-118","Odluka o opštinskim administrativnim taksana"]
[null,"Opština Žagubica","Rešenje o odobrenju izvođenja radova po članu 145 Zakona","Donošenje rešenja","Republička administrativna taksa",null,800,800,"840-74222843-57 ","Budžet Republike Srbije",97,"35-118","Zakon o RAT - tarifni broj 165"]
[null,"Opština Žagubica","Prijava radova","Podnošenje zahteva","Republička administrativna taksa",null,310,310,"840-74222843-57 ","Budžet Republike Srbije",97,"35-118","Zakon o RAT - tarifni broj 1"]
[null,"Opština Žagubica","Prijava radova","Podnošenje zahteva","Lokalna administrativna taksa",null,100,100,"840-742251843-73","Opštinska uprava Žagubica",97,"35-118","Odluka o opštinskim administrativnim taksana"]
[null,"Opština Žagubica","Prijava radova","Donošenje rešenja","Lokalna administrativna taksa",null,100,100,"840-742251843-73","Opštinska uprava Žagubica",97,"35-118","Odluka o opštinskim administrativnim taksana"]
[null,"Opština Žagubica","Prijava radova","Donošenje rešenja","Republička administrativna taksa",null,310,310,"840-74222843-57 ","Budžet Republike Srbije",97,"35-118","Zakon o RAT - tarifni broj 165"]
[null,"Opština Žagubica","Prijava završetka izrade temelja i završetka objekta u konstruktivnom smislu","Podnošenje zahteva","Republička administrativna taksa",null,310,310,"840-74222843-57 ","Budžet Republike Srbije",97,"35-118","Zakon o RAT - tarifni broj 11"]
[null,"Opština Žagubica","Prijava završetka izrade temelja i završetka objekta u konstruktivnom smislu","Podnošenje zahteva","Lokalna administrativna taksa",null,100,100,"840-742251843-73","Opštinska uprava Žagubica",97,"35-118","Odluka o opštinskim administrativnim taksana"]
[null,"Opština Žagubica","Prijava završetka izrade temelja i završetka objekta u konstruktivnom smislu","Donošenje rešenja","Lokalna administrativna taksa",null,100,100,"840-742251843-73","Opštinska uprava Žagubica",97,"35-118","Odluka o opštinskim administrativnim taksana"]
[null,"Opština Žagubica","Prijava završetka izrade temelja i završetka objekta u konstruktivnom smislu","Donošenje rešenja","Republička administrativna taksa",null,310,310,"840-74222843-57 ","Budžet Republike Srbije",97,"35-118","Zakon o RAT - tarifni broj 11"]
[null,"Opština Žagubica","Upotrebna dozvola","Podnošenje zahteva","Republička administrativna taksa",null,310,310,"840-74222843-57 ","Budžet Republike Srbije",97,"35-118","Zakon o RAT - tarifni broj 11"]
[null,"Opština Žagubica","Upotrebna dozvola","Podnošenje zahteva","Lokalna administrativna taksa",null,100,100,"840-742251843-73","Opštinska uprava Žagubica",97,"35-118","Odluka o opštinskim administrativnim taksana"]
[null,"Opština Žagubica","Upotrebna dozvola","Donošenje rešenja","Lokalna administrativna taksa",null,1000,1000,"840-742251843-73","Opštinska uprava Žagubica",97,"35-118","Odluka o opštinskim administrativnim taksana"]
[null,"Opština Žagubica","Upotrebna dozvola","Donošenje rešenja","Republička administrativna taksa","DA","0.2% predračunske vrednosti objekta","0.2% predračunske vrednosti objekta","840-74222843-57 ","Budžet Republike Srbije",97,"35-118","Zakon o RAT - tarifni broj 11"]
[null,"Opština Žagubica","Priključenje objekta na infrastrukturu","Podnošenje zahteva","Republička administrativna taksa",null,310,310,"840-74222843-57 ","Budžet Republike Srbije",97,"35-118","Zakon o RAT - tarifni broj 11"]
[null,"Opština Žagubica","Priključenje objekta na infrastrukturu","Podnošenje zahteva","Lokalna administrativna taksa",null,100,100,"840-742251843-73","Opštinska uprava Žagubica",97,"35-118","Odluka o opštinskim administrativnim taksana"]
[null,"Opština Žitorađa","Lokacijski uslovi","Podnošenje zahteva","Republička administrativna taksa",null,310,310,"840-742221843-57 ","Budžet Republike Srbije",97,"32-119","Zakon o RAT - tarifni broj 1"]
[null,"Opština Žitorađa","Lokacijski uslovi","Donošenje rešenja","Lokalna administrativna taksa",null,10000,10000,"840-742221843-57 ","Budžet Republike Srbije",97,"32-119","Odluka o lokalnim administrativnim taksama (\"Sl.list grada Niša\", br.30/16)"]
[null,"Opština Žitorađa","Građevinska dozvola","Podnošenje zahteva","Republička administrativna taksa",null,310,310,"840-742221843-57 ","Budžet Republike Srbije",97,"32-119","Zakon o RAT - tarifni broj 1"]
[null,"Opština Žitorađa","Građevinska dozvola","Podnošenje zahteva","Lokalna administrativna taksa",null,150,150,"840-742251843-73","Opštinska uprava Žitorađa",97,"32-119","Odluka o lokalnim administrativnim taksama (\"Sl.list grada Niša\", br.30/16)"]
[null,"Opština Žitorađa","Građevinska dozvola","Donošenje rešenja","Republička administrativna taksa",null,800,800,"840-742221843-57 ","Budžet Republike Srbije",97,"32-119","Zakon o RAT - tarifni broj 165"]
[null,"Opština Žitorađa","Rešenje o odobrenju izvođenja radova po članu 145 Zakona","Podnošenje zahteva","Republička administrativna taksa",null,310,310,"840-742221843-57 ","Budžet Republike Srbije",97,"32-119","Zakon o RAT - tarifni broj 1"]
[null,"Opština Žitorađa","Rešenje o odobrenju izvođenja radova po članu 145 Zakona","Podnošenje zahteva","Lokalna administrativna taksa",null,150,150,"840-742251843-73","Opštinska uprava Žitorađa",97,"32-119","Odluka o lokalnim administrativnim taksama (\"Sl.list grada Niša\", br.30/16)"]
[null,"Opština Žitorađa","Rešenje o odobrenju izvođenja radova po članu 145 Zakona","Donošenje rešenja","Republička administrativna taksa",null,800,800,"840-742221843-57 ","Budžet Republike Srbije",97,"32-119","Zakon o RAT - tarifni broj 165"]
[null,"Opština Žitorađa","Prijava radova","Podnošenje zahteva","Republička administrativna taksa",null,310,310,"840-742221843-57 ","Budžet Republike Srbije",97,"32-119","Zakon o RAT - tarifni broj 11"]
[null,"Opština Žitorađa","Prijava radova","Podnošenje zahteva","Lokalna administrativna taksa",null,150,150,"840-742251843-73","Opštinska uprava Žitorađa",97,"32-119","Odluka o lokalnim administrativnim taksama (\"Sl.list grada Niša\", br.30/16)"]
[null,"Opština Žitorađa","Upotrebna dozvola","Podnošenje zahteva","Republička administrativna taksa",null,310,310,"840-742221843-57 ","Budžet Republike Srbije",97,"32-119","Zakon o RAT - tarifni broj 1"]
[null,"Opština Žitorađa","Upotrebna dozvola","Podnošenje zahteva","Lokalna administrativna taksa",null,150,150,"840-742251843-73","Opštinska uprava Žitorađa",97,"32-119","Odluka o lokalnim administrativnim taksama (\"Sl.list grada Niša\", br.30/16)"]
[null,"Opština Žitorađa","Upotrebna dozvola","Donošenje rešenja","Republička administrativna taksa",null,310,310,"840-742221843-57 ","Budžet Republike Srbije",97,"32-119","Zakon o RAT - tarifni broj 11"]
[null,"Opština Žitorađa","Upotrebna dozvola","Donošenje rešenja","Republička administrativna taksa","DA","0.2% predračunske vrednosti objekta","0.2% predračunske vrednosti objekta","840-742221843-57 ","Budžet Republike Srbije",97,"32-119","Zakon o RAT - tarifni broj 11"]
[null,"Opština Žitorađa","Priključenje objekta na infrastrukturu","Podnošenje zahteva","Republička administrativna taksa",null,310,310,"840-742221843-57 ","Budžet Republike Srbije",97,"32-119","Zakon o RAT - tarifni broj 1"]
[null,"Opština Žitorađa","Priključenje objekta na infrastrukturu","Podnošenje zahteva","Lokalna administrativna taksa",null,150,150,"840-742251843-73","Opštinska uprava Žitorađa",97,"32-119","Odluka o lokalnim administrativnim taksama (\"Sl.list grada Niša\", br.30/16)"]
[null,"Grad Ćuprija !","Građevinska dozvola","Donošenje rešenja","Republička administrativna taksa",null,{"$f":"310+800","v":1110},null,"840-742221843-57 ","Budžet Republike Srbije",97,"96-033","Zakon o RAT - tarifni broj 1 i 165"]
[null,"Grad Ćuprija !","Građevinska dozvola","Donošenje rešenja","Lokalna administrativna taksa",null,3100,null,"840-742351843-94 ","Gradska uprava Ćuprija",97,"96-033","Odluka o lokalnim administrativnim taksama"]
[null,"Grad Kraljevo !","Građevinska dozvola","Donošenje rešenja","Republička administrativna taksa",null,1070,null,"840-742221843-57 ","Budžet Republike Srbije",97,"45-050","Zakon o RAT"]
[null,"Grad Negotin !","Građevinska dozvola","Donošenje rešenja","Republička administrativna taksa",null,1070,null,"840-742221843-57 ","Budžet Republike Srbije",97,"76-072","Zakon o RAT"]
[null,"Grad Vranje !","Građevinska dozvola","Podnošenje zahteva","Lokalna administrativna taksa",null,2445,null,null,"Gradska uprava Vranje",97,"47-114","Gradska odluka o LAT"]
[null,"Gradska opština Mladenovac !","Građevinska dozvola","Donošenje rešenja","Lokalna administrativna taksa",null,300,null,"840-742251843-73","Opštinska uprava Mladenovac",97,"82-070","Odluka o lokalnim administrtivnim taksama"]
[null,"Gradska opština Mladenovac !","Građevinska dozvola","Donošenje rešenja","Republička administrativna taksa",null,1110,null,"840-742221843-57 ","Budžet Republike Srbije",97,"82-070","Zakon o RAT - tarifni broj 1 i 165"]
[null,"Gradska opština Rakovica ! ","Građevinska dozvola","Podnošenje zahteva","Republička administrativna taksa",null,300,null,"840-742221843-57 ","Budžet Republike Srbije",97,"29-120","Zakon o RAT - tarifni broj 1"]
[null,"Gradska opština Rakovica ! ","Građevinska dozvola","Donošenje rešenja","Republička administrativna taksa",null,1070,null,"840-742221843-57 ","Budžet Republike Srbije",97,"29-120","Zakon o RAT "]
[null,"Gradska opština Surčin !","Građevinska dozvola","Podnošenje zahteva","Republička administrativna taksa",null,300,null,"840-742221843-57 ","Budžet Republike Srbije",97,"14-124","Zakon o RAT - tarifni broj 1"]
[null,"Gradska opština Surčin !","Građevinska dozvola","Podnošenje zahteva","Lokalna naknada",null,891,null,null,"Opštinska uprava Surčin",97,"14-124","Odluka o LAT"]
[null,"Gradska opština Surčin !","Građevinska dozvola","Donošenje rešenja","Republička administrativna taksa",null,770,null,"840-742221843-57 ","Budžet Republike Srbije",97,"14-124","Zakon o RAT"]
[null,"Gradska opština Surčin !","Građevinska dozvola","Donošenje rešenja","Lokalna administrativna taksa",null,300,null,null,"Opštinska uprava Surčin",97,"14-124","Odluka o LAT"]
[null,"Gradska opština Voždovac !","Građevinska dozvola","Podnošenje zahteva","Lokalna administrativna taksa",null,500,null,"840-742351843-94","Opštinska uprava Voždovac",97,"41-019","Opštinska odluka o administrativnim taksama"]
[null,"Gradska opština Voždovac !","Građevinska dozvola","Donošenje rešenja","Lokalna administrativna taksa",null,300,null,"840-742351843-94","Opštinska uprava Voždovac",97,"41-019","Opštinska odluka o administrativnim taksama"]
[null,"Opština Aleksinac !","Građevinska dozvola","Donošenje rešenja","Republička administrativna taksa",null,770,null,"840-742221843-57 ","Budžet Republike Srbije",97,"92-002","Zakon o RAT"]
[null,"Opština Apatin !","Građevinska dozvola","Donošenje rešenja","Republička administrativna taksa",null,{"$f":"310+800","v":1110},null,"840-742221843-57 ","Budžet Republike Srbije",97,"71-203","Zakon o RAT - tarifni broj 1 i 165"]
[null,"Opština Bač !","Građevinska dozvola","Donošenje rešenja","Republička administrativna taksa",null,1080,null,"840-742221843-57 ","Budžet Republike Srbije",97,"68-204","Zakon o RAT"]
[null,"Opština Bački Petrovac !","Građevinska dozvola","Donošenje rešenja","Republička administrativna taksa",null,{"$f":"310+800","v":1110},null,"840-742221843-57 ","Budžet Republike Srbije",97,"59-207","Zakon o RAT - tarifni broj 1 i 165"]
[null,"Opština Bajina Bašta !","Građevinska dozvola","Podnošenje zahteva","Lokalna administrativna taksa",null,350,null,null,"Opštinska uprava Bajina Bašta",97,"22-007","Odluka o lokalnim administrativnim taksama"]
[null,"Opština Bela Crkva !","Građevinska dozvola","Donošenje rešenja","Republička administrativna taksa",null,1080,null,"840-742221843-57 ","Budžet Republike Srbije",97,"53-209","Zakon o RAT"]
[null,"Opština Bojnik !","Građevinska dozvola","Podnošenje zahteva","Republička administrativna taksa",null,300,null,"840-742221843-57 ","Budžet Republike Srbije",97,"23-025","Zakon o RAT - tarifni broj 1"]
[null,"Opština Bor !","Građevinska dozvola","Donošenje rešenja","Republička administrativna taksa",null,1070,null,"840-742221843-57 ","Budžet Republike Srbije",97,"17-027","Zakon o RAT"]
[null,"Opština Inđija !","Građevinska dozvola","Podnošenje zahteva","Republička administrativna taksa",null,1200,null,"840-742221843-57 ","Budžet Republike Srbije",97,"44-212","Zakon o RAT"]
[null,"Opština Inđija !","Građevinska dozvola","Podnošenje zahteva","Lokalna administrativna taksa",null,9030,null,"840-742251843-73","Opštinska uprava Inđija",97,"44-212","Odluka o lokalnim administrativnim taksama"]
[null,"Opština Kanjiža !","Građevinska dozvola","Podnošenje zahteva","Republička administrativna taksa",null,1100,null,"840-742221843-57 ","Budžet Republike Srbije",97,"38-214","Zakon o RAT"]
[null,"Opština Kladovo !","Građevinska dozvola","Donošenje rešenja","Republička administrativna taksa",null,{"$f":"310+1110","v":1420},null,"840-742221843-57 ","Budžet Republike Srbije",97,"66-043","Zakon o RAT"]
[null,"Opština Ljubovija !","Građevinska dozvola","Donošenje rešenja","Republička administrativna taksa",null,1070,null,"840-742221843-57 ","Budžet Republike Srbije",97,"09-062","Zakon o RAT"]
[null,"Opština Majdanpek !","Građevinska dozvola","Donošenje rešenja","Republička administrativna taksa",null,385,null,"840-742221843-57 ","Budžet Republike Srbije",97,"06-063","Zakon o RAT"]
[null,"Opština Mali Iđoš !","Građevinska dozvola","Donošenje rešenja","Republička administrativna taksa",null,{"$f":"310+520","v":830},null,"840-742221843-57 ","Budžet Republike Srbije",97,"23-219","Zakon o RAT"]
[null,"Opština Mali Zvornik !","Građevinska dozvola","Podnošenje zahteva","Republička administrativna taksa",null,1100,null,"840-742221843-57 ","Budžet Republike Srbije",97,"97-065","Zakon o RAT"]
[null,"Opština Trgovište !","Građevinska dozvola","Donošenje rešenja","Republička administrativna taksa",null,770,null,"840-742221843-57 ","Budžet Republike Srbije",97,null,"Zakon o RAT"]
[null,"Opština Tutin !","Građevinska dozvola","Donošenje rešenja","Republička administrativna taksa",null,{"$f":"310+800","v":1110},null,"840-742221843-57 ","Budžet Republike Srbije",97,null,"Zakon o RAT - tarifni broj 1 i 165"]
[null,"Opština Ub !","Građevinska dozvola","Donošenje rešenja","Republička administrativna taksa",null,1110,null,"840-742221843-57 ","Budžet Republike Srbije",97,"74-105","Zakon o RAT - tarifni broj 1 i 165"]
[null,"Opština Veliko Gradište !","Građevinska dozvola","Donošenje rešenja","Republička administrativna taksa",null,1070,null,"840-742221843-57 ","Budžet Republike Srbije",97,"59-110","Zakon o RAT"]
[null,"Opština Vlasotince !","Građevinska dozvola","Podnošenje zahteva","Republička administrativna taksa",null,310,null,"840-742221843-57 ","Budžet Republike Srbije",97,null,"Zakon o RAT - tarifni broj 1"]
[null,"Opština Vlasotince !","Građevinska dozvola","Podnošenje zahteva","Lokalna administrativna taksa",null,4400,null,null,"Opštinska uprava Vlasotince",97,null,"Odluka o lokalnim administrativnim taksama"]
[null,"Opština Vrnjačka Banja !","Građevinska dozvola","Donošenje rešenja","Republička administrativna taksa",null,1050,null,"840-742221843-57 ","Budžet Republike Srbije",97,"44-115","Zakon o RAT"]
[null,"Opština Vrnjačka Banja !","Građevinska dozvola","Podnošenje zahteva","Lokalna administrativna taksa",null,531,null,"840-742251843-73","Opštinska uprava Vrnjačka Banja",97,"44-115","Odluka o LAT Opštine Vrnjačka Banja"]
[null,"Opština Žitište !","Građevinska dozvola","Donošenje rešenja","Republička administrativna taksa",null,800,null,"840-742221843-57 ","Budžet Republike Srbije",97,"45-244","Zakon o RAT - tarifni broj 1 i 9"]
[null,"Opština Žitište !","Građevinska dozvola","Donošenje rešenja","Lokalna naknada",null,20000,null,"840-742351843-94","Opštinska uprava Žitište",97,"70-244-102159550","Odluka o opštinskim adminitrativnim taksama i naknadama (sl.list opštine Žitište 18/11)"]
[null,"Opština Topola !","Građevinska dozvola","Donošenje rešenja","Republička administrativna taksa",null,1110,null,"840-742221843-57 ","Budžet Republike Srbije",97,"86-101","Zakon o RAT - tarifni broj 1 i 9"]
[null,"Opština Osečina !","Građevinska dozvola","Donošenje rešenja","Republička administrativna taksa",null,770,null,"840-742221843-57 ","Budžet Republike Srbije",97,"64-076","Zakon o RAT"]
[null,"Opština Paraćin !","Građevinska dozvola","Donošenje rešenja","Republička administrativna taksa",null,1110,null,"840-742221843-57 ","Budžet Republike Srbije",97,"61-077","Zakon o RAT - tarifni broj 1 i 165"]
[null,"Opština Raška !","Građevinska dozvola","Donošenje rešenja","Republička administrativna taksa",null,800,null,"840-742221843-57 ","Budžet Republike Srbije",97,"31-087","Zakon o RAT - tarifni broj 165"]
[null,"Opština Ruma !","Građevinska dozvola","Donošenje rešenja","Republička administrativna taksa",null,1110,null,"840-742221843-57 ","Budžet Republike Srbije",97,"90-229","Zakon o RAT - tarifni broj 1 i 165"]
[null,"Opština Svilajnac !","Građevinska dozvola","Donošenje rešenja","Republička administrativna taksa",null,1110,null,"840-742221843-57 ","Budžet Republike Srbije",97,"98-097","Zakon o RAT - tarifni broj 1 i 165"]
[null,"Opština Varvarin !","Građevinska dozvola","Podnošenje zahteva","Republička administrativna taksa",null,300,null,"840-742221843-57 ","Budžet Republike Srbije",97,"65-108","Zakon o RAT - tarifni broj 1"]
[null,"Gradska opština Grocka !","Građevinska dozvola","Podnošenje zahteva","Republička administrativna taksa",null,310,null,"840-742221843-57 ","Budžet Republike Srbije",97,"62-012","Zakon o RAT - tarifni broj 1"]
[null,"Gradska opština Grocka !","Građevinska dozvola","Podnošenje zahteva","Republička administrativna taksa",null,800,null,"840-742221843-57 ","Budžet Republike Srbije",97,"62-012","Zakon o RAT - tarifni broj 165"]
[null,"Gradska opština Stari Grad !","Građevinska dozvola","Podnošenje zahteva","Republička administrativna taksa",null,310,null,"840-742221843-57 ","Budžet Republike Srbije",97,"44-018","Zakon o RAT - tarifni broj 1"]
[null,"Gradska opština Stari Grad !","Građevinska dozvola","Podnošenje zahteva","Republička administrativna taksa",null,800,null,"840-742221843-57 ","Budžet Republike Srbije",97,"44-018","Zakon o RAT - tarifni broj 165"]
[null,"Opština Ada !","Građevinska dozvola","Donošenje rešenja","Republička administrativna taksa",null,1110,null,"840-742221843-57 ","Budžet Republike Srbije",97,"77-201","Zakon o RAT - tarifni broj 1 i 165"]
[null,"Opština Lapovo !","Građevinska dozvola","Donošenje rešenja","Republička administrativna taksa",null,1070,null,"840-742221843-57 ","Budžet Republike Srbije",97,"26-121","Zakon o RAT"]
[null,"Opština Lapovo !","Građevinska dozvola","Donošenje rešenja","Lokalna administrativna taksa",null,18000,null,"840-742251843-73","Opštinska uprava Lapovo",97,"26-121","Zakon o RAT"]
[null,"Opština Prokuplje !","Građevinska dozvola","Podnošenje zahteva","Lokalna naknada",null,4600,null,"840-742251843-73","Opštinska uprava Prokuplje",97,"37-085","Odluka o LAT"]
[null,"Opština Prokuplje !","Građevinska dozvola","Donošenje rešenja","Republička administrativna taksa",null,800,null,"840-742221843-57 ","Budžet Republike Srbije",97,"37-085","Zakon o RAT - tarifni broj 165"]
[null,"Opština Prokuplje !","Građevinska dozvola","Podnošenje zahteva","Republička administrativna taksa",null,310,null,"840-742221843-57 ","Budžet Republike Srbije",97,"37-085","Zakon o RAT - tarifni broj 1"]
[null,"Opština Smederevska Palanka !","Građevinska dozvola","Donošenje rešenja","Republička administrativna taksa",null,1070,null,"840-742221843-57 ","Budžet Republike Srbije",97,"13-093","Zakon o RAT"]
[null,"Opština Vladimirci !","Građevinska dozvola","Donošenje rešenja","Republička administrativna taksa",null,1070,null,"840-742221843-57 ","Budžet Republike Srbije",97,"53-112","Zakon o RAT"]
[null,"Opština Vladimirci !","Građevinska dozvola","Podnošenje zahteva","Republička administrativna taksa",null,310,null,"840-742221843-57 ","Budžet Republike Srbije",97,"53-112","Zakon o RAT"]
[null,"Opština Vladimirci !","Građevinska dozvola","Donošenje rešenja","Lokalna administrativna taksa",null,18184,null,"840-742351843-94","Opštinska uprava Vladimirci",97,"53-112","Odluka o LAT"]

{"sheet":"Sheet1","index":4,"n_rows":166,"n_cols":12,"rows_kept":166,"cut":false,"hidden":true,"merged":[]}
[]
[]
[null,null,null,"Lokacijski uslovi",null,null,"Građevinska dozvola",null,null,"Upotrebna dozvola"]
[null,null,null,"Row Labels","Sum of Iznos takse Tip objekta 1",null,"Row Labels","Sum of Iznos takse Tip objekta 1",null,"Row Labels","Sum of Iznos takse Tip objekta 1","Count of Da li LS naplaćuje taksu u % iznosu"]
[null,null,null,"Grad Beograd",31608,null,"Grad Beograd",1100,null,"Grad Beograd",300,1]
[null,null,null,"Grad Čačak",830,null,"Grad Čačak",580,null,"Grad Čačak",310,1]
[null,null,null,"Grad Jagodina",33310,null,"Grad Ćuprija !",4210,null,"Grad Jagodina",1030,1]
[null,null,null,"Grad Kikinda",51830,null,"Grad Jagodina",1030,null,"Grad Kikinda",310,1]
[null,null,null,"Grad Kragujevac",66520,null,"Grad Kikinda",1110,null,"Grad Kragujevac",310,1]
[null,null,null,"Grad Kruševac",1130,null,"Grad Kragujevac",1110,null,"Grad Kruševac",2090,1]
[null,null,null,"Grad Leskovac",101910,null,"Grad Kraljevo !",1070,null,"Grad Leskovac",7310,1]
[null,null,null,"Grad Loznica",10310,null,"Grad Kruševac",1410,null,"Grad Loznica",5830]
[null,null,null,"Grad Niš",25200,null,"Grad Leskovac",1110,null,"Grad Niš",310,1]
[null,null,null,"Grad Novi Pazar",3160,null,"Grad Loznica",6110,null,"Grad Novi Pazar",2160,1]
[null,null,null,"Grad Novi Sad",4560,null,"Grad Negotin !",1070,null,"Grad Novi Sad",1370,2]
[null,null,null,"Grad Pančevo",7397,null,"Grad Niš",1100,null,"Grad Pančevo",1810,1]
[null,null,null,"Grad Pirot",81310,null,"Grad Novi Pazar",3960,null,"Grad Pirot",2500,1]
[null,null,null,"Grad Požarevac",5800,null,"Grad Novi Sad",2170,null,"Grad Požarevac",5800]
[null,null,null,"Grad Šabac",9310,null,"Grad Pančevo",2610,null,"Grad Šabac",1310,1]
[null,null,null,"Grad Smederevo",5310,null,"Grad Pirot",3270,null,"Grad Smederevo",1510,1]
[null,null,null,"Grad Sombor",310,null,"Grad Požarevac",5800,null,"Grad Sombor",310,1]
[null,null,null,"Grad Sremska Mitrovica",50610,null,"Grad Šabac",7060,null,"Grad Sremska Mitrovica",510,1]
[null,null,null,"Grad Subotica",1853,null,"Grad Smederevo",2310,null,"Grad Subotica",310,1]
[null,null,null,"Grad Užice",7300,null,"Grad Sombor",1110,null,"Grad Užice",310,1]
[null,null,null,"Grad Vršac",29310,null,"Grad Sremska Mitrovica",1310,null,"Grad Valjevo",1289]
[null,null,null,"Grad Zaječar",8135,null,"Grad Subotica",1110,null,"Grad Vršac",960,1]
[null,null,null,"Grad Zrenjanin",40830,null,"Grad Užice",1140,null,"Grad Zaječar",4735]
[null,null,null,"Gradska opština Barajevo",14316,null,"Grad Valjevo",1569,null,"Grad Zrenjanin",310,1]
[null,null,null,"Gradska opština Lazarevac",14306,null,"Grad Vranje !",2445,null,"Gradska opština Barajevo",1110,1]
[null,null,null,"Gradska opština Obrenovac",14316,null,"Grad Vršac",2160,null,"Gradska opština Čukarica",830,1]
[null,null,null,"Gradska opština Sopot",14306,null,"Grad Zaječar",3535,null,"Gradska opština Lazarevac",1070,1]
[null,null,null,"Opština Aleksandrovac",10000,null,"Grad Zrenjanin",2110,null,"Gradska opština Obrenovac",310,2]
[null,null,null,"Opština Alibunar",4310,null,"Gradska opština Barajevo",1110,null,"Gradska opština Palilula",310,1]
[null,null,null,"Opština Aranđelovac",15251.500000000002,null,"Gradska opština Čukarica",1110,null,"Gradska opština Savski Venac",310,1]
[null,null,null,"Opština Arilje",3000,null,"Gradska opština Grocka !",1110,null,"Gradska opština Sopot",800,1]
[null,null,null,"Opština Babušnica",370,null,"Gradska opština Lazarevac",1070,null,"Gradska opština Vračar",300,1]
[null,null,null,"Opština Bačka Palanka",310,null,"Gradska opština Mladenovac !",1410,null,"Gradska opština Zemun",310,1]
[null,null,null,"Opština Bačka Topola",310,null,"Gradska opština Novi Beograd",1600,null,"Gradska opština Zvezdara",310,1]
[null,null,null,"Opština Batočina",8310,null,"Gradska opština Obrenovac",1110,null,"Opština Aleksandrovac",170,1]
[null,null,null,"Opština Bečej",1660,null,"Gradska opština Palilula",1110,null,"Opština Alibunar",310,1]
[null,null,null,"Opština Bela Palanka",430,null,"Gradska opština Rakovica ! ",1370,null,"Opština Aranđelovac",0,1]
[null,null,null,"Opština Beočin",2310,null,"Gradska opština Savski Venac",1110,null,"Opština Arilje",300,1]
[null,null,null,"Opština Blace",100800,null,"Gradska opština Sopot",800,null,"Opština Babušnica",1870,1]
[null,null,null,"Opština Bogatić",10260,null,"Gradska opština Stari Grad !",1110,null,"Opština Bačka Palanka",710,1]
[null,null,null,"Opština Boljevac",16120,null,"Gradska opština Surčin !",2261,null,"Opština Batočina",6310,1]
[null,null,null,"Opština Bosilegrad",5390,null,"Gradska opština Voždovac !",800,null,"Opština Bečej",660,2]
[null,null,null,"Opština Brus",11580,null,"Gradska opština Vračar",1100,null,"Opština Bela Palanka",60430,1]
[null,null,null,"Opština Bujanovac",3610,null,"Gradska opština Zemun",1110,null,"Opština Blace",2430,1]
[null,null,null,"Opština Čajetina",25620,null,"Gradska opština Zvezdara",1110,null,"Opština Bogatić",3490,1]
[null,null,null,"Opština Ćićevac",4910,null,"Opština Ada !",1110,null,"Opština Bosilegrad",680,1]
[null,null,null,"Opština Čoka",300,null,"Opština Aleksandrovac",970,null,"Opština Brus",1380]
[null,null,null,"Opština Crna Trava",30310,null,"Opština Aleksinac !",770,null,"Opština Bujanovac",45510,1]
[null,null,null,"Opština Despotovac",3960,null,"Opština Alibunar",1110,null,"Opština Čajetina",50830,1]
[null,null,null,"Opština Dimitrovgrad",1545,null,"Opština Apatin !",1110,null,"Opština Ćićevac",3100,1]
[null,null,null,"Opština Doljevac",310,null,"Opština Aranđelovac",1110,null,"Opština Čoka",300,1]
[null,null,null,"Opština Gadžin Han",1990,null,"Opština Arilje",1070,null,"Opština Crna Trava",310,1]
[null,null,null,"Opština Golubac",15460,null,"Opština Babušnica",2370,null,"Opština Despotovac",1980]
[null,null,null,"Opština Gornji Milanovac",900,null,"Opština Bač !",1080,null,"Opština Dimitrovgrad",1239,1]
[null,null,null,"Opština Irig",3830,null,"Opština Bačka Palanka",4260,null,"Opština Doljevac",830]
[null,null,null,"Opština Ivanjica",38500,null,"Opština Bačka Topola",1410,null,"Opština Gadžin Han",2510]
[null,null,null,"Opština Knić",4380,null,"Opština Bački Petrovac !",1110,null,"Opština Golubac",2260,1]
[null,null,null,"Opština Knjaževac",4131,null,"Opština Bajina Bašta !",350,null,"Opština Gornji Milanovac",310,1]
[null,null,null,"Opština Koceljeva",6820,null,"Opština Batočina",8610,null,"Opština Irig",1260]
[null,null,null,"Opština Kosjerić",80510,null,"Opština Bečej",6260,null,"Opština Ivanjica",0,1]
[null,null,null,"Opština Kovačica",11920,null,"Opština Bela Crkva !",1080,null,"Opština Knić",620,1]
[null,null,null,"Opština Kovin",10078,null,"Opština Bela Palanka",2230,null,"Opština Knjaževac",0,1]
[null,null,null,"Opština Krupanj",7420,null,"Opština Beočin",1110,null,"Opština Koceljeva",1300,1]
[null,null,null,"Opština Kučevo",8110,null,"Opština Blace",6990,null,"Opština Kosjerić",1810]
[null,null,null,"Opština Kula",2310,null,"Opština Bogatić",4290,null,"Opština Kovačica",2010,1]
[null,null,null,"Opština Kuršumlija",50310,null,"Opština Bojnik !",300,null,"Opština Kovin",8078]
[null,null,null,"Opština Lajkovac",27010,null,"Opština Boljevac",1110,null,"Opština Krupanj",1430,1]
[null,null,null,"Opština Lebane ",5910,null,"Opština Bor !",1070,null,"Opština Kučevo",3110]
[null,null,null,"Opština Ljig",32000,null,"Opština Bosilegrad",5700,null,"Opština Kula",830]
[null,null,null,"Opština Lučani",3530,null,"Opština Brus",1660,null,"Opština Kuršumlija",4510,1]
[null,null,null,"Opština Malo Crniće",2580,null,"Opština Bujanovac",64520,null,"Opština Lajkovac",558,1]
[null,null,null,"Opština Medveđa",2710,null,"Opština Čajetina",36100,null,"Opština Lebane ",0,1]
[null,null,null,"Opština Merošina",1630,null,"Opština Ćićevac",5400,null,"Opština Ljig",6000,1]
[null,null,null,"Opština Mionica",10500,null,"Opština Čoka",300,null,"Opština Lučani",2510,1]
[null,null,null,"Opština Nova Crnja",310,null,"Opština Crna Trava",1110,null,"Opština Malo Crniće",9190]
[null,null,null,"Opština Nova Varoš",9270,null,"Opština Despotovac",2260,null,"Opština Medveđa",2310,1]
[null,null,null,"Opština Novi Bečej",45830,null,"Opština Dimitrovgrad",2035,null,"Opština Merošina",5480]
[null,null,null,"Opština Novi Kneževac",650,null,"Opština Doljevac",1110,null,"Opština Mionica",1810,1]
[null,null,null,"Opština Odžaci",4300,null,"Opština Gadžin Han",2790,null,"Opština Nova Crnja",310,1]
[null,null,null,"Opština Opovo",5600,null,"Opština Golubac",3060,null,"Opština Nova Varoš",2200]
[null,null,null,"Opština Pećinci",30996,null,"Opština Gornji Milanovac",67800,null,"Opština Novi Bečej",1010,1]
[null,null,null,"Opština Petrovac na Mlavi",10610,null,"Opština Inđija !",10230,null,"Opština Novi Kneževac",2350]
[null,null,null,"Opština Plandište",3150,null,"Opština Irig",1260,null,"Opština Odžaci",0,2]
[null,null,null,"Opština Požega",42310,null,"Opština Ivanjica",800,null,"Opština Opovo",300,2]
[null,null,null,"Opština Preševo ",10000,null,"Opština Kanjiža !",1100,null,"Opština Pećinci",310,1]
[null,null,null,"Opština Priboj",20310,null,"Opština Kladovo !",1420,null,"Opština Petrovac na Mlavi",310,1]
[null,null,null,"Opština Prijepolje",310,null,"Opština Knić",1110,null,"Opština Plandište",310,1]
[null,null,null,"Opština Rača",378.8,null,"Opština Knjaževac",1110,null,"Opština Požega",310,1]
[null,null,null,"Opština Ražanj",6310,null,"Opština Koceljeva",4150,null,"Opština Preševo ",10000,1]
[null,null,null,"Opština Rekovac",15410,null,"Opština Kosjerić",1810,null,"Opština Priboj",310,1]
[null,null,null,"Opština Sečanj",2390,null,"Opština Kovačica",6310,null,"Opština Prijepolje",310]
[null,null,null,"Opština Senta",113148,null,"Opština Kovin",8078,null,"Opština Rača",5342.8,1]
[null,null,null,"Opština Šid",41910,null,"Opština Krupanj",3240,null,"Opština Ražanj",3310,1]
[null,null,null,"Opština Sjenica",12310,null,"Opština Kučevo",8110,null,"Opština Rekovac",1510]
[null,null,null,"Opština Sokobanja",9078,null,"Opština Kula",1110,null,"Opština Sečanj",390,1]
[null,null,null,"Opština Srbobran",5122,null,"Opština Kuršumlija",5310,null,"Opština Senta",553,2]
[null,null,null,"Opština Sremski Karlovci",7310,null,"Opština Lajkovac",1358,null,"Opština Šid",310,1]
[null,null,null,"Opština Stara Pazova",830,null,"Opština Lapovo !",19070,null,"Opština Sjenica",4000,1]
[null,null,null,"Opština Surdulica ",5210,null,"Opština Lebane ",6770,null,"Opština Sokobanja",310,1]
[null,null,null,"Opština Svrljig ",1110,null,"Opština Ljig",4400,null,"Opština Srbobran",310,1]
[null,null,null,"Opština Temerin",60310,null,"Opština Ljubovija !",1070,null,"Opština Sremski Karlovci",610,1]
[null,null,null,"Opština Titel",5310,null,"Opština Lučani",3810,null,"Opština Stara Pazova",1610,1]
[null,null,null,"Opština Trstenik",15000,null,"Opština Majdanpek !",385,null,"Opština Surdulica ",9510,1]
[null,null,null,"Opština Velika Plana",310,null,"Opština Mali Iđoš !",830,null,"Opština Svrljig ",2810,1]
[null,null,null,"Opština Vladičin Han",2310,null,"Opština Mali Zvornik !",1100,null,"Opština Temerin",310,1]
[null,null,null,"Opština Vrbas",30310,null,"Opština Malo Crniće",6190,null,"Opština Titel",6460,1]
[null,null,null,"Opština Žabalj",7510,null,"Opština Medveđa",3510,null,"Opština Trstenik",310,1]
[null,null,null,"Opština Žabari",5670,null,"Opština Merošina",1260,null,"Opština Velika Plana",310,1]
[null,null,null,"Opština Žagubica",1920,null,"Opština Mionica",2610,null,"Opština Vladičin Han",2410,1]
[null,null,null,"Opština Žitorađa",10310,null,"Opština Nova Crnja",1110,null,"Opština Vrbas",310,1]
[null,null,null,null,null,null,"Opština Nova Varoš",3070,null,"Opština Žabalj",310,1]
[null,null,null,null,null,null,"Opština Novi Bečej",1810,null,"Opština Žabari",510,2]
[null,null,null,null,null,null,"Opština Novi Kneževac",4850,null,"Opština Žagubica",1410,1]
[null,null,null,null,null,null,"Opština Odžaci",4070,null,"Opština Žitorađa",770,1]
[null,null,null,null,null,null,"Opština Opovo",1870]
[null,null,null,null,null,null,"Opština Osečina !",770]
[null,null,null,null,null,null,"Opština Paraćin !",1110]
[null,null,null,null,null,null,"Opština Pećinci",1110]
[null,null,null,null,null,null,"Opština Petrovac na Mlavi",1110]
[null,null,null,null,null,null,"Opština Plandište",1110]
[null,null,null,null,null,null,"Opština Požega",1110]
[null,null,null,null,null,null,"Opština Preševo ",10000]
[null,null,null,null,null,null,"Opština Priboj",1110]
[null,null,null,null,null,null,"Opština Prijepolje",310]
[null,null,null,null,null,null,"Opština Prokuplje !",5710]
[null,null,null,null,null,null,"Opština Rača",1923.3]
[null,null,null,null,null,null,"Opština Raška !",800]
[null,null,null,null,null,null,"Opština Ražanj",5110]
[null,null,null,null,null,null,"Opština Rekovac",1510]
[null,null,null,null,null,null,"Opština Ruma !",1110]
[null,null,null,null,null,null,"Opština Sečanj",2190]
[null,null,null,null,null,null,"Opština Senta",1353]
[null,null,null,null,null,null,"Opština Šid",1070]
[null,null,null,null,null,null,"Opština Sjenica",3800]
[null,null,null,null,null,null,"Opština Smederevska Palanka !",1070]
[null,null,null,null,null,null,"Opština Sokobanja",1110]
[null,null,null,null,null,null,"Opština Srbobran",1110]
[null,null,null,null,null,null,"Opština Sremski Karlovci",7110]
[null,null,null,null,null,null,"Opština Stara Pazova",1410]
[null,null,null,null,null,null,"Opština Surdulica ",5700]
[null,null,null,null,null,null,"Opština Svilajnac !",1110]
[null,null,null,null,null,null,"Opština Svrljig ",930]
[null,null,null,null,null,null,"Opština Temerin",1320]
[null,null,null,null,null,null,"Opština Titel",7260]
[null,null,null,null,null,null,"Opština Topola !",1110]
[null,null,null,null,null,null,"Opština Trgovište !",770]
[null,null,null,null,null,null,"Opština Trstenik",1320]
[null,null,null,null,null,null,"Opština Tutin !",1110]
[null,null,null,null,null,null,"Opština Ub !",1110]
[null,null,null,null,null,null,"Opština Varvarin !",300]
[null,null,null,null,null,null,"Opština Velika Plana",1110]
[null,null,null,null,null,null,"Opština Veliko Gradište !",1070]
[null,null,null,null,null,null,"Opština Vladičin Han",3210]
[null,null,null,null,null,null,"Opština Vladimirci !",19564]
[null,null,null,null,null,null,"Opština Vlasotince !",4710]
[null,null,null,null,null,null,"Opština Vrbas",1110]
[null,null,null,null,null,null,"Opština Vrnjačka Banja !",1581]
[null,null,null,null,null,null,"Opština Žabalj",1310]
[null,null,null,null,null,null,"Opština Žabari",2110]
[null,null,null,null,null,null,"Opština Žagubica",2010]
[null,null,null,null,null,null,"Opština Žitište !",20800]
[null,null,null,null,null,null,"Opština Žitorađa",1260]